Workbook

Sheet Table of Contents
A1: TABLE OF CONTENTS
A3: 1. Workbook Purpose: To calculate C3 requirements for non-indexed Fixed Annuities in order to measure the impact of the new Conning ESG. Four calculations are performed, with results entered automatically in cells N8, N9, N11, and N12.
A4: a) Weighted Average consistent with current C3 Phase 1 requirements
A5: b) CTE (90) | E5: These three amounts will be produced only if running the expanded 200+ scenario set.
A6: c) CTE(0) (mean factor)
A7: d) Worst case scenario (maximum) C3 factor
A9: 2. How it works: Results are calculated using a Macro at the top of the C3Factor tab ("Calculate RBC C3 Phase 1 Factor"). Before running this macro, the following inputs are needed. The first 4 are on the C3Factor tab, and the last is on the 1-Yr Rates tab.
A10: a) Cell G4, number of scenarios - possibilities are 12 or 50, as under current C3 Phase 1 requirements, or an expanded set of 200+ scenarios.
A11: b) Cell G5, the valuation date.
A12: c) Cells G6 and G7, your current staturory and tax reserves.
A13: d) Cell G9, the number of years of cash flows you want the calculations to use. If you project more years than you input into this cell, the macro will truncate to your input. You will get an error if you project fewer years than you input.
A14: e) Cell G10 is the number of scenarios you want the calculations to use. If you project more scenarios than you input into this cell, the macro will truncate all scenarios after input amount. You will get an error if you project fewer scenarios than you input.
A15: e) Cell G11 has the C3 Phase 1 discount loading factor of 105%
A16: f) Cell G12, whether you are doing calendar year or projection year calculations - if calendar year, then the first year stub period will be disgarded
A17: g) Your scenario specific one-year treasury rates need to be entered in the 1-Yr Rates tab. Columns represent the projection month. Rows represent the scenarios.
A19: 3. After running the macro, your projected statutory surplus amounts for each year and for each scenario need to be entered beginning in cell E34 of the C3Factor tab. Be sure to enter at least as many scenarios and year as entered in cells G9 and G10.
A21: 4. Factors are calculated automatically, and represent the C3 factor as a percent of the initial statutory reserve.
A23: 5. Results can be checked on the Validation tab, which will be populated automatically.
A26: Recommended future Enhancements subsequent to peer review and identification of all fields that will be needed:
A27: 1. Lock cells/tabs that should never be able to be changed by the user.
A28: 2. For ease of use, color code cells that are inputs, locked, and calculated.
A29: 3. The cell G11 discount loading factor should be fixed for C3 Phase 1 and eliminated if the spreadsheet ends up getting used for other applications.

Sheet C3Factor
F2: Company Name: | Q2: For ESG field testing:
F3: Model Description: | Q3: 1. Make sure ESG can output one-year rates x months from now in the specified format
F4: Is the run Standard (12 or 50 scens) or Expanded (200+): | G4: Expanded | Q4: 2. Discount Loading should be 105%
F5: What is the projection date (EOM): | G5: 2021-09-30
F6: Beginning Statutory Reserve Level: | G6: 1000000
F7: Beginning Tax Reserve Level: | G7: 950000 | Q7: Macro output
F8: Tax Rate: | G8: 0.21 | M8: Weighted average 95% or current law, as applicable: | N8: =IF(RunType="Expanded",IF(NoScen<200,"N/A",SUMPRODUCT($C$34:$C$1033,$D$34:$D$1033)),IF(NoScen=12,MAX(SUMPRODUCT($C$34:$C$1033,$D$34:$D$1033),0.5*N12),SUMPRODUCT($C$34:$C$1033,$D$34:$D$1033))) -> 0.05787015202 | P8: CTE 90 | Q8: 0.05781137098
F9: Number of Years in Projection: | G9: 10 | M9: CTE 90 C-3 Factor: | N9: =IF(NoScen=12,"N/A",SUMPRODUCT(Validation!$X$6:$X$1005,Validation!$AA$6:$AA$1005)) -> 0.05781137098 | P9: CTE 95W | Q9: 0.05787015202
F10: Number of Scenarios: | G10: 200 | P10: CTE 98 | Q10: 0.05807976756
F11: Discount Loading: | G11: 1.05 | M11: Mean Factor: | N11: =AVERAGE($C$34:$C$1033) -> 0.05147549127
F12: Projection Basis (Projection Year/Calendar Year): | G12: Projection | H12: =IF(G12="Projection",1,2) -> 1 | M12: Max C-3 Factor: | N12: =MAX($C$34:$C$1033) -> 0.05815978324 | DJ12: 2021-09-30
B13: * if "Calendar Year", the first fractional year is discarded | DJ13: =EOMONTH(DJ12,1) -> 2021-10-31
DJ14: =EOMONTH(DJ13,1) -> 2021-11-30
B15: Weighted Average 95%, or as prescribed by the current law | DJ15: 2021-12-31
B16: =IF(RunType="Standard","Rank: ","Percentile: ") -> Percentile: | C16: =IF($B$16="Rank: ",IF(NoScen=50,21-COLUMN()+2,""),89+COLUMN(C16)/2-0.25) -> 90.25 | D16: =IF($B$16="Rank: ",IF(NoScen=50,21-COLUMN()+2,""),89+COLUMN(D16)/2-0.25) -> 90.75 | E16: =IF($B$16="Rank: ",IF(NoScen=50,21-COLUMN()+2,""),89+COLUMN(E16)/2-0.25) -> 91.25 | F16: =IF($B$16="Rank: ",IF(NoScen=50,21-COLUMN()+2,""),89+COLUMN(F16)/2-0.25) -> 91.75 | G16: =IF($B$16="Rank: ",IF(NoScen=50,21-COLUMN()+2,19-COLUMN()),89+COLUMN(G16)/2-0.25) -> 92.25 | H16: 92.75 | I16: 93.25 | J16: 93.75 | K16: 94.25 | L16: 94.75 | M16: 95.25 | N16: 95.75 | O16: 96.25 | P16: 96.75 | Q16: 97.25 | R16: 97.75 | S16: =IF($B$16="Rank: ",IF(NoScen=50,21-COLUMN()+2,""),89+COLUMN(S16)/2-0.25) -> 98.25 | T16: =IF($B$16="Rank: ",IF(NoScen=50,21-COLUMN()+2,""),89+COLUMN(T16)/2-0.25) -> 98.75 | U16: =IF($B$16="Rank: ",IF(NoScen=50,21-COLUMN()+2,""),89+COLUMN(U16)/2-0.25) -> 99.25 | V16: =IF($B$16="Rank: ",IF(NoScen=50,21-COLUMN()+2,""),89+COLUMN(V16)/2-0.25) -> 99.75 | DJ16: 2022-01-31
B17: Weights: | C17: =IF(C16="","",0%) -> 0 | D17: =IF(D16="","",0%) -> 0 | E17: 0 | F17: =IF(F16="","",2%) -> 0.02 | G17: =IF($G16=12,0%,4%) -> 0.04 | H17: =IF($G16=12,0%,6%) -> 0.06 | I17: =IF($G16=12,0%,8%) -> 0.08 | J17: =IF($G16=12,0%,10%) -> 0.1 | K17: =IF($G16=12,0%,12%) -> 0.12 | L17: =IF($G16=12,0%,16%) -> 0.16 | M17: =IF($G16=12,0%,12%) -> 0.12 | N17: =IF($G16=12,0%,10%) -> 0.1 | O17: =IF($G16=12,0%,8%) -> 0.08 | P17: =IF($G16=12,50%,6%) -> 0.06 | Q17: =IF($G16=12,50%,4%) -> 0.04 | R17: =IF($G16=12,0%,2%) -> 0.02 | S17: =IF(S16="","",0%) -> 0 | T17: =IF(T16="","",0%) -> 0 | U17: =IF(U16="","",0%) -> 0 | V17: 0 | DJ17: 2022-02-28
B18: Scenario: | C18: 35 | D18: 108 | E18: 135 | F18: 155 | G18: 23 | H18: 181 | I18: 149 | J18: 27 | K18: 89 | L18: 173 | M18: 11 | N18: 82 | O18: 146 | P18: 80 | Q18: 171 | R18: 37 | S18: 178 | T18: 102 | U18: 142 | V18: 26 | DJ18: 2022-03-31
B19: C-3 Factor: | C19: =IF(OR(C$16="",C$18=""),"",VLOOKUP(C$18,$B$34:$C$1033,2,FALSE)) -> 0.05721074655 | D19: =IF(OR(D$16="",D$18=""),"",VLOOKUP(D$18,$B$34:$C$1033,2,FALSE)) -> 0.05735196313 | E19: 0.05738206969 | F19: 0.05752292734 | G19: 0.05757210198 | H19: 0.05757472907 | I19: 0.05779082927 | J19: 0.05784945891 | K19: 0.05788882369 | L19: 0.05791521375 | M19: 0.05791921667 | N19: 0.05794064669 | O19: 0.05795196344 | P19: 0.05798219688 | Q19: 0.05802257859 | R19: 0.05803288372 | S19: 0.05803935499 | T19: 0.0580552812 | U19: 0.0580646508 | V19: 0.05815978324 | DJ19: 2022-04-30
B20: ** AAA scenario picker uses the central value for each significance ranking group. The worst scenario of 200 subset should be considered to be the center of the range from 99.5 to 100% of original 10,000 set | DJ20: 2022-05-31
DJ21: 2022-06-30
B22: Sample Calculation of C-3 Factor for Scenario 1: | DJ22: 2022-07-31
D23: =IF(OR(MONTH($G$5)=12,$H$12=1),"",MONTH($G$5) & "/" & RIGHT(YEAR($G$5)+COLUMN(D23)-4,2) & "-12/" & RIGHT(YEAR($G$5)+COLUMN(D23)-4,2)) ->  | E23: =IF(AND(MONTH($G$5)<12,$H$12=1),MONTH($G$5) & "/" & RIGHT(YEAR($G$5)+COLUMN(E23)-5,2) &"-"& MONTH($G$5) & "/" & RIGHT(YEAR($G$5)+COLUMN(E23)-4,2),YEAR($G$5)+COLUMN(E23)-4) -> 9/21-9/22 | F23: 9/22-9/23 | G23: 9/23-9/24 | H23: 9/24-9/25 | I23: 9/25-9/26 | J23: 9/26-9/27 | K23: 9/27-9/28 | L23: 9/28-9/29 | M23: 9/29-9/30 | N23: 9/30-9/31 | O23: 9/31-9/32 | P23: 9/32-9/33 | Q23: 9/33-9/34 | R23: 9/34-9/35 | S23: 9/35-9/36 | T23: 9/36-9/37 | U23: 9/37-9/38 | V23: 9/38-9/39 | W23: 9/39-9/40 | X23: 9/40-9/41 | Y23: 9/41-9/42 | Z23: 9/42-9/43 | AA23: 9/43-9/44 | AB23: 9/44-9/45 | AC23: 9/45-9/46 | AD23: 9/46-9/47 | AE23: 9/47-9/48 | AF23: 9/48-9/49 | AG23: 9/49-9/50 | AH23: 9/50-9/51 | AI23: 9/51-9/52 | AJ23: 9/52-9/53 | AK23: =IF(AND(MONTH($G$5)<12,$H$12=1),MONTH($G$5) & "/" & RIGHT(YEAR($G$5)+COLUMN(AK23)-5,2) &"-"& MONTH($G$5) & "/" & RIGHT(YEAR($G$5)+COLUMN(AK23)-4,2),YEAR($G$5)+COLUMN(AK23)-4) -> 9/53-9/54 | AL23: 9/54-9/55 | AM23: 9/55-9/56 | AN23: 9/56-9/57 | AO23: 9/57-9/58 | AP23: 9/58-9/59 | AQ23: 9/59-9/60 | AR23: 9/60-9/61 | AS23: 9/61-9/62 | AT23: 9/62-9/63 | AU23: 9/63-9/64 | AV23: 9/64-9/65 | AW23: 9/65-9/66 | AX23: 9/66-9/67 | AY23: 9/67-9/68 | AZ23: 9/68-9/69 | BA23: 9/69-9/70 | BB23: 9/70-9/71 | BC23: 9/71-9/72 | BD23: 9/72-9/73 | BE23: 9/73-9/74 | BF23: 9/74-9/75 | BG23: 9/75-9/76 | BH23: 9/76-9/77 | BI23: 9/77-9/78 | BJ23: 9/78-9/79 | BK23: 9/79-9/80 | BL23: 9/80-9/81 | BM23: 9/81-9/82 | BN23: 9/82-9/83 | BO23: 9/83-9/84 | BP23: 9/84-9/85 | BQ23: =IF(AND(MONTH($G$5)<12,$H$12=1),MONTH($G$5) & "/" & RIGHT(YEAR($G$5)+COLUMN(BQ23)-5,2) &"-"& MONTH($G$5) & "/" & RIGHT(YEAR($G$5)+COLUMN(BQ23)-4,2),YEAR($G$5)+COLUMN(BQ23)-4) -> 9/85-9/86 | BR23: 9/86-9/87 | BS23: 9/87-9/88 | BT23: 9/88-9/89 | BU23: 9/89-9/90 | BV23: 9/90-9/91 | BW23: 9/91-9/92 | BX23: 9/92-9/93 | BY23: 9/93-9/94 | BZ23: 9/94-9/95 | CA23: 9/95-9/96 | CB23: 9/96-9/97 | CC23: 9/97-9/98 | CD23: 9/98-9/99 | CE23: 9/99-9/00 | CF23: 9/00-9/01 | CG23: 9/01-9/02 | CH23: 9/02-9/03 | CI23: 9/03-9/04 | CJ23: 9/04-9/05 | CK23: 9/05-9/06 | CL23: 9/06-9/07 | CM23: 9/07-9/08 | CN23: 9/08-9/09 | CO23: 9/09-9/10 | CP23: 9/10-9/11 | CQ23: 9/11-9/12 | CR23: 9/12-9/13 | CS23: 9/13-9/14 | CT23: 9/14-9/15 | CU23: 9/15-9/16 | CV23: 9/16-9/17 | CW23: 9/17-9/18 | CX23: 9/18-9/19 | CY23: 9/19-9/20 | CZ23: 9/20-9/21 | DJ23: 2022-08-31
C24: Discount Rate: | D24: 0 | E24: 0.005528106205 | F24: 0.01326151971 | G24: 0.01825268796 | H24: 0.01910034503 | I24: 0.01910034503 | J24: 0.01910034503 | K24: 0.01910034503 | L24: 0.01910034503 | M24: 0.01910034503 | N24: 0.01910034503 | DJ24: 2022-09-30
D25: (First value is needed to discount any fraction of a year if "Calendar Year" is used) | DJ25: 2022-10-31
C26: After-tax Dsct Factors: | D26: =1/(1+$D$24*$G$11*(1-$G$8))^((12-MONTH($G$5))/12) -> 1 | E26: =IF(COLUMN(E23)-4>NoYears,"",D26/(1+E$24*$G$11*(1-$G$8))) -> 0.9954353673 | F26: 0.9846042961 | G26: 0.9699191339 | H26: 0.9547916666 | I26: 0.9399001368 | J26: 0.9252408646 | K26: 0.9108102277 | L26: 0.89660466 | M26: 0.8826206512 | N26: 0.8688547458 | AK26: =IF(COLUMN(AK23)-4>NoYears,"",AJ26/(1+AK$24*$G$11*(1-$G$8))) ->  | BQ26: =IF(COLUMN(BQ23)-4>NoYears,"",BP26/(1+BQ$24*$G$11*(1-$G$8))) ->  | DJ26: 2022-11-30
C27: PV(Surplus): | E27: =IF(E26<>"",E34*E26,"") -> -1080.047374 | F27: -26.09201385 | G27: 4441.259714 | H27: 8553.501146 | I27: 8100.059379 | J27: 5441.341525 | K27: 1581.166555 | L27: -2394.831047 | M27: -5938.713052 | N27: -8997.859748 | Y27: =IF(Y26<>"",Y34*Y26,"") ->  | Z27: =IF(Z26<>"",Z34*Z26,"") ->  | CL27: =IF(CL26<>"",CL34*CL26,"") ->  | DJ27: 2022-12-31
C28: C3-Factor: | D28: =-MIN(E27:CZ27)/$G$6 -> 0.008997859748 | E28: = - Min(PV(Surplus)) / Beginning Statutory Reserve Level | DJ28: 2023-01-31
DJ29: 2023-02-28
D30: =IF(K18="","N/A",IF(SUM(D34:D1033)<>1,"CHECK WEIGHTS","OK")) -> OK | E30: Weight check | DJ30: 2023-03-31
B31: *** Enter statutory surplus values for all scenarios and all years of your projection | DJ31: 2023-04-30
B32: (S(1) = statutory surplus from end of first full projection year -- cumulative over at least 12 months) | DJ32: 2023-05-31
B33: Scenario | C33: C-3 Factor | D33: Weight | E33: ="S("&COLUMN(E33)-4&")" -> S(1) | F33: ="S("&COLUMN(F33)-4&")" -> S(2) | G33: S(3) | H33: S(4) | I33: S(5) | J33: S(6) | K33: S(7) | L33: S(8) | M33: S(9) | N33: S(10) | O33: S(11) | P33: S(12) | Q33: S(13) | R33: S(14) | S33: S(15) | T33: S(16) | U33: S(17) | V33: S(18) | W33: S(19) | X33: S(20) | Y33: S(21) | Z33: S(22) | AA33: S(23) | AB33: S(24) | AC33: S(25) | AD33: S(26) | AE33: S(27) | AF33: S(28) | AG33: S(29) | AH33: S(30) | AI33: S(31) | AJ33: S(32) | AK33: S(33) | AL33: S(34) | AM33: S(35) | AN33: S(36) | AO33: S(37) | AP33: S(38) | AQ33: S(39) | AR33: S(40) | AS33: S(41) | AT33: S(42) | AU33: S(43) | AV33: S(44) | AW33: S(45) | AX33: S(46) | AY33: S(47) | AZ33: S(48) | BA33: S(49) | BB33: S(50) | BC33: S(51) | BD33: S(52) | BE33: S(53) | BF33: S(54) | BG33: S(55) | BH33: S(56) | BI33: S(57) | BJ33: S(58) | BK33: S(59) | BL33: S(60) | BM33: S(61) | BN33: S(62) | BO33: S(63) | BP33: S(64) | BQ33: S(65) | BR33: S(66) | BS33: S(67) | BT33: S(68) | BU33: S(69) | BV33: S(70) | BW33: S(71) | BX33: S(72) | BY33: S(73) | BZ33: S(74) | CA33: S(75) | CB33: S(76) | CC33: S(77) | CD33: S(78) | CE33: S(79) | CF33: S(80) | CG33: S(81) | CH33: S(82) | CI33: S(83) | CJ33: S(84) | CK33: S(85) | CL33: S(86) | CM33: S(87) | CN33: S(88) | CO33: S(89) | CP33: S(90) | CQ33: S(91) | CR33: S(92) | CS33: S(93) | CT33: S(94) | CU33: S(95) | CV33: S(96) | CW33: S(97) | CX33: S(98) | CY33: S(99) | CZ33: S(100) | DA33: PVEMS | DJ33: 2023-06-30
B34: 1 | C34: 0.008997859848 | D34: 0 | E34: -1085 | F34: -26.5 | G34: 4579 | H34: 8958.5 | I34: 8618 | J34: 5881 | K34: 1736 | L34: -2671 | M34: -6728.5 | N34: -10356 | DA34: 0.008997859748 | DJ34: 2023-07-31
B35: 2 | C35: 2e-10 | D35: 0 | E35: 5 | F35: 5 | G35: 5 | H35: 5 | I35: 2861.5 | J35: 6633 | K35: 10667 | L35: 14553.5 | M35: 18080.5 | N35: 21517 | DA35: -0.02073012864 | DJ35: 2023-08-31
B36: 3 | C36: 0.001232856048 | D36: 0 | E36: -1241 | F36: 164.5 | G36: 7093 | H36: 14105 | I36: 17437 | J36: 21515.5 | K36: 25599.5 | L36: 29520.5 | M36: 33491 | N36: 37638.5 | DA36: -0.03516320439 | DJ36: 2023-09-30
B37: 4 | C37: 0.03438369828 | D37: 0 | E37: -926.5 | F37: -1259.5 | G37: -5655 | H37: -10827 | I37: -14257 | J37: -18519.5 | K37: -22841 | L37: -26981.5 | M37: -31374.5 | N37: -35850.5 | DA37: 0.03438369788 | DJ37: 2023-10-31
B38: 5 | C38: 0.00256405085 | D38: 0 | E38: -1982.5 | F38: -2610.5 | G38: -1818.5 | H38: -798 | I38: -88.5 | J38: 611.5 | K38: 800.5 | L38: 310 | M38: -987 | N38: -2830 | DA38: 0.002554537049 | DJ38: 2023-11-30
B39: 6 | C39: 6e-10 | D39: 0 | E39: 305 | F39: 305 | G39: 305 | H39: 305 | I39: 9372 | J39: 13287 | K39: 17334 | L39: 21365.5 | M39: 25149 | N39: 28719.5 | DA39: -0.02642074686 | DJ39: 2023-12-31
B40: 7 | C40: 0.02324724465 | D40: 0 | E40: -519.5 | F40: 410.5 | G40: -1567 | H40: -5036.5 | I40: -8255 | J40: -11996 | K40: -15584 | L40: -19351.5 | M40: -22678 | N40: -25339 | DA40: 0.02324724395 | DJ40: 2024-01-31
B41: 8 | C41: 0.001915871065 | D41: 0 | E41: -1932 | F41: -1847.5 | G41: 3662 | H41: 9876.5 | I41: 12663.5 | J41: 15502 | K41: 18642 | L41: 22181 | M41: 26078.5 | N41: 30004.5 | DA41: -0.0249212794 | DJ41: 2024-02-29
B42: 9 | C42: 0.03318770736 | D42: 0 | E42: -2768.5 | F42: -5661 | G42: -8849 | H42: -11155.5 | I42: -12989.5 | J42: -16358 | K42: -20297.5 | L42: -24590.5 | M42: -29559 | N42: -35239.5 | DA42: 0.03318770646 | DJ42: 2024-03-31
B43: 10 | C43: 0.002098393486 | D43: 0 | E43: -1571 | F43: -2125.5 | G43: 417 | H43: 4231.5 | I43: 6229 | J43: 9215.5 | K43: 13161 | L43: 17122 | M43: 21043.5 | N43: 25189.5 | DA43: -0.02366936287 | DJ43: 2024-04-30
B44: 11 | C44: 0.05791921667 | D44: 0.12 | E44: -3049 | F44: -6773 | G44: -13336 | H44: -19293.5 | I44: -22942 | J44: -29127 | K44: -36285.5 | L44: -43254 | M44: -50512 | N44: -58254.5 | DA44: 0.05791921557 | DJ44: 2024-05-31
B45: 12 | C45: 0.05138127696 | D45: 0 | E45: =E44+1 -> -3048 | F45: =F44+1 -> -6772 | G45: -13335 | H45: -19292.5 | I45: -22941 | J45: -29126 | K45: -36284.5 | L45: -43253 | M45: -50511 | N45: -58253.5 | DA45: 0.05138127576 | DJ45: 2024-06-30
B46: 13 | C46: 0.05321738391 | D46: 0 | E46: =E45+1 -> -3047 | F46: =F45+1 -> -6771 | G46: =G45+1 -> -13334 | H46: =H45+1 -> -19291.5 | I46: =I45+1 -> -22940 | J46: =J45+1 -> -29125 | K46: =K45+1 -> -36283.5 | L46: =L45+1 -> -43252 | M46: =M45+1 -> -50510 | N46: =N45+1 -> -58252.5 | DA46: 0.05321738261 | DJ46: 2024-07-31
B47: 14 | C47: 0.04326324047 | D47: 0 | E47: -3046 | F47: -6770 | G47: -13333 | H47: -19290.5 | I47: -22939 | J47: -29124 | K47: -36282.5 | L47: -43251 | M47: -50509 | N47: -58251.5 | DA47: 0.04326323907 | DJ47: 2024-08-31
B48: 15 | C48: 0.05633431315 | D48: 0 | E48: -3045 | F48: -6769 | G48: -13332 | H48: -19289.5 | I48: -22938 | J48: -29123 | K48: -36281.5 | L48: -43250 | M48: -50508 | N48: -58250.5 | DA48: 0.05633431165 | DJ48: 2024-09-30
B49: 16 | C49: 0.05332446902 | D49: 0 | E49: -3044 | F49: -6768 | G49: -13331 | H49: -19288.5 | I49: -22937 | J49: -29122 | K49: -36280.5 | L49: -43249 | M49: -50507 | N49: -58249.5 | DA49: 0.05332446742 | DJ49: 2024-10-31
B50: 17 | C50: 0.05682363119 | D50: 0 | E50: -3043 | F50: -6767 | G50: -13330 | H50: -19287.5 | I50: -22936 | J50: -29121 | K50: -36279.5 | L50: -43248 | M50: -50506 | N50: -58248.5 | DA50: 0.05682362949 | DJ50: 2024-11-30
B51: 18 | C51: 0.05464922133 | D51: 0 | E51: -3042 | F51: -6766 | G51: -13329 | H51: -19286.5 | I51: -22935 | J51: -29120 | K51: -36278.5 | L51: -43247 | M51: -50505 | N51: -58247.5 | DA51: 0.05464921953 | DJ51: 2024-12-31
B52: 19 | C52: 0.05435410205 | D52: 0 | E52: -3041 | F52: -6765 | G52: -13328 | H52: -19285.5 | I52: -22934 | J52: -29119 | K52: -36277.5 | L52: -43246 | M52: -50504 | N52: -58246.5 | DA52: 0.05435410015 | DJ52: 2025-01-31
B53: 20 | C53: 0.05501028191 | D53: 0 | E53: -3040 | F53: -6764 | G53: -13327 | H53: -19284.5 | I53: -22933 | J53: -29118 | K53: -36276.5 | L53: -43245 | M53: -50503 | N53: -58245.5 | DA53: 0.05501027991 | DJ53: 2025-02-28
B54: 21 | C54: 0.05203130784 | D54: 0 | E54: -3039 | F54: -6763 | G54: -13326 | H54: -19283.5 | I54: -22932 | J54: -29117 | K54: -36275.5 | L54: -43244 | M54: -50502 | N54: -58244.5 | DA54: 0.05203130574 | DJ54: 2025-03-31
B55: 22 | C55: 0.0551535998 | D55: 0 | E55: -3038 | F55: -6762 | G55: -13325 | H55: -19282.5 | I55: -22931 | J55: -29116 | K55: -36274.5 | L55: -43243 | M55: -50501 | N55: -58243.5 | DA55: 0.0551535976 | DJ55: 2025-04-30
B56: 23 | C56: 0.05757210198 | D56: 0.04 | E56: -3037 | F56: -6761 | G56: -13324 | H56: -19281.5 | I56: -22930 | J56: -29115 | K56: -36273.5 | L56: -43242 | M56: -50500 | N56: -58242.5 | DA56: 0.05757209968 | DJ56: 2025-05-31
B57: 24 | C57: 0.05361109029 | D57: 0 | E57: -3036 | F57: -6760 | G57: -13323 | H57: -19280.5 | I57: -22929 | J57: -29114 | K57: -36272.5 | L57: -43241 | M57: -50499 | N57: -58241.5 | DA57: 0.05361108789 | DJ57: 2025-06-30
B58: 25 | C58: 0.05222367704 | D58: 0 | E58: -3035 | F58: -6759 | G58: -13322 | H58: -19279.5 | I58: -22928 | J58: -29113 | K58: -36271.5 | L58: -43240 | M58: -50498 | N58: -58240.5 | DA58: 0.05222367454 | DJ58: 2025-07-31
B59: 26 | C59: 0.05815978324 | D59: 0 | E59: -3034 | F59: -6758 | G59: -13321 | H59: -19278.5 | I59: -22927 | J59: -29112 | K59: -36270.5 | L59: -43239 | M59: -50497 | N59: -58239.5 | DA59: 0.05815978064 | DJ59: 2025-08-31
B60: 27 | C60: 0.05784945891 | D60: 0.1 | E60: -3033 | F60: -6757 | G60: -13320 | H60: -19277.5 | I60: -22926 | J60: -29111 | K60: -36269.5 | L60: -43238 | M60: -50496 | N60: -58238.5 | DA60: 0.05784945621 | DJ60: 2025-09-30
B61: 28 | C61: 0.0519768371 | D61: 0 | E61: -3032 | F61: -6756 | G61: -13319 | H61: -19276.5 | I61: -22925 | J61: -29110 | K61: -36268.5 | L61: -43237 | M61: -50495 | N61: -58237.5 | DA61: 0.0519768343 | DJ61: 2025-10-31
B62: 29 | C62: 0.05417336941 | D62: 0 | E62: -3031 | F62: -6755 | G62: -13318 | H62: -19275.5 | I62: -22924 | J62: -29109 | K62: -36267.5 | L62: -43236 | M62: -50494 | N62: -58236.5 | DA62: 0.05417336651 | DJ62: 2025-11-30
B63: 30 | C63: 0.05371782855 | D63: 0 | E63: -3030 | F63: -6754 | G63: -13317 | H63: -19274.5 | I63: -22923 | J63: -29108 | K63: -36266.5 | L63: -43235 | M63: -50493 | N63: -58235.5 | DA63: 0.05371782555 | DJ63: 2025-12-31
B64: 31 | C64: 0.05394303253 | D64: 0 | E64: -3029 | F64: -6753 | G64: -13316 | H64: -19273.5 | I64: -22922 | J64: -29107 | K64: -36265.5 | L64: -43234 | M64: -50492 | N64: -58234.5 | DA64: 0.05394302943 | DJ64: 2026-01-31
B65: 32 | C65: 0.04842086051 | D65: 0 | E65: -3028 | F65: -6752 | G65: -13315 | H65: -19272.5 | I65: -22921 | J65: -29106 | K65: -36264.5 | L65: -43233 | M65: -50491 | N65: -58233.5 | DA65: 0.04842085731 | DJ65: 2026-02-28
B66: 33 | C66: 0.05554315711 | D66: 0 | E66: -3027 | F66: -6751 | G66: -13314 | H66: -19271.5 | I66: -22920 | J66: -29105 | K66: -36263.5 | L66: -43232 | M66: -50490 | N66: -58232.5 | DA66: 0.05554315381 | DJ66: 2026-03-31
B67: 34 | C67: 0.05194745852 | D67: 0 | E67: -3026 | F67: -6750 | G67: -13313 | H67: -19270.5 | I67: -22919 | J67: -29104 | K67: -36262.5 | L67: -43231 | M67: -50489 | N67: -58231.5 | DA67: 0.05194745512 | DJ67: 2026-04-30
B68: 35 | C68: 0.05721074655 | D68: 0 | E68: -3025 | F68: -6749 | G68: -13312 | H68: -19269.5 | I68: -22918 | J68: -29103 | K68: -36261.5 | L68: -43230 | M68: -50488 | N68: -58230.5 | DA68: 0.05721074305 | DJ68: 2026-05-31
B69: 36 | C69: 0.05268513002 | D69: 0 | E69: -3024 | F69: -6748 | G69: -13311 | H69: -19268.5 | I69: -22917 | J69: -29102 | K69: -36260.5 | L69: -43229 | M69: -50487 | N69: -58229.5 | DA69: 0.05268512642 | DJ69: 2026-06-30
B70: 37 | C70: 0.05803288372 | D70: 0.02 | E70: -3023 | F70: -6747 | G70: -13310 | H70: -19267.5 | I70: -22916 | J70: -29101 | K70: -36259.5 | L70: -43228 | M70: -50486 | N70: -58228.5 | DA70: 0.05803288002 | DJ70: 2026-07-31
B71: 38 | C71: 0.05620580438 | D71: 0 | E71: -3022 | F71: -6746 | G71: -13309 | H71: -19266.5 | I71: -22915 | J71: -29100 | K71: -36258.5 | L71: -43227 | M71: -50485 | N71: -58227.5 | DA71: 0.05620580058 | DJ71: 2026-08-31
B72: 39 | C72: 0.05662045102 | D72: 0 | E72: -3021 | F72: -6745 | G72: -13308 | H72: -19265.5 | I72: -22914 | J72: -29099 | K72: -36257.5 | L72: -43226 | M72: -50484 | N72: -58226.5 | DA72: 0.05662044712 | DJ72: 2026-09-30
B73: 40 | C73: 0.05075307198 | D73: 0 | E73: -3020 | F73: -6744 | G73: -13307 | H73: -19264.5 | I73: -22913 | J73: -29098 | K73: -36256.5 | L73: -43225 | M73: -50483 | N73: -58225.5 | DA73: 0.05075306798 | DJ73: 2026-10-31
B74: 41 | C74: 0.05288112018 | D74: 0 | E74: -3019 | F74: -6743 | G74: -13306 | H74: -19263.5 | I74: -22912 | J74: -29097 | K74: -36255.5 | L74: -43224 | M74: -50482 | N74: -58224.5 | DA74: 0.05288111608 | DJ74: 2026-11-30
B75: 42 | C75: 0.05626991314 | D75: 0 | E75: =E74+1 -> -3018 | F75: =F74+1 -> -6742 | G75: =G74+1 -> -13305 | H75: =H74+1 -> -19262.5 | I75: =I74+1 -> -22911 | J75: =J74+1 -> -29096 | K75: =K74+1 -> -36254.5 | L75: =L74+1 -> -43223 | M75: =M74+1 -> -50481 | N75: =N74+1 -> -58223.5 | DA75: 0.05626990894 | DJ75: 2026-12-31
B76: 43 | C76: 0.05320264813 | D76: 0 | E76: -3017 | F76: -6741 | G76: -13304 | H76: -19261.5 | I76: -22910 | J76: -29095 | K76: -36253.5 | L76: -43222 | M76: -50480 | N76: -58222.5 | DA76: 0.05320264383 | DJ76: 2027-01-31
B77: 44 | C77: 0.05558225426 | D77: 0 | E77: -3016 | F77: -6740 | G77: -13303 | H77: -19260.5 | I77: -22909 | J77: -29094 | K77: -36252.5 | L77: -43221 | M77: -50479 | N77: -58221.5 | DA77: 0.05558224986 | DJ77: 2027-02-28
B78: 45 | C78: 0.05535080805 | D78: 0 | E78: -3015 | F78: -6739 | G78: -13302 | H78: -19259.5 | I78: -22908 | J78: -29093 | K78: -36251.5 | L78: -43220 | M78: -50478 | N78: -58220.5 | DA78: 0.05535080355 | DJ78: =EOMONTH(DJ77,1) -> 2027-03-31
B79: 46 | C79: 0.05372041384 | D79: 0 | E79: -3014 | F79: -6738 | G79: -13301 | H79: -19258.5 | I79: -22907 | J79: -29092 | K79: -36250.5 | L79: -43219 | M79: -50477 | N79: -58219.5 | DA79: 0.05372040924 | DJ79: 2027-04-30
B80: 47 | C80: 0.04969396512 | D80: 0 | E80: -3013 | F80: -6737 | G80: -13300 | H80: -19257.5 | I80: -22906 | J80: -29091 | K80: -36249.5 | L80: -43218 | M80: -50476 | N80: -58218.5 | DA80: 0.04969396042 | DJ80: 2027-05-31
B81: 48 | C81: 0.0560123584 | D81: 0 | E81: -3012 | F81: -6736 | G81: -13299 | H81: -19256.5 | I81: -22905 | J81: -29090 | K81: -36248.5 | L81: -43217 | M81: -50475 | N81: -58217.5 | DA81: 0.0560123536 | DJ81: 2027-06-30
B82: 49 | C82: 0.05597974154 | D82: 0 | E82: -3011 | F82: -6735 | G82: -13298 | H82: -19255.5 | I82: -22904 | J82: -29089 | K82: -36247.5 | L82: -43216 | M82: -50474 | N82: -58216.5 | DA82: 0.05597973664 | DJ82: 2027-07-31
B83: 50 | C83: 0.05691914713 | D83: 0 | E83: -3010 | F83: -6734 | G83: -13297 | H83: -19254.5 | I83: -22903 | J83: -29088 | K83: -36246.5 | L83: -43215 | M83: -50473 | N83: -58215.5 | DA83: 0.05691914213 | DJ83: 2027-08-31
B84: 51 | C84: 0.05239348936 | D84: 0 | E84: -3009 | F84: -6733 | G84: -13296 | H84: -19253.5 | I84: -22902 | J84: -29087 | K84: -36245.5 | L84: -43214 | M84: -50472 | N84: -58214.5 | DA84: 0.05239348426 | DJ84: 2027-09-30
B85: 52 | C85: 0.05038691986 | D85: 0 | E85: -3008 | F85: -6732 | G85: -13295 | H85: -19252.5 | I85: -22901 | J85: -29086 | K85: -36244.5 | L85: -43213 | M85: -50471 | N85: -58213.5 | DA85: 0.05038691466 | DJ85: 2027-10-31
B86: 53 | C86: 0.05427226223 | D86: 0 | E86: -3007 | F86: -6731 | G86: -13294 | H86: -19251.5 | I86: -22900 | J86: -29085 | K86: -36243.5 | L86: -43212 | M86: -50470 | N86: -58212.5 | DA86: 0.05427225693 | DJ86: 2027-11-30
B87: 54 | C87: 0.05603525032 | D87: 0 | E87: -3006 | F87: -6730 | G87: -13293 | H87: -19250.5 | I87: -22899 | J87: -29084 | K87: -36242.5 | L87: -43211 | M87: -50469 | N87: -58211.5 | DA87: 0.05603524492 | DJ87: 2027-12-31
B88: 55 | C88: 0.04928824219 | D88: 0 | E88: -3005 | F88: -6729 | G88: -13292 | H88: -19249.5 | I88: -22898 | J88: -29083 | K88: -36241.5 | L88: -43210 | M88: -50468 | N88: -58210.5 | DA88: 0.04928823669 | DJ88: 2028-01-31
B89: 56 | C89: 0.05369610508 | D89: 0 | E89: -3004 | F89: -6728 | G89: -13291 | H89: -19248.5 | I89: -22897 | J89: -29082 | K89: -36240.5 | L89: -43209 | M89: -50467 | N89: -58209.5 | DA89: 0.05369609948 | DJ89: 2028-02-29
B90: 57 | C90: 0.05312214949 | D90: 0 | E90: -3003 | F90: -6727 | G90: -13290 | H90: -19247.5 | I90: -22896 | J90: -29081 | K90: -36239.5 | L90: -43208 | M90: -50466 | N90: -58208.5 | DA90: 0.05312214379 | DJ90: 2028-03-31
B91: 58 | C91: 0.05208042271 | D91: 0 | E91: -3002 | F91: -6726 | G91: -13289 | H91: -19246.5 | I91: -22895 | J91: -29080 | K91: -36238.5 | L91: -43207 | M91: -50465 | N91: -58207.5 | DA91: 0.05208041691 | DJ91: 2028-04-30
B92: 59 | C92: 0.04629325716 | D92: 0 | E92: -3001 | F92: -6725 | G92: -13288 | H92: -19245.5 | I92: -22894 | J92: -29079 | K92: -36237.5 | L92: -43206 | M92: -50464 | N92: -58206.5 | DA92: 0.04629325126 | DJ92: 2028-05-31
B93: 60 | C93: 0.05162582843 | D93: 0 | E93: -3000 | F93: -6724 | G93: -13287 | H93: -19244.5 | I93: -22893 | J93: -29078 | K93: -36236.5 | L93: -43205 | M93: -50463 | N93: -58205.5 | DA93: 0.05162582243 | DJ93: 2028-06-30
B94: 61 | C94: 0.05005086814 | D94: 0 | E94: -2999 | F94: -6723 | G94: -13286 | H94: -19243.5 | I94: -22892 | J94: -29077 | K94: -36235.5 | L94: -43204 | M94: -50462 | N94: -58204.5 | DA94: 0.05005086204 | DJ94: 2028-07-31
B95: 62 | C95: 0.05428987703 | D95: 0 | E95: -2998 | F95: -6722 | G95: -13285 | H95: -19242.5 | I95: -22891 | J95: -29076 | K95: -36234.5 | L95: -43203 | M95: -50461 | N95: -58203.5 | DA95: 0.05428987083 | DJ95: 2028-08-31
B96: 63 | C96: 0.05159636457 | D96: 0 | E96: -2997 | F96: -6721 | G96: -13284 | H96: -19241.5 | I96: -22890 | J96: -29075 | K96: -36233.5 | L96: -43202 | M96: -50460 | N96: -58202.5 | DA96: 0.05159635827 | DJ96: 2028-09-30
B97: 64 | C97: 0.05546008559 | D97: 0 | E97: -2996 | F97: -6720 | G97: -13283 | H97: -19240.5 | I97: -22889 | J97: -29074 | K97: -36232.5 | L97: -43201 | M97: -50459 | N97: -58201.5 | DA97: 0.05546007919 | DJ97: 2028-10-31
B98: 65 | C98: 0.05484930221 | D98: 0 | E98: -2995 | F98: -6719 | G98: -13282 | H98: -19239.5 | I98: -22888 | J98: -29073 | K98: -36231.5 | L98: -43200 | M98: -50458 | N98: -58200.5 | DA98: 0.05484929571 | DJ98: 2028-11-30
B99: 66 | C99: 0.05117344462 | D99: 0 | E99: -2994 | F99: -6718 | G99: -13281 | H99: -19238.5 | I99: -22887 | J99: -29072 | K99: -36230.5 | L99: -43199 | M99: -50457 | N99: -58199.5 | DA99: 0.05117343802 | DJ99: 2028-12-31
B100: 67 | C100: 0.05379584096 | D100: 0 | E100: -2993 | F100: -6717 | G100: -13280 | H100: -19237.5 | I100: -22886 | J100: -29071 | K100: -36229.5 | L100: -43198 | M100: -50456 | N100: -58198.5 | DA100: 0.05379583426 | DJ100: 2029-01-31
B101: 68 | C101: 0.05067836806 | D101: 0 | E101: -2992 | F101: -6716 | G101: -13279 | H101: -19236.5 | I101: -22885 | J101: -29070 | K101: -36228.5 | L101: -43197 | M101: -50455 | N101: -58197.5 | DA101: 0.05067836126 | DJ101: 2029-02-28
B102: 69 | C102: 0.05394684474 | D102: 0 | E102: -2991 | F102: -6715 | G102: -13278 | H102: -19235.5 | I102: -22884 | J102: -29069 | K102: -36227.5 | L102: -43196 | M102: -50454 | N102: -58196.5 | DA102: 0.05394683784 | DJ102: 2029-03-31
B103: 70 | C103: 0.05405873497 | D103: 0 | E103: -2990 | F103: -6714 | G103: -13277 | H103: -19234.5 | I103: -22883 | J103: -29068 | K103: -36226.5 | L103: -43195 | M103: -50453 | N103: -58195.5 | DA103: 0.05405872797 | DJ103: 2029-04-30
B104: 71 | C104: 0.05529167137 | D104: 0 | E104: -2989 | F104: -6713 | G104: -13276 | H104: -19233.5 | I104: -22882 | J104: -29067 | K104: -36225.5 | L104: -43194 | M104: -50452 | N104: -58194.5 | DA104: 0.05529166427 | DJ104: 2029-05-31
B105: 72 | C105: 0.05411282396 | D105: 0 | E105: -2988 | F105: -6712 | G105: -13275 | H105: -19232.5 | I105: -22881 | J105: -29066 | K105: -36224.5 | L105: -43193 | M105: -50451 | N105: -58193.5 | DA105: 0.05411281676 | DJ105: 2029-06-30
B106: 73 | C106: 0.05092307052 | D106: 0 | E106: -2987 | F106: -6711 | G106: -13274 | H106: -19231.5 | I106: -22880 | J106: -29065 | K106: -36223.5 | L106: -43192 | M106: -50450 | N106: -58192.5 | DA106: 0.05092306322 | DJ106: 2029-07-31
B107: 74 | C107: 0.05508128455 | D107: 0 | E107: -2986 | F107: -6710 | G107: -13273 | H107: -19230.5 | I107: -22879 | J107: -29064 | K107: -36222.5 | L107: -43191 | M107: -50449 | N107: -58191.5 | DA107: 0.05508127715 | DJ107: 2029-08-31
B108: 75 | C108: 0.05340657492 | D108: 0 | E108: -2985 | F108: -6709 | G108: -13272 | H108: -19229.5 | I108: -22878 | J108: -29063 | K108: -36221.5 | L108: -43190 | M108: -50448 | N108: -58190.5 | DA108: 0.05340656742 | DJ108: 2029-09-30
B109: 76 | C109: 0.05579197619 | D109: 0 | E109: -2984 | F109: -6708 | G109: -13271 | H109: -19228.5 | I109: -22877 | J109: -29062 | K109: -36220.5 | L109: -43189 | M109: -50447 | N109: -58189.5 | DA109: 0.05579196859 | DJ109: 2029-10-31
B110: 77 | C110: 0.05538311015 | D110: 0 | E110: -2983 | F110: -6707 | G110: -13270 | H110: -19227.5 | I110: -22876 | J110: -29061 | K110: -36219.5 | L110: -43188 | M110: -50446 | N110: -58188.5 | DA110: 0.05538310245 | DJ110: 2029-11-30
B111: 78 | C111: 0.0524511917 | D111: 0 | E111: -2982 | F111: -6706 | G111: -13269 | H111: -19226.5 | I111: -22875 | J111: -29060 | K111: -36218.5 | L111: -43187 | M111: -50445 | N111: -58187.5 | DA111: 0.0524511839 | DJ111: 2029-12-31
B112: 79 | C112: 0.05599496167 | D112: 0 | E112: -2981 | F112: -6705 | G112: -13268 | H112: -19225.5 | I112: -22874 | J112: -29059 | K112: -36217.5 | L112: -43186 | M112: -50444 | N112: -58186.5 | DA112: 0.05599495377 | DJ112: 2030-01-31
B113: 80 | C113: 0.05798219688 | D113: 0.06 | E113: -2980 | F113: -6704 | G113: -13267 | H113: -19224.5 | I113: -22873 | J113: -29058 | K113: -36216.5 | L113: -43185 | M113: -50443 | N113: -58185.5 | DA113: 0.05798218888 | DJ113: 2030-02-28
B114: 81 | C114: 0.05318004369 | D114: 0 | E114: -2979 | F114: -6703 | G114: -13266 | H114: -19223.5 | I114: -22872 | J114: -29057 | K114: -36215.5 | L114: -43184 | M114: -50442 | N114: -58184.5 | DA114: 0.05318003559 | DJ114: 2030-03-31
B115: 82 | C115: 0.05794064669 | D115: 0.1 | E115: -2978 | F115: -6702 | G115: -13265 | H115: -19222.5 | I115: -22871 | J115: -29056 | K115: -36214.5 | L115: -43183 | M115: -50441 | N115: -58183.5 | DA115: 0.05794063849 | DJ115: 2030-04-30
B116: 83 | C116: 0.05321050845 | D116: 0 | E116: -2977 | F116: -6701 | G116: -13264 | H116: -19221.5 | I116: -22870 | J116: -29055 | K116: -36213.5 | L116: -43182 | M116: -50440 | N116: -58182.5 | DA116: 0.05321050015 | DJ116: 2030-05-31
B117: 84 | C117: 0.05384985866 | D117: 0 | E117: -2976 | F117: -6700 | G117: -13263 | H117: -19220.5 | I117: -22869 | J117: -29054 | K117: -36212.5 | L117: -43181 | M117: -50439 | N117: -58181.5 | DA117: 0.05384985026 | DJ117: 2030-06-30
B118: 85 | C118: 0.05558538321 | D118: 0 | E118: -2975 | F118: -6699 | G118: -13262 | H118: -19219.5 | I118: -22868 | J118: -29053 | K118: -36211.5 | L118: -43180 | M118: -50438 | N118: -58180.5 | DA118: 0.05558537471 | DJ118: 2030-07-31
B119: 86 | C119: 0.05480489209 | D119: 0 | E119: -2974 | F119: -6698 | G119: -13261 | H119: -19218.5 | I119: -22867 | J119: -29052 | K119: -36210.5 | L119: -43179 | M119: -50437 | N119: -58179.5 | DA119: 0.05480488349 | DJ119: 2030-08-31
B120: 87 | C120: 0.05176948379 | D120: 0 | E120: -2973 | F120: -6697 | G120: -13260 | H120: -19217.5 | I120: -22866 | J120: -29051 | K120: -36209.5 | L120: -43178 | M120: -50436 | N120: -58178.5 | DA120: 0.05176947509 | DJ120: 2030-09-30
B121: 88 | C121: 0.05435729875 | D121: 0 | E121: -2972 | F121: -6696 | G121: -13259 | H121: -19216.5 | I121: -22865 | J121: -29050 | K121: -36208.5 | L121: -43177 | M121: -50435 | N121: -58177.5 | DA121: 0.05435728995 | DJ121: 2030-10-31
B122: 89 | C122: 0.05788882369 | D122: 0.12 | E122: -2971 | F122: -6695 | G122: -13258 | H122: -19215.5 | I122: -22864 | J122: -29049 | K122: -36207.5 | L122: -43176 | M122: -50434 | N122: -58176.5 | DA122: 0.05788881479 | DJ122: 2030-11-30
B123: 90 | C123: 0.0531929346 | D123: 0 | E123: -2970 | F123: -6694 | G123: -13257 | H123: -19214.5 | I123: -22863 | J123: -29048 | K123: -36206.5 | L123: -43175 | M123: -50433 | N123: -58175.5 | DA123: 0.0531929256 | DJ123: 2030-12-31
B124: 91 | C124: 0.05031773999 | D124: 0 | E124: -2969 | F124: -6693 | G124: -13256 | H124: -19213.5 | I124: -22862 | J124: -29047 | K124: -36205.5 | L124: -43174 | M124: -50432 | N124: -58174.5 | DA124: 0.05031773089 | DJ124: 2031-01-31
B125: 92 | C125: 0.05211312636 | D125: 0 | E125: -2968 | F125: -6692 | G125: -13255 | H125: -19212.5 | I125: -22861 | J125: -29046 | K125: -36204.5 | L125: -43173 | M125: -50431 | N125: -58173.5 | DA125: 0.05211311716 | DJ125: 2031-02-28
B126: 93 | C126: 0.05173975506 | D126: 0 | E126: -2967 | F126: -6691 | G126: -13254 | H126: -19211.5 | I126: -22860 | J126: -29045 | K126: -36203.5 | L126: -43172 | M126: -50430 | N126: -58172.5 | DA126: 0.05173974576 | DJ126: 2031-03-31
B127: 94 | C127: 0.04841114293 | D127: 0 | E127: -2966 | F127: -6690 | G127: -13253 | H127: -19210.5 | I127: -22859 | J127: -29044 | K127: -36202.5 | L127: -43171 | M127: -50429 | N127: -58171.5 | DA127: 0.04841113353 | DJ127: 2031-04-30
B128: 95 | C128: 0.05312730149 | D128: 0 | E128: -2965 | F128: -6689 | G128: -13252 | H128: -19209.5 | I128: -22858 | J128: -29043 | K128: -36201.5 | L128: -43170 | M128: -50428 | N128: -58170.5 | DA128: 0.05312729199 | DJ128: 2031-05-31
B129: 96 | C129: 0.05409810561 | D129: 0 | E129: -2964 | F129: -6688 | G129: -13251 | H129: -19208.5 | I129: -22857 | J129: -29042 | K129: -36200.5 | L129: -43169 | M129: -50427 | N129: -58169.5 | DA129: 0.05409809601 | DJ129: 2031-06-30
B130: 97 | C130: 0.05347141292 | D130: 0 | E130: -2963 | F130: -6687 | G130: -13250 | H130: -19207.5 | I130: -22856 | J130: -29041 | K130: -36199.5 | L130: -43168 | M130: -50426 | N130: -58168.5 | DA130: 0.05347140322 | DJ130: 2031-07-31
B131: 98 | C131: 0.05387725492 | D131: 0 | E131: -2962 | F131: -6686 | G131: -13249 | H131: -19206.5 | I131: -22855 | J131: -29040 | K131: -36198.5 | L131: -43167 | M131: -50425 | N131: -58167.5 | DA131: 0.05387724512 | DJ131: 2031-08-31
B132: 99 | C132: 0.0563643824 | D132: 0 | E132: -2961 | F132: -6685 | G132: -13248 | H132: -19205.5 | I132: -22854 | J132: -29039 | K132: -36197.5 | L132: -43166 | M132: -50424 | N132: -58166.5 | DA132: 0.0563643725 | DJ132: 2031-09-30
B133: 100 | C133: 0.05069978172 | D133: 0 | E133: -2960 | F133: -6684 | G133: -13247 | H133: -19204.5 | I133: -22853 | J133: -29038 | K133: -36196.5 | L133: -43165 | M133: -50423 | N133: -58165.5 | DA133: 0.05069977172 | DJ133: 2031-10-31
B134: 101 | C134: 0.05256976693 | D134: 0 | E134: -2959 | F134: -6683 | G134: -13246 | H134: -19203.5 | I134: -22852 | J134: -29037 | K134: -36195.5 | L134: -43164 | M134: -50422 | N134: -58164.5 | DA134: 0.05256975683 | DJ134: 2031-11-30
B135: 102 | C135: 0.0580552812 | D135: 0 | E135: -2958 | F135: -6682 | G135: -13245 | H135: -19202.5 | I135: -22851 | J135: -29036 | K135: -36194.5 | L135: -43163 | M135: -50421 | N135: -58163.5 | DA135: 0.058055271 | DJ135: 2031-12-31
B136: 103 | C136: 0.05150780794 | D136: 0 | E136: -2957 | F136: -6681 | G136: -13244 | H136: -19201.5 | I136: -22850 | J136: -29035 | K136: -36193.5 | L136: -43162 | M136: -50420 | N136: -58162.5 | DA136: 0.05150779764 | DJ136: 2032-01-31
B137: 104 | C137: 0.05200883282 | D137: 0 | E137: -2956 | F137: -6680 | G137: -13243 | H137: -19200.5 | I137: -22849 | J137: -29034 | K137: -36192.5 | L137: -43161 | M137: -50419 | N137: -58161.5 | DA137: 0.05200882242 | DJ137: 2032-02-29
B138: 105 | C138: 0.05446951345 | D138: 0 | E138: -2955 | F138: -6679 | G138: -13242 | H138: -19199.5 | I138: -22848 | J138: -29033 | K138: -36191.5 | L138: -43160 | M138: -50418 | N138: -58160.5 | DA138: 0.05446950295 | DJ138: 2032-03-31
B139: 106 | C139: 0.05479141151 | D139: 0 | E139: =E138+1 -> -2954 | F139: =F138+1 -> -6678 | G139: =G138+1 -> -13241 | H139: =H138+1 -> -19198.5 | I139: =I138+1 -> -22847 | J139: =J138+1 -> -29032 | K139: =K138+1 -> -36190.5 | L139: =L138+1 -> -43159 | M139: =M138+1 -> -50417 | N139: =N138+1 -> -58159.5 | DA139: 0.05479140091 | DJ139: 2032-04-30
B140: 107 | C140: 0.05176497697 | D140: 0 | E140: -2953 | F140: -6677 | G140: -13240 | H140: -19197.5 | I140: -22846 | J140: -29031 | K140: -36189.5 | L140: -43158 | M140: -50416 | N140: -58158.5 | DA140: 0.05176496627 | DJ140: 2032-05-31
B141: 108 | C141: 0.05735196313 | D141: 0 | E141: -2952 | F141: -6676 | G141: -13239 | H141: -19196.5 | I141: -22845 | J141: -29030 | K141: -36188.5 | L141: -43157 | M141: -50415 | N141: -58157.5 | DA141: 0.05735195233 | DJ141: 2032-06-30
B142: 109 | C142: 0.04631404138 | D142: 0 | E142: -2951 | F142: -6675 | G142: -13238 | H142: -19195.5 | I142: -22844 | J142: -29029 | K142: -36187.5 | L142: -43156 | M142: -50414 | N142: -58156.5 | DA142: 0.04631403048 | DJ142: =EOMONTH(DJ141,1) -> 2032-07-31
B143: 110 | C143: 0.0451839004 | D143: 0 | E143: -2950 | F143: -6674 | G143: -13237 | H143: -19194.5 | I143: -22843 | J143: -29028 | K143: -36186.5 | L143: -43155 | M143: -50413 | N143: -58155.5 | DA143: 0.0451838894 | DJ143: 2032-08-31
B144: 111 | C144: 0.05306786194 | D144: 0 | E144: -2949 | F144: -6673 | G144: -13236 | H144: -19193.5 | I144: -22842 | J144: -29027 | K144: -36185.5 | L144: -43154 | M144: -50412 | N144: -58154.5 | DA144: 0.05306785084 | DJ144: 2032-09-30
B145: 112 | C145: 0.04793631373 | D145: 0 | E145: -2948 | F145: -6672 | G145: -13235 | H145: -19192.5 | I145: -22841 | J145: -29026 | K145: -36184.5 | L145: -43153 | M145: -50411 | N145: -58153.5 | DA145: 0.04793630253 | DJ145: 2032-10-31
B146: 113 | C146: 0.05349158051 | D146: 0 | E146: -2947 | F146: -6671 | G146: -13234 | H146: -19191.5 | I146: -22840 | J146: -29025 | K146: -36183.5 | L146: -43152 | M146: -50410 | N146: -58152.5 | DA146: 0.05349156921 | DJ146: 2032-11-30
B147: 114 | C147: 0.04902131362 | D147: 0 | E147: -2946 | F147: -6670 | G147: -13233 | H147: -19190.5 | I147: -22839 | J147: -29024 | K147: -36182.5 | L147: -43151 | M147: -50409 | N147: -58151.5 | DA147: 0.04902130222 | DJ147: 2032-12-31
B148: 115 | C148: 0.05372928649 | D148: 0 | E148: -2945 | F148: -6669 | G148: -13232 | H148: -19189.5 | I148: -22838 | J148: -29023 | K148: -36181.5 | L148: -43150 | M148: -50408 | N148: -58150.5 | DA148: 0.05372927499 | DJ148: 2033-01-31
B149: 116 | C149: 0.05363859517 | D149: 0 | E149: -2944 | F149: -6668 | G149: -13231 | H149: -19188.5 | I149: -22837 | J149: -29022 | K149: -36180.5 | L149: -43149 | M149: -50407 | N149: -58149.5 | DA149: 0.05363858357 | DJ149: 2033-02-28
B150: 117 | C150: 0.0535286166 | D150: 0 | E150: -2943 | F150: -6667 | G150: -13230 | H150: -19187.5 | I150: -22836 | J150: -29021 | K150: -36179.5 | L150: -43148 | M150: -50406 | N150: -58148.5 | DA150: 0.0535286049 | DJ150: 2033-03-31
B151: 118 | C151: 0.05382169267 | D151: 0 | E151: -2942 | F151: -6666 | G151: -13229 | H151: -19186.5 | I151: -22835 | J151: -29020 | K151: -36178.5 | L151: -43147 | M151: -50405 | N151: -58147.5 | DA151: 0.05382168087 | DJ151: 2033-04-30
B152: 119 | C152: 0.05625103923 | D152: 0 | E152: -2941 | F152: -6665 | G152: -13228 | H152: -19185.5 | I152: -22834 | J152: -29019 | K152: -36177.5 | L152: -43146 | M152: -50404 | N152: -58146.5 | DA152: 0.05625102733 | DJ152: 2033-05-31
B153: 120 | C153: 0.05052575878 | D153: 0 | E153: -2940 | F153: -6664 | G153: -13227 | H153: -19184.5 | I153: -22833 | J153: -29018 | K153: -36176.5 | L153: -43145 | M153: -50403 | N153: -58145.5 | DA153: 0.05052574678 | DJ153: 2033-06-30
B154: 121 | C154: 0.05530819915 | D154: 0 | E154: -2939 | F154: -6663 | G154: -13226 | H154: -19183.5 | I154: -22832 | J154: -29017 | K154: -36175.5 | L154: -43144 | M154: -50402 | N154: -58144.5 | DA154: 0.05530818705 | DJ154: 2033-07-31
B155: 122 | C155: 0.05209105758 | D155: 0 | E155: -2938 | F155: -6662 | G155: -13225 | H155: -19182.5 | I155: -22831 | J155: -29016 | K155: -36174.5 | L155: -43143 | M155: -50401 | N155: -58143.5 | DA155: 0.05209104538 | DJ155: 2033-08-31
B156: 123 | C156: 0.05351786297 | D156: 0 | E156: -2937 | F156: -6661 | G156: -13224 | H156: -19181.5 | I156: -22830 | J156: -29015 | K156: -36173.5 | L156: -43142 | M156: -50400 | N156: -58142.5 | DA156: 0.05351785067 | DJ156: 2033-09-30
B157: 124 | C157: 0.05368022243 | D157: 0 | E157: -2936 | F157: -6660 | G157: -13223 | H157: -19180.5 | I157: -22829 | J157: -29014 | K157: -36172.5 | L157: -43141 | M157: -50399 | N157: -58141.5 | DA157: 0.05368021003 | DJ157: 2033-10-31
B158: 125 | C158: 0.049887478 | D158: 0 | E158: -2935 | F158: -6659 | G158: -13222 | H158: -19179.5 | I158: -22828 | J158: -29013 | K158: -36171.5 | L158: -43140 | M158: -50398 | N158: -58140.5 | DA158: 0.0498874655 | DJ158: 2033-11-30
B159: 126 | C159: 0.05659273703 | D159: 0 | E159: -2934 | F159: -6658 | G159: -13221 | H159: -19178.5 | I159: -22827 | J159: -29012 | K159: -36170.5 | L159: -43139 | M159: -50397 | N159: -58139.5 | DA159: 0.05659272443 | DJ159: 2033-12-31
B160: 127 | C160: 0.05469406282 | D160: 0 | E160: -2933 | F160: -6657 | G160: -13220 | H160: -19177.5 | I160: -22826 | J160: -29011 | K160: -36169.5 | L160: -43138 | M160: -50396 | N160: -58138.5 | DA160: 0.05469405012 | DJ160: 2034-01-31
B161: 128 | C161: 0.05024944364 | D161: 0 | E161: -2932 | F161: -6656 | G161: -13219 | H161: -19176.5 | I161: -22825 | J161: -29010 | K161: -36168.5 | L161: -43137 | M161: -50395 | N161: -58137.5 | DA161: 0.05024943084 | DJ161: 2034-02-28
B162: 129 | C162: 0.05691494755 | D162: 0 | E162: -2931 | F162: -6655 | G162: -13218 | H162: -19175.5 | I162: -22824 | J162: -29009 | K162: -36167.5 | L162: -43136 | M162: -50394 | N162: -58136.5 | DA162: 0.05691493465 | DJ162: 2034-03-31
B163: 130 | C163: 0.04994520036 | D163: 0 | E163: -2930 | F163: -6654 | G163: -13217 | H163: -19174.5 | I163: -22823 | J163: -29008 | K163: -36166.5 | L163: -43135 | M163: -50393 | N163: -58135.5 | DA163: 0.04994518736 | DJ163: 2034-04-30
B164: 131 | C164: 0.05284768621 | D164: 0 | E164: -2929 | F164: -6653 | G164: -13216 | H164: -19173.5 | I164: -22822 | J164: -29007 | K164: -36165.5 | L164: -43134 | M164: -50392 | N164: -58134.5 | DA164: 0.05284767311 | DJ164: 2034-05-31
B165: 132 | C165: 0.05231218741 | D165: 0 | E165: -2928 | F165: -6652 | G165: -13215 | H165: -19172.5 | I165: -22821 | J165: -29006 | K165: -36164.5 | L165: -43133 | M165: -50391 | N165: -58133.5 | DA165: 0.05231217421 | DJ165: 2034-06-30
B166: 133 | C166: 0.05148200695 | D166: 0 | E166: -2927 | F166: -6651 | G166: -13214 | H166: -19171.5 | I166: -22820 | J166: -29005 | K166: -36163.5 | L166: -43132 | M166: -50390 | N166: -58132.5 | DA166: 0.05148199365 | DJ166: 2034-07-31
B167: 134 | C167: 0.05576208103 | D167: 0 | E167: -2926 | F167: -6650 | G167: -13213 | H167: -19170.5 | I167: -22819 | J167: -29004 | K167: -36162.5 | L167: -43131 | M167: -50389 | N167: -58131.5 | DA167: 0.05576206763 | DJ167: 2034-08-31
B168: 135 | C168: 0.05738206969 | D168: 0 | E168: -2925 | F168: -6649 | G168: -13212 | H168: -19169.5 | I168: -22818 | J168: -29003 | K168: -36161.5 | L168: -43130 | M168: -50388 | N168: -58130.5 | DA168: 0.05738205619 | DJ168: 2034-09-30
B169: 136 | C169: 0.0554093951 | D169: 0 | E169: -2924 | F169: -6648 | G169: -13211 | H169: -19168.5 | I169: -22817 | J169: -29002 | K169: -36160.5 | L169: -43129 | M169: -50387 | N169: -58129.5 | DA169: 0.0554093815 | DJ169: 2034-10-31
B170: 137 | C170: 0.05398521861 | D170: 0 | E170: -2923 | F170: -6647 | G170: -13210 | H170: -19167.5 | I170: -22816 | J170: -29001 | K170: -36159.5 | L170: -43128 | M170: -50386 | N170: -58128.5 | DA170: 0.05398520491 | DJ170: 2034-11-30
B171: 138 | C171: 0.04967173211 | D171: 0 | E171: -2922 | F171: -6646 | G171: -13209 | H171: -19166.5 | I171: -22815 | J171: -29000 | K171: -36158.5 | L171: -43127 | M171: -50385 | N171: -58127.5 | DA171: 0.04967171831 | DJ171: 2034-12-31
B172: 139 | C172: 0.05248545898 | D172: 0 | E172: -2921 | F172: -6645 | G172: -13208 | H172: -19165.5 | I172: -22814 | J172: -28999 | K172: -36157.5 | L172: -43126 | M172: -50384 | N172: -58126.5 | DA172: 0.05248544508 | DJ172: 2035-01-31
B173: 140 | C173: 0.05536976632 | D173: 0 | E173: -2920 | F173: -6644 | G173: -13207 | H173: -19164.5 | I173: -22813 | J173: -28998 | K173: -36156.5 | L173: -43125 | M173: -50383 | N173: -58125.5 | DA173: 0.05536975232 | DJ173: 2035-02-28
B174: 141 | C174: 0.05538058094 | D174: 0 | E174: -2919 | F174: -6643 | G174: -13206 | H174: -19163.5 | I174: -22812 | J174: -28997 | K174: -36155.5 | L174: -43124 | M174: -50382 | N174: -58124.5 | DA174: 0.05538056684 | DJ174: 2035-03-31
B175: 142 | C175: 0.0580646508 | D175: 0 | E175: -2918 | F175: -6642 | G175: -13205 | H175: -19162.5 | I175: -22811 | J175: -28996 | K175: -36154.5 | L175: -43123 | M175: -50381 | N175: -58123.5 | DA175: 0.0580646366 | DJ175: 2035-04-30
B176: 143 | C176: 0.05413552786 | D176: 0 | E176: -2917 | F176: -6641 | G176: -13204 | H176: -19161.5 | I176: -22810 | J176: -28995 | K176: -36153.5 | L176: -43122 | M176: -50380 | N176: -58122.5 | DA176: 0.05413551356 | DJ176: 2035-05-31
B177: 144 | C177: 0.05488258529 | D177: 0 | E177: -2916 | F177: -6640 | G177: -13203 | H177: -19160.5 | I177: -22809 | J177: -28994 | K177: -36152.5 | L177: -43121 | M177: -50379 | N177: -58121.5 | DA177: 0.05488257089 | DJ177: 2035-06-30
B178: 145 | C178: 0.04994174815 | D178: 0 | E178: -2915 | F178: -6639 | G178: -13202 | H178: -19159.5 | I178: -22808 | J178: -28993 | K178: -36151.5 | L178: -43120 | M178: -50378 | N178: -58120.5 | DA178: 0.04994173365 | DJ178: 2035-07-31
B179: 146 | C179: 0.05795196344 | D179: 0.08 | E179: -2914 | F179: -6638 | G179: -13201 | H179: -19158.5 | I179: -22807 | J179: -28992 | K179: -36150.5 | L179: -43119 | M179: -50377 | N179: -58119.5 | DA179: 0.05795194884 | DJ179: 2035-08-31
B180: 147 | C180: 0.0554987439 | D180: 0 | E180: -2913 | F180: -6637 | G180: -13200 | H180: -19157.5 | I180: -22806 | J180: -28991 | K180: -36149.5 | L180: -43118 | M180: -50376 | N180: -58118.5 | DA180: 0.0554987292 | DJ180: 2035-09-30
B181: 148 | C181: 0.05265596564 | D181: 0 | E181: -2912 | F181: -6636 | G181: -13199 | H181: -19156.5 | I181: -22805 | J181: -28990 | K181: -36148.5 | L181: -43117 | M181: -50375 | N181: -58117.5 | DA181: 0.05265595084 | DJ181: 2035-10-31
B182: 149 | C182: 0.05779082927 | D182: 0.08 | E182: -2911 | F182: -6635 | G182: -13198 | H182: -19155.5 | I182: -22804 | J182: -28989 | K182: -36147.5 | L182: -43116 | M182: -50374 | N182: -58116.5 | DA182: 0.05779081437 | DJ182: 2035-11-30
B183: 150 | C183: 0.05183059517 | D183: 0 | E183: -2910 | F183: -6634 | G183: -13197 | H183: -19154.5 | I183: -22803 | J183: -28988 | K183: -36146.5 | L183: -43115 | M183: -50373 | N183: -58115.5 | DA183: 0.05183058017 | DJ183: 2035-12-31
B184: 151 | C184: 0.05690151541 | D184: 0 | E184: -2909 | F184: -6633 | G184: -13196 | H184: -19153.5 | I184: -22802 | J184: -28987 | K184: -36145.5 | L184: -43114 | M184: -50372 | N184: -58114.5 | DA184: 0.05690150031 | DJ184: 2036-01-31
B185: 152 | C185: 0.05596797195 | D185: 0 | E185: -2908 | F185: -6632 | G185: -13195 | H185: -19152.5 | I185: -22801 | J185: -28986 | K185: -36144.5 | L185: -43113 | M185: -50371 | N185: -58113.5 | DA185: 0.05596795675 | DJ185: 2036-02-29
B186: 153 | C186: 0.05008648595 | D186: 0 | E186: -2907 | F186: -6631 | G186: -13194 | H186: -19151.5 | I186: -22800 | J186: -28985 | K186: -36143.5 | L186: -43112 | M186: -50370 | N186: -58112.5 | DA186: 0.05008647065 | DJ186: 2036-03-31
B187: 154 | C187: 0.05371942696 | D187: 0 | E187: -2906 | F187: -6630 | G187: -13193 | H187: -19150.5 | I187: -22799 | J187: -28984 | K187: -36142.5 | L187: -43111 | M187: -50369 | N187: -58111.5 | DA187: 0.05371941156 | DJ187: 2036-04-30
B188: 155 | C188: 0.05752292734 | D188: 0.02 | E188: -2905 | F188: -6629 | G188: -13192 | H188: -19149.5 | I188: -22798 | J188: -28983 | K188: -36141.5 | L188: -43110 | M188: -50368 | N188: -58110.5 | DA188: 0.05752291184 | DJ188: 2036-05-31
B189: 156 | C189: 0.05536758839 | D189: 0 | E189: -2904 | F189: -6628 | G189: -13191 | H189: -19148.5 | I189: -22797 | J189: -28982 | K189: -36140.5 | L189: -43109 | M189: -50367 | N189: -58109.5 | DA189: 0.05536757279 | DJ189: 2036-06-30
B190: 157 | C190: 0.05389425512 | D190: 0 | E190: -2903 | F190: -6627 | G190: -13190 | H190: -19147.5 | I190: -22796 | J190: -28981 | K190: -36139.5 | L190: -43108 | M190: -50366 | N190: -58108.5 | DA190: 0.05389423942 | DJ190: 2036-07-31
B191: 158 | C191: 0.04736739151 | D191: 0 | E191: -2902 | F191: -6626 | G191: -13189 | H191: -19146.5 | I191: -22795 | J191: -28980 | K191: -36138.5 | L191: -43107 | M191: -50365 | N191: -58107.5 | DA191: 0.04736737571 | DJ191: 2036-08-31
B192: 159 | C192: 0.05591067372 | D192: 0 | E192: -2901 | F192: -6625 | G192: -13188 | H192: -19145.5 | I192: -22794 | J192: -28979 | K192: -36137.5 | L192: -43106 | M192: -50364 | N192: -58106.5 | DA192: 0.05591065782 | DJ192: 2036-09-30
B193: 160 | C193: 0.05531518818 | D193: 0 | E193: -2900 | F193: -6624 | G193: -13187 | H193: -19144.5 | I193: -22793 | J193: -28978 | K193: -36136.5 | L193: -43105 | M193: -50363 | N193: -58105.5 | DA193: 0.05531517218 | DJ193: 2036-10-31
B194: 161 | C194: 0.05537649966 | D194: 0 | E194: -2899 | F194: -6623 | G194: -13186 | H194: -19143.5 | I194: -22792 | J194: -28977 | K194: -36135.5 | L194: -43104 | M194: -50362 | N194: -58104.5 | DA194: 0.05537648356 | DJ194: 2036-11-30
B195: 162 | C195: 0.05362813909 | D195: 0 | E195: -2898 | F195: -6622 | G195: -13185 | H195: -19142.5 | I195: -22791 | J195: -28976 | K195: -36134.5 | L195: -43103 | M195: -50361 | N195: -58103.5 | DA195: 0.05362812289 | DJ195: 2036-12-31
B196: 163 | C196: 0.05321537547 | D196: 0 | E196: -2897 | F196: -6621 | G196: -13184 | H196: -19141.5 | I196: -22790 | J196: -28975 | K196: -36133.5 | L196: -43102 | M196: -50360 | N196: -58102.5 | DA196: 0.05321535917 | DJ196: 2037-01-31
B197: 164 | C197: 0.05222033273 | D197: 0 | E197: -2896 | F197: -6620 | G197: -13183 | H197: -19140.5 | I197: -22789 | J197: -28974 | K197: -36132.5 | L197: -43101 | M197: -50359 | N197: -58101.5 | DA197: 0.05222031633 | DJ197: 2037-02-28
B198: 165 | C198: 0.05281040032 | D198: 0 | E198: -2895 | F198: -6619 | G198: -13182 | H198: -19139.5 | I198: -22788 | J198: -28973 | K198: -36131.5 | L198: -43100 | M198: -50358 | N198: -58100.5 | DA198: 0.05281038382 | DJ198: 2037-03-31
B199: 166 | C199: 0.05575425975 | D199: 0 | E199: -2894 | F199: -6618 | G199: -13181 | H199: -19138.5 | I199: -22787 | J199: -28972 | K199: -36130.5 | L199: -43099 | M199: -50357 | N199: -58099.5 | DA199: 0.05575424315 | DJ199: 2037-04-30
B200: 167 | C200: 0.04708212607 | D200: 0 | E200: -2893 | F200: -6617 | G200: -13180 | H200: -19137.5 | I200: -22786 | J200: -28971 | K200: -36129.5 | L200: -43098 | M200: -50356 | N200: -58098.5 | DA200: 0.04708210937 | DJ200: 2037-05-31
B201: 168 | C201: 0.05258198975 | D201: 0 | E201: -2892 | F201: -6616 | G201: -13179 | H201: -19136.5 | I201: -22785 | J201: -28970 | K201: -36128.5 | L201: -43097 | M201: -50355 | N201: -58097.5 | DA201: 0.05258197295 | DJ201: 2037-06-30
... 361 more rows

Sheet 1-Yr Rates
A1: Scen/Month | B1: 0 | C1: =B1+1 -> 1 | D1: =C1+1 -> 2 | E1: =D1+1 -> 3 | F1: 4 | G1: 5 | H1: 6 | I1: 7 | J1: 8 | K1: 9 | L1: 10 | M1: 11 | N1: 12 | O1: 13 | P1: 14 | Q1: 15 | R1: 16 | S1: 17 | T1: 18 | U1: 19 | V1: 20 | W1: 21 | X1: 22 | Y1: 23 | Z1: 24 | AA1: 25 | AB1: 26 | AC1: 27 | AD1: 28 | AE1: 29 | AF1: 30 | AG1: 31 | AH1: 32 | AI1: 33 | AJ1: 34 | AK1: 35 | AL1: 36 | AM1: 37 | AN1: 38 | AO1: 39 | AP1: 40 | AQ1: 41 | AR1: 42 | AS1: 43 | AT1: 44 | AU1: 45 | AV1: 46 | AW1: 47 | AX1: 48 | AY1: 49 | AZ1: 50 | BA1: 51 | BB1: 52 | BC1: 53 | BD1: 54 | BE1: 55 | BF1: 56 | BG1: 57 | BH1: 58 | BI1: 59 | BJ1: 60 | BK1: 61 | BL1: 62 | BM1: 63 | BN1: 64 | BO1: 65 | BP1: 66 | BQ1: =BP1+1 -> 67 | BR1: 68 | BS1: 69 | BT1: 70 | BU1: 71 | BV1: 72 | BW1: 73 | BX1: 74 | BY1: 75 | BZ1: 76 | CA1: 77 | CB1: 78 | CC1: 79 | CD1: 80 | CE1: 81 | CF1: 82 | CG1: 83 | CH1: 84 | CI1: 85 | CJ1: 86 | CK1: 87 | CL1: 88 | CM1: 89 | CN1: 90 | CO1: 91 | CP1: 92 | CQ1: 93 | CR1: 94 | CS1: 95 | CT1: 96 | CU1: 97 | CV1: 98 | CW1: 99 | CX1: 100 | CY1: 101 | CZ1: 102 | DA1: 103 | DB1: 104 | DC1: 105 | DD1: 106 | DE1: 107 | DF1: 108 | DG1: 109 | DH1: 110 | DI1: 111 | DJ1: 112 | DK1: 113 | DL1: 114 | DM1: 115 | DN1: 116 | DO1: 117 | DP1: 118 | DQ1: 119 | DR1: 120 | DS1: 121 | DT1: 122 | DU1: 123 | DV1: 124 | DW1: 125 | DX1: 126 | DY1: 127 | DZ1: 128 | EA1: 129 | EB1: 130 | EC1: =EB1+1 -> 131 | ED1: 132 | EE1: 133 | EF1: 134 | EG1: 135 | EH1: 136 | EI1: 137 | EJ1: 138 | EK1: 139 | EL1: 140 | EM1: 141 | EN1: 142 | EO1: 143 | EP1: 144 | EQ1: 145 | ER1: 146 | ES1: 147 | ET1: 148 | EU1: 149 | EV1: 150 | EW1: 151 | EX1: 152 | EY1: 153 | EZ1: 154 | FA1: 155 | FB1: 156 | FC1: 157 | FD1: 158 | FE1: 159 | FF1: 160 | FG1: 161 | FH1: 162 | FI1: 163 | FJ1: 164 | FK1: 165 | FL1: 166 | FM1: 167 | FN1: 168 | FO1: 169 | FP1: 170 | FQ1: 171 | FR1: 172 | FS1: 173 | FT1: 174 | FU1: 175 | FV1: 176 | FW1: 177 | FX1: 178 | FY1: 179 | FZ1: 180 | GA1: 181 | GB1: 182 | GC1: 183 | GD1: 184 | GE1: 185 | GF1: 186 | GG1: 187 | GH1: 188 | GI1: 189 | GJ1: 190 | GK1: 191 | GL1: 192 | GM1: 193 | GN1: 194 | GO1: =GN1+1 -> 195 | GP1: 196 | GQ1: 197 | GR1: 198 | GS1: 199 | GT1: 200 | GU1: 201 | GV1: 202 | GW1: 203 | GX1: 204 | GY1: 205 | GZ1: 206 | HA1: 207 | HB1: 208 | HC1: 209 | HD1: 210 | HE1: 211 | HF1: 212 | HG1: 213 | HH1: 214 | HI1: 215 | HJ1: 216 | HK1: 217 | HL1: 218 | HM1: 219 | HN1: 220 | HO1: 221 | HP1: 222 | HQ1: 223 | HR1: 224 | HS1: 225 | HT1: 226 | HU1: 227 | HV1: 228 | HW1: 229 | HX1: 230 | HY1: 231 | HZ1: 232 | IA1: 233 | IB1: 234 | IC1: 235 | ID1: 236 | IE1: 237 | IF1: 238 | IG1: 239 | IH1: 240 | II1: 241 | IJ1: 242 | IK1: 243 | IL1: 244 | IM1: 245 | IN1: 246 | IO1: 247 | IP1: 248 | IQ1: 249 | IR1: 250 | IS1: 251 | IT1: 252 | IU1: 253 | IV1: 254 | IW1: 255 | IX1: 256 | IY1: 257 | IZ1: 258 | JA1: =IZ1+1 -> 259 | JB1: 260 | JC1: 261 | JD1: 262 | JE1: 263 | JF1: 264 | JG1: 265 | JH1: 266 | JI1: 267 | JJ1: 268 | JK1: 269 | JL1: 270 | JM1: 271 | JN1: 272 | JO1: 273 | JP1: 274 | JQ1: 275 | JR1: 276 | JS1: 277 | JT1: 278 | JU1: 279 | JV1: 280 | JW1: 281 | JX1: 282 | JY1: 283 | JZ1: 284 | KA1: 285 | KB1: 286 | KC1: 287 | KD1: 288 | KE1: 289 | KF1: 290 | KG1: 291 | KH1: 292 | KI1: 293 | KJ1: 294 | KK1: 295 | KL1: 296 | KM1: 297 | KN1: 298 | KO1: 299 | KP1: 300 | KQ1: 301 | KR1: 302 | KS1: 303 | KT1: 304 | KU1: 305 | KV1: 306 | KW1: 307 | KX1: 308 | KY1: 309 | KZ1: 310 | LA1: 311 | LB1: 312 | LC1: 313 | LD1: 314 | LE1: 315 | LF1: 316 | LG1: 317 | LH1: 318 | LI1: 319 | LJ1: 320 | LK1: 321 | LL1: 322 | LM1: =LL1+1 -> 323 | LN1: 324 | LO1: 325 | LP1: 326 | LQ1: 327 | LR1: 328 | LS1: 329 | LT1: 330 | LU1: 331 | LV1: 332 | LW1: 333 | LX1: 334 | LY1: 335 | LZ1: 336 | MA1: 337 | MB1: 338 | MC1: 339 | MD1: 340 | ME1: 341 | MF1: 342 | MG1: 343 | MH1: 344 | MI1: 345 | MJ1: 346 | MK1: 347 | ML1: 348 | MM1: 349 | MN1: 350 | MO1: 351 | MP1: 352 | MQ1: 353 | MR1: 354 | MS1: 355 | MT1: 356 | MU1: 357 | MV1: 358 | MW1: 359 | MX1: 360 | MY1: 361 | MZ1: 362 | NA1: 363 | NB1: 364 | NC1: 365 | ND1: 366 | NE1: 367 | NF1: 368 | NG1: 369 | NH1: 370 | NI1: 371 | NJ1: 372 | NK1: 373 | NL1: 374 | NM1: 375 | NN1: 376 | NO1: 377 | NP1: 378 | NQ1: 379 | NR1: 380 | NS1: 381 | NT1: 382 | NU1: 383 | NV1: 384 | NW1: 385 | NX1: 386 | NY1: =NX1+1 -> 387 | NZ1: 388 | OA1: 389 | OB1: 390 | OC1: 391 | OD1: 392 | OE1: 393 | OF1: 394 | OG1: 395 | OH1: 396 | OI1: 397 | OJ1: 398 | OK1: 399 | OL1: 400 | OM1: 401 | ON1: 402 | OO1: 403 | OP1: 404 | OQ1: 405 | OR1: 406 | OS1: 407 | OT1: 408 | OU1: 409 | OV1: 410 | OW1: 411 | OX1: 412 | OY1: 413 | OZ1: 414 | PA1: 415 | PB1: 416 | PC1: 417 | PD1: 418 | PE1: 419 | PF1: 420 | PG1: 421 | PH1: 422 | PI1: 423 | PJ1: 424 | PK1: 425 | PL1: 426 | PM1: 427 | PN1: 428 | PO1: 429 | PP1: 430 | PQ1: 431 | PR1: 432 | PS1: 433 | PT1: 434 | PU1: 435 | PV1: 436 | PW1: 437 | PX1: 438 | PY1: 439 | PZ1: 440 | QA1: 441 | QB1: 442 | QC1: 443 | QD1: 444 | QE1: 445 | QF1: 446 | QG1: 447 | QH1: 448 | QI1: 449 | QJ1: 450 | QK1: =QJ1+1 -> 451 | QL1: 452 | QM1: 453 | QN1: 454 | QO1: 455 | QP1: 456 | QQ1: 457 | QR1: 458 | QS1: 459 | QT1: 460 | QU1: 461 | QV1: 462 | QW1: 463 | QX1: 464 | QY1: 465 | QZ1: 466 | RA1: 467 | RB1: 468 | RC1: 469 | RD1: 470 | RE1: 471 | RF1: 472 | RG1: 473 | RH1: 474 | RI1: 475 | RJ1: 476 | RK1: 477 | RL1: 478 | RM1: 479 | RN1: 480 | RO1: 481 | RP1: 482 | RQ1: 483 | RR1: 484 | RS1: 485 | RT1: 486 | RU1: 487 | RV1: 488 | RW1: 489 | RX1: 490 | RY1: 491 | RZ1: 492 | SA1: 493 | SB1: 494 | SC1: 495 | SD1: 496 | SE1: 497 | SF1: 498 | SG1: 499 | SH1: 500 | SI1: 501 | SJ1: 502 | SK1: 503 | SL1: 504 | SM1: 505 | SN1: 506 | SO1: 507 | SP1: 508 | SQ1: 509 | SR1: 510 | SS1: 511 | ST1: 512 | SU1: 513 | SV1: 514 | SW1: =SV1+1 -> 515 | SX1: 516 | SY1: 517 | SZ1: 518 | TA1: 519 | TB1: 520 | TC1: 521 | TD1: 522 | TE1: 523 | TF1: 524 | TG1: 525 | TH1: 526 | TI1: 527 | TJ1: 528 | TK1: 529 | TL1: 530 | TM1: 531 | TN1: 532 | TO1: 533 | TP1: 534 | TQ1: 535 | TR1: 536 | TS1: 537 | TT1: 538 | TU1: 539 | TV1: 540 | TW1: 541 | TX1: 542 | TY1: 543 | TZ1: 544 | UA1: 545 | UB1: 546 | UC1: 547 | UD1: 548 | UE1: 549 | UF1: 550 | UG1: 551 | UH1: 552 | UI1: 553 | UJ1: 554 | UK1: 555 | UL1: 556 | UM1: 557 | UN1: 558 | UO1: 559 | UP1: 560 | UQ1: 561 | UR1: 562 | US1: 563 | UT1: 564 | UU1: 565 | UV1: 566 | UW1: 567 | UX1: 568 | UY1: 569 | UZ1: 570 | VA1: 571 | VB1: 572 | VC1: 573 | VD1: 574 | VE1: 575 | VF1: 576 | VG1: 577 | VH1: 578 | VI1: =VH1+1 -> 579 | VJ1: 580 | VK1: 581 | VL1: 582 | VM1: 583 | VN1: 584 | VO1: 585 | VP1: 586 | VQ1: 587 | VR1: 588 | VS1: 589 | VT1: 590 | VU1: 591 | VV1: 592 | VW1: 593 | VX1: 594 | VY1: 595 | VZ1: 596 | WA1: 597 | WB1: 598 | WC1: 599 | WD1: 600 | WE1: 601 | WF1: 602 | WG1: 603 | WH1: 604 | WI1: 605 | WJ1: 606 | WK1: 607 | WL1: 608 | WM1: 609 | WN1: 610 | WO1: 611 | WP1: 612 | WQ1: =WP1+1 -> 613 | WR1: =WQ1+1 -> 614 | WS1: =WR1+1 -> 615 | WT1: =WS1+1 -> 616 | WU1: =WT1+1 -> 617 | WV1: =WU1+1 -> 618 | WW1: =WV1+1 -> 619 | WX1: =WW1+1 -> 620 | WY1: =WX1+1 -> 621 | WZ1: =WY1+1 -> 622 | XA1: =WZ1+1 -> 623 | XB1: =XA1+1 -> 624 | XC1: =XB1+1 -> 625 | XD1: =XC1+1 -> 626 | XE1: =XD1+1 -> 627 | XF1: =XE1+1 -> 628 | XG1: =XF1+1 -> 629 | XH1: =XG1+1 -> 630 | XI1: =XH1+1 -> 631 | XJ1: =XI1+1 -> 632 | XK1: =XJ1+1 -> 633 | XL1: =XK1+1 -> 634 | XM1: =XL1+1 -> 635 | XN1: =XM1+1 -> 636 | XO1: =XN1+1 -> 637 | XP1: =XO1+1 -> 638 | XQ1: =XP1+1 -> 639 | XR1: =XQ1+1 -> 640 | XS1: =XR1+1 -> 641 | XT1: =XS1+1 -> 642 | XU1: =XT1+1 -> 643 | XV1: =XU1+1 -> 644 | XW1: =XV1+1 -> 645 | XX1: =XW1+1 -> 646 | XY1: =XX1+1 -> 647 | XZ1: =XY1+1 -> 648 | YA1: =XZ1+1 -> 649 | YB1: =YA1+1 -> 650 | YC1: =YB1+1 -> 651 | YD1: =YC1+1 -> 652 | YE1: =YD1+1 -> 653 | YF1: =YE1+1 -> 654 | YG1: =YF1+1 -> 655 | YH1: =YG1+1 -> 656 | YI1: =YH1+1 -> 657 | YJ1: =YI1+1 -> 658 | YK1: =YJ1+1 -> 659 | YL1: =YK1+1 -> 660 | YM1: =YL1+1 -> 661 | YN1: =YM1+1 -> 662 | YO1: =YN1+1 -> 663 | YP1: =YO1+1 -> 664 | YQ1: =YP1+1 -> 665 | YR1: =YQ1+1 -> 666 | YS1: =YR1+1 -> 667 | YT1: =YS1+1 -> 668 | YU1: =YT1+1 -> 669 | YV1: =YU1+1 -> 670 | YW1: =YV1+1 -> 671 | YX1: =YW1+1 -> 672 | YY1: =YX1+1 -> 673 | YZ1: =YY1+1 -> 674 | ZA1: =YZ1+1 -> 675 | ZB1: =ZA1+1 -> 676 | ZC1: =ZB1+1 -> 677 | ZD1: =ZC1+1 -> 678 | ZE1: =ZD1+1 -> 679 | ZF1: =ZE1+1 -> 680 | ZG1: =ZF1+1 -> 681 | ZH1: =ZG1+1 -> 682 | ZI1: =ZH1+1 -> 683 | ZJ1: =ZI1+1 -> 684 | ZK1: =ZJ1+1 -> 685 | ZL1: =ZK1+1 -> 686 | ZM1: =ZL1+1 -> 687 | ZN1: =ZM1+1 -> 688 | ZO1: =ZN1+1 -> 689 | ZP1: =ZO1+1 -> 690 | ZQ1: =ZP1+1 -> 691 | ZR1: =ZQ1+1 -> 692 | ZS1: =ZR1+1 -> 693 | ZT1: =ZS1+1 -> 694 | ZU1: =ZT1+1 -> 695 | ZV1: =ZU1+1 -> 696 | ZW1: =ZV1+1 -> 697 | ZX1: =ZW1+1 -> 698 | ZY1: =ZX1+1 -> 699 | ZZ1: =ZY1+1 -> 700 | AAA1: =ZZ1+1 -> 701 | AAB1: =AAA1+1 -> 702 | AAC1: =AAB1+1 -> 703 | AAD1: =AAC1+1 -> 704 | AAE1: =AAD1+1 -> 705 | AAF1: =AAE1+1 -> 706 | AAG1: =AAF1+1 -> 707 | AAH1: =AAG1+1 -> 708 | AAI1: =AAH1+1 -> 709 | AAJ1: =AAI1+1 -> 710 | AAK1: =AAJ1+1 -> 711 | AAL1: =AAK1+1 -> 712 | AAM1: =AAL1+1 -> 713 | AAN1: =AAM1+1 -> 714 | AAO1: =AAN1+1 -> 715 | AAP1: =AAO1+1 -> 716 | AAQ1: =AAP1+1 -> 717 | AAR1: =AAQ1+1 -> 718 | AAS1: =AAR1+1 -> 719 | AAT1: =AAS1+1 -> 720 | AAU1: =AAT1+1 -> 721 | AAV1: =AAU1+1 -> 722 | AAW1: =AAV1+1 -> 723 | AAX1: =AAW1+1 -> 724 | AAY1: =AAX1+1 -> 725 | AAZ1: =AAY1+1 -> 726 | ABA1: =AAZ1+1 -> 727 | ABB1: =ABA1+1 -> 728 | ABC1: =ABB1+1 -> 729 | ABD1: =ABC1+1 -> 730 | ABE1: =ABD1+1 -> 731 | ABF1: =ABE1+1 -> 732 | ABG1: =ABF1+1 -> 733 | ABH1: =ABG1+1 -> 734 | ABI1: =ABH1+1 -> 735 | ABJ1: =ABI1+1 -> 736 | ABK1: =ABJ1+1 -> 737 | ABL1: =ABK1+1 -> 738 | ABM1: =ABL1+1 -> 739 | ABN1: =ABM1+1 -> 740 | ABO1: =ABN1+1 -> 741 | ABP1: =ABO1+1 -> 742 | ABQ1: =ABP1+1 -> 743 | ABR1: =ABQ1+1 -> 744 | ABS1: =ABR1+1 -> 745 | ABT1: =ABS1+1 -> 746 | ABU1: =ABT1+1 -> 747 | ABV1: =ABU1+1 -> 748 | ABW1: =ABV1+1 -> 749 | ABX1: =ABW1+1 -> 750 | ABY1: =ABX1+1 -> 751 | ABZ1: =ABY1+1 -> 752 | ACA1: =ABZ1+1 -> 753 | ACB1: =ACA1+1 -> 754 | ACC1: =ACB1+1 -> 755 | ACD1: =ACC1+1 -> 756 | ACE1: =ACD1+1 -> 757 | ACF1: =ACE1+1 -> 758 | ACG1: =ACF1+1 -> 759 | ACH1: =ACG1+1 -> 760 | ACI1: =ACH1+1 -> 761 | ACJ1: =ACI1+1 -> 762 | ACK1: =ACJ1+1 -> 763 | ACL1: =ACK1+1 -> 764 | ACM1: =ACL1+1 -> 765 | ACN1: =ACM1+1 -> 766 | ACO1: =ACN1+1 -> 767 | ACP1: =ACO1+1 -> 768 | ACQ1: =ACP1+1 -> 769 | ACR1: =ACQ1+1 -> 770 | ACS1: =ACR1+1 -> 771 | ACT1: =ACS1+1 -> 772 | ACU1: =ACT1+1 -> 773 | ACV1: =ACU1+1 -> 774 | ACW1: =ACV1+1 -> 775 | ACX1: =ACW1+1 -> 776 | ACY1: =ACX1+1 -> 777 | ACZ1: =ACY1+1 -> 778 | ADA1: =ACZ1+1 -> 779 | ADB1: =ADA1+1 -> 780 | ADC1: =ADB1+1 -> 781 | ADD1: =ADC1+1 -> 782 | ADE1: =ADD1+1 -> 783 | ADF1: =ADE1+1 -> 784 | ADG1: =ADF1+1 -> 785 | ADH1: =ADG1+1 -> 786 | ADI1: =ADH1+1 -> 787 | ADJ1: =ADI1+1 -> 788 | ADK1: =ADJ1+1 -> 789 | ADL1: =ADK1+1 -> 790 | ADM1: =ADL1+1 -> 791 | ADN1: =ADM1+1 -> 792 | ADO1: =ADN1+1 -> 793 | ADP1: =ADO1+1 -> 794 | ADQ1: =ADP1+1 -> 795 | ADR1: =ADQ1+1 -> 796 | ADS1: =ADR1+1 -> 797 | ADT1: =ADS1+1 -> 798 | ADU1: =ADT1+1 -> 799 | ADV1: =ADU1+1 -> 800 | ADW1: =ADV1+1 -> 801 | ADX1: =ADW1+1 -> 802 | ADY1: =ADX1+1 -> 803 | ADZ1: =ADY1+1 -> 804 | AEA1: =ADZ1+1 -> 805 | AEB1: =AEA1+1 -> 806 | AEC1: =AEB1+1 -> 807 | AED1: =AEC1+1 -> 808 | AEE1: =AED1+1 -> 809 | AEF1: =AEE1+1 -> 810 | AEG1: =AEF1+1 -> 811 | AEH1: =AEG1+1 -> 812 | AEI1: =AEH1+1 -> 813 | AEJ1: =AEI1+1 -> 814 | AEK1: =AEJ1+1 -> 815 | AEL1: =AEK1+1 -> 816 | AEM1: =AEL1+1 -> 817 | AEN1: =AEM1+1 -> 818 | AEO1: =AEN1+1 -> 819 | AEP1: =AEO1+1 -> 820 | AEQ1: =AEP1+1 -> 821 | AER1: =AEQ1+1 -> 822 | AES1: =AER1+1 -> 823 | AET1: =AES1+1 -> 824 | AEU1: =AET1+1 -> 825 | AEV1: =AEU1+1 -> 826 | AEW1: =AEV1+1 -> 827 | AEX1: =AEW1+1 -> 828 | AEY1: =AEX1+1 -> 829 | AEZ1: =AEY1+1 -> 830 | AFA1: =AEZ1+1 -> 831 | AFB1: =AFA1+1 -> 832 | AFC1: =AFB1+1 -> 833 | AFD1: =AFC1+1 -> 834 | AFE1: =AFD1+1 -> 835 | AFF1: =AFE1+1 -> 836 | AFG1: =AFF1+1 -> 837 | AFH1: =AFG1+1 -> 838 | AFI1: =AFH1+1 -> 839 | AFJ1: =AFI1+1 -> 840 | AFK1: =AFJ1+1 -> 841 | AFL1: =AFK1+1 -> 842 | AFM1: =AFL1+1 -> 843 | AFN1: =AFM1+1 -> 844 | AFO1: =AFN1+1 -> 845 | AFP1: =AFO1+1 -> 846 | AFQ1: =AFP1+1 -> 847 | AFR1: =AFQ1+1 -> 848 | AFS1: =AFR1+1 -> 849 | AFT1: =AFS1+1 -> 850 | AFU1: =AFT1+1 -> 851 | AFV1: =AFU1+1 -> 852 | AFW1: =AFV1+1 -> 853 | AFX1: =AFW1+1 -> 854 | AFY1: =AFX1+1 -> 855 | AFZ1: =AFY1+1 -> 856 | AGA1: =AFZ1+1 -> 857 | AGB1: =AGA1+1 -> 858 | AGC1: =AGB1+1 -> 859 | AGD1: =AGC1+1 -> 860 | AGE1: =AGD1+1 -> 861 | AGF1: =AGE1+1 -> 862 | AGG1: =AGF1+1 -> 863 | AGH1: =AGG1+1 -> 864 | AGI1: =AGH1+1 -> 865 | AGJ1: =AGI1+1 -> 866 | AGK1: =AGJ1+1 -> 867 | AGL1: =AGK1+1 -> 868 | AGM1: =AGL1+1 -> 869 | AGN1: =AGM1+1 -> 870 | AGO1: =AGN1+1 -> 871 | AGP1: =AGO1+1 -> 872 | AGQ1: =AGP1+1 -> 873 | AGR1: =AGQ1+1 -> 874 | AGS1: =AGR1+1 -> 875 | AGT1: =AGS1+1 -> 876 | AGU1: =AGT1+1 -> 877 | AGV1: =AGU1+1 -> 878 | AGW1: =AGV1+1 -> 879 | AGX1: =AGW1+1 -> 880 | AGY1: =AGX1+1 -> 881 | AGZ1: =AGY1+1 -> 882 | AHA1: =AGZ1+1 -> 883 | AHB1: =AHA1+1 -> 884 | AHC1: =AHB1+1 -> 885 | AHD1: =AHC1+1 -> 886 | AHE1: =AHD1+1 -> 887 | AHF1: =AHE1+1 -> 888 | AHG1: =AHF1+1 -> 889 | AHH1: =AHG1+1 -> 890 | AHI1: =AHH1+1 -> 891 | AHJ1: =AHI1+1 -> 892 | AHK1: =AHJ1+1 -> 893 | AHL1: =AHK1+1 -> 894 | AHM1: =AHL1+1 -> 895 | AHN1: =AHM1+1 -> 896 | AHO1: =AHN1+1 -> 897 | AHP1: =AHO1+1 -> 898 | AHQ1: =AHP1+1 -> 899 | AHR1: =AHQ1+1 -> 900 | AHS1: =AHR1+1 -> 901 | AHT1: =AHS1+1 -> 902 | AHU1: =AHT1+1 -> 903 | AHV1: =AHU1+1 -> 904 | AHW1: =AHV1+1 -> 905 | AHX1: =AHW1+1 -> 906 | AHY1: =AHX1+1 -> 907 | AHZ1: =AHY1+1 -> 908 | AIA1: =AHZ1+1 -> 909 | AIB1: =AIA1+1 -> 910 | AIC1: =AIB1+1 -> 911 | AID1: =AIC1+1 -> 912 | AIE1: =AID1+1 -> 913 | AIF1: =AIE1+1 -> 914 | AIG1: =AIF1+1 -> 915 | AIH1: =AIG1+1 -> 916 | AII1: =AIH1+1 -> 917 | AIJ1: =AII1+1 -> 918 | AIK1: =AIJ1+1 -> 919 | AIL1: =AIK1+1 -> 920 | AIM1: =AIL1+1 -> 921 | AIN1: =AIM1+1 -> 922 | AIO1: =AIN1+1 -> 923 | AIP1: =AIO1+1 -> 924 | AIQ1: =AIP1+1 -> 925 | AIR1: =AIQ1+1 -> 926 | AIS1: =AIR1+1 -> 927 | AIT1: =AIS1+1 -> 928 | AIU1: =AIT1+1 -> 929 | AIV1: =AIU1+1 -> 930 | AIW1: =AIV1+1 -> 931 | AIX1: =AIW1+1 -> 932 | AIY1: =AIX1+1 -> 933 | AIZ1: =AIY1+1 -> 934 | AJA1: =AIZ1+1 -> 935 | AJB1: =AJA1+1 -> 936 | AJC1: =AJB1+1 -> 937 | AJD1: =AJC1+1 -> 938 | AJE1: =AJD1+1 -> 939 | AJF1: =AJE1+1 -> 940 | AJG1: =AJF1+1 -> 941 | AJH1: =AJG1+1 -> 942 | AJI1: =AJH1+1 -> 943 | AJJ1: =AJI1+1 -> 944 | AJK1: =AJJ1+1 -> 945 | AJL1: =AJK1+1 -> 946 | AJM1: =AJL1+1 -> 947 | AJN1: =AJM1+1 -> 948 | AJO1: =AJN1+1 -> 949 | AJP1: =AJO1+1 -> 950 | AJQ1: =AJP1+1 -> 951 | AJR1: =AJQ1+1 -> 952 | AJS1: =AJR1+1 -> 953 | AJT1: =AJS1+1 -> 954 | AJU1: =AJT1+1 -> 955 | AJV1: =AJU1+1 -> 956 | AJW1: =AJV1+1 -> 957 | AJX1: =AJW1+1 -> 958 | AJY1: =AJX1+1 -> 959 | AJZ1: =AJY1+1 -> 960 | AKA1: =AJZ1+1 -> 961 | AKB1: =AKA1+1 -> 962 | AKC1: =AKB1+1 -> 963 | AKD1: =AKC1+1 -> 964 | AKE1: =AKD1+1 -> 965 | AKF1: =AKE1+1 -> 966 | AKG1: =AKF1+1 -> 967 | AKH1: =AKG1+1 -> 968 | AKI1: =AKH1+1 -> 969 | AKJ1: =AKI1+1 -> 970 | AKK1: =AKJ1+1 -> 971 | AKL1: =AKK1+1 -> 972 | AKM1: =AKL1+1 -> 973 | AKN1: =AKM1+1 -> 974 | AKO1: =AKN1+1 -> 975 | AKP1: =AKO1+1 -> 976 | AKQ1: =AKP1+1 -> 977 | AKR1: =AKQ1+1 -> 978 | AKS1: =AKR1+1 -> 979 | AKT1: =AKS1+1 -> 980 | AKU1: =AKT1+1 -> 981 | AKV1: =AKU1+1 -> 982 | AKW1: =AKV1+1 -> 983 | AKX1: =AKW1+1 -> 984 | AKY1: =AKX1+1 -> 985 | AKZ1: =AKY1+1 -> 986 | ALA1: =AKZ1+1 -> 987 | ALB1: =ALA1+1 -> 988 | ALC1: =ALB1+1 -> 989 | ALD1: =ALC1+1 -> 990 | ALE1: =ALD1+1 -> 991 | ALF1: =ALE1+1 -> 992 | ALG1: =ALF1+1 -> 993 | ALH1: =ALG1+1 -> 994 | ALI1: =ALH1+1 -> 995 | ALJ1: =ALI1+1 -> 996 | ALK1: =ALJ1+1 -> 997 | ALL1: =ALK1+1 -> 998 | ALM1: =ALL1+1 -> 999 | ALN1: =ALM1+1 -> 1000 | ALO1: =ALN1+1 -> 1001 | ALP1: =ALO1+1 -> 1002 | ALQ1: =ALP1+1 -> 1003 | ALR1: =ALQ1+1 -> 1004 | ALS1: =ALR1+1 -> 1005 | ALT1: =ALS1+1 -> 1006 | ALU1: =ALT1+1 -> 1007 | ALV1: =ALU1+1 -> 1008 | ALW1: =ALV1+1 -> 1009 | ALX1: =ALW1+1 -> 1010 | ALY1: =ALX1+1 -> 1011 | ALZ1: =ALY1+1 -> 1012 | AMA1: =ALZ1+1 -> 1013 | AMB1: =AMA1+1 -> 1014 | AMC1: =AMB1+1 -> 1015 | AMD1: =AMC1+1 -> 1016 | AME1: =AMD1+1 -> 1017 | AMF1: =AME1+1 -> 1018 | AMG1: =AMF1+1 -> 1019 | AMH1: =AMG1+1 -> 1020 | AMI1: =AMH1+1 -> 1021 | AMJ1: =AMI1+1 -> 1022 | AMK1: =AMJ1+1 -> 1023 | AML1: =AMK1+1 -> 1024 | AMM1: =AML1+1 -> 1025 | AMN1: =AMM1+1 -> 1026 | AMO1: =AMN1+1 -> 1027 | AMP1: =AMO1+1 -> 1028 | AMQ1: =AMP1+1 -> 1029 | AMR1: =AMQ1+1 -> 1030 | AMS1: =AMR1+1 -> 1031 | AMT1: =AMS1+1 -> 1032 | AMU1: =AMT1+1 -> 1033 | AMV1: =AMU1+1 -> 1034 | AMW1: =AMV1+1 -> 1035 | AMX1: =AMW1+1 -> 1036 | AMY1: =AMX1+1 -> 1037 | AMZ1: =AMY1+1 -> 1038 | ANA1: =AMZ1+1 -> 1039 | ANB1: =ANA1+1 -> 1040 | ANC1: =ANB1+1 -> 1041 | AND1: =ANC1+1 -> 1042 | ANE1: =AND1+1 -> 1043 | ANF1: =ANE1+1 -> 1044 | ANG1: =ANF1+1 -> 1045 | ANH1: =ANG1+1 -> 1046 | ANI1: =ANH1+1 -> 1047 | ANJ1: =ANI1+1 -> 1048 | ANK1: =ANJ1+1 -> 1049 | ANL1: =ANK1+1 -> 1050 | ANM1: =ANL1+1 -> 1051 | ANN1: =ANM1+1 -> 1052 | ANO1: =ANN1+1 -> 1053 | ANP1: =ANO1+1 -> 1054 | ANQ1: =ANP1+1 -> 1055 | ANR1: =ANQ1+1 -> 1056 | ANS1: =ANR1+1 -> 1057 | ANT1: =ANS1+1 -> 1058 | ANU1: =ANT1+1 -> 1059 | ANV1: =ANU1+1 -> 1060 | ANW1: =ANV1+1 -> 1061 | ANX1: =ANW1+1 -> 1062 | ANY1: =ANX1+1 -> 1063 | ANZ1: =ANY1+1 -> 1064 | AOA1: =ANZ1+1 -> 1065 | AOB1: =AOA1+1 -> 1066 | AOC1: =AOB1+1 -> 1067 | AOD1: =AOC1+1 -> 1068 | AOE1: =AOD1+1 -> 1069 | AOF1: =AOE1+1 -> 1070 | AOG1: =AOF1+1 -> 1071 | AOH1: =AOG1+1 -> 1072 | AOI1: =AOH1+1 -> 1073 | AOJ1: =AOI1+1 -> 1074 | AOK1: =AOJ1+1 -> 1075 | AOL1: =AOK1+1 -> 1076 | AOM1: =AOL1+1 -> 1077 | AON1: =AOM1+1 -> 1078 | AOO1: =AON1+1 -> 1079 | AOP1: =AOO1+1 -> 1080 | AOQ1: =AOP1+1 -> 1081 | AOR1: =AOQ1+1 -> 1082 | AOS1: =AOR1+1 -> 1083 | AOT1: =AOS1+1 -> 1084 | AOU1: =AOT1+1 -> 1085 | AOV1: =AOU1+1 -> 1086 | AOW1: =AOV1+1 -> 1087 | AOX1: =AOW1+1 -> 1088 | AOY1: =AOX1+1 -> 1089 | AOZ1: =AOY1+1 -> 1090 | APA1: =AOZ1+1 -> 1091 | APB1: =APA1+1 -> 1092 | APC1: =APB1+1 -> 1093 | APD1: =APC1+1 -> 1094 | APE1: =APD1+1 -> 1095 | APF1: =APE1+1 -> 1096 | APG1: =APF1+1 -> 1097 | APH1: =APG1+1 -> 1098 | API1: =APH1+1 -> 1099 | APJ1: =API1+1 -> 1100 | APK1: =APJ1+1 -> 1101 | APL1: =APK1+1 -> 1102 | APM1: =APL1+1 -> 1103 | APN1: =APM1+1 -> 1104 | APO1: =APN1+1 -> 1105 | APP1: =APO1+1 -> 1106 | APQ1: =APP1+1 -> 1107 | APR1: =APQ1+1 -> 1108 | APS1: =APR1+1 -> 1109 | APT1: =APS1+1 -> 1110 | APU1: =APT1+1 -> 1111 | APV1: =APU1+1 -> 1112 | APW1: =APV1+1 -> 1113 | APX1: =APW1+1 -> 1114 | APY1: =APX1+1 -> 1115 | APZ1: =APY1+1 -> 1116 | AQA1: =APZ1+1 -> 1117 | AQB1: =AQA1+1 -> 1118 | AQC1: =AQB1+1 -> 1119 | AQD1: =AQC1+1 -> 1120 | AQE1: =AQD1+1 -> 1121 | AQF1: =AQE1+1 -> 1122 | AQG1: =AQF1+1 -> 1123 | AQH1: =AQG1+1 -> 1124 | AQI1: =AQH1+1 -> 1125 | AQJ1: =AQI1+1 -> 1126 | AQK1: =AQJ1+1 -> 1127 | AQL1: =AQK1+1 -> 1128 | AQM1: =AQL1+1 -> 1129 | AQN1: =AQM1+1 -> 1130 | AQO1: =AQN1+1 -> 1131 | AQP1: =AQO1+1 -> 1132 | AQQ1: =AQP1+1 -> 1133 | AQR1: =AQQ1+1 -> 1134 | AQS1: =AQR1+1 -> 1135 | AQT1: =AQS1+1 -> 1136 | AQU1: =AQT1+1 -> 1137 | AQV1: =AQU1+1 -> 1138 | AQW1: =AQV1+1 -> 1139 | AQX1: =AQW1+1 -> 1140 | AQY1: =AQX1+1 -> 1141 | AQZ1: =AQY1+1 -> 1142 | ARA1: =AQZ1+1 -> 1143 | ARB1: =ARA1+1 -> 1144 | ARC1: =ARB1+1 -> 1145 | ARD1: =ARC1+1 -> 1146 | ARE1: =ARD1+1 -> 1147 | ARF1: =ARE1+1 -> 1148 | ARG1: =ARF1+1 -> 1149 | ARH1: =ARG1+1 -> 1150 | ARI1: =ARH1+1 -> 1151 | ARJ1: =ARI1+1 -> 1152 | ARK1: =ARJ1+1 -> 1153 | ARL1: =ARK1+1 -> 1154 | ARM1: =ARL1+1 -> 1155 | ARN1: =ARM1+1 -> 1156 | ARO1: =ARN1+1 -> 1157 | ARP1: =ARO1+1 -> 1158 | ARQ1: =ARP1+1 -> 1159 | ARR1: =ARQ1+1 -> 1160 | ARS1: =ARR1+1 -> 1161 | ART1: =ARS1+1 -> 1162 | ARU1: =ART1+1 -> 1163 | ARV1: =ARU1+1 -> 1164 | ARW1: =ARV1+1 -> 1165 | ARX1: =ARW1+1 -> 1166 | ARY1: =ARX1+1 -> 1167 | ARZ1: =ARY1+1 -> 1168 | ASA1: =ARZ1+1 -> 1169 | ASB1: =ASA1+1 -> 1170 | ASC1: =ASB1+1 -> 1171 | ASD1: =ASC1+1 -> 1172 | ASE1: =ASD1+1 -> 1173 | ASF1: =ASE1+1 -> 1174 | ASG1: =ASF1+1 -> 1175 | ASH1: =ASG1+1 -> 1176 | ASI1: =ASH1+1 -> 1177 | ASJ1: =ASI1+1 -> 1178 | ASK1: =ASJ1+1 -> 1179 | ASL1: =ASK1+1 -> 1180 | ASM1: =ASL1+1 -> 1181 | ASN1: =ASM1+1 -> 1182 | ASO1: =ASN1+1 -> 1183 | ASP1: =ASO1+1 -> 1184 | ASQ1: =ASP1+1 -> 1185 | ASR1: =ASQ1+1 -> 1186 | ASS1: =ASR1+1 -> 1187 | AST1: =ASS1+1 -> 1188 | ASU1: =AST1+1 -> 1189 | ASV1: =ASU1+1 -> 1190 | ASW1: =ASV1+1 -> 1191 | ASX1: =ASW1+1 -> 1192 | ASY1: =ASX1+1 -> 1193 | ASZ1: =ASY1+1 -> 1194 | ATA1: =ASZ1+1 -> 1195 | ATB1: =ATA1+1 -> 1196 | ATC1: =ATB1+1 -> 1197 | ATD1: =ATC1+1 -> 1198 | ATE1: =ATD1+1 -> 1199 | ATF1: =ATE1+1 -> 1200 | ATG1: =ATF1+1 -> 1201 | ATH1: =ATG1+1 -> 1202 | ATI1: =ATH1+1 -> 1203 | ATJ1: =ATI1+1 -> 1204 | ATK1: =ATJ1+1 -> 1205 | ATL1: =ATK1+1 -> 1206 | ATM1: =ATL1+1 -> 1207 | ATN1: =ATM1+1 -> 1208 | ATO1: =ATN1+1 -> 1209 | ATP1: =ATO1+1 -> 1210 | ATQ1: =ATP1+1 -> 1211 | ATR1: =ATQ1+1 -> 1212
A2: 1 | B2: 0.0013 | C2: 0.00311 | D2: 0.00179 | E2: 0.00231 | F2: 0.00443 | G2: 0.00492 | H2: 0.00591 | I2: 0.00589 | J2: 0.00785 | K2: 0.00615 | L2: 0.00846 | M2: 0.00833 | N2: 0.00711 | O2: 0.0062 | P2: 0.0081 | Q2: 0.00985 | R2: 0.00991 | S2: 0.01167 | T2: 0.01408 | U2: 0.01502 | V2: 0.01786 | W2: 0.01901 | X2: 0.01408 | Y2: 0.01502 | Z2: 0.01786 | AA2: 0.01408 | AB2: 0.01502 | AC2: 0.01786 | AD2: 0.01901 | AE2: 0.01901 | AF2: 0.01901 | AG2: 0.01901 | AH2: 0.01901 | AI2: 0.01901 | AJ2: 0.01901 | AK2: 0.01901 | AL2: 0.01901 | AM2: 0.01901 | AN2: 0.01901 | AO2: 0.01901 | AP2: 0.01901 | AQ2: 0.01901 | AR2: 0.01901 | AS2: 0.01901 | AT2: 0.01901 | AU2: 0.01901 | AV2: 0.01901 | AW2: 0.01901 | AX2: 0.01901 | AY2: 0.01901 | AZ2: 0.01901 | BA2: 0.01901 | BB2: 0.01901 | BC2: 0.01901 | BD2: 0.01901 | BE2: 0.01901 | BF2: 0.01901 | BG2: 0.01901 | BH2: 0.01901 | BI2: 0.01901 | BJ2: 0.01901 | BK2: 0.01901 | BL2: 0.01901 | BM2: 0.01901 | BN2: 0.01901 | BO2: 0.01901 | BP2: 0.01901 | BQ2: 0.01901 | BR2: 0.01901 | BS2: 0.01901 | BT2: 0.01901 | BU2: 0.01901 | BV2: 0.01901 | BW2: 0.01901 | BX2: 0.01901 | BY2: 0.01901 | BZ2: 0.01901 | CA2: 0.01901 | CB2: 0.01901 | CC2: 0.01901 | CD2: 0.01901 | CE2: 0.01901 | CF2: 0.01901 | CG2: 0.01901 | CH2: 0.01901 | CI2: 0.01901 | CJ2: 0.01901 | CK2: 0.01901 | CL2: 0.01901 | CM2: 0.01901 | CN2: 0.01901 | CO2: 0.01901 | CP2: 0.01901 | CQ2: 0.01901 | CR2: 0.01901 | CS2: 0.01901 | CT2: 0.01901 | CU2: 0.01901 | CV2: 0.01901 | CW2: 0.01901 | CX2: 0.01901 | CY2: 0.01901 | CZ2: 0.01901 | DA2: 0.01901 | DB2: 0.01901 | DC2: 0.01901 | DD2: 0.01901 | DE2: 0.01901 | DF2: 0.01901 | DG2: 0.01901 | DH2: 0.01901 | DI2: 0.01901 | DJ2: 0.01901 | DK2: 0.01901 | DL2: 0.01901 | DM2: 0.01901 | DN2: 0.01901 | DO2: 0.01901 | DP2: 0.01901 | DQ2: 0.01901 | DR2: 0.01901 | DS2: 0.01901 | DT2: 0.01901 | DU2: 0.01901 | DV2: 0.01901 | DW2: 0.01901 | DX2: 0.01901 | DY2: 0.01901 | DZ2: 0.01901 | EA2: 0.01901 | EB2: 0.01901 | EC2: 0.01901 | ED2: 0.01901 | EE2: 0.01901 | EF2: 0.01901 | EG2: 0.01901 | EH2: 0.01901 | EI2: 0.01901 | EJ2: 0.01901 | EK2: 0.01901 | EL2: 0.01901 | EM2: 0.01901 | EN2: 0.01901 | EO2: 0.01901 | EP2: 0.01901 | EQ2: 0.01901 | ER2: 0.01901 | ES2: 0.01901 | ET2: 0.01901 | EU2: 0.01901 | EV2: 0.01901 | EW2: 0.01901 | EX2: 0.01901 | EY2: 0.01901 | EZ2: 0.01901 | FA2: 0.01901 | FB2: 0.01901 | FC2: 0.01901 | FD2: 0.01901 | FE2: 0.01901 | FF2: 0.01901 | FG2: 0.01901 | FH2: 0.01901 | FI2: 0.01901 | FJ2: 0.01901 | FK2: 0.01901 | FL2: 0.01901 | FM2: 0.01901 | FN2: 0.01901 | FO2: 0.01901 | FP2: 0.01901 | FQ2: 0.01901 | FR2: 0.01901 | FS2: 0.01901 | FT2: 0.01901 | FU2: 0.01901 | FV2: 0.01901 | FW2: 0.01901 | FX2: 0.01901 | FY2: 0.01901 | FZ2: 0.01901 | GA2: 0.01901 | GB2: 0.01901 | GC2: 0.01901 | GD2: 0.01901 | GE2: 0.01901 | GF2: 0.01901 | GG2: 0.01901 | GH2: 0.01901 | GI2: 0.01901 | GJ2: 0.01901 | GK2: 0.01901 | GL2: 0.01901 | GM2: 0.01901 | GN2: 0.01901 | GO2: 0.01901 | GP2: 0.01901 | GQ2: 0.01901 | GR2: 0.01901 | GS2: 0.01901 | GT2: 0.01901 | GU2: 0.01901 | GV2: 0.01901 | GW2: 0.01901 | GX2: 0.01901 | GY2: 0.01901 | GZ2: 0.01901 | HA2: 0.01901 | HB2: 0.01901 | HC2: 0.01901 | HD2: 0.01901 | HE2: 0.01901 | HF2: 0.01901 | HG2: 0.01901 | HH2: 0.01901 | HI2: 0.01901 | HJ2: 0.01901 | HK2: 0.01901 | HL2: 0.01901 | HM2: 0.01901 | HN2: 0.01901 | HO2: 0.01901 | HP2: 0.01901 | HQ2: 0.01901 | HR2: 0.01901 | HS2: 0.01901 | HT2: 0.01901 | HU2: 0.01901 | HV2: 0.01901 | HW2: 0.01901 | HX2: 0.01901 | HY2: 0.01901 | HZ2: 0.01901 | IA2: 0.01901 | IB2: 0.01901 | IC2: 0.01901 | ID2: 0.01901 | IE2: 0.01901 | IF2: 0.01901 | IG2: 0.01901 | IH2: 0.01901
A3: 2 | B3: 0.0013 | C3: 0.0027 | D3: 0.0001 | E3: 0.0001 | F3: 0.0001 | G3: 0.0001 | H3: 0.0001 | I3: 0.0001 | J3: 0.0001 | K3: 0.00091 | L3: 0.00092 | M3: 0.00271 | N3: 0.00307 | O3: 0.00743 | P3: 0.00476 | Q3: 0.00677 | R3: 0.00401 | S3: 0.00475 | T3: 0.00636 | U3: 0.00574 | V3: 0.00564 | W3: 0.00476 | X3: 0.00636 | Y3: 0.00574 | Z3: 0.00564 | AA3: 0.00636 | AB3: 0.00574 | AC3: 0.00564 | AD3: 0.00476 | AE3: 0.00476 | AF3: 0.00476 | AG3: 0.00476 | AH3: 0.00476 | AI3: 0.00476 | AJ3: 0.00476 | AK3: 0.00476 | AL3: 0.00476 | AM3: 0.00476 | AN3: 0.00476 | AO3: 0.00476 | AP3: 0.00476 | AQ3: 0.00476 | AR3: 0.00476 | AS3: 0.00476 | AT3: 0.00476 | AU3: 0.00476 | AV3: 0.00476 | AW3: 0.00476 | AX3: 0.00476 | AY3: 0.00476 | AZ3: 0.00476 | BA3: 0.00476 | BB3: 0.00476 | BC3: 0.00476 | BD3: 0.00476 | BE3: 0.00476 | BF3: 0.00476 | BG3: 0.00476 | BH3: 0.00476 | BI3: 0.00476 | BJ3: 0.00476 | BK3: 0.00476 | BL3: 0.00476 | BM3: 0.00476 | BN3: 0.00476 | BO3: 0.00476 | BP3: 0.00476 | BQ3: 0.00476 | BR3: 0.00476 | BS3: 0.00476 | BT3: 0.00476 | BU3: 0.00476 | BV3: 0.00476 | BW3: 0.00476 | BX3: 0.00476 | BY3: 0.00476 | BZ3: 0.00476 | CA3: 0.00476 | CB3: 0.00476 | CC3: 0.00476 | CD3: 0.00476 | CE3: 0.00476 | CF3: 0.00476 | CG3: 0.00476 | CH3: 0.00476 | CI3: 0.00476 | CJ3: 0.00476 | CK3: 0.00476 | CL3: 0.00476 | CM3: 0.00476 | CN3: 0.00476 | CO3: 0.00476 | CP3: 0.00476 | CQ3: 0.00476 | CR3: 0.00476 | CS3: 0.00476 | CT3: 0.00476 | CU3: 0.00476 | CV3: 0.00476 | CW3: 0.00476 | CX3: 0.00476 | CY3: 0.00476 | CZ3: 0.00476 | DA3: 0.00476 | DB3: 0.00476 | DC3: 0.00476 | DD3: 0.00476 | DE3: 0.00476 | DF3: 0.00476 | DG3: 0.00476 | DH3: 0.00476 | DI3: 0.00476 | DJ3: 0.00476 | DK3: 0.00476 | DL3: 0.00476 | DM3: 0.00476 | DN3: 0.00476 | DO3: 0.00476 | DP3: 0.00476 | DQ3: 0.00476 | DR3: 0.00476 | DS3: 0.00476 | DT3: 0.00476 | DU3: 0.00476 | DV3: 0.00476 | DW3: 0.00476 | DX3: 0.00476 | DY3: 0.00476 | DZ3: 0.00476 | EA3: 0.00476 | EB3: 0.00476 | EC3: 0.00476 | ED3: 0.00476 | EE3: 0.00476 | EF3: 0.00476 | EG3: 0.00476 | EH3: 0.00476 | EI3: 0.00476 | EJ3: 0.00476 | EK3: 0.00476 | EL3: 0.00476 | EM3: 0.00476 | EN3: 0.00476 | EO3: 0.00476 | EP3: 0.00476 | EQ3: 0.00476 | ER3: 0.00476 | ES3: 0.00476 | ET3: 0.00476 | EU3: 0.00476 | EV3: 0.00476 | EW3: 0.00476 | EX3: 0.00476 | EY3: 0.00476 | EZ3: 0.00476 | FA3: 0.00476 | FB3: 0.00476 | FC3: 0.00476 | FD3: 0.00476 | FE3: 0.00476 | FF3: 0.00476 | FG3: 0.00476 | FH3: 0.00476 | FI3: 0.00476 | FJ3: 0.00476 | FK3: 0.00476 | FL3: 0.00476 | FM3: 0.00476 | FN3: 0.00476 | FO3: 0.00476 | FP3: 0.00476 | FQ3: 0.00476 | FR3: 0.00476 | FS3: 0.00476 | FT3: 0.00476 | FU3: 0.00476 | FV3: 0.00476 | FW3: 0.00476 | FX3: 0.00476 | FY3: 0.00476 | FZ3: 0.00476 | GA3: 0.00476 | GB3: 0.00476 | GC3: 0.00476 | GD3: 0.00476 | GE3: 0.00476 | GF3: 0.00476 | GG3: 0.00476 | GH3: 0.00476 | GI3: 0.00476 | GJ3: 0.00476 | GK3: 0.00476 | GL3: 0.00476 | GM3: 0.00476 | GN3: 0.00476 | GO3: 0.00476 | GP3: 0.00476 | GQ3: 0.00476 | GR3: 0.00476 | GS3: 0.00476 | GT3: 0.00476 | GU3: 0.00476 | GV3: 0.00476 | GW3: 0.00476 | GX3: 0.00476 | GY3: 0.00476 | GZ3: 0.00476 | HA3: 0.00476 | HB3: 0.00476 | HC3: 0.00476 | HD3: 0.00476 | HE3: 0.00476 | HF3: 0.00476 | HG3: 0.00476 | HH3: 0.00476 | HI3: 0.00476 | HJ3: 0.00476 | HK3: 0.00476 | HL3: 0.00476 | HM3: 0.00476 | HN3: 0.00476 | HO3: 0.00476 | HP3: 0.00476 | HQ3: 0.00476 | HR3: 0.00476 | HS3: 0.00476 | HT3: 0.00476 | HU3: 0.00476 | HV3: 0.00476 | HW3: 0.00476 | HX3: 0.00476 | HY3: 0.00476 | HZ3: 0.00476 | IA3: 0.00476 | IB3: 0.00476 | IC3: 0.00476 | ID3: 0.00476 | IE3: 0.00476 | IF3: 0.00476 | IG3: 0.00476 | IH3: 0.00476
A4: 3 | B4: 0.0013 | C4: 0.0044 | D4: 0.00495 | E4: 0.00677 | F4: 0.00833 | G4: 0.00699 | H4: 0.00778 | I4: 0.01006 | J4: 0.0111 | K4: 0.01131 | L4: 0.00949 | M4: 0.00753 | N4: 0.00668 | O4: 0.0056 | P4: 0.00609 | Q4: 0.0057 | R4: 0.00949 | S4: 0.0075 | T4: 0.00757 | U4: 0.00829 | V4: 0.00774 | W4: 0.00835 | X4: 0.00757 | Y4: 0.00829 | Z4: 0.00774 | AA4: 0.00757 | AB4: 0.00829 | AC4: 0.00774 | AD4: 0.00835 | AE4: 0.00835 | AF4: 0.00835 | AG4: 0.00835 | AH4: 0.00835 | AI4: 0.00835 | AJ4: 0.00835 | AK4: 0.00835 | AL4: 0.00835 | AM4: 0.00835 | AN4: 0.00835 | AO4: 0.00835 | AP4: 0.00835 | AQ4: 0.00835 | AR4: 0.00835 | AS4: 0.00835 | AT4: 0.00835 | AU4: 0.00835 | AV4: 0.00835 | AW4: 0.00835 | AX4: 0.00835 | AY4: 0.00835 | AZ4: 0.00835 | BA4: 0.00835 | BB4: 0.00835 | BC4: 0.00835 | BD4: 0.00835 | BE4: 0.00835 | BF4: 0.00835 | BG4: 0.00835 | BH4: 0.00835 | BI4: 0.00835 | BJ4: 0.00835 | BK4: 0.00835 | BL4: 0.00835 | BM4: 0.00835 | BN4: 0.00835 | BO4: 0.00835 | BP4: 0.00835 | BQ4: 0.00835 | BR4: 0.00835 | BS4: 0.00835 | BT4: 0.00835 | BU4: 0.00835 | BV4: 0.00835 | BW4: 0.00835 | BX4: 0.00835 | BY4: 0.00835 | BZ4: 0.00835 | CA4: 0.00835 | CB4: 0.00835 | CC4: 0.00835 | CD4: 0.00835 | CE4: 0.00835 | CF4: 0.00835 | CG4: 0.00835 | CH4: 0.00835 | CI4: 0.00835 | CJ4: 0.00835 | CK4: 0.00835 | CL4: 0.00835 | CM4: 0.00835 | CN4: 0.00835 | CO4: 0.00835 | CP4: 0.00835 | CQ4: 0.00835 | CR4: 0.00835 | CS4: 0.00835 | CT4: 0.00835 | CU4: 0.00835 | CV4: 0.00835 | CW4: 0.00835 | CX4: 0.00835 | CY4: 0.00835 | CZ4: 0.00835 | DA4: 0.00835 | DB4: 0.00835 | DC4: 0.00835 | DD4: 0.00835 | DE4: 0.00835 | DF4: 0.00835 | DG4: 0.00835 | DH4: 0.00835 | DI4: 0.00835 | DJ4: 0.00835 | DK4: 0.00835 | DL4: 0.00835 | DM4: 0.00835 | DN4: 0.00835 | DO4: 0.00835 | DP4: 0.00835 | DQ4: 0.00835 | DR4: 0.00835 | DS4: 0.00835 | DT4: 0.00835 | DU4: 0.00835 | DV4: 0.00835 | DW4: 0.00835 | DX4: 0.00835 | DY4: 0.00835 | DZ4: 0.00835 | EA4: 0.00835 | EB4: 0.00835 | EC4: 0.00835 | ED4: 0.00835 | EE4: 0.00835 | EF4: 0.00835 | EG4: 0.00835 | EH4: 0.00835 | EI4: 0.00835 | EJ4: 0.00835 | EK4: 0.00835 | EL4: 0.00835 | EM4: 0.00835 | EN4: 0.00835 | EO4: 0.00835 | EP4: 0.00835 | EQ4: 0.00835 | ER4: 0.00835 | ES4: 0.00835 | ET4: 0.00835 | EU4: 0.00835 | EV4: 0.00835 | EW4: 0.00835 | EX4: 0.00835 | EY4: 0.00835 | EZ4: 0.00835 | FA4: 0.00835 | FB4: 0.00835 | FC4: 0.00835 | FD4: 0.00835 | FE4: 0.00835 | FF4: 0.00835 | FG4: 0.00835 | FH4: 0.00835 | FI4: 0.00835 | FJ4: 0.00835 | FK4: 0.00835 | FL4: 0.00835 | FM4: 0.00835 | FN4: 0.00835 | FO4: 0.00835 | FP4: 0.00835 | FQ4: 0.00835 | FR4: 0.00835 | FS4: 0.00835 | FT4: 0.00835 | FU4: 0.00835 | FV4: 0.00835 | FW4: 0.00835 | FX4: 0.00835 | FY4: 0.00835 | FZ4: 0.00835 | GA4: 0.00835 | GB4: 0.00835 | GC4: 0.00835 | GD4: 0.00835 | GE4: 0.00835 | GF4: 0.00835 | GG4: 0.00835 | GH4: 0.00835 | GI4: 0.00835 | GJ4: 0.00835 | GK4: 0.00835 | GL4: 0.00835 | GM4: 0.00835 | GN4: 0.00835 | GO4: 0.00835 | GP4: 0.00835 | GQ4: 0.00835 | GR4: 0.00835 | GS4: 0.00835 | GT4: 0.00835 | GU4: 0.00835 | GV4: 0.00835 | GW4: 0.00835 | GX4: 0.00835 | GY4: 0.00835 | GZ4: 0.00835 | HA4: 0.00835 | HB4: 0.00835 | HC4: 0.00835 | HD4: 0.00835 | HE4: 0.00835 | HF4: 0.00835 | HG4: 0.00835 | HH4: 0.00835 | HI4: 0.00835 | HJ4: 0.00835 | HK4: 0.00835 | HL4: 0.00835 | HM4: 0.00835 | HN4: 0.00835 | HO4: 0.00835 | HP4: 0.00835 | HQ4: 0.00835 | HR4: 0.00835 | HS4: 0.00835 | HT4: 0.00835 | HU4: 0.00835 | HV4: 0.00835 | HW4: 0.00835 | HX4: 0.00835 | HY4: 0.00835 | HZ4: 0.00835 | IA4: 0.00835 | IB4: 0.00835 | IC4: 0.00835 | ID4: 0.00835 | IE4: 0.00835 | IF4: 0.00835 | IG4: 0.00835 | IH4: 0.00835
A5: 4 | B5: 0.0013 | C5: 0.00111 | D5: 0.0001 | E5: 0.0001 | F5: 0.0001 | G5: 0.0001 | H5: 0.0001 | I5: 0.0001 | J5: 0.0001 | K5: 0.0001 | L5: 0.0001 | M5: 0.00117 | N5: 0.00317 | O5: 0.00279 | P5: 0.00194 | Q5: 0.00144 | R5: 0.0001 | S5: 0.00416 | T5: 0.00445 | U5: 0.00276 | V5: 0.00616 | W5: 0.00583 | X5: 0.00445 | Y5: 0.00276 | Z5: 0.00616 | AA5: 0.00445 | AB5: 0.00276 | AC5: 0.00616 | AD5: 0.00583 | AE5: 0.00583 | AF5: 0.00583 | AG5: 0.00583 | AH5: 0.00583 | AI5: 0.00583 | AJ5: 0.00583 | AK5: 0.00583 | AL5: 0.00583 | AM5: 0.00583 | AN5: 0.00583 | AO5: 0.00583 | AP5: 0.00583 | AQ5: 0.00583 | AR5: 0.00583 | AS5: 0.00583 | AT5: 0.00583 | AU5: 0.00583 | AV5: 0.00583 | AW5: 0.00583 | AX5: 0.00583 | AY5: 0.00583 | AZ5: 0.00583 | BA5: 0.00583 | BB5: 0.00583 | BC5: 0.00583 | BD5: 0.00583 | BE5: 0.00583 | BF5: 0.00583 | BG5: 0.00583 | BH5: 0.00583 | BI5: 0.00583 | BJ5: 0.00583 | BK5: 0.00583 | BL5: 0.00583 | BM5: 0.00583 | BN5: 0.00583 | BO5: 0.00583 | BP5: 0.00583 | BQ5: 0.00583 | BR5: 0.00583 | BS5: 0.00583 | BT5: 0.00583 | BU5: 0.00583 | BV5: 0.00583 | BW5: 0.00583 | BX5: 0.00583 | BY5: 0.00583 | BZ5: 0.00583 | CA5: 0.00583 | CB5: 0.00583 | CC5: 0.00583 | CD5: 0.00583 | CE5: 0.00583 | CF5: 0.00583 | CG5: 0.00583 | CH5: 0.00583 | CI5: 0.00583 | CJ5: 0.00583 | CK5: 0.00583 | CL5: 0.00583 | CM5: 0.00583 | CN5: 0.00583 | CO5: 0.00583 | CP5: 0.00583 | CQ5: 0.00583 | CR5: 0.00583 | CS5: 0.00583 | CT5: 0.00583 | CU5: 0.00583 | CV5: 0.00583 | CW5: 0.00583 | CX5: 0.00583 | CY5: 0.00583 | CZ5: 0.00583 | DA5: 0.00583 | DB5: 0.00583 | DC5: 0.00583 | DD5: 0.00583 | DE5: 0.00583 | DF5: 0.00583 | DG5: 0.00583 | DH5: 0.00583 | DI5: 0.00583 | DJ5: 0.00583 | DK5: 0.00583 | DL5: 0.00583 | DM5: 0.00583 | DN5: 0.00583 | DO5: 0.00583 | DP5: 0.00583 | DQ5: 0.00583 | DR5: 0.00583 | DS5: 0.00583 | DT5: 0.00583 | DU5: 0.00583 | DV5: 0.00583 | DW5: 0.00583 | DX5: 0.00583 | DY5: 0.00583 | DZ5: 0.00583 | EA5: 0.00583 | EB5: 0.00583 | EC5: 0.00583 | ED5: 0.00583 | EE5: 0.00583 | EF5: 0.00583 | EG5: 0.00583 | EH5: 0.00583 | EI5: 0.00583 | EJ5: 0.00583 | EK5: 0.00583 | EL5: 0.00583 | EM5: 0.00583 | EN5: 0.00583 | EO5: 0.00583 | EP5: 0.00583 | EQ5: 0.00583 | ER5: 0.00583 | ES5: 0.00583 | ET5: 0.00583 | EU5: 0.00583 | EV5: 0.00583 | EW5: 0.00583 | EX5: 0.00583 | EY5: 0.00583 | EZ5: 0.00583 | FA5: 0.00583 | FB5: 0.00583 | FC5: 0.00583 | FD5: 0.00583 | FE5: 0.00583 | FF5: 0.00583 | FG5: 0.00583 | FH5: 0.00583 | FI5: 0.00583 | FJ5: 0.00583 | FK5: 0.00583 | FL5: 0.00583 | FM5: 0.00583 | FN5: 0.00583 | FO5: 0.00583 | FP5: 0.00583 | FQ5: 0.00583 | FR5: 0.00583 | FS5: 0.00583 | FT5: 0.00583 | FU5: 0.00583 | FV5: 0.00583 | FW5: 0.00583 | FX5: 0.00583 | FY5: 0.00583 | FZ5: 0.00583 | GA5: 0.00583 | GB5: 0.00583 | GC5: 0.00583 | GD5: 0.00583 | GE5: 0.00583 | GF5: 0.00583 | GG5: 0.00583 | GH5: 0.00583 | GI5: 0.00583 | GJ5: 0.00583 | GK5: 0.00583 | GL5: 0.00583 | GM5: 0.00583 | GN5: 0.00583 | GO5: 0.00583 | GP5: 0.00583 | GQ5: 0.00583 | GR5: 0.00583 | GS5: 0.00583 | GT5: 0.00583 | GU5: 0.00583 | GV5: 0.00583 | GW5: 0.00583 | GX5: 0.00583 | GY5: 0.00583 | GZ5: 0.00583 | HA5: 0.00583 | HB5: 0.00583 | HC5: 0.00583 | HD5: 0.00583 | HE5: 0.00583 | HF5: 0.00583 | HG5: 0.00583 | HH5: 0.00583 | HI5: 0.00583 | HJ5: 0.00583 | HK5: 0.00583 | HL5: 0.00583 | HM5: 0.00583 | HN5: 0.00583 | HO5: 0.00583 | HP5: 0.00583 | HQ5: 0.00583 | HR5: 0.00583 | HS5: 0.00583 | HT5: 0.00583 | HU5: 0.00583 | HV5: 0.00583 | HW5: 0.00583 | HX5: 0.00583 | HY5: 0.00583 | HZ5: 0.00583 | IA5: 0.00583 | IB5: 0.00583 | IC5: 0.00583 | ID5: 0.00583 | IE5: 0.00583 | IF5: 0.00583 | IG5: 0.00583 | IH5: 0.00583
A6: 5 | B6: 0.0013 | C6: 0.00193 | D6: 0.00322 | E6: 0.00399 | F6: 0.00552 | G6: 0.00606 | H6: 0.00864 | I6: 0.00903 | J6: 0.01035 | K6: 0.00937 | L6: 0.01086 | M6: 0.0097 | N6: 0.01173 | O6: 0.01372 | P6: 0.01575 | Q6: 0.01493 | R6: 0.01514 | S6: 0.01678 | T6: 0.01487 | U6: 0.01399 | V6: 0.01155 | W6: 0.01273 | X6: 0.01487 | Y6: 0.01399 | Z6: 0.01155 | AA6: 0.01487 | AB6: 0.01399 | AC6: 0.01155 | AD6: 0.01273 | AE6: 0.01273 | AF6: 0.01273 | AG6: 0.01273 | AH6: 0.01273 | AI6: 0.01273 | AJ6: 0.01273 | AK6: 0.01273 | AL6: 0.01273 | AM6: 0.01273 | AN6: 0.01273 | AO6: 0.01273 | AP6: 0.01273 | AQ6: 0.01273 | AR6: 0.01273 | AS6: 0.01273 | AT6: 0.01273 | AU6: 0.01273 | AV6: 0.01273 | AW6: 0.01273 | AX6: 0.01273 | AY6: 0.01273 | AZ6: 0.01273 | BA6: 0.01273 | BB6: 0.01273 | BC6: 0.01273 | BD6: 0.01273 | BE6: 0.01273 | BF6: 0.01273 | BG6: 0.01273 | BH6: 0.01273 | BI6: 0.01273 | BJ6: 0.01273 | BK6: 0.01273 | BL6: 0.01273 | BM6: 0.01273 | BN6: 0.01273 | BO6: 0.01273 | BP6: 0.01273 | BQ6: 0.01273 | BR6: 0.01273 | BS6: 0.01273 | BT6: 0.01273 | BU6: 0.01273 | BV6: 0.01273 | BW6: 0.01273 | BX6: 0.01273 | BY6: 0.01273 | BZ6: 0.01273 | CA6: 0.01273 | CB6: 0.01273 | CC6: 0.01273 | CD6: 0.01273 | CE6: 0.01273 | CF6: 0.01273 | CG6: 0.01273 | CH6: 0.01273 | CI6: 0.01273 | CJ6: 0.01273 | CK6: 0.01273 | CL6: 0.01273 | CM6: 0.01273 | CN6: 0.01273 | CO6: 0.01273 | CP6: 0.01273 | CQ6: 0.01273 | CR6: 0.01273 | CS6: 0.01273 | CT6: 0.01273 | CU6: 0.01273 | CV6: 0.01273 | CW6: 0.01273 | CX6: 0.01273 | CY6: 0.01273 | CZ6: 0.01273 | DA6: 0.01273 | DB6: 0.01273 | DC6: 0.01273 | DD6: 0.01273 | DE6: 0.01273 | DF6: 0.01273 | DG6: 0.01273 | DH6: 0.01273 | DI6: 0.01273 | DJ6: 0.01273 | DK6: 0.01273 | DL6: 0.01273 | DM6: 0.01273 | DN6: 0.01273 | DO6: 0.01273 | DP6: 0.01273 | DQ6: 0.01273 | DR6: 0.01273 | DS6: 0.01273 | DT6: 0.01273 | DU6: 0.01273 | DV6: 0.01273 | DW6: 0.01273 | DX6: 0.01273 | DY6: 0.01273 | DZ6: 0.01273 | EA6: 0.01273 | EB6: 0.01273 | EC6: 0.01273 | ED6: 0.01273 | EE6: 0.01273 | EF6: 0.01273 | EG6: 0.01273 | EH6: 0.01273 | EI6: 0.01273 | EJ6: 0.01273 | EK6: 0.01273 | EL6: 0.01273 | EM6: 0.01273 | EN6: 0.01273 | EO6: 0.01273 | EP6: 0.01273 | EQ6: 0.01273 | ER6: 0.01273 | ES6: 0.01273 | ET6: 0.01273 | EU6: 0.01273 | EV6: 0.01273 | EW6: 0.01273 | EX6: 0.01273 | EY6: 0.01273 | EZ6: 0.01273 | FA6: 0.01273 | FB6: 0.01273 | FC6: 0.01273 | FD6: 0.01273 | FE6: 0.01273 | FF6: 0.01273 | FG6: 0.01273 | FH6: 0.01273 | FI6: 0.01273 | FJ6: 0.01273 | FK6: 0.01273 | FL6: 0.01273 | FM6: 0.01273 | FN6: 0.01273 | FO6: 0.01273 | FP6: 0.01273 | FQ6: 0.01273 | FR6: 0.01273 | FS6: 0.01273 | FT6: 0.01273 | FU6: 0.01273 | FV6: 0.01273 | FW6: 0.01273 | FX6: 0.01273 | FY6: 0.01273 | FZ6: 0.01273 | GA6: 0.01273 | GB6: 0.01273 | GC6: 0.01273 | GD6: 0.01273 | GE6: 0.01273 | GF6: 0.01273 | GG6: 0.01273 | GH6: 0.01273 | GI6: 0.01273 | GJ6: 0.01273 | GK6: 0.01273 | GL6: 0.01273 | GM6: 0.01273 | GN6: 0.01273 | GO6: 0.01273 | GP6: 0.01273 | GQ6: 0.01273 | GR6: 0.01273 | GS6: 0.01273 | GT6: 0.01273 | GU6: 0.01273 | GV6: 0.01273 | GW6: 0.01273 | GX6: 0.01273 | GY6: 0.01273 | GZ6: 0.01273 | HA6: 0.01273 | HB6: 0.01273 | HC6: 0.01273 | HD6: 0.01273 | HE6: 0.01273 | HF6: 0.01273 | HG6: 0.01273 | HH6: 0.01273 | HI6: 0.01273 | HJ6: 0.01273 | HK6: 0.01273 | HL6: 0.01273 | HM6: 0.01273 | HN6: 0.01273 | HO6: 0.01273 | HP6: 0.01273 | HQ6: 0.01273 | HR6: 0.01273 | HS6: 0.01273 | HT6: 0.01273 | HU6: 0.01273 | HV6: 0.01273 | HW6: 0.01273 | HX6: 0.01273 | HY6: 0.01273 | HZ6: 0.01273 | IA6: 0.01273 | IB6: 0.01273 | IC6: 0.01273 | ID6: 0.01273 | IE6: 0.01273 | IF6: 0.01273 | IG6: 0.01273 | IH6: 0.01273
A7: 6 | B7: 0.0013 | C7: 0.00456 | D7: 0.00667 | E7: 0.00775 | F7: 0.00593 | G7: 0.00776 | H7: 0.00717 | I7: 0.00939 | J7: 0.01075 | K7: 0.01386 | L7: 0.01365 | M7: 0.01188 | N7: 0.0092 | O7: 0.00605 | P7: 0.00733 | Q7: 0.00845 | R7: 0.00516 | S7: 0.00485 | T7: 0.0089 | U7: 0.01033 | V7: 0.00795 | W7: 0.0105 | X7: 0.0089 | Y7: 0.01033 | Z7: 0.00795 | AA7: 0.0089 | AB7: 0.01033 | AC7: 0.00795 | AD7: 0.0105 | AE7: 0.0105 | AF7: 0.0105 | AG7: 0.0105 | AH7: 0.0105 | AI7: 0.0105 | AJ7: 0.0105 | AK7: 0.0105 | AL7: 0.0105 | AM7: 0.0105 | AN7: 0.0105 | AO7: 0.0105 | AP7: 0.0105 | AQ7: 0.0105 | AR7: 0.0105 | AS7: 0.0105 | AT7: 0.0105 | AU7: 0.0105 | AV7: 0.0105 | AW7: 0.0105 | AX7: 0.0105 | AY7: 0.0105 | AZ7: 0.0105 | BA7: 0.0105 | BB7: 0.0105 | BC7: 0.0105 | BD7: 0.0105 | BE7: 0.0105 | BF7: 0.0105 | BG7: 0.0105 | BH7: 0.0105 | BI7: 0.0105 | BJ7: 0.0105 | BK7: 0.0105 | BL7: 0.0105 | BM7: 0.0105 | BN7: 0.0105 | BO7: 0.0105 | BP7: 0.0105 | BQ7: 0.0105 | BR7: 0.0105 | BS7: 0.0105 | BT7: 0.0105 | BU7: 0.0105 | BV7: 0.0105 | BW7: 0.0105 | BX7: 0.0105 | BY7: 0.0105 | BZ7: 0.0105 | CA7: 0.0105 | CB7: 0.0105 | CC7: 0.0105 | CD7: 0.0105 | CE7: 0.0105 | CF7: 0.0105 | CG7: 0.0105 | CH7: 0.0105 | CI7: 0.0105 | CJ7: 0.0105 | CK7: 0.0105 | CL7: 0.0105 | CM7: 0.0105 | CN7: 0.0105 | CO7: 0.0105 | CP7: 0.0105 | CQ7: 0.0105 | CR7: 0.0105 | CS7: 0.0105 | CT7: 0.0105 | CU7: 0.0105 | CV7: 0.0105 | CW7: 0.0105 | CX7: 0.0105 | CY7: 0.0105 | CZ7: 0.0105 | DA7: 0.0105 | DB7: 0.0105 | DC7: 0.0105 | DD7: 0.0105 | DE7: 0.0105 | DF7: 0.0105 | DG7: 0.0105 | DH7: 0.0105 | DI7: 0.0105 | DJ7: 0.0105 | DK7: 0.0105 | DL7: 0.0105 | DM7: 0.0105 | DN7: 0.0105 | DO7: 0.0105 | DP7: 0.0105 | DQ7: 0.0105 | DR7: 0.0105 | DS7: 0.0105 | DT7: 0.0105 | DU7: 0.0105 | DV7: 0.0105 | DW7: 0.0105 | DX7: 0.0105 | DY7: 0.0105 | DZ7: 0.0105 | EA7: 0.0105 | EB7: 0.0105 | EC7: 0.0105 | ED7: 0.0105 | EE7: 0.0105 | EF7: 0.0105 | EG7: 0.0105 | EH7: 0.0105 | EI7: 0.0105 | EJ7: 0.0105 | EK7: 0.0105 | EL7: 0.0105 | EM7: 0.0105 | EN7: 0.0105 | EO7: 0.0105 | EP7: 0.0105 | EQ7: 0.0105 | ER7: 0.0105 | ES7: 0.0105 | ET7: 0.0105 | EU7: 0.0105 | EV7: 0.0105 | EW7: 0.0105 | EX7: 0.0105 | EY7: 0.0105 | EZ7: 0.0105 | FA7: 0.0105 | FB7: 0.0105 | FC7: 0.0105 | FD7: 0.0105 | FE7: 0.0105 | FF7: 0.0105 | FG7: 0.0105 | FH7: 0.0105 | FI7: 0.0105 | FJ7: 0.0105 | FK7: 0.0105 | FL7: 0.0105 | FM7: 0.0105 | FN7: 0.0105 | FO7: 0.0105 | FP7: 0.0105 | FQ7: 0.0105 | FR7: 0.0105 | FS7: 0.0105 | FT7: 0.0105 | FU7: 0.0105 | FV7: 0.0105 | FW7: 0.0105 | FX7: 0.0105 | FY7: 0.0105 | FZ7: 0.0105 | GA7: 0.0105 | GB7: 0.0105 | GC7: 0.0105 | GD7: 0.0105 | GE7: 0.0105 | GF7: 0.0105 | GG7: 0.0105 | GH7: 0.0105 | GI7: 0.0105 | GJ7: 0.0105 | GK7: 0.0105 | GL7: 0.0105 | GM7: 0.0105 | GN7: 0.0105 | GO7: 0.0105 | GP7: 0.0105 | GQ7: 0.0105 | GR7: 0.0105 | GS7: 0.0105 | GT7: 0.0105 | GU7: 0.0105 | GV7: 0.0105 | GW7: 0.0105 | GX7: 0.0105 | GY7: 0.0105 | GZ7: 0.0105 | HA7: 0.0105 | HB7: 0.0105 | HC7: 0.0105 | HD7: 0.0105 | HE7: 0.0105 | HF7: 0.0105 | HG7: 0.0105 | HH7: 0.0105 | HI7: 0.0105 | HJ7: 0.0105 | HK7: 0.0105 | HL7: 0.0105 | HM7: 0.0105 | HN7: 0.0105 | HO7: 0.0105 | HP7: 0.0105 | HQ7: 0.0105 | HR7: 0.0105 | HS7: 0.0105 | HT7: 0.0105 | HU7: 0.0105 | HV7: 0.0105 | HW7: 0.0105 | HX7: 0.0105 | HY7: 0.0105 | HZ7: 0.0105 | IA7: 0.0105 | IB7: 0.0105 | IC7: 0.0105 | ID7: 0.0105 | IE7: 0.0105 | IF7: 0.0105 | IG7: 0.0105 | IH7: 0.0105
A8: 7 | B8: 0.0013 | C8: 0.00584 | D8: 0.00706 | E8: 0.00489 | F8: 0.00966 | G8: 0.00922 | H8: 0.00797 | I8: 0.00637 | J8: 0.00791 | K8: 0.00841 | L8: 0.00777 | M8: 0.00282 | N8: 0.00355 | O8: 0.00362 | P8: 0.00617 | Q8: 0.00578 | R8: 0.00751 | S8: 0.01016 | T8: 0.00949 | U8: 0.00855 | V8: 0.01213 | W8: 0.0111 | X8: 0.00949 | Y8: 0.00855 | Z8: 0.01213 | AA8: 0.00949 | AB8: 0.00855 | AC8: 0.01213 | AD8: 0.0111 | AE8: 0.0111 | AF8: 0.0111 | AG8: 0.0111 | AH8: 0.0111 | AI8: 0.0111 | AJ8: 0.0111 | AK8: 0.0111 | AL8: 0.0111 | AM8: 0.0111 | AN8: 0.0111 | AO8: 0.0111 | AP8: 0.0111 | AQ8: 0.0111 | AR8: 0.0111 | AS8: 0.0111 | AT8: 0.0111 | AU8: 0.0111 | AV8: 0.0111 | AW8: 0.0111 | AX8: 0.0111 | AY8: 0.0111 | AZ8: 0.0111 | BA8: 0.0111 | BB8: 0.0111 | BC8: 0.0111 | BD8: 0.0111 | BE8: 0.0111 | BF8: 0.0111 | BG8: 0.0111 | BH8: 0.0111 | BI8: 0.0111 | BJ8: 0.0111 | BK8: 0.0111 | BL8: 0.0111 | BM8: 0.0111 | BN8: 0.0111 | BO8: 0.0111 | BP8: 0.0111 | BQ8: 0.0111 | BR8: 0.0111 | BS8: 0.0111 | BT8: 0.0111 | BU8: 0.0111 | BV8: 0.0111 | BW8: 0.0111 | BX8: 0.0111 | BY8: 0.0111 | BZ8: 0.0111 | CA8: 0.0111 | CB8: 0.0111 | CC8: 0.0111 | CD8: 0.0111 | CE8: 0.0111 | CF8: 0.0111 | CG8: 0.0111 | CH8: 0.0111 | CI8: 0.0111 | CJ8: 0.0111 | CK8: 0.0111 | CL8: 0.0111 | CM8: 0.0111 | CN8: 0.0111 | CO8: 0.0111 | CP8: 0.0111 | CQ8: 0.0111 | CR8: 0.0111 | CS8: 0.0111 | CT8: 0.0111 | CU8: 0.0111 | CV8: 0.0111 | CW8: 0.0111 | CX8: 0.0111 | CY8: 0.0111 | CZ8: 0.0111 | DA8: 0.0111 | DB8: 0.0111 | DC8: 0.0111 | DD8: 0.0111 | DE8: 0.0111 | DF8: 0.0111 | DG8: 0.0111 | DH8: 0.0111 | DI8: 0.0111 | DJ8: 0.0111 | DK8: 0.0111 | DL8: 0.0111 | DM8: 0.0111 | DN8: 0.0111 | DO8: 0.0111 | DP8: 0.0111 | DQ8: 0.0111 | DR8: 0.0111 | DS8: 0.0111 | DT8: 0.0111 | DU8: 0.0111 | DV8: 0.0111 | DW8: 0.0111 | DX8: 0.0111 | DY8: 0.0111 | DZ8: 0.0111 | EA8: 0.0111 | EB8: 0.0111 | EC8: 0.0111 | ED8: 0.0111 | EE8: 0.0111 | EF8: 0.0111 | EG8: 0.0111 | EH8: 0.0111 | EI8: 0.0111 | EJ8: 0.0111 | EK8: 0.0111 | EL8: 0.0111 | EM8: 0.0111 | EN8: 0.0111 | EO8: 0.0111 | EP8: 0.0111 | EQ8: 0.0111 | ER8: 0.0111 | ES8: 0.0111 | ET8: 0.0111 | EU8: 0.0111 | EV8: 0.0111 | EW8: 0.0111 | EX8: 0.0111 | EY8: 0.0111 | EZ8: 0.0111 | FA8: 0.0111 | FB8: 0.0111 | FC8: 0.0111 | FD8: 0.0111 | FE8: 0.0111 | FF8: 0.0111 | FG8: 0.0111 | FH8: 0.0111 | FI8: 0.0111 | FJ8: 0.0111 | FK8: 0.0111 | FL8: 0.0111 | FM8: 0.0111 | FN8: 0.0111 | FO8: 0.0111 | FP8: 0.0111 | FQ8: 0.0111 | FR8: 0.0111 | FS8: 0.0111 | FT8: 0.0111 | FU8: 0.0111 | FV8: 0.0111 | FW8: 0.0111 | FX8: 0.0111 | FY8: 0.0111 | FZ8: 0.0111 | GA8: 0.0111 | GB8: 0.0111 | GC8: 0.0111 | GD8: 0.0111 | GE8: 0.0111 | GF8: 0.0111 | GG8: 0.0111 | GH8: 0.0111 | GI8: 0.0111 | GJ8: 0.0111 | GK8: 0.0111 | GL8: 0.0111 | GM8: 0.0111 | GN8: 0.0111 | GO8: 0.0111 | GP8: 0.0111 | GQ8: 0.0111 | GR8: 0.0111 | GS8: 0.0111 | GT8: 0.0111 | GU8: 0.0111 | GV8: 0.0111 | GW8: 0.0111 | GX8: 0.0111 | GY8: 0.0111 | GZ8: 0.0111 | HA8: 0.0111 | HB8: 0.0111 | HC8: 0.0111 | HD8: 0.0111 | HE8: 0.0111 | HF8: 0.0111 | HG8: 0.0111 | HH8: 0.0111 | HI8: 0.0111 | HJ8: 0.0111 | HK8: 0.0111 | HL8: 0.0111 | HM8: 0.0111 | HN8: 0.0111 | HO8: 0.0111 | HP8: 0.0111 | HQ8: 0.0111 | HR8: 0.0111 | HS8: 0.0111 | HT8: 0.0111 | HU8: 0.0111 | HV8: 0.0111 | HW8: 0.0111 | HX8: 0.0111 | HY8: 0.0111 | HZ8: 0.0111 | IA8: 0.0111 | IB8: 0.0111 | IC8: 0.0111 | ID8: 0.0111 | IE8: 0.0111 | IF8: 0.0111 | IG8: 0.0111 | IH8: 0.0111
A9: 8 | B9: 0.0013 | C9: 0.00272 | D9: 0.00296 | E9: 0.00622 | F9: 0.00728 | G9: 0.00667 | H9: 0.00741 | I9: 0.00886 | J9: 0.00938 | K9: 0.01567 | L9: 0.0171 | M9: 0.01886 | N9: 0.01845 | O9: 0.01964 | P9: 0.01911 | Q9: 0.0187 | R9: 0.01838 | S9: 0.0208 | T9: 0.02059 | U9: 0.02246 | V9: 0.02328 | W9: 0.02424 | X9: 0.02059 | Y9: 0.02246 | Z9: 0.02328 | AA9: 0.02059 | AB9: 0.02246 | AC9: 0.02328 | AD9: 0.02424 | AE9: 0.02424 | AF9: 0.02424 | AG9: 0.02424 | AH9: 0.02424 | AI9: 0.02424 | AJ9: 0.02424 | AK9: 0.02424 | AL9: 0.02424 | AM9: 0.02424 | AN9: 0.02424 | AO9: 0.02424 | AP9: 0.02424 | AQ9: 0.02424 | AR9: 0.02424 | AS9: 0.02424 | AT9: 0.02424 | AU9: 0.02424 | AV9: 0.02424 | AW9: 0.02424 | AX9: 0.02424 | AY9: 0.02424 | AZ9: 0.02424 | BA9: 0.02424 | BB9: 0.02424 | BC9: 0.02424 | BD9: 0.02424 | BE9: 0.02424 | BF9: 0.02424 | BG9: 0.02424 | BH9: 0.02424 | BI9: 0.02424 | BJ9: 0.02424 | BK9: 0.02424 | BL9: 0.02424 | BM9: 0.02424 | BN9: 0.02424 | BO9: 0.02424 | BP9: 0.02424 | BQ9: 0.02424 | BR9: 0.02424 | BS9: 0.02424 | BT9: 0.02424 | BU9: 0.02424 | BV9: 0.02424 | BW9: 0.02424 | BX9: 0.02424 | BY9: 0.02424 | BZ9: 0.02424 | CA9: 0.02424 | CB9: 0.02424 | CC9: 0.02424 | CD9: 0.02424 | CE9: 0.02424 | CF9: 0.02424 | CG9: 0.02424 | CH9: 0.02424 | CI9: 0.02424 | CJ9: 0.02424 | CK9: 0.02424 | CL9: 0.02424 | CM9: 0.02424 | CN9: 0.02424 | CO9: 0.02424 | CP9: 0.02424 | CQ9: 0.02424 | CR9: 0.02424 | CS9: 0.02424 | CT9: 0.02424 | CU9: 0.02424 | CV9: 0.02424 | CW9: 0.02424 | CX9: 0.02424 | CY9: 0.02424 | CZ9: 0.02424 | DA9: 0.02424 | DB9: 0.02424 | DC9: 0.02424 | DD9: 0.02424 | DE9: 0.02424 | DF9: 0.02424 | DG9: 0.02424 | DH9: 0.02424 | DI9: 0.02424 | DJ9: 0.02424 | DK9: 0.02424 | DL9: 0.02424 | DM9: 0.02424 | DN9: 0.02424 | DO9: 0.02424 | DP9: 0.02424 | DQ9: 0.02424 | DR9: 0.02424 | DS9: 0.02424 | DT9: 0.02424 | DU9: 0.02424 | DV9: 0.02424 | DW9: 0.02424 | DX9: 0.02424 | DY9: 0.02424 | DZ9: 0.02424 | EA9: 0.02424 | EB9: 0.02424 | EC9: 0.02424 | ED9: 0.02424 | EE9: 0.02424 | EF9: 0.02424 | EG9: 0.02424 | EH9: 0.02424 | EI9: 0.02424 | EJ9: 0.02424 | EK9: 0.02424 | EL9: 0.02424 | EM9: 0.02424 | EN9: 0.02424 | EO9: 0.02424 | EP9: 0.02424 | EQ9: 0.02424 | ER9: 0.02424 | ES9: 0.02424 | ET9: 0.02424 | EU9: 0.02424 | EV9: 0.02424 | EW9: 0.02424 | EX9: 0.02424 | EY9: 0.02424 | EZ9: 0.02424 | FA9: 0.02424 | FB9: 0.02424 | FC9: 0.02424 | FD9: 0.02424 | FE9: 0.02424 | FF9: 0.02424 | FG9: 0.02424 | FH9: 0.02424 | FI9: 0.02424 | FJ9: 0.02424 | FK9: 0.02424 | FL9: 0.02424 | FM9: 0.02424 | FN9: 0.02424 | FO9: 0.02424 | FP9: 0.02424 | FQ9: 0.02424 | FR9: 0.02424 | FS9: 0.02424 | FT9: 0.02424 | FU9: 0.02424 | FV9: 0.02424 | FW9: 0.02424 | FX9: 0.02424 | FY9: 0.02424 | FZ9: 0.02424 | GA9: 0.02424 | GB9: 0.02424 | GC9: 0.02424 | GD9: 0.02424 | GE9: 0.02424 | GF9: 0.02424 | GG9: 0.02424 | GH9: 0.02424 | GI9: 0.02424 | GJ9: 0.02424 | GK9: 0.02424 | GL9: 0.02424 | GM9: 0.02424 | GN9: 0.02424 | GO9: 0.02424 | GP9: 0.02424 | GQ9: 0.02424 | GR9: 0.02424 | GS9: 0.02424 | GT9: 0.02424 | GU9: 0.02424 | GV9: 0.02424 | GW9: 0.02424 | GX9: 0.02424 | GY9: 0.02424 | GZ9: 0.02424 | HA9: 0.02424 | HB9: 0.02424 | HC9: 0.02424 | HD9: 0.02424 | HE9: 0.02424 | HF9: 0.02424 | HG9: 0.02424 | HH9: 0.02424 | HI9: 0.02424 | HJ9: 0.02424 | HK9: 0.02424 | HL9: 0.02424 | HM9: 0.02424 | HN9: 0.02424 | HO9: 0.02424 | HP9: 0.02424 | HQ9: 0.02424 | HR9: 0.02424 | HS9: 0.02424 | HT9: 0.02424 | HU9: 0.02424 | HV9: 0.02424 | HW9: 0.02424 | HX9: 0.02424 | HY9: 0.02424 | HZ9: 0.02424 | IA9: 0.02424 | IB9: 0.02424 | IC9: 0.02424 | ID9: 0.02424 | IE9: 0.02424 | IF9: 0.02424 | IG9: 0.02424 | IH9: 0.02424
A10: 9 | B10: 0.0013 | C10: 0.00577 | D10: 0.00816 | E10: 0.00587 | F10: 0.00898 | G10: 0.00858 | H10: 0.00649 | I10: 0.00659 | J10: 0.00667 | K10: 0.00799 | L10: 0.00309 | M10: 0.00392 | N10: 0.00238 | O10: 0.0059 | P10: 0.004 | Q10: 0.005 | R10: 0.00441 | S10: 0.00602 | T10: 0.00857 | U10: 0.00837 | V10: 0.00786 | W10: 0.00739 | X10: 0.00857 | Y10: 0.00837 | Z10: 0.00786 | AA10: 0.00857 | AB10: 0.00837 | AC10: 0.00786 | AD10: 0.00739 | AE10: 0.00739 | AF10: 0.00739 | AG10: 0.00739 | AH10: 0.00739 | AI10: 0.00739 | AJ10: 0.00739 | AK10: 0.00739 | AL10: 0.00739 | AM10: 0.00739 | AN10: 0.00739 | AO10: 0.00739 | AP10: 0.00739 | AQ10: 0.00739 | AR10: 0.00739 | AS10: 0.00739 | AT10: 0.00739 | AU10: 0.00739 | AV10: 0.00739 | AW10: 0.00739 | AX10: 0.00739 | AY10: 0.00739 | AZ10: 0.00739 | BA10: 0.00739 | BB10: 0.00739 | BC10: 0.00739 | BD10: 0.00739 | BE10: 0.00739 | BF10: 0.00739 | BG10: 0.00739 | BH10: 0.00739 | BI10: 0.00739 | BJ10: 0.00739 | BK10: 0.00739 | BL10: 0.00739 | BM10: 0.00739 | BN10: 0.00739 | BO10: 0.00739 | BP10: 0.00739 | BQ10: 0.00739 | BR10: 0.00739 | BS10: 0.00739 | BT10: 0.00739 | BU10: 0.00739 | BV10: 0.00739 | BW10: 0.00739 | BX10: 0.00739 | BY10: 0.00739 | BZ10: 0.00739 | CA10: 0.00739 | CB10: 0.00739 | CC10: 0.00739 | CD10: 0.00739 | CE10: 0.00739 | CF10: 0.00739 | CG10: 0.00739 | CH10: 0.00739 | CI10: 0.00739 | CJ10: 0.00739 | CK10: 0.00739 | CL10: 0.00739 | CM10: 0.00739 | CN10: 0.00739 | CO10: 0.00739 | CP10: 0.00739 | CQ10: 0.00739 | CR10: 0.00739 | CS10: 0.00739 | CT10: 0.00739 | CU10: 0.00739 | CV10: 0.00739 | CW10: 0.00739 | CX10: 0.00739 | CY10: 0.00739 | CZ10: 0.00739 | DA10: 0.00739 | DB10: 0.00739 | DC10: 0.00739 | DD10: 0.00739 | DE10: 0.00739 | DF10: 0.00739 | DG10: 0.00739 | DH10: 0.00739 | DI10: 0.00739 | DJ10: 0.00739 | DK10: 0.00739 | DL10: 0.00739 | DM10: 0.00739 | DN10: 0.00739 | DO10: 0.00739 | DP10: 0.00739 | DQ10: 0.00739 | DR10: 0.00739 | DS10: 0.00739 | DT10: 0.00739 | DU10: 0.00739 | DV10: 0.00739 | DW10: 0.00739 | DX10: 0.00739 | DY10: 0.00739 | DZ10: 0.00739 | EA10: 0.00739 | EB10: 0.00739 | EC10: 0.00739 | ED10: 0.00739 | EE10: 0.00739 | EF10: 0.00739 | EG10: 0.00739 | EH10: 0.00739 | EI10: 0.00739 | EJ10: 0.00739 | EK10: 0.00739 | EL10: 0.00739 | EM10: 0.00739 | EN10: 0.00739 | EO10: 0.00739 | EP10: 0.00739 | EQ10: 0.00739 | ER10: 0.00739 | ES10: 0.00739 | ET10: 0.00739 | EU10: 0.00739 | EV10: 0.00739 | EW10: 0.00739 | EX10: 0.00739 | EY10: 0.00739 | EZ10: 0.00739 | FA10: 0.00739 | FB10: 0.00739 | FC10: 0.00739 | FD10: 0.00739 | FE10: 0.00739 | FF10: 0.00739 | FG10: 0.00739 | FH10: 0.00739 | FI10: 0.00739 | FJ10: 0.00739 | FK10: 0.00739 | FL10: 0.00739 | FM10: 0.00739 | FN10: 0.00739 | FO10: 0.00739 | FP10: 0.00739 | FQ10: 0.00739 | FR10: 0.00739 | FS10: 0.00739 | FT10: 0.00739 | FU10: 0.00739 | FV10: 0.00739 | FW10: 0.00739 | FX10: 0.00739 | FY10: 0.00739 | FZ10: 0.00739 | GA10: 0.00739 | GB10: 0.00739 | GC10: 0.00739 | GD10: 0.00739 | GE10: 0.00739 | GF10: 0.00739 | GG10: 0.00739 | GH10: 0.00739 | GI10: 0.00739 | GJ10: 0.00739 | GK10: 0.00739 | GL10: 0.00739 | GM10: 0.00739 | GN10: 0.00739 | GO10: 0.00739 | GP10: 0.00739 | GQ10: 0.00739 | GR10: 0.00739 | GS10: 0.00739 | GT10: 0.00739 | GU10: 0.00739 | GV10: 0.00739 | GW10: 0.00739 | GX10: 0.00739 | GY10: 0.00739 | GZ10: 0.00739 | HA10: 0.00739 | HB10: 0.00739 | HC10: 0.00739 | HD10: 0.00739 | HE10: 0.00739 | HF10: 0.00739 | HG10: 0.00739 | HH10: 0.00739 | HI10: 0.00739 | HJ10: 0.00739 | HK10: 0.00739 | HL10: 0.00739 | HM10: 0.00739 | HN10: 0.00739 | HO10: 0.00739 | HP10: 0.00739 | HQ10: 0.00739 | HR10: 0.00739 | HS10: 0.00739 | HT10: 0.00739 | HU10: 0.00739 | HV10: 0.00739 | HW10: 0.00739 | HX10: 0.00739 | HY10: 0.00739 | HZ10: 0.00739 | IA10: 0.00739 | IB10: 0.00739 | IC10: 0.00739 | ID10: 0.00739 | IE10: 0.00739 | IF10: 0.00739 | IG10: 0.00739 | IH10: 0.00739
A11: 10 | B11: 0.0013 | C11: 0.00177 | D11: 0.00241 | E11: 0.0056 | F11: 0.00585 | G11: 0.00426 | H11: 0.00422 | I11: 0.00305 | J11: 0.0071 | K11: 0.00647 | L11: 0.00958 | M11: 0.0075 | N11: 0.01223 | O11: 0.00861 | P11: 0.01134 | Q11: 0.01078 | R11: 0.01022 | S11: 0.00892 | T11: 0.01242 | U11: 0.00847 | V11: 0.00845 | W11: 0.00738 | X11: 0.01242 | Y11: 0.00847 | Z11: 0.00845 | AA11: 0.01242 | AB11: 0.00847 | AC11: 0.00845 | AD11: 0.00738 | AE11: 0.00738 | AF11: 0.00738 | AG11: 0.00738 | AH11: 0.00738 | AI11: 0.00738 | AJ11: 0.00738 | AK11: 0.00738 | AL11: 0.00738 | AM11: 0.00738 | AN11: 0.00738 | AO11: 0.00738 | AP11: 0.00738 | AQ11: 0.00738 | AR11: 0.00738 | AS11: 0.00738 | AT11: 0.00738 | AU11: 0.00738 | AV11: 0.00738 | AW11: 0.00738 | AX11: 0.00738 | AY11: 0.00738 | AZ11: 0.00738 | BA11: 0.00738 | BB11: 0.00738 | BC11: 0.00738 | BD11: 0.00738 | BE11: 0.00738 | BF11: 0.00738 | BG11: 0.00738 | BH11: 0.00738 | BI11: 0.00738 | BJ11: 0.00738 | BK11: 0.00738 | BL11: 0.00738 | BM11: 0.00738 | BN11: 0.00738 | BO11: 0.00738 | BP11: 0.00738 | BQ11: 0.00738 | BR11: 0.00738 | BS11: 0.00738 | BT11: 0.00738 | BU11: 0.00738 | BV11: 0.00738 | BW11: 0.00738 | BX11: 0.00738 | BY11: 0.00738 | BZ11: 0.00738 | CA11: 0.00738 | CB11: 0.00738 | CC11: 0.00738 | CD11: 0.00738 | CE11: 0.00738 | CF11: 0.00738 | CG11: 0.00738 | CH11: 0.00738 | CI11: 0.00738 | CJ11: 0.00738 | CK11: 0.00738 | CL11: 0.00738 | CM11: 0.00738 | CN11: 0.00738 | CO11: 0.00738 | CP11: 0.00738 | CQ11: 0.00738 | CR11: 0.00738 | CS11: 0.00738 | CT11: 0.00738 | CU11: 0.00738 | CV11: 0.00738 | CW11: 0.00738 | CX11: 0.00738 | CY11: 0.00738 | CZ11: 0.00738 | DA11: 0.00738 | DB11: 0.00738 | DC11: 0.00738 | DD11: 0.00738 | DE11: 0.00738 | DF11: 0.00738 | DG11: 0.00738 | DH11: 0.00738 | DI11: 0.00738 | DJ11: 0.00738 | DK11: 0.00738 | DL11: 0.00738 | DM11: 0.00738 | DN11: 0.00738 | DO11: 0.00738 | DP11: 0.00738 | DQ11: 0.00738 | DR11: 0.00738 | DS11: 0.00738 | DT11: 0.00738 | DU11: 0.00738 | DV11: 0.00738 | DW11: 0.00738 | DX11: 0.00738 | DY11: 0.00738 | DZ11: 0.00738 | EA11: 0.00738 | EB11: 0.00738 | EC11: 0.00738 | ED11: 0.00738 | EE11: 0.00738 | EF11: 0.00738 | EG11: 0.00738 | EH11: 0.00738 | EI11: 0.00738 | EJ11: 0.00738 | EK11: 0.00738 | EL11: 0.00738 | EM11: 0.00738 | EN11: 0.00738 | EO11: 0.00738 | EP11: 0.00738 | EQ11: 0.00738 | ER11: 0.00738 | ES11: 0.00738 | ET11: 0.00738 | EU11: 0.00738 | EV11: 0.00738 | EW11: 0.00738 | EX11: 0.00738 | EY11: 0.00738 | EZ11: 0.00738 | FA11: 0.00738 | FB11: 0.00738 | FC11: 0.00738 | FD11: 0.00738 | FE11: 0.00738 | FF11: 0.00738 | FG11: 0.00738 | FH11: 0.00738 | FI11: 0.00738 | FJ11: 0.00738 | FK11: 0.00738 | FL11: 0.00738 | FM11: 0.00738 | FN11: 0.00738 | FO11: 0.00738 | FP11: 0.00738 | FQ11: 0.00738 | FR11: 0.00738 | FS11: 0.00738 | FT11: 0.00738 | FU11: 0.00738 | FV11: 0.00738 | FW11: 0.00738 | FX11: 0.00738 | FY11: 0.00738 | FZ11: 0.00738 | GA11: 0.00738 | GB11: 0.00738 | GC11: 0.00738 | GD11: 0.00738 | GE11: 0.00738 | GF11: 0.00738 | GG11: 0.00738 | GH11: 0.00738 | GI11: 0.00738 | GJ11: 0.00738 | GK11: 0.00738 | GL11: 0.00738 | GM11: 0.00738 | GN11: 0.00738 | GO11: 0.00738 | GP11: 0.00738 | GQ11: 0.00738 | GR11: 0.00738 | GS11: 0.00738 | GT11: 0.00738 | GU11: 0.00738 | GV11: 0.00738 | GW11: 0.00738 | GX11: 0.00738 | GY11: 0.00738 | GZ11: 0.00738 | HA11: 0.00738 | HB11: 0.00738 | HC11: 0.00738 | HD11: 0.00738 | HE11: 0.00738 | HF11: 0.00738 | HG11: 0.00738 | HH11: 0.00738 | HI11: 0.00738 | HJ11: 0.00738 | HK11: 0.00738 | HL11: 0.00738 | HM11: 0.00738 | HN11: 0.00738 | HO11: 0.00738 | HP11: 0.00738 | HQ11: 0.00738 | HR11: 0.00738 | HS11: 0.00738 | HT11: 0.00738 | HU11: 0.00738 | HV11: 0.00738 | HW11: 0.00738 | HX11: 0.00738 | HY11: 0.00738 | HZ11: 0.00738 | IA11: 0.00738 | IB11: 0.00738 | IC11: 0.00738 | ID11: 0.00738 | IE11: 0.00738 | IF11: 0.00738 | IG11: 0.00738 | IH11: 0.00738
A12: 11 | B12: 0.0013 | C12: 0.0014 | D12: 0.00214 | E12: 0.0009 | F12: 0.00332 | G12: 0.00219 | H12: 0.00291 | I12: 0.00255 | J12: 0.00172 | K12: 0.0001 | L12: 0.0001 | M12: 0.0001 | N12: 0.00023 | O12: 0.0032 | P12: 0.00249 | Q12: 0.00452 | R12: 0.00309 | S12: 0.00358 | T12: 0.00242 | U12: 0.0021 | V12: 0.00053 | W12: 0.00036 | X12: 0.00242 | Y12: 0.0021 | Z12: 0.00053 | AA12: 0.00242 | AB12: 0.0021 | AC12: 0.00053 | AD12: 0.00036 | AE12: 0.00036 | AF12: 0.00036 | AG12: 0.00036 | AH12: 0.00036 | AI12: 0.00036 | AJ12: 0.00036 | AK12: 0.00036 | AL12: 0.00036 | AM12: 0.00036 | AN12: 0.00036 | AO12: 0.00036 | AP12: 0.00036 | AQ12: 0.00036 | AR12: 0.00036 | AS12: 0.00036 | AT12: 0.00036 | AU12: 0.00036 | AV12: 0.00036 | AW12: 0.00036 | AX12: 0.00036 | AY12: 0.00036 | AZ12: 0.00036 | BA12: 0.00036 | BB12: 0.00036 | BC12: 0.00036 | BD12: 0.00036 | BE12: 0.00036 | BF12: 0.00036 | BG12: 0.00036 | BH12: 0.00036 | BI12: 0.00036 | BJ12: 0.00036 | BK12: 0.00036 | BL12: 0.00036 | BM12: 0.00036 | BN12: 0.00036 | BO12: 0.00036 | BP12: 0.00036 | BQ12: 0.00036 | BR12: 0.00036 | BS12: 0.00036 | BT12: 0.00036 | BU12: 0.00036 | BV12: 0.00036 | BW12: 0.00036 | BX12: 0.00036 | BY12: 0.00036 | BZ12: 0.00036 | CA12: 0.00036 | CB12: 0.00036 | CC12: 0.00036 | CD12: 0.00036 | CE12: 0.00036 | CF12: 0.00036 | CG12: 0.00036 | CH12: 0.00036 | CI12: 0.00036 | CJ12: 0.00036 | CK12: 0.00036 | CL12: 0.00036 | CM12: 0.00036 | CN12: 0.00036 | CO12: 0.00036 | CP12: 0.00036 | CQ12: 0.00036 | CR12: 0.00036 | CS12: 0.00036 | CT12: 0.00036 | CU12: 0.00036 | CV12: 0.00036 | CW12: 0.00036 | CX12: 0.00036 | CY12: 0.00036 | CZ12: 0.00036 | DA12: 0.00036 | DB12: 0.00036 | DC12: 0.00036 | DD12: 0.00036 | DE12: 0.00036 | DF12: 0.00036 | DG12: 0.00036 | DH12: 0.00036 | DI12: 0.00036 | DJ12: 0.00036 | DK12: 0.00036 | DL12: 0.00036 | DM12: 0.00036 | DN12: 0.00036 | DO12: 0.00036 | DP12: 0.00036 | DQ12: 0.00036 | DR12: 0.00036 | DS12: 0.00036 | DT12: 0.00036 | DU12: 0.00036 | DV12: 0.00036 | DW12: 0.00036 | DX12: 0.00036 | DY12: 0.00036 | DZ12: 0.00036 | EA12: 0.00036 | EB12: 0.00036 | EC12: 0.00036 | ED12: 0.00036 | EE12: 0.00036 | EF12: 0.00036 | EG12: 0.00036 | EH12: 0.00036 | EI12: 0.00036 | EJ12: 0.00036 | EK12: 0.00036 | EL12: 0.00036 | EM12: 0.00036 | EN12: 0.00036 | EO12: 0.00036 | EP12: 0.00036 | EQ12: 0.00036 | ER12: 0.00036 | ES12: 0.00036 | ET12: 0.00036 | EU12: 0.00036 | EV12: 0.00036 | EW12: 0.00036 | EX12: 0.00036 | EY12: 0.00036 | EZ12: 0.00036 | FA12: 0.00036 | FB12: 0.00036 | FC12: 0.00036 | FD12: 0.00036 | FE12: 0.00036 | FF12: 0.00036 | FG12: 0.00036 | FH12: 0.00036 | FI12: 0.00036 | FJ12: 0.00036 | FK12: 0.00036 | FL12: 0.00036 | FM12: 0.00036 | FN12: 0.00036 | FO12: 0.00036 | FP12: 0.00036 | FQ12: 0.00036 | FR12: 0.00036 | FS12: 0.00036 | FT12: 0.00036 | FU12: 0.00036 | FV12: 0.00036 | FW12: 0.00036 | FX12: 0.00036 | FY12: 0.00036 | FZ12: 0.00036 | GA12: 0.00036 | GB12: 0.00036 | GC12: 0.00036 | GD12: 0.00036 | GE12: 0.00036 | GF12: 0.00036 | GG12: 0.00036 | GH12: 0.00036 | GI12: 0.00036 | GJ12: 0.00036 | GK12: 0.00036 | GL12: 0.00036 | GM12: 0.00036 | GN12: 0.00036 | GO12: 0.00036 | GP12: 0.00036 | GQ12: 0.00036 | GR12: 0.00036 | GS12: 0.00036 | GT12: 0.00036 | GU12: 0.00036 | GV12: 0.00036 | GW12: 0.00036 | GX12: 0.00036 | GY12: 0.00036 | GZ12: 0.00036 | HA12: 0.00036 | HB12: 0.00036 | HC12: 0.00036 | HD12: 0.00036 | HE12: 0.00036 | HF12: 0.00036 | HG12: 0.00036 | HH12: 0.00036 | HI12: 0.00036 | HJ12: 0.00036 | HK12: 0.00036 | HL12: 0.00036 | HM12: 0.00036 | HN12: 0.00036 | HO12: 0.00036 | HP12: 0.00036 | HQ12: 0.00036 | HR12: 0.00036 | HS12: 0.00036 | HT12: 0.00036 | HU12: 0.00036 | HV12: 0.00036 | HW12: 0.00036 | HX12: 0.00036 | HY12: 0.00036 | HZ12: 0.00036 | IA12: 0.00036 | IB12: 0.00036 | IC12: 0.00036 | ID12: 0.00036 | IE12: 0.00036 | IF12: 0.00036 | IG12: 0.00036 | IH12: 0.00036
A13: 12 | B13: 0.0013 | C13: 0.00419 | D13: 0.00787 | E13: 0.00897 | F13: 0.00894 | G13: 0.0102 | H13: 0.01077 | I13: 0.00978 | J13: 0.01015 | K13: 0.00719 | L13: 0.01198 | M13: 0.0151 | N13: 0.01493 | O13: 0.0131 | P13: 0.01272 | Q13: 0.01341 | R13: 0.01344 | S13: 0.01341 | T13: 0.01645 | U13: 0.01246 | V13: 0.01208 | W13: 0.01608 | X13: 0.01645 | Y13: 0.01246 | Z13: 0.01208 | AA13: 0.01645 | AB13: 0.01246 | AC13: 0.01208 | AD13: 0.01608 | AE13: 0.01608 | AF13: 0.01608 | AG13: 0.01608 | AH13: 0.01608 | AI13: 0.01608 | AJ13: 0.01608 | AK13: 0.01608 | AL13: 0.01608 | AM13: 0.01608 | AN13: 0.01608 | AO13: 0.01608 | AP13: 0.01608 | AQ13: 0.01608 | AR13: 0.01608 | AS13: 0.01608 | AT13: 0.01608 | AU13: 0.01608 | AV13: 0.01608 | AW13: 0.01608 | AX13: 0.01608 | AY13: 0.01608 | AZ13: 0.01608 | BA13: 0.01608 | BB13: 0.01608 | BC13: 0.01608 | BD13: 0.01608 | BE13: 0.01608 | BF13: 0.01608 | BG13: 0.01608 | BH13: 0.01608 | BI13: 0.01608 | BJ13: 0.01608 | BK13: 0.01608 | BL13: 0.01608 | BM13: 0.01608 | BN13: 0.01608 | BO13: 0.01608 | BP13: 0.01608 | BQ13: 0.01608 | BR13: 0.01608 | BS13: 0.01608 | BT13: 0.01608 | BU13: 0.01608 | BV13: 0.01608 | BW13: 0.01608 | BX13: 0.01608 | BY13: 0.01608 | BZ13: 0.01608 | CA13: 0.01608 | CB13: 0.01608 | CC13: 0.01608 | CD13: 0.01608 | CE13: 0.01608 | CF13: 0.01608 | CG13: 0.01608 | CH13: 0.01608 | CI13: 0.01608 | CJ13: 0.01608 | CK13: 0.01608 | CL13: 0.01608 | CM13: 0.01608 | CN13: 0.01608 | CO13: 0.01608 | CP13: 0.01608 | CQ13: 0.01608 | CR13: 0.01608 | CS13: 0.01608 | CT13: 0.01608 | CU13: 0.01608 | CV13: 0.01608 | CW13: 0.01608 | CX13: 0.01608 | CY13: 0.01608 | CZ13: 0.01608 | DA13: 0.01608 | DB13: 0.01608 | DC13: 0.01608 | DD13: 0.01608 | DE13: 0.01608 | DF13: 0.01608 | DG13: 0.01608 | DH13: 0.01608 | DI13: 0.01608 | DJ13: 0.01608 | DK13: 0.01608 | DL13: 0.01608 | DM13: 0.01608 | DN13: 0.01608 | DO13: 0.01608 | DP13: 0.01608 | DQ13: 0.01608 | DR13: 0.01608 | DS13: 0.01608 | DT13: 0.01608 | DU13: 0.01608 | DV13: 0.01608 | DW13: 0.01608 | DX13: 0.01608 | DY13: 0.01608 | DZ13: 0.01608 | EA13: 0.01608 | EB13: 0.01608 | EC13: 0.01608 | ED13: 0.01608 | EE13: 0.01608 | EF13: 0.01608 | EG13: 0.01608 | EH13: 0.01608 | EI13: 0.01608 | EJ13: 0.01608 | EK13: 0.01608 | EL13: 0.01608 | EM13: 0.01608 | EN13: 0.01608 | EO13: 0.01608 | EP13: 0.01608 | EQ13: 0.01608 | ER13: 0.01608 | ES13: 0.01608 | ET13: 0.01608 | EU13: 0.01608 | EV13: 0.01608 | EW13: 0.01608 | EX13: 0.01608 | EY13: 0.01608 | EZ13: 0.01608 | FA13: 0.01608 | FB13: 0.01608 | FC13: 0.01608 | FD13: 0.01608 | FE13: 0.01608 | FF13: 0.01608 | FG13: 0.01608 | FH13: 0.01608 | FI13: 0.01608 | FJ13: 0.01608 | FK13: 0.01608 | FL13: 0.01608 | FM13: 0.01608 | FN13: 0.01608 | FO13: 0.01608 | FP13: 0.01608 | FQ13: 0.01608 | FR13: 0.01608 | FS13: 0.01608 | FT13: 0.01608 | FU13: 0.01608 | FV13: 0.01608 | FW13: 0.01608 | FX13: 0.01608 | FY13: 0.01608 | FZ13: 0.01608 | GA13: 0.01608 | GB13: 0.01608 | GC13: 0.01608 | GD13: 0.01608 | GE13: 0.01608 | GF13: 0.01608 | GG13: 0.01608 | GH13: 0.01608 | GI13: 0.01608 | GJ13: 0.01608 | GK13: 0.01608 | GL13: 0.01608 | GM13: 0.01608 | GN13: 0.01608 | GO13: 0.01608 | GP13: 0.01608 | GQ13: 0.01608 | GR13: 0.01608 | GS13: 0.01608 | GT13: 0.01608 | GU13: 0.01608 | GV13: 0.01608 | GW13: 0.01608 | GX13: 0.01608 | GY13: 0.01608 | GZ13: 0.01608 | HA13: 0.01608 | HB13: 0.01608 | HC13: 0.01608 | HD13: 0.01608 | HE13: 0.01608 | HF13: 0.01608 | HG13: 0.01608 | HH13: 0.01608 | HI13: 0.01608 | HJ13: 0.01608 | HK13: 0.01608 | HL13: 0.01608 | HM13: 0.01608 | HN13: 0.01608 | HO13: 0.01608 | HP13: 0.01608 | HQ13: 0.01608 | HR13: 0.01608 | HS13: 0.01608 | HT13: 0.01608 | HU13: 0.01608 | HV13: 0.01608 | HW13: 0.01608 | HX13: 0.01608 | HY13: 0.01608 | HZ13: 0.01608 | IA13: 0.01608 | IB13: 0.01608 | IC13: 0.01608 | ID13: 0.01608 | IE13: 0.01608 | IF13: 0.01608 | IG13: 0.01608 | IH13: 0.01608
A14: 13 | B14: 0.0013 | C14: 0.0001 | D14: 0.0001 | E14: 0.00108 | F14: 0.0031 | G14: 0.00159 | H14: 0.00353 | I14: 0.00673 | J14: 0.00843 | K14: 0.01063 | L14: 0.01278 | M14: 0.01264 | N14: 0.01298 | O14: 0.01332 | P14: 0.01424 | Q14: 0.01439 | R14: 0.01375 | S14: 0.01488 | T14: 0.01489 | U14: 0.01356 | V14: 0.01274 | W14: 0.01109 | X14: 0.01489 | Y14: 0.01356 | Z14: 0.01274 | AA14: 0.01489 | AB14: 0.01356 | AC14: 0.01274 | AD14: 0.01109 | AE14: 0.01109 | AF14: 0.01109 | AG14: 0.01109 | AH14: 0.01109 | AI14: 0.01109 | AJ14: 0.01109 | AK14: 0.01109 | AL14: 0.01109 | AM14: 0.01109 | AN14: 0.01109 | AO14: 0.01109 | AP14: 0.01109 | AQ14: 0.01109 | AR14: 0.01109 | AS14: 0.01109 | AT14: 0.01109 | AU14: 0.01109 | AV14: 0.01109 | AW14: 0.01109 | AX14: 0.01109 | AY14: 0.01109 | AZ14: 0.01109 | BA14: 0.01109 | BB14: 0.01109 | BC14: 0.01109 | BD14: 0.01109 | BE14: 0.01109 | BF14: 0.01109 | BG14: 0.01109 | BH14: 0.01109 | BI14: 0.01109 | BJ14: 0.01109 | BK14: 0.01109 | BL14: 0.01109 | BM14: 0.01109 | BN14: 0.01109 | BO14: 0.01109 | BP14: 0.01109 | BQ14: 0.01109 | BR14: 0.01109 | BS14: 0.01109 | BT14: 0.01109 | BU14: 0.01109 | BV14: 0.01109 | BW14: 0.01109 | BX14: 0.01109 | BY14: 0.01109 | BZ14: 0.01109 | CA14: 0.01109 | CB14: 0.01109 | CC14: 0.01109 | CD14: 0.01109 | CE14: 0.01109 | CF14: 0.01109 | CG14: 0.01109 | CH14: 0.01109 | CI14: 0.01109 | CJ14: 0.01109 | CK14: 0.01109 | CL14: 0.01109 | CM14: 0.01109 | CN14: 0.01109 | CO14: 0.01109 | CP14: 0.01109 | CQ14: 0.01109 | CR14: 0.01109 | CS14: 0.01109 | CT14: 0.01109 | CU14: 0.01109 | CV14: 0.01109 | CW14: 0.01109 | CX14: 0.01109 | CY14: 0.01109 | CZ14: 0.01109 | DA14: 0.01109 | DB14: 0.01109 | DC14: 0.01109 | DD14: 0.01109 | DE14: 0.01109 | DF14: 0.01109 | DG14: 0.01109 | DH14: 0.01109 | DI14: 0.01109 | DJ14: 0.01109 | DK14: 0.01109 | DL14: 0.01109 | DM14: 0.01109 | DN14: 0.01109 | DO14: 0.01109 | DP14: 0.01109 | DQ14: 0.01109 | DR14: 0.01109 | DS14: 0.01109 | DT14: 0.01109 | DU14: 0.01109 | DV14: 0.01109 | DW14: 0.01109 | DX14: 0.01109 | DY14: 0.01109 | DZ14: 0.01109 | EA14: 0.01109 | EB14: 0.01109 | EC14: 0.01109 | ED14: 0.01109 | EE14: 0.01109 | EF14: 0.01109 | EG14: 0.01109 | EH14: 0.01109 | EI14: 0.01109 | EJ14: 0.01109 | EK14: 0.01109 | EL14: 0.01109 | EM14: 0.01109 | EN14: 0.01109 | EO14: 0.01109 | EP14: 0.01109 | EQ14: 0.01109 | ER14: 0.01109 | ES14: 0.01109 | ET14: 0.01109 | EU14: 0.01109 | EV14: 0.01109 | EW14: 0.01109 | EX14: 0.01109 | EY14: 0.01109 | EZ14: 0.01109 | FA14: 0.01109 | FB14: 0.01109 | FC14: 0.01109 | FD14: 0.01109 | FE14: 0.01109 | FF14: 0.01109 | FG14: 0.01109 | FH14: 0.01109 | FI14: 0.01109 | FJ14: 0.01109 | FK14: 0.01109 | FL14: 0.01109 | FM14: 0.01109 | FN14: 0.01109 | FO14: 0.01109 | FP14: 0.01109 | FQ14: 0.01109 | FR14: 0.01109 | FS14: 0.01109 | FT14: 0.01109 | FU14: 0.01109 | FV14: 0.01109 | FW14: 0.01109 | FX14: 0.01109 | FY14: 0.01109 | FZ14: 0.01109 | GA14: 0.01109 | GB14: 0.01109 | GC14: 0.01109 | GD14: 0.01109 | GE14: 0.01109 | GF14: 0.01109 | GG14: 0.01109 | GH14: 0.01109 | GI14: 0.01109 | GJ14: 0.01109 | GK14: 0.01109 | GL14: 0.01109 | GM14: 0.01109 | GN14: 0.01109 | GO14: 0.01109 | GP14: 0.01109 | GQ14: 0.01109 | GR14: 0.01109 | GS14: 0.01109 | GT14: 0.01109 | GU14: 0.01109 | GV14: 0.01109 | GW14: 0.01109 | GX14: 0.01109 | GY14: 0.01109 | GZ14: 0.01109 | HA14: 0.01109 | HB14: 0.01109 | HC14: 0.01109 | HD14: 0.01109 | HE14: 0.01109 | HF14: 0.01109 | HG14: 0.01109 | HH14: 0.01109 | HI14: 0.01109 | HJ14: 0.01109 | HK14: 0.01109 | HL14: 0.01109 | HM14: 0.01109 | HN14: 0.01109 | HO14: 0.01109 | HP14: 0.01109 | HQ14: 0.01109 | HR14: 0.01109 | HS14: 0.01109 | HT14: 0.01109 | HU14: 0.01109 | HV14: 0.01109 | HW14: 0.01109 | HX14: 0.01109 | HY14: 0.01109 | HZ14: 0.01109 | IA14: 0.01109 | IB14: 0.01109 | IC14: 0.01109 | ID14: 0.01109 | IE14: 0.01109 | IF14: 0.01109 | IG14: 0.01109 | IH14: 0.01109
A15: 14 | B15: 0.0013 | C15: 0.00261 | D15: 0.0054 | E15: 0.00545 | F15: 0.01043 | G15: 0.01365 | H15: 0.01244 | I15: 0.01504 | J15: 0.01912 | K15: 0.02072 | L15: 0.02488 | M15: 0.02592 | N15: 0.02775 | O15: 0.03035 | P15: 0.03146 | Q15: 0.03506 | R15: 0.03864 | S15: 0.03929 | T15: 0.03498 | U15: 0.03913 | V15: 0.04133 | W15: 0.03857 | X15: 0.03498 | Y15: 0.03913 | Z15: 0.04133 | AA15: 0.03498 | AB15: 0.03913 | AC15: 0.04133 | AD15: 0.03857 | AE15: 0.03857 | AF15: 0.03857 | AG15: 0.03857 | AH15: 0.03857 | AI15: 0.03857 | AJ15: 0.03857 | AK15: 0.03857 | AL15: 0.03857 | AM15: 0.03857 | AN15: 0.03857 | AO15: 0.03857 | AP15: 0.03857 | AQ15: 0.03857 | AR15: 0.03857 | AS15: 0.03857 | AT15: 0.03857 | AU15: 0.03857 | AV15: 0.03857 | AW15: 0.03857 | AX15: 0.03857 | AY15: 0.03857 | AZ15: 0.03857 | BA15: 0.03857 | BB15: 0.03857 | BC15: 0.03857 | BD15: 0.03857 | BE15: 0.03857 | BF15: 0.03857 | BG15: 0.03857 | BH15: 0.03857 | BI15: 0.03857 | BJ15: 0.03857 | BK15: 0.03857 | BL15: 0.03857 | BM15: 0.03857 | BN15: 0.03857 | BO15: 0.03857 | BP15: 0.03857 | BQ15: 0.03857 | BR15: 0.03857 | BS15: 0.03857 | BT15: 0.03857 | BU15: 0.03857 | BV15: 0.03857 | BW15: 0.03857 | BX15: 0.03857 | BY15: 0.03857 | BZ15: 0.03857 | CA15: 0.03857 | CB15: 0.03857 | CC15: 0.03857 | CD15: 0.03857 | CE15: 0.03857 | CF15: 0.03857 | CG15: 0.03857 | CH15: 0.03857 | CI15: 0.03857 | CJ15: 0.03857 | CK15: 0.03857 | CL15: 0.03857 | CM15: 0.03857 | CN15: 0.03857 | CO15: 0.03857 | CP15: 0.03857 | CQ15: 0.03857 | CR15: 0.03857 | CS15: 0.03857 | CT15: 0.03857 | CU15: 0.03857 | CV15: 0.03857 | CW15: 0.03857 | CX15: 0.03857 | CY15: 0.03857 | CZ15: 0.03857 | DA15: 0.03857 | DB15: 0.03857 | DC15: 0.03857 | DD15: 0.03857 | DE15: 0.03857 | DF15: 0.03857 | DG15: 0.03857 | DH15: 0.03857 | DI15: 0.03857 | DJ15: 0.03857 | DK15: 0.03857 | DL15: 0.03857 | DM15: 0.03857 | DN15: 0.03857 | DO15: 0.03857 | DP15: 0.03857 | DQ15: 0.03857 | DR15: 0.03857 | DS15: 0.03857 | DT15: 0.03857 | DU15: 0.03857 | DV15: 0.03857 | DW15: 0.03857 | DX15: 0.03857 | DY15: 0.03857 | DZ15: 0.03857 | EA15: 0.03857 | EB15: 0.03857 | EC15: 0.03857 | ED15: 0.03857 | EE15: 0.03857 | EF15: 0.03857 | EG15: 0.03857 | EH15: 0.03857 | EI15: 0.03857 | EJ15: 0.03857 | EK15: 0.03857 | EL15: 0.03857 | EM15: 0.03857 | EN15: 0.03857 | EO15: 0.03857 | EP15: 0.03857 | EQ15: 0.03857 | ER15: 0.03857 | ES15: 0.03857 | ET15: 0.03857 | EU15: 0.03857 | EV15: 0.03857 | EW15: 0.03857 | EX15: 0.03857 | EY15: 0.03857 | EZ15: 0.03857 | FA15: 0.03857 | FB15: 0.03857 | FC15: 0.03857 | FD15: 0.03857 | FE15: 0.03857 | FF15: 0.03857 | FG15: 0.03857 | FH15: 0.03857 | FI15: 0.03857 | FJ15: 0.03857 | FK15: 0.03857 | FL15: 0.03857 | FM15: 0.03857 | FN15: 0.03857 | FO15: 0.03857 | FP15: 0.03857 | FQ15: 0.03857 | FR15: 0.03857 | FS15: 0.03857 | FT15: 0.03857 | FU15: 0.03857 | FV15: 0.03857 | FW15: 0.03857 | FX15: 0.03857 | FY15: 0.03857 | FZ15: 0.03857 | GA15: 0.03857 | GB15: 0.03857 | GC15: 0.03857 | GD15: 0.03857 | GE15: 0.03857 | GF15: 0.03857 | GG15: 0.03857 | GH15: 0.03857 | GI15: 0.03857 | GJ15: 0.03857 | GK15: 0.03857 | GL15: 0.03857 | GM15: 0.03857 | GN15: 0.03857 | GO15: 0.03857 | GP15: 0.03857 | GQ15: 0.03857 | GR15: 0.03857 | GS15: 0.03857 | GT15: 0.03857 | GU15: 0.03857 | GV15: 0.03857 | GW15: 0.03857 | GX15: 0.03857 | GY15: 0.03857 | GZ15: 0.03857 | HA15: 0.03857 | HB15: 0.03857 | HC15: 0.03857 | HD15: 0.03857 | HE15: 0.03857 | HF15: 0.03857 | HG15: 0.03857 | HH15: 0.03857 | HI15: 0.03857 | HJ15: 0.03857 | HK15: 0.03857 | HL15: 0.03857 | HM15: 0.03857 | HN15: 0.03857 | HO15: 0.03857 | HP15: 0.03857 | HQ15: 0.03857 | HR15: 0.03857 | HS15: 0.03857 | HT15: 0.03857 | HU15: 0.03857 | HV15: 0.03857 | HW15: 0.03857 | HX15: 0.03857 | HY15: 0.03857 | HZ15: 0.03857 | IA15: 0.03857 | IB15: 0.03857 | IC15: 0.03857 | ID15: 0.03857 | IE15: 0.03857 | IF15: 0.03857 | IG15: 0.03857 | IH15: 0.03857
A16: 15 | B16: 0.0013 | C16: 0.00175 | D16: 0.0001 | E16: 0.00012 | F16: 0.00188 | G16: 0.00032 | H16: 0.0001 | I16: 0.0001 | J16: 0.0001 | K16: 0.0001 | L16: 0.0001 | M16: 0.0001 | N16: 0.0001 | O16: 0.0001 | P16: 0.0018 | Q16: 0.00322 | R16: 0.00563 | S16: 0.0058 | T16: 0.0036 | U16: 0.00449 | V16: 0.00362 | W16: 0.00455 | X16: 0.0036 | Y16: 0.00449 | Z16: 0.00362 | AA16: 0.0036 | AB16: 0.00449 | AC16: 0.00362 | AD16: 0.00455 | AE16: 0.00455 | AF16: 0.00455 | AG16: 0.00455 | AH16: 0.00455 | AI16: 0.00455 | AJ16: 0.00455 | AK16: 0.00455 | AL16: 0.00455 | AM16: 0.00455 | AN16: 0.00455 | AO16: 0.00455 | AP16: 0.00455 | AQ16: 0.00455 | AR16: 0.00455 | AS16: 0.00455 | AT16: 0.00455 | AU16: 0.00455 | AV16: 0.00455 | AW16: 0.00455 | AX16: 0.00455 | AY16: 0.00455 | AZ16: 0.00455 | BA16: 0.00455 | BB16: 0.00455 | BC16: 0.00455 | BD16: 0.00455 | BE16: 0.00455 | BF16: 0.00455 | BG16: 0.00455 | BH16: 0.00455 | BI16: 0.00455 | BJ16: 0.00455 | BK16: 0.00455 | BL16: 0.00455 | BM16: 0.00455 | BN16: 0.00455 | BO16: 0.00455 | BP16: 0.00455 | BQ16: 0.00455 | BR16: 0.00455 | BS16: 0.00455 | BT16: 0.00455 | BU16: 0.00455 | BV16: 0.00455 | BW16: 0.00455 | BX16: 0.00455 | BY16: 0.00455 | BZ16: 0.00455 | CA16: 0.00455 | CB16: 0.00455 | CC16: 0.00455 | CD16: 0.00455 | CE16: 0.00455 | CF16: 0.00455 | CG16: 0.00455 | CH16: 0.00455 | CI16: 0.00455 | CJ16: 0.00455 | CK16: 0.00455 | CL16: 0.00455 | CM16: 0.00455 | CN16: 0.00455 | CO16: 0.00455 | CP16: 0.00455 | CQ16: 0.00455 | CR16: 0.00455 | CS16: 0.00455 | CT16: 0.00455 | CU16: 0.00455 | CV16: 0.00455 | CW16: 0.00455 | CX16: 0.00455 | CY16: 0.00455 | CZ16: 0.00455 | DA16: 0.00455 | DB16: 0.00455 | DC16: 0.00455 | DD16: 0.00455 | DE16: 0.00455 | DF16: 0.00455 | DG16: 0.00455 | DH16: 0.00455 | DI16: 0.00455 | DJ16: 0.00455 | DK16: 0.00455 | DL16: 0.00455 | DM16: 0.00455 | DN16: 0.00455 | DO16: 0.00455 | DP16: 0.00455 | DQ16: 0.00455 | DR16: 0.00455 | DS16: 0.00455 | DT16: 0.00455 | DU16: 0.00455 | DV16: 0.00455 | DW16: 0.00455 | DX16: 0.00455 | DY16: 0.00455 | DZ16: 0.00455 | EA16: 0.00455 | EB16: 0.00455 | EC16: 0.00455 | ED16: 0.00455 | EE16: 0.00455 | EF16: 0.00455 | EG16: 0.00455 | EH16: 0.00455 | EI16: 0.00455 | EJ16: 0.00455 | EK16: 0.00455 | EL16: 0.00455 | EM16: 0.00455 | EN16: 0.00455 | EO16: 0.00455 | EP16: 0.00455 | EQ16: 0.00455 | ER16: 0.00455 | ES16: 0.00455 | ET16: 0.00455 | EU16: 0.00455 | EV16: 0.00455 | EW16: 0.00455 | EX16: 0.00455 | EY16: 0.00455 | EZ16: 0.00455 | FA16: 0.00455 | FB16: 0.00455 | FC16: 0.00455 | FD16: 0.00455 | FE16: 0.00455 | FF16: 0.00455 | FG16: 0.00455 | FH16: 0.00455 | FI16: 0.00455 | FJ16: 0.00455 | FK16: 0.00455 | FL16: 0.00455 | FM16: 0.00455 | FN16: 0.00455 | FO16: 0.00455 | FP16: 0.00455 | FQ16: 0.00455 | FR16: 0.00455 | FS16: 0.00455 | FT16: 0.00455 | FU16: 0.00455 | FV16: 0.00455 | FW16: 0.00455 | FX16: 0.00455 | FY16: 0.00455 | FZ16: 0.00455 | GA16: 0.00455 | GB16: 0.00455 | GC16: 0.00455 | GD16: 0.00455 | GE16: 0.00455 | GF16: 0.00455 | GG16: 0.00455 | GH16: 0.00455 | GI16: 0.00455 | GJ16: 0.00455 | GK16: 0.00455 | GL16: 0.00455 | GM16: 0.00455 | GN16: 0.00455 | GO16: 0.00455 | GP16: 0.00455 | GQ16: 0.00455 | GR16: 0.00455 | GS16: 0.00455 | GT16: 0.00455 | GU16: 0.00455 | GV16: 0.00455 | GW16: 0.00455 | GX16: 0.00455 | GY16: 0.00455 | GZ16: 0.00455 | HA16: 0.00455 | HB16: 0.00455 | HC16: 0.00455 | HD16: 0.00455 | HE16: 0.00455 | HF16: 0.00455 | HG16: 0.00455 | HH16: 0.00455 | HI16: 0.00455 | HJ16: 0.00455 | HK16: 0.00455 | HL16: 0.00455 | HM16: 0.00455 | HN16: 0.00455 | HO16: 0.00455 | HP16: 0.00455 | HQ16: 0.00455 | HR16: 0.00455 | HS16: 0.00455 | HT16: 0.00455 | HU16: 0.00455 | HV16: 0.00455 | HW16: 0.00455 | HX16: 0.00455 | HY16: 0.00455 | HZ16: 0.00455 | IA16: 0.00455 | IB16: 0.00455 | IC16: 0.00455 | ID16: 0.00455 | IE16: 0.00455 | IF16: 0.00455 | IG16: 0.00455 | IH16: 0.00455
A17: 16 | B17: 0.0013 | C17: 0.0001 | D17: 0.00199 | E17: 0.0001 | F17: 0.0001 | G17: 0.0001 | H17: 0.0001 | I17: 0.0005 | J17: 0.00361 | K17: 0.00493 | L17: 0.00782 | M17: 0.00873 | N17: 0.01106 | O17: 0.01363 | P17: 0.01624 | Q17: 0.01551 | R17: 0.01545 | S17: 0.01442 | T17: 0.0142 | U17: 0.01116 | V17: 0.0105 | W17: 0.01126 | X17: 0.0142 | Y17: 0.01116 | Z17: 0.0105 | AA17: 0.0142 | AB17: 0.01116 | AC17: 0.0105 | AD17: 0.01126 | AE17: 0.01126 | AF17: 0.01126 | AG17: 0.01126 | AH17: 0.01126 | AI17: 0.01126 | AJ17: 0.01126 | AK17: 0.01126 | AL17: 0.01126 | AM17: 0.01126 | AN17: 0.01126 | AO17: 0.01126 | AP17: 0.01126 | AQ17: 0.01126 | AR17: 0.01126 | AS17: 0.01126 | AT17: 0.01126 | AU17: 0.01126 | AV17: 0.01126 | AW17: 0.01126 | AX17: 0.01126 | AY17: 0.01126 | AZ17: 0.01126 | BA17: 0.01126 | BB17: 0.01126 | BC17: 0.01126 | BD17: 0.01126 | BE17: 0.01126 | BF17: 0.01126 | BG17: 0.01126 | BH17: 0.01126 | BI17: 0.01126 | BJ17: 0.01126 | BK17: 0.01126 | BL17: 0.01126 | BM17: 0.01126 | BN17: 0.01126 | BO17: 0.01126 | BP17: 0.01126 | BQ17: 0.01126 | BR17: 0.01126 | BS17: 0.01126 | BT17: 0.01126 | BU17: 0.01126 | BV17: 0.01126 | BW17: 0.01126 | BX17: 0.01126 | BY17: 0.01126 | BZ17: 0.01126 | CA17: 0.01126 | CB17: 0.01126 | CC17: 0.01126 | CD17: 0.01126 | CE17: 0.01126 | CF17: 0.01126 | CG17: 0.01126 | CH17: 0.01126 | CI17: 0.01126 | CJ17: 0.01126 | CK17: 0.01126 | CL17: 0.01126 | CM17: 0.01126 | CN17: 0.01126 | CO17: 0.01126 | CP17: 0.01126 | CQ17: 0.01126 | CR17: 0.01126 | CS17: 0.01126 | CT17: 0.01126 | CU17: 0.01126 | CV17: 0.01126 | CW17: 0.01126 | CX17: 0.01126 | CY17: 0.01126 | CZ17: 0.01126 | DA17: 0.01126 | DB17: 0.01126 | DC17: 0.01126 | DD17: 0.01126 | DE17: 0.01126 | DF17: 0.01126 | DG17: 0.01126 | DH17: 0.01126 | DI17: 0.01126 | DJ17: 0.01126 | DK17: 0.01126 | DL17: 0.01126 | DM17: 0.01126 | DN17: 0.01126 | DO17: 0.01126 | DP17: 0.01126 | DQ17: 0.01126 | DR17: 0.01126 | DS17: 0.01126 | DT17: 0.01126 | DU17: 0.01126 | DV17: 0.01126 | DW17: 0.01126 | DX17: 0.01126 | DY17: 0.01126 | DZ17: 0.01126 | EA17: 0.01126 | EB17: 0.01126 | EC17: 0.01126 | ED17: 0.01126 | EE17: 0.01126 | EF17: 0.01126 | EG17: 0.01126 | EH17: 0.01126 | EI17: 0.01126 | EJ17: 0.01126 | EK17: 0.01126 | EL17: 0.01126 | EM17: 0.01126 | EN17: 0.01126 | EO17: 0.01126 | EP17: 0.01126 | EQ17: 0.01126 | ER17: 0.01126 | ES17: 0.01126 | ET17: 0.01126 | EU17: 0.01126 | EV17: 0.01126 | EW17: 0.01126 | EX17: 0.01126 | EY17: 0.01126 | EZ17: 0.01126 | FA17: 0.01126 | FB17: 0.01126 | FC17: 0.01126 | FD17: 0.01126 | FE17: 0.01126 | FF17: 0.01126 | FG17: 0.01126 | FH17: 0.01126 | FI17: 0.01126 | FJ17: 0.01126 | FK17: 0.01126 | FL17: 0.01126 | FM17: 0.01126 | FN17: 0.01126 | FO17: 0.01126 | FP17: 0.01126 | FQ17: 0.01126 | FR17: 0.01126 | FS17: 0.01126 | FT17: 0.01126 | FU17: 0.01126 | FV17: 0.01126 | FW17: 0.01126 | FX17: 0.01126 | FY17: 0.01126 | FZ17: 0.01126 | GA17: 0.01126 | GB17: 0.01126 | GC17: 0.01126 | GD17: 0.01126 | GE17: 0.01126 | GF17: 0.01126 | GG17: 0.01126 | GH17: 0.01126 | GI17: 0.01126 | GJ17: 0.01126 | GK17: 0.01126 | GL17: 0.01126 | GM17: 0.01126 | GN17: 0.01126 | GO17: 0.01126 | GP17: 0.01126 | GQ17: 0.01126 | GR17: 0.01126 | GS17: 0.01126 | GT17: 0.01126 | GU17: 0.01126 | GV17: 0.01126 | GW17: 0.01126 | GX17: 0.01126 | GY17: 0.01126 | GZ17: 0.01126 | HA17: 0.01126 | HB17: 0.01126 | HC17: 0.01126 | HD17: 0.01126 | HE17: 0.01126 | HF17: 0.01126 | HG17: 0.01126 | HH17: 0.01126 | HI17: 0.01126 | HJ17: 0.01126 | HK17: 0.01126 | HL17: 0.01126 | HM17: 0.01126 | HN17: 0.01126 | HO17: 0.01126 | HP17: 0.01126 | HQ17: 0.01126 | HR17: 0.01126 | HS17: 0.01126 | HT17: 0.01126 | HU17: 0.01126 | HV17: 0.01126 | HW17: 0.01126 | HX17: 0.01126 | HY17: 0.01126 | HZ17: 0.01126 | IA17: 0.01126 | IB17: 0.01126 | IC17: 0.01126 | ID17: 0.01126 | IE17: 0.01126 | IF17: 0.01126 | IG17: 0.01126 | IH17: 0.01126
A18: 17 | B18: 0.0013 | C18: 0.00091 | D18: 0.0001 | E18: 0.0001 | F18: 0.00164 | G18: 0.00313 | H18: 0.0001 | I18: 0.00144 | J18: 0.00059 | K18: 0.0001 | L18: 0.0001 | M18: 0.00069 | N18: 0.00046 | O18: 0.00157 | P18: 0.00101 | Q18: 0.0001 | R18: 0.0001 | S18: 0.00014 | T18: 0.00159 | U18: 0.00192 | V18: 0.00285 | W18: 0.00348 | X18: 0.00159 | Y18: 0.00192 | Z18: 0.00285 | AA18: 0.00159 | AB18: 0.00192 | AC18: 0.00285 | AD18: 0.00348 | AE18: 0.00348 | AF18: 0.00348 | AG18: 0.00348 | AH18: 0.00348 | AI18: 0.00348 | AJ18: 0.00348 | AK18: 0.00348 | AL18: 0.00348 | AM18: 0.00348 | AN18: 0.00348 | AO18: 0.00348 | AP18: 0.00348 | AQ18: 0.00348 | AR18: 0.00348 | AS18: 0.00348 | AT18: 0.00348 | AU18: 0.00348 | AV18: 0.00348 | AW18: 0.00348 | AX18: 0.00348 | AY18: 0.00348 | AZ18: 0.00348 | BA18: 0.00348 | BB18: 0.00348 | BC18: 0.00348 | BD18: 0.00348 | BE18: 0.00348 | BF18: 0.00348 | BG18: 0.00348 | BH18: 0.00348 | BI18: 0.00348 | BJ18: 0.00348 | BK18: 0.00348 | BL18: 0.00348 | BM18: 0.00348 | BN18: 0.00348 | BO18: 0.00348 | BP18: 0.00348 | BQ18: 0.00348 | BR18: 0.00348 | BS18: 0.00348 | BT18: 0.00348 | BU18: 0.00348 | BV18: 0.00348 | BW18: 0.00348 | BX18: 0.00348 | BY18: 0.00348 | BZ18: 0.00348 | CA18: 0.00348 | CB18: 0.00348 | CC18: 0.00348 | CD18: 0.00348 | CE18: 0.00348 | CF18: 0.00348 | CG18: 0.00348 | CH18: 0.00348 | CI18: 0.00348 | CJ18: 0.00348 | CK18: 0.00348 | CL18: 0.00348 | CM18: 0.00348 | CN18: 0.00348 | CO18: 0.00348 | CP18: 0.00348 | CQ18: 0.00348 | CR18: 0.00348 | CS18: 0.00348 | CT18: 0.00348 | CU18: 0.00348 | CV18: 0.00348 | CW18: 0.00348 | CX18: 0.00348 | CY18: 0.00348 | CZ18: 0.00348 | DA18: 0.00348 | DB18: 0.00348 | DC18: 0.00348 | DD18: 0.00348 | DE18: 0.00348 | DF18: 0.00348 | DG18: 0.00348 | DH18: 0.00348 | DI18: 0.00348 | DJ18: 0.00348 | DK18: 0.00348 | DL18: 0.00348 | DM18: 0.00348 | DN18: 0.00348 | DO18: 0.00348 | DP18: 0.00348 | DQ18: 0.00348 | DR18: 0.00348 | DS18: 0.00348 | DT18: 0.00348 | DU18: 0.00348 | DV18: 0.00348 | DW18: 0.00348 | DX18: 0.00348 | DY18: 0.00348 | DZ18: 0.00348 | EA18: 0.00348 | EB18: 0.00348 | EC18: 0.00348 | ED18: 0.00348 | EE18: 0.00348 | EF18: 0.00348 | EG18: 0.00348 | EH18: 0.00348 | EI18: 0.00348 | EJ18: 0.00348 | EK18: 0.00348 | EL18: 0.00348 | EM18: 0.00348 | EN18: 0.00348 | EO18: 0.00348 | EP18: 0.00348 | EQ18: 0.00348 | ER18: 0.00348 | ES18: 0.00348 | ET18: 0.00348 | EU18: 0.00348 | EV18: 0.00348 | EW18: 0.00348 | EX18: 0.00348 | EY18: 0.00348 | EZ18: 0.00348 | FA18: 0.00348 | FB18: 0.00348 | FC18: 0.00348 | FD18: 0.00348 | FE18: 0.00348 | FF18: 0.00348 | FG18: 0.00348 | FH18: 0.00348 | FI18: 0.00348 | FJ18: 0.00348 | FK18: 0.00348 | FL18: 0.00348 | FM18: 0.00348 | FN18: 0.00348 | FO18: 0.00348 | FP18: 0.00348 | FQ18: 0.00348 | FR18: 0.00348 | FS18: 0.00348 | FT18: 0.00348 | FU18: 0.00348 | FV18: 0.00348 | FW18: 0.00348 | FX18: 0.00348 | FY18: 0.00348 | FZ18: 0.00348 | GA18: 0.00348 | GB18: 0.00348 | GC18: 0.00348 | GD18: 0.00348 | GE18: 0.00348 | GF18: 0.00348 | GG18: 0.00348 | GH18: 0.00348 | GI18: 0.00348 | GJ18: 0.00348 | GK18: 0.00348 | GL18: 0.00348 | GM18: 0.00348 | GN18: 0.00348 | GO18: 0.00348 | GP18: 0.00348 | GQ18: 0.00348 | GR18: 0.00348 | GS18: 0.00348 | GT18: 0.00348 | GU18: 0.00348 | GV18: 0.00348 | GW18: 0.00348 | GX18: 0.00348 | GY18: 0.00348 | GZ18: 0.00348 | HA18: 0.00348 | HB18: 0.00348 | HC18: 0.00348 | HD18: 0.00348 | HE18: 0.00348 | HF18: 0.00348 | HG18: 0.00348 | HH18: 0.00348 | HI18: 0.00348 | HJ18: 0.00348 | HK18: 0.00348 | HL18: 0.00348 | HM18: 0.00348 | HN18: 0.00348 | HO18: 0.00348 | HP18: 0.00348 | HQ18: 0.00348 | HR18: 0.00348 | HS18: 0.00348 | HT18: 0.00348 | HU18: 0.00348 | HV18: 0.00348 | HW18: 0.00348 | HX18: 0.00348 | HY18: 0.00348 | HZ18: 0.00348 | IA18: 0.00348 | IB18: 0.00348 | IC18: 0.00348 | ID18: 0.00348 | IE18: 0.00348 | IF18: 0.00348 | IG18: 0.00348 | IH18: 0.00348
A19: 18 | B19: 0.0013 | C19: 0.0001 | D19: 0.0001 | E19: 0.0001 | F19: 0.0001 | G19: 0.0001 | H19: 0.0001 | I19: 0.0001 | J19: 0.00165 | K19: 0.00279 | L19: 0.00276 | M19: 0.00142 | N19: 0.00382 | O19: 0.00526 | P19: 0.00549 | Q19: 0.00453 | R19: 0.00688 | S19: 0.00683 | T19: 0.01028 | U19: 0.00824 | V19: 0.00871 | W19: 0.00851 | X19: 0.01028 | Y19: 0.00824 | Z19: 0.00871 | AA19: 0.01028 | AB19: 0.00824 | AC19: 0.00871 | AD19: 0.00851 | AE19: 0.00851 | AF19: 0.00851 | AG19: 0.00851 | AH19: 0.00851 | AI19: 0.00851 | AJ19: 0.00851 | AK19: 0.00851 | AL19: 0.00851 | AM19: 0.00851 | AN19: 0.00851 | AO19: 0.00851 | AP19: 0.00851 | AQ19: 0.00851 | AR19: 0.00851 | AS19: 0.00851 | AT19: 0.00851 | AU19: 0.00851 | AV19: 0.00851 | AW19: 0.00851 | AX19: 0.00851 | AY19: 0.00851 | AZ19: 0.00851 | BA19: 0.00851 | BB19: 0.00851 | BC19: 0.00851 | BD19: 0.00851 | BE19: 0.00851 | BF19: 0.00851 | BG19: 0.00851 | BH19: 0.00851 | BI19: 0.00851 | BJ19: 0.00851 | BK19: 0.00851 | BL19: 0.00851 | BM19: 0.00851 | BN19: 0.00851 | BO19: 0.00851 | BP19: 0.00851 | BQ19: 0.00851 | BR19: 0.00851 | BS19: 0.00851 | BT19: 0.00851 | BU19: 0.00851 | BV19: 0.00851 | BW19: 0.00851 | BX19: 0.00851 | BY19: 0.00851 | BZ19: 0.00851 | CA19: 0.00851 | CB19: 0.00851 | CC19: 0.00851 | CD19: 0.00851 | CE19: 0.00851 | CF19: 0.00851 | CG19: 0.00851 | CH19: 0.00851 | CI19: 0.00851 | CJ19: 0.00851 | CK19: 0.00851 | CL19: 0.00851 | CM19: 0.00851 | CN19: 0.00851 | CO19: 0.00851 | CP19: 0.00851 | CQ19: 0.00851 | CR19: 0.00851 | CS19: 0.00851 | CT19: 0.00851 | CU19: 0.00851 | CV19: 0.00851 | CW19: 0.00851 | CX19: 0.00851 | CY19: 0.00851 | CZ19: 0.00851 | DA19: 0.00851 | DB19: 0.00851 | DC19: 0.00851 | DD19: 0.00851 | DE19: 0.00851 | DF19: 0.00851 | DG19: 0.00851 | DH19: 0.00851 | DI19: 0.00851 | DJ19: 0.00851 | DK19: 0.00851 | DL19: 0.00851 | DM19: 0.00851 | DN19: 0.00851 | DO19: 0.00851 | DP19: 0.00851 | DQ19: 0.00851 | DR19: 0.00851 | DS19: 0.00851 | DT19: 0.00851 | DU19: 0.00851 | DV19: 0.00851 | DW19: 0.00851 | DX19: 0.00851 | DY19: 0.00851 | DZ19: 0.00851 | EA19: 0.00851 | EB19: 0.00851 | EC19: 0.00851 | ED19: 0.00851 | EE19: 0.00851 | EF19: 0.00851 | EG19: 0.00851 | EH19: 0.00851 | EI19: 0.00851 | EJ19: 0.00851 | EK19: 0.00851 | EL19: 0.00851 | EM19: 0.00851 | EN19: 0.00851 | EO19: 0.00851 | EP19: 0.00851 | EQ19: 0.00851 | ER19: 0.00851 | ES19: 0.00851 | ET19: 0.00851 | EU19: 0.00851 | EV19: 0.00851 | EW19: 0.00851 | EX19: 0.00851 | EY19: 0.00851 | EZ19: 0.00851 | FA19: 0.00851 | FB19: 0.00851 | FC19: 0.00851 | FD19: 0.00851 | FE19: 0.00851 | FF19: 0.00851 | FG19: 0.00851 | FH19: 0.00851 | FI19: 0.00851 | FJ19: 0.00851 | FK19: 0.00851 | FL19: 0.00851 | FM19: 0.00851 | FN19: 0.00851 | FO19: 0.00851 | FP19: 0.00851 | FQ19: 0.00851 | FR19: 0.00851 | FS19: 0.00851 | FT19: 0.00851 | FU19: 0.00851 | FV19: 0.00851 | FW19: 0.00851 | FX19: 0.00851 | FY19: 0.00851 | FZ19: 0.00851 | GA19: 0.00851 | GB19: 0.00851 | GC19: 0.00851 | GD19: 0.00851 | GE19: 0.00851 | GF19: 0.00851 | GG19: 0.00851 | GH19: 0.00851 | GI19: 0.00851 | GJ19: 0.00851 | GK19: 0.00851 | GL19: 0.00851 | GM19: 0.00851 | GN19: 0.00851 | GO19: 0.00851 | GP19: 0.00851 | GQ19: 0.00851 | GR19: 0.00851 | GS19: 0.00851 | GT19: 0.00851 | GU19: 0.00851 | GV19: 0.00851 | GW19: 0.00851 | GX19: 0.00851 | GY19: 0.00851 | GZ19: 0.00851 | HA19: 0.00851 | HB19: 0.00851 | HC19: 0.00851 | HD19: 0.00851 | HE19: 0.00851 | HF19: 0.00851 | HG19: 0.00851 | HH19: 0.00851 | HI19: 0.00851 | HJ19: 0.00851 | HK19: 0.00851 | HL19: 0.00851 | HM19: 0.00851 | HN19: 0.00851 | HO19: 0.00851 | HP19: 0.00851 | HQ19: 0.00851 | HR19: 0.00851 | HS19: 0.00851 | HT19: 0.00851 | HU19: 0.00851 | HV19: 0.00851 | HW19: 0.00851 | HX19: 0.00851 | HY19: 0.00851 | HZ19: 0.00851 | IA19: 0.00851 | IB19: 0.00851 | IC19: 0.00851 | ID19: 0.00851 | IE19: 0.00851 | IF19: 0.00851 | IG19: 0.00851 | IH19: 0.00851
A20: 19 | B20: 0.0013 | C20: 0.00144 | D20: 0.00217 | E20: 0.0001 | F20: 0.0001 | G20: 0.00191 | H20: 0.00451 | I20: 0.00418 | J20: 0.00453 | K20: 0.00612 | L20: 0.00432 | M20: 0.00396 | N20: 0.00296 | O20: 0.0001 | P20: 0.0001 | Q20: 0.0023 | R20: 0.0043 | S20: 0.0056 | T20: 0.00825 | U20: 0.00438 | V20: 0.00687 | W20: 0.00952 | X20: 0.00825 | Y20: 0.00438 | Z20: 0.00687 | AA20: 0.00825 | AB20: 0.00438 | AC20: 0.00687 | AD20: 0.00952 | AE20: 0.00952 | AF20: 0.00952 | AG20: 0.00952 | AH20: 0.00952 | AI20: 0.00952 | AJ20: 0.00952 | AK20: 0.00952 | AL20: 0.00952 | AM20: 0.00952 | AN20: 0.00952 | AO20: 0.00952 | AP20: 0.00952 | AQ20: 0.00952 | AR20: 0.00952 | AS20: 0.00952 | AT20: 0.00952 | AU20: 0.00952 | AV20: 0.00952 | AW20: 0.00952 | AX20: 0.00952 | AY20: 0.00952 | AZ20: 0.00952 | BA20: 0.00952 | BB20: 0.00952 | BC20: 0.00952 | BD20: 0.00952 | BE20: 0.00952 | BF20: 0.00952 | BG20: 0.00952 | BH20: 0.00952 | BI20: 0.00952 | BJ20: 0.00952 | BK20: 0.00952 | BL20: 0.00952 | BM20: 0.00952 | BN20: 0.00952 | BO20: 0.00952 | BP20: 0.00952 | BQ20: 0.00952 | BR20: 0.00952 | BS20: 0.00952 | BT20: 0.00952 | BU20: 0.00952 | BV20: 0.00952 | BW20: 0.00952 | BX20: 0.00952 | BY20: 0.00952 | BZ20: 0.00952 | CA20: 0.00952 | CB20: 0.00952 | CC20: 0.00952 | CD20: 0.00952 | CE20: 0.00952 | CF20: 0.00952 | CG20: 0.00952 | CH20: 0.00952 | CI20: 0.00952 | CJ20: 0.00952 | CK20: 0.00952 | CL20: 0.00952 | CM20: 0.00952 | CN20: 0.00952 | CO20: 0.00952 | CP20: 0.00952 | CQ20: 0.00952 | CR20: 0.00952 | CS20: 0.00952 | CT20: 0.00952 | CU20: 0.00952 | CV20: 0.00952 | CW20: 0.00952 | CX20: 0.00952 | CY20: 0.00952 | CZ20: 0.00952 | DA20: 0.00952 | DB20: 0.00952 | DC20: 0.00952 | DD20: 0.00952 | DE20: 0.00952 | DF20: 0.00952 | DG20: 0.00952 | DH20: 0.00952 | DI20: 0.00952 | DJ20: 0.00952 | DK20: 0.00952 | DL20: 0.00952 | DM20: 0.00952 | DN20: 0.00952 | DO20: 0.00952 | DP20: 0.00952 | DQ20: 0.00952 | DR20: 0.00952 | DS20: 0.00952 | DT20: 0.00952 | DU20: 0.00952 | DV20: 0.00952 | DW20: 0.00952 | DX20: 0.00952 | DY20: 0.00952 | DZ20: 0.00952 | EA20: 0.00952 | EB20: 0.00952 | EC20: 0.00952 | ED20: 0.00952 | EE20: 0.00952 | EF20: 0.00952 | EG20: 0.00952 | EH20: 0.00952 | EI20: 0.00952 | EJ20: 0.00952 | EK20: 0.00952 | EL20: 0.00952 | EM20: 0.00952 | EN20: 0.00952 | EO20: 0.00952 | EP20: 0.00952 | EQ20: 0.00952 | ER20: 0.00952 | ES20: 0.00952 | ET20: 0.00952 | EU20: 0.00952 | EV20: 0.00952 | EW20: 0.00952 | EX20: 0.00952 | EY20: 0.00952 | EZ20: 0.00952 | FA20: 0.00952 | FB20: 0.00952 | FC20: 0.00952 | FD20: 0.00952 | FE20: 0.00952 | FF20: 0.00952 | FG20: 0.00952 | FH20: 0.00952 | FI20: 0.00952 | FJ20: 0.00952 | FK20: 0.00952 | FL20: 0.00952 | FM20: 0.00952 | FN20: 0.00952 | FO20: 0.00952 | FP20: 0.00952 | FQ20: 0.00952 | FR20: 0.00952 | FS20: 0.00952 | FT20: 0.00952 | FU20: 0.00952 | FV20: 0.00952 | FW20: 0.00952 | FX20: 0.00952 | FY20: 0.00952 | FZ20: 0.00952 | GA20: 0.00952 | GB20: 0.00952 | GC20: 0.00952 | GD20: 0.00952 | GE20: 0.00952 | GF20: 0.00952 | GG20: 0.00952 | GH20: 0.00952 | GI20: 0.00952 | GJ20: 0.00952 | GK20: 0.00952 | GL20: 0.00952 | GM20: 0.00952 | GN20: 0.00952 | GO20: 0.00952 | GP20: 0.00952 | GQ20: 0.00952 | GR20: 0.00952 | GS20: 0.00952 | GT20: 0.00952 | GU20: 0.00952 | GV20: 0.00952 | GW20: 0.00952 | GX20: 0.00952 | GY20: 0.00952 | GZ20: 0.00952 | HA20: 0.00952 | HB20: 0.00952 | HC20: 0.00952 | HD20: 0.00952 | HE20: 0.00952 | HF20: 0.00952 | HG20: 0.00952 | HH20: 0.00952 | HI20: 0.00952 | HJ20: 0.00952 | HK20: 0.00952 | HL20: 0.00952 | HM20: 0.00952 | HN20: 0.00952 | HO20: 0.00952 | HP20: 0.00952 | HQ20: 0.00952 | HR20: 0.00952 | HS20: 0.00952 | HT20: 0.00952 | HU20: 0.00952 | HV20: 0.00952 | HW20: 0.00952 | HX20: 0.00952 | HY20: 0.00952 | HZ20: 0.00952 | IA20: 0.00952 | IB20: 0.00952 | IC20: 0.00952 | ID20: 0.00952 | IE20: 0.00952 | IF20: 0.00952 | IG20: 0.00952 | IH20: 0.00952
A21: 20 | B21: 0.0013 | C21: 0.0001 | D21: 0.0001 | E21: 0.0001 | F21: 0.0001 | G21: 0.0001 | H21: 0.0001 | I21: 0.0001 | J21: 0.0001 | K21: 0.00214 | L21: 0.00753 | M21: 0.00506 | N21: 0.00687 | O21: 0.0061 | P21: 0.0074 | Q21: 0.00663 | R21: 0.00548 | S21: 0.00584 | T21: 0.00445 | U21: 0.00297 | V21: 0.00521 | W21: 0.00783 | X21: 0.00445 | Y21: 0.00297 | Z21: 0.00521 | AA21: 0.00445 | AB21: 0.00297 | AC21: 0.00521 | AD21: 0.00783 | AE21: 0.00783 | AF21: 0.00783 | AG21: 0.00783 | AH21: 0.00783 | AI21: 0.00783 | AJ21: 0.00783 | AK21: 0.00783 | AL21: 0.00783 | AM21: 0.00783 | AN21: 0.00783 | AO21: 0.00783 | AP21: 0.00783 | AQ21: 0.00783 | AR21: 0.00783 | AS21: 0.00783 | AT21: 0.00783 | AU21: 0.00783 | AV21: 0.00783 | AW21: 0.00783 | AX21: 0.00783 | AY21: 0.00783 | AZ21: 0.00783 | BA21: 0.00783 | BB21: 0.00783 | BC21: 0.00783 | BD21: 0.00783 | BE21: 0.00783 | BF21: 0.00783 | BG21: 0.00783 | BH21: 0.00783 | BI21: 0.00783 | BJ21: 0.00783 | BK21: 0.00783 | BL21: 0.00783 | BM21: 0.00783 | BN21: 0.00783 | BO21: 0.00783 | BP21: 0.00783 | BQ21: 0.00783 | BR21: 0.00783 | BS21: 0.00783 | BT21: 0.00783 | BU21: 0.00783 | BV21: 0.00783 | BW21: 0.00783 | BX21: 0.00783 | BY21: 0.00783 | BZ21: 0.00783 | CA21: 0.00783 | CB21: 0.00783 | CC21: 0.00783 | CD21: 0.00783 | CE21: 0.00783 | CF21: 0.00783 | CG21: 0.00783 | CH21: 0.00783 | CI21: 0.00783 | CJ21: 0.00783 | CK21: 0.00783 | CL21: 0.00783 | CM21: 0.00783 | CN21: 0.00783 | CO21: 0.00783 | CP21: 0.00783 | CQ21: 0.00783 | CR21: 0.00783 | CS21: 0.00783 | CT21: 0.00783 | CU21: 0.00783 | CV21: 0.00783 | CW21: 0.00783 | CX21: 0.00783 | CY21: 0.00783 | CZ21: 0.00783 | DA21: 0.00783 | DB21: 0.00783 | DC21: 0.00783 | DD21: 0.00783 | DE21: 0.00783 | DF21: 0.00783 | DG21: 0.00783 | DH21: 0.00783 | DI21: 0.00783 | DJ21: 0.00783 | DK21: 0.00783 | DL21: 0.00783 | DM21: 0.00783 | DN21: 0.00783 | DO21: 0.00783 | DP21: 0.00783 | DQ21: 0.00783 | DR21: 0.00783 | DS21: 0.00783 | DT21: 0.00783 | DU21: 0.00783 | DV21: 0.00783 | DW21: 0.00783 | DX21: 0.00783 | DY21: 0.00783 | DZ21: 0.00783 | EA21: 0.00783 | EB21: 0.00783 | EC21: 0.00783 | ED21: 0.00783 | EE21: 0.00783 | EF21: 0.00783 | EG21: 0.00783 | EH21: 0.00783 | EI21: 0.00783 | EJ21: 0.00783 | EK21: 0.00783 | EL21: 0.00783 | EM21: 0.00783 | EN21: 0.00783 | EO21: 0.00783 | EP21: 0.00783 | EQ21: 0.00783 | ER21: 0.00783 | ES21: 0.00783 | ET21: 0.00783 | EU21: 0.00783 | EV21: 0.00783 | EW21: 0.00783 | EX21: 0.00783 | EY21: 0.00783 | EZ21: 0.00783 | FA21: 0.00783 | FB21: 0.00783 | FC21: 0.00783 | FD21: 0.00783 | FE21: 0.00783 | FF21: 0.00783 | FG21: 0.00783 | FH21: 0.00783 | FI21: 0.00783 | FJ21: 0.00783 | FK21: 0.00783 | FL21: 0.00783 | FM21: 0.00783 | FN21: 0.00783 | FO21: 0.00783 | FP21: 0.00783 | FQ21: 0.00783 | FR21: 0.00783 | FS21: 0.00783 | FT21: 0.00783 | FU21: 0.00783 | FV21: 0.00783 | FW21: 0.00783 | FX21: 0.00783 | FY21: 0.00783 | FZ21: 0.00783 | GA21: 0.00783 | GB21: 0.00783 | GC21: 0.00783 | GD21: 0.00783 | GE21: 0.00783 | GF21: 0.00783 | GG21: 0.00783 | GH21: 0.00783 | GI21: 0.00783 | GJ21: 0.00783 | GK21: 0.00783 | GL21: 0.00783 | GM21: 0.00783 | GN21: 0.00783 | GO21: 0.00783 | GP21: 0.00783 | GQ21: 0.00783 | GR21: 0.00783 | GS21: 0.00783 | GT21: 0.00783 | GU21: 0.00783 | GV21: 0.00783 | GW21: 0.00783 | GX21: 0.00783 | GY21: 0.00783 | GZ21: 0.00783 | HA21: 0.00783 | HB21: 0.00783 | HC21: 0.00783 | HD21: 0.00783 | HE21: 0.00783 | HF21: 0.00783 | HG21: 0.00783 | HH21: 0.00783 | HI21: 0.00783 | HJ21: 0.00783 | HK21: 0.00783 | HL21: 0.00783 | HM21: 0.00783 | HN21: 0.00783 | HO21: 0.00783 | HP21: 0.00783 | HQ21: 0.00783 | HR21: 0.00783 | HS21: 0.00783 | HT21: 0.00783 | HU21: 0.00783 | HV21: 0.00783 | HW21: 0.00783 | HX21: 0.00783 | HY21: 0.00783 | HZ21: 0.00783 | IA21: 0.00783 | IB21: 0.00783 | IC21: 0.00783 | ID21: 0.00783 | IE21: 0.00783 | IF21: 0.00783 | IG21: 0.00783 | IH21: 0.00783
A22: 21 | B22: 0.0013 | C22: 0.00289 | D22: 0.00326 | E22: 0.00275 | F22: 0.00459 | G22: 0.00312 | H22: 0.00379 | I22: 0.00214 | J22: 0.00273 | K22: 0.00215 | L22: 0.00211 | M22: 0.00057 | N22: 0.00456 | O22: 0.00586 | P22: 0.0102 | Q22: 0.01233 | R22: 0.01066 | S22: 0.01218 | T22: 0.01112 | U22: 0.01353 | V22: 0.01605 | W22: 0.01519 | X22: 0.01112 | Y22: 0.01353 | Z22: 0.01605 | AA22: 0.01112 | AB22: 0.01353 | AC22: 0.01605 | AD22: 0.01519 | AE22: 0.01519 | AF22: 0.01519 | AG22: 0.01519 | AH22: 0.01519 | AI22: 0.01519 | AJ22: 0.01519 | AK22: 0.01519 | AL22: 0.01519 | AM22: 0.01519 | AN22: 0.01519 | AO22: 0.01519 | AP22: 0.01519 | AQ22: 0.01519 | AR22: 0.01519 | AS22: 0.01519 | AT22: 0.01519 | AU22: 0.01519 | AV22: 0.01519 | AW22: 0.01519 | AX22: 0.01519 | AY22: 0.01519 | AZ22: 0.01519 | BA22: 0.01519 | BB22: 0.01519 | BC22: 0.01519 | BD22: 0.01519 | BE22: 0.01519 | BF22: 0.01519 | BG22: 0.01519 | BH22: 0.01519 | BI22: 0.01519 | BJ22: 0.01519 | BK22: 0.01519 | BL22: 0.01519 | BM22: 0.01519 | BN22: 0.01519 | BO22: 0.01519 | BP22: 0.01519 | BQ22: 0.01519 | BR22: 0.01519 | BS22: 0.01519 | BT22: 0.01519 | BU22: 0.01519 | BV22: 0.01519 | BW22: 0.01519 | BX22: 0.01519 | BY22: 0.01519 | BZ22: 0.01519 | CA22: 0.01519 | CB22: 0.01519 | CC22: 0.01519 | CD22: 0.01519 | CE22: 0.01519 | CF22: 0.01519 | CG22: 0.01519 | CH22: 0.01519 | CI22: 0.01519 | CJ22: 0.01519 | CK22: 0.01519 | CL22: 0.01519 | CM22: 0.01519 | CN22: 0.01519 | CO22: 0.01519 | CP22: 0.01519 | CQ22: 0.01519 | CR22: 0.01519 | CS22: 0.01519 | CT22: 0.01519 | CU22: 0.01519 | CV22: 0.01519 | CW22: 0.01519 | CX22: 0.01519 | CY22: 0.01519 | CZ22: 0.01519 | DA22: 0.01519 | DB22: 0.01519 | DC22: 0.01519 | DD22: 0.01519 | DE22: 0.01519 | DF22: 0.01519 | DG22: 0.01519 | DH22: 0.01519 | DI22: 0.01519 | DJ22: 0.01519 | DK22: 0.01519 | DL22: 0.01519 | DM22: 0.01519 | DN22: 0.01519 | DO22: 0.01519 | DP22: 0.01519 | DQ22: 0.01519 | DR22: 0.01519 | DS22: 0.01519 | DT22: 0.01519 | DU22: 0.01519 | DV22: 0.01519 | DW22: 0.01519 | DX22: 0.01519 | DY22: 0.01519 | DZ22: 0.01519 | EA22: 0.01519 | EB22: 0.01519 | EC22: 0.01519 | ED22: 0.01519 | EE22: 0.01519 | EF22: 0.01519 | EG22: 0.01519 | EH22: 0.01519 | EI22: 0.01519 | EJ22: 0.01519 | EK22: 0.01519 | EL22: 0.01519 | EM22: 0.01519 | EN22: 0.01519 | EO22: 0.01519 | EP22: 0.01519 | EQ22: 0.01519 | ER22: 0.01519 | ES22: 0.01519 | ET22: 0.01519 | EU22: 0.01519 | EV22: 0.01519 | EW22: 0.01519 | EX22: 0.01519 | EY22: 0.01519 | EZ22: 0.01519 | FA22: 0.01519 | FB22: 0.01519 | FC22: 0.01519 | FD22: 0.01519 | FE22: 0.01519 | FF22: 0.01519 | FG22: 0.01519 | FH22: 0.01519 | FI22: 0.01519 | FJ22: 0.01519 | FK22: 0.01519 | FL22: 0.01519 | FM22: 0.01519 | FN22: 0.01519 | FO22: 0.01519 | FP22: 0.01519 | FQ22: 0.01519 | FR22: 0.01519 | FS22: 0.01519 | FT22: 0.01519 | FU22: 0.01519 | FV22: 0.01519 | FW22: 0.01519 | FX22: 0.01519 | FY22: 0.01519 | FZ22: 0.01519 | GA22: 0.01519 | GB22: 0.01519 | GC22: 0.01519 | GD22: 0.01519 | GE22: 0.01519 | GF22: 0.01519 | GG22: 0.01519 | GH22: 0.01519 | GI22: 0.01519 | GJ22: 0.01519 | GK22: 0.01519 | GL22: 0.01519 | GM22: 0.01519 | GN22: 0.01519 | GO22: 0.01519 | GP22: 0.01519 | GQ22: 0.01519 | GR22: 0.01519 | GS22: 0.01519 | GT22: 0.01519 | GU22: 0.01519 | GV22: 0.01519 | GW22: 0.01519 | GX22: 0.01519 | GY22: 0.01519 | GZ22: 0.01519 | HA22: 0.01519 | HB22: 0.01519 | HC22: 0.01519 | HD22: 0.01519 | HE22: 0.01519 | HF22: 0.01519 | HG22: 0.01519 | HH22: 0.01519 | HI22: 0.01519 | HJ22: 0.01519 | HK22: 0.01519 | HL22: 0.01519 | HM22: 0.01519 | HN22: 0.01519 | HO22: 0.01519 | HP22: 0.01519 | HQ22: 0.01519 | HR22: 0.01519 | HS22: 0.01519 | HT22: 0.01519 | HU22: 0.01519 | HV22: 0.01519 | HW22: 0.01519 | HX22: 0.01519 | HY22: 0.01519 | HZ22: 0.01519 | IA22: 0.01519 | IB22: 0.01519 | IC22: 0.01519 | ID22: 0.01519 | IE22: 0.01519 | IF22: 0.01519 | IG22: 0.01519 | IH22: 0.01519
A23: 22 | B23: 0.0013 | C23: 0.00217 | D23: 0.00243 | E23: 0.00423 | F23: 0.00443 | G23: 0.00473 | H23: 0.00237 | I23: 0.00324 | J23: 0.00246 | K23: 0.00664 | L23: 0.00757 | M23: 0.00271 | N23: 0.00439 | O23: 0.0027 | P23: 0.00337 | Q23: 0.00337 | R23: 0.00475 | S23: 0.00451 | T23: 0.00732 | U23: 0.0068 | V23: 0.0058 | W23: 0.00706 | X23: 0.00732 | Y23: 0.0068 | Z23: 0.0058 | AA23: 0.00732 | AB23: 0.0068 | AC23: 0.0058 | AD23: 0.00706 | AE23: 0.00706 | AF23: 0.00706 | AG23: 0.00706 | AH23: 0.00706 | AI23: 0.00706 | AJ23: 0.00706 | AK23: 0.00706 | AL23: 0.00706 | AM23: 0.00706 | AN23: 0.00706 | AO23: 0.00706 | AP23: 0.00706 | AQ23: 0.00706 | AR23: 0.00706 | AS23: 0.00706 | AT23: 0.00706 | AU23: 0.00706 | AV23: 0.00706 | AW23: 0.00706 | AX23: 0.00706 | AY23: 0.00706 | AZ23: 0.00706 | BA23: 0.00706 | BB23: 0.00706 | BC23: 0.00706 | BD23: 0.00706 | BE23: 0.00706 | BF23: 0.00706 | BG23: 0.00706 | BH23: 0.00706 | BI23: 0.00706 | BJ23: 0.00706 | BK23: 0.00706 | BL23: 0.00706 | BM23: 0.00706 | BN23: 0.00706 | BO23: 0.00706 | BP23: 0.00706 | BQ23: 0.00706 | BR23: 0.00706 | BS23: 0.00706 | BT23: 0.00706 | BU23: 0.00706 | BV23: 0.00706 | BW23: 0.00706 | BX23: 0.00706 | BY23: 0.00706 | BZ23: 0.00706 | CA23: 0.00706 | CB23: 0.00706 | CC23: 0.00706 | CD23: 0.00706 | CE23: 0.00706 | CF23: 0.00706 | CG23: 0.00706 | CH23: 0.00706 | CI23: 0.00706 | CJ23: 0.00706 | CK23: 0.00706 | CL23: 0.00706 | CM23: 0.00706 | CN23: 0.00706 | CO23: 0.00706 | CP23: 0.00706 | CQ23: 0.00706 | CR23: 0.00706 | CS23: 0.00706 | CT23: 0.00706 | CU23: 0.00706 | CV23: 0.00706 | CW23: 0.00706 | CX23: 0.00706 | CY23: 0.00706 | CZ23: 0.00706 | DA23: 0.00706 | DB23: 0.00706 | DC23: 0.00706 | DD23: 0.00706 | DE23: 0.00706 | DF23: 0.00706 | DG23: 0.00706 | DH23: 0.00706 | DI23: 0.00706 | DJ23: 0.00706 | DK23: 0.00706 | DL23: 0.00706 | DM23: 0.00706 | DN23: 0.00706 | DO23: 0.00706 | DP23: 0.00706 | DQ23: 0.00706 | DR23: 0.00706 | DS23: 0.00706 | DT23: 0.00706 | DU23: 0.00706 | DV23: 0.00706 | DW23: 0.00706 | DX23: 0.00706 | DY23: 0.00706 | DZ23: 0.00706 | EA23: 0.00706 | EB23: 0.00706 | EC23: 0.00706 | ED23: 0.00706 | EE23: 0.00706 | EF23: 0.00706 | EG23: 0.00706 | EH23: 0.00706 | EI23: 0.00706 | EJ23: 0.00706 | EK23: 0.00706 | EL23: 0.00706 | EM23: 0.00706 | EN23: 0.00706 | EO23: 0.00706 | EP23: 0.00706 | EQ23: 0.00706 | ER23: 0.00706 | ES23: 0.00706 | ET23: 0.00706 | EU23: 0.00706 | EV23: 0.00706 | EW23: 0.00706 | EX23: 0.00706 | EY23: 0.00706 | EZ23: 0.00706 | FA23: 0.00706 | FB23: 0.00706 | FC23: 0.00706 | FD23: 0.00706 | FE23: 0.00706 | FF23: 0.00706 | FG23: 0.00706 | FH23: 0.00706 | FI23: 0.00706 | FJ23: 0.00706 | FK23: 0.00706 | FL23: 0.00706 | FM23: 0.00706 | FN23: 0.00706 | FO23: 0.00706 | FP23: 0.00706 | FQ23: 0.00706 | FR23: 0.00706 | FS23: 0.00706 | FT23: 0.00706 | FU23: 0.00706 | FV23: 0.00706 | FW23: 0.00706 | FX23: 0.00706 | FY23: 0.00706 | FZ23: 0.00706 | GA23: 0.00706 | GB23: 0.00706 | GC23: 0.00706 | GD23: 0.00706 | GE23: 0.00706 | GF23: 0.00706 | GG23: 0.00706 | GH23: 0.00706 | GI23: 0.00706 | GJ23: 0.00706 | GK23: 0.00706 | GL23: 0.00706 | GM23: 0.00706 | GN23: 0.00706 | GO23: 0.00706 | GP23: 0.00706 | GQ23: 0.00706 | GR23: 0.00706 | GS23: 0.00706 | GT23: 0.00706 | GU23: 0.00706 | GV23: 0.00706 | GW23: 0.00706 | GX23: 0.00706 | GY23: 0.00706 | GZ23: 0.00706 | HA23: 0.00706 | HB23: 0.00706 | HC23: 0.00706 | HD23: 0.00706 | HE23: 0.00706 | HF23: 0.00706 | HG23: 0.00706 | HH23: 0.00706 | HI23: 0.00706 | HJ23: 0.00706 | HK23: 0.00706 | HL23: 0.00706 | HM23: 0.00706 | HN23: 0.00706 | HO23: 0.00706 | HP23: 0.00706 | HQ23: 0.00706 | HR23: 0.00706 | HS23: 0.00706 | HT23: 0.00706 | HU23: 0.00706 | HV23: 0.00706 | HW23: 0.00706 | HX23: 0.00706 | HY23: 0.00706 | HZ23: 0.00706 | IA23: 0.00706 | IB23: 0.00706 | IC23: 0.00706 | ID23: 0.00706 | IE23: 0.00706 | IF23: 0.00706 | IG23: 0.00706 | IH23: 0.00706
A24: 23 | B24: 0.0013 | C24: 0.00489 | D24: 0.00579 | E24: 0.00624 | F24: 0.00567 | G24: 0.00718 | H24: 0.007 | I24: 0.0049 | J24: 0.00416 | K24: 0.00226 | L24: 0.00109 | M24: 0.00258 | N24: 0.00183 | O24: 0.00226 | P24: 0.0001 | Q24: 0.0001 | R24: 0.0001 | S24: 0.00094 | T24: 0.00326 | U24: 0.00205 | V24: 0.00206 | W24: 0.00094 | X24: 0.00326 | Y24: 0.00205 | Z24: 0.00206 | AA24: 0.00326 | AB24: 0.00205 | AC24: 0.00206 | AD24: 0.00094 | AE24: 0.00094 | AF24: 0.00094 | AG24: 0.00094 | AH24: 0.00094 | AI24: 0.00094 | AJ24: 0.00094 | AK24: 0.00094 | AL24: 0.00094 | AM24: 0.00094 | AN24: 0.00094 | AO24: 0.00094 | AP24: 0.00094 | AQ24: 0.00094 | AR24: 0.00094 | AS24: 0.00094 | AT24: 0.00094 | AU24: 0.00094 | AV24: 0.00094 | AW24: 0.00094 | AX24: 0.00094 | AY24: 0.00094 | AZ24: 0.00094 | BA24: 0.00094 | BB24: 0.00094 | BC24: 0.00094 | BD24: 0.00094 | BE24: 0.00094 | BF24: 0.00094 | BG24: 0.00094 | BH24: 0.00094 | BI24: 0.00094 | BJ24: 0.00094 | BK24: 0.00094 | BL24: 0.00094 | BM24: 0.00094 | BN24: 0.00094 | BO24: 0.00094 | BP24: 0.00094 | BQ24: 0.00094 | BR24: 0.00094 | BS24: 0.00094 | BT24: 0.00094 | BU24: 0.00094 | BV24: 0.00094 | BW24: 0.00094 | BX24: 0.00094 | BY24: 0.00094 | BZ24: 0.00094 | CA24: 0.00094 | CB24: 0.00094 | CC24: 0.00094 | CD24: 0.00094 | CE24: 0.00094 | CF24: 0.00094 | CG24: 0.00094 | CH24: 0.00094 | CI24: 0.00094 | CJ24: 0.00094 | CK24: 0.00094 | CL24: 0.00094 | CM24: 0.00094 | CN24: 0.00094 | CO24: 0.00094 | CP24: 0.00094 | CQ24: 0.00094 | CR24: 0.00094 | CS24: 0.00094 | CT24: 0.00094 | CU24: 0.00094 | CV24: 0.00094 | CW24: 0.00094 | CX24: 0.00094 | CY24: 0.00094 | CZ24: 0.00094 | DA24: 0.00094 | DB24: 0.00094 | DC24: 0.00094 | DD24: 0.00094 | DE24: 0.00094 | DF24: 0.00094 | DG24: 0.00094 | DH24: 0.00094 | DI24: 0.00094 | DJ24: 0.00094 | DK24: 0.00094 | DL24: 0.00094 | DM24: 0.00094 | DN24: 0.00094 | DO24: 0.00094 | DP24: 0.00094 | DQ24: 0.00094 | DR24: 0.00094 | DS24: 0.00094 | DT24: 0.00094 | DU24: 0.00094 | DV24: 0.00094 | DW24: 0.00094 | DX24: 0.00094 | DY24: 0.00094 | DZ24: 0.00094 | EA24: 0.00094 | EB24: 0.00094 | EC24: 0.00094 | ED24: 0.00094 | EE24: 0.00094 | EF24: 0.00094 | EG24: 0.00094 | EH24: 0.00094 | EI24: 0.00094 | EJ24: 0.00094 | EK24: 0.00094 | EL24: 0.00094 | EM24: 0.00094 | EN24: 0.00094 | EO24: 0.00094 | EP24: 0.00094 | EQ24: 0.00094 | ER24: 0.00094 | ES24: 0.00094 | ET24: 0.00094 | EU24: 0.00094 | EV24: 0.00094 | EW24: 0.00094 | EX24: 0.00094 | EY24: 0.00094 | EZ24: 0.00094 | FA24: 0.00094 | FB24: 0.00094 | FC24: 0.00094 | FD24: 0.00094 | FE24: 0.00094 | FF24: 0.00094 | FG24: 0.00094 | FH24: 0.00094 | FI24: 0.00094 | FJ24: 0.00094 | FK24: 0.00094 | FL24: 0.00094 | FM24: 0.00094 | FN24: 0.00094 | FO24: 0.00094 | FP24: 0.00094 | FQ24: 0.00094 | FR24: 0.00094 | FS24: 0.00094 | FT24: 0.00094 | FU24: 0.00094 | FV24: 0.00094 | FW24: 0.00094 | FX24: 0.00094 | FY24: 0.00094 | FZ24: 0.00094 | GA24: 0.00094 | GB24: 0.00094 | GC24: 0.00094 | GD24: 0.00094 | GE24: 0.00094 | GF24: 0.00094 | GG24: 0.00094 | GH24: 0.00094 | GI24: 0.00094 | GJ24: 0.00094 | GK24: 0.00094 | GL24: 0.00094 | GM24: 0.00094 | GN24: 0.00094 | GO24: 0.00094 | GP24: 0.00094 | GQ24: 0.00094 | GR24: 0.00094 | GS24: 0.00094 | GT24: 0.00094 | GU24: 0.00094 | GV24: 0.00094 | GW24: 0.00094 | GX24: 0.00094 | GY24: 0.00094 | GZ24: 0.00094 | HA24: 0.00094 | HB24: 0.00094 | HC24: 0.00094 | HD24: 0.00094 | HE24: 0.00094 | HF24: 0.00094 | HG24: 0.00094 | HH24: 0.00094 | HI24: 0.00094 | HJ24: 0.00094 | HK24: 0.00094 | HL24: 0.00094 | HM24: 0.00094 | HN24: 0.00094 | HO24: 0.00094 | HP24: 0.00094 | HQ24: 0.00094 | HR24: 0.00094 | HS24: 0.00094 | HT24: 0.00094 | HU24: 0.00094 | HV24: 0.00094 | HW24: 0.00094 | HX24: 0.00094 | HY24: 0.00094 | HZ24: 0.00094 | IA24: 0.00094 | IB24: 0.00094 | IC24: 0.00094 | ID24: 0.00094 | IE24: 0.00094 | IF24: 0.00094 | IG24: 0.00094 | IH24: 0.00094
A25: 24 | B25: 0.0013 | C25: 0.0006 | D25: 0.00231 | E25: 0.00478 | F25: 0.00695 | G25: 0.00655 | H25: 0.00775 | I25: 0.00718 | J25: 0.00441 | K25: 0.00359 | L25: 0.00295 | M25: 0.0007 | N25: 0.0001 | O25: 0.00065 | P25: 0.00143 | Q25: 0.00423 | R25: 0.0058 | S25: 0.00778 | T25: 0.0085 | U25: 0.00863 | V25: 0.01017 | W25: 0.01118 | X25: 0.0085 | Y25: 0.00863 | Z25: 0.01017 | AA25: 0.0085 | AB25: 0.00863 | AC25: 0.01017 | AD25: 0.01118 | AE25: 0.01118 | AF25: 0.01118 | AG25: 0.01118 | AH25: 0.01118 | AI25: 0.01118 | AJ25: 0.01118 | AK25: 0.01118 | AL25: 0.01118 | AM25: 0.01118 | AN25: 0.01118 | AO25: 0.01118 | AP25: 0.01118 | AQ25: 0.01118 | AR25: 0.01118 | AS25: 0.01118 | AT25: 0.01118 | AU25: 0.01118 | AV25: 0.01118 | AW25: 0.01118 | AX25: 0.01118 | AY25: 0.01118 | AZ25: 0.01118 | BA25: 0.01118 | BB25: 0.01118 | BC25: 0.01118 | BD25: 0.01118 | BE25: 0.01118 | BF25: 0.01118 | BG25: 0.01118 | BH25: 0.01118 | BI25: 0.01118 | BJ25: 0.01118 | BK25: 0.01118 | BL25: 0.01118 | BM25: 0.01118 | BN25: 0.01118 | BO25: 0.01118 | BP25: 0.01118 | BQ25: 0.01118 | BR25: 0.01118 | BS25: 0.01118 | BT25: 0.01118 | BU25: 0.01118 | BV25: 0.01118 | BW25: 0.01118 | BX25: 0.01118 | BY25: 0.01118 | BZ25: 0.01118 | CA25: 0.01118 | CB25: 0.01118 | CC25: 0.01118 | CD25: 0.01118 | CE25: 0.01118 | CF25: 0.01118 | CG25: 0.01118 | CH25: 0.01118 | CI25: 0.01118 | CJ25: 0.01118 | CK25: 0.01118 | CL25: 0.01118 | CM25: 0.01118 | CN25: 0.01118 | CO25: 0.01118 | CP25: 0.01118 | CQ25: 0.01118 | CR25: 0.01118 | CS25: 0.01118 | CT25: 0.01118 | CU25: 0.01118 | CV25: 0.01118 | CW25: 0.01118 | CX25: 0.01118 | CY25: 0.01118 | CZ25: 0.01118 | DA25: 0.01118 | DB25: 0.01118 | DC25: 0.01118 | DD25: 0.01118 | DE25: 0.01118 | DF25: 0.01118 | DG25: 0.01118 | DH25: 0.01118 | DI25: 0.01118 | DJ25: 0.01118 | DK25: 0.01118 | DL25: 0.01118 | DM25: 0.01118 | DN25: 0.01118 | DO25: 0.01118 | DP25: 0.01118 | DQ25: 0.01118 | DR25: 0.01118 | DS25: 0.01118 | DT25: 0.01118 | DU25: 0.01118 | DV25: 0.01118 | DW25: 0.01118 | DX25: 0.01118 | DY25: 0.01118 | DZ25: 0.01118 | EA25: 0.01118 | EB25: 0.01118 | EC25: 0.01118 | ED25: 0.01118 | EE25: 0.01118 | EF25: 0.01118 | EG25: 0.01118 | EH25: 0.01118 | EI25: 0.01118 | EJ25: 0.01118 | EK25: 0.01118 | EL25: 0.01118 | EM25: 0.01118 | EN25: 0.01118 | EO25: 0.01118 | EP25: 0.01118 | EQ25: 0.01118 | ER25: 0.01118 | ES25: 0.01118 | ET25: 0.01118 | EU25: 0.01118 | EV25: 0.01118 | EW25: 0.01118 | EX25: 0.01118 | EY25: 0.01118 | EZ25: 0.01118 | FA25: 0.01118 | FB25: 0.01118 | FC25: 0.01118 | FD25: 0.01118 | FE25: 0.01118 | FF25: 0.01118 | FG25: 0.01118 | FH25: 0.01118 | FI25: 0.01118 | FJ25: 0.01118 | FK25: 0.01118 | FL25: 0.01118 | FM25: 0.01118 | FN25: 0.01118 | FO25: 0.01118 | FP25: 0.01118 | FQ25: 0.01118 | FR25: 0.01118 | FS25: 0.01118 | FT25: 0.01118 | FU25: 0.01118 | FV25: 0.01118 | FW25: 0.01118 | FX25: 0.01118 | FY25: 0.01118 | FZ25: 0.01118 | GA25: 0.01118 | GB25: 0.01118 | GC25: 0.01118 | GD25: 0.01118 | GE25: 0.01118 | GF25: 0.01118 | GG25: 0.01118 | GH25: 0.01118 | GI25: 0.01118 | GJ25: 0.01118 | GK25: 0.01118 | GL25: 0.01118 | GM25: 0.01118 | GN25: 0.01118 | GO25: 0.01118 | GP25: 0.01118 | GQ25: 0.01118 | GR25: 0.01118 | GS25: 0.01118 | GT25: 0.01118 | GU25: 0.01118 | GV25: 0.01118 | GW25: 0.01118 | GX25: 0.01118 | GY25: 0.01118 | GZ25: 0.01118 | HA25: 0.01118 | HB25: 0.01118 | HC25: 0.01118 | HD25: 0.01118 | HE25: 0.01118 | HF25: 0.01118 | HG25: 0.01118 | HH25: 0.01118 | HI25: 0.01118 | HJ25: 0.01118 | HK25: 0.01118 | HL25: 0.01118 | HM25: 0.01118 | HN25: 0.01118 | HO25: 0.01118 | HP25: 0.01118 | HQ25: 0.01118 | HR25: 0.01118 | HS25: 0.01118 | HT25: 0.01118 | HU25: 0.01118 | HV25: 0.01118 | HW25: 0.01118 | HX25: 0.01118 | HY25: 0.01118 | HZ25: 0.01118 | IA25: 0.01118 | IB25: 0.01118 | IC25: 0.01118 | ID25: 0.01118 | IE25: 0.01118 | IF25: 0.01118 | IG25: 0.01118 | IH25: 0.01118
A26: 25 | B26: 0.0013 | C26: 0.00085 | D26: 0.00459 | E26: 0.00528 | F26: 0.00433 | G26: 0.00709 | H26: 0.00945 | I26: 0.00786 | J26: 0.01009 | K26: 0.00973 | L26: 0.00948 | M26: 0.0093 | N26: 0.00985 | O26: 0.01099 | P26: 0.00845 | Q26: 0.01178 | R26: 0.01324 | S26: 0.0139 | T26: 0.0139 | U26: 0.01317 | V26: 0.01315 | W26: 0.01398 | X26: 0.0139 | Y26: 0.01317 | Z26: 0.01315 | AA26: 0.0139 | AB26: 0.01317 | AC26: 0.01315 | AD26: 0.01398 | AE26: 0.01398 | AF26: 0.01398 | AG26: 0.01398 | AH26: 0.01398 | AI26: 0.01398 | AJ26: 0.01398 | AK26: 0.01398 | AL26: 0.01398 | AM26: 0.01398 | AN26: 0.01398 | AO26: 0.01398 | AP26: 0.01398 | AQ26: 0.01398 | AR26: 0.01398 | AS26: 0.01398 | AT26: 0.01398 | AU26: 0.01398 | AV26: 0.01398 | AW26: 0.01398 | AX26: 0.01398 | AY26: 0.01398 | AZ26: 0.01398 | BA26: 0.01398 | BB26: 0.01398 | BC26: 0.01398 | BD26: 0.01398 | BE26: 0.01398 | BF26: 0.01398 | BG26: 0.01398 | BH26: 0.01398 | BI26: 0.01398 | BJ26: 0.01398 | BK26: 0.01398 | BL26: 0.01398 | BM26: 0.01398 | BN26: 0.01398 | BO26: 0.01398 | BP26: 0.01398 | BQ26: 0.01398 | BR26: 0.01398 | BS26: 0.01398 | BT26: 0.01398 | BU26: 0.01398 | BV26: 0.01398 | BW26: 0.01398 | BX26: 0.01398 | BY26: 0.01398 | BZ26: 0.01398 | CA26: 0.01398 | CB26: 0.01398 | CC26: 0.01398 | CD26: 0.01398 | CE26: 0.01398 | CF26: 0.01398 | CG26: 0.01398 | CH26: 0.01398 | CI26: 0.01398 | CJ26: 0.01398 | CK26: 0.01398 | CL26: 0.01398 | CM26: 0.01398 | CN26: 0.01398 | CO26: 0.01398 | CP26: 0.01398 | CQ26: 0.01398 | CR26: 0.01398 | CS26: 0.01398 | CT26: 0.01398 | CU26: 0.01398 | CV26: 0.01398 | CW26: 0.01398 | CX26: 0.01398 | CY26: 0.01398 | CZ26: 0.01398 | DA26: 0.01398 | DB26: 0.01398 | DC26: 0.01398 | DD26: 0.01398 | DE26: 0.01398 | DF26: 0.01398 | DG26: 0.01398 | DH26: 0.01398 | DI26: 0.01398 | DJ26: 0.01398 | DK26: 0.01398 | DL26: 0.01398 | DM26: 0.01398 | DN26: 0.01398 | DO26: 0.01398 | DP26: 0.01398 | DQ26: 0.01398 | DR26: 0.01398 | DS26: 0.01398 | DT26: 0.01398 | DU26: 0.01398 | DV26: 0.01398 | DW26: 0.01398 | DX26: 0.01398 | DY26: 0.01398 | DZ26: 0.01398 | EA26: 0.01398 | EB26: 0.01398 | EC26: 0.01398 | ED26: 0.01398 | EE26: 0.01398 | EF26: 0.01398 | EG26: 0.01398 | EH26: 0.01398 | EI26: 0.01398 | EJ26: 0.01398 | EK26: 0.01398 | EL26: 0.01398 | EM26: 0.01398 | EN26: 0.01398 | EO26: 0.01398 | EP26: 0.01398 | EQ26: 0.01398 | ER26: 0.01398 | ES26: 0.01398 | ET26: 0.01398 | EU26: 0.01398 | EV26: 0.01398 | EW26: 0.01398 | EX26: 0.01398 | EY26: 0.01398 | EZ26: 0.01398 | FA26: 0.01398 | FB26: 0.01398 | FC26: 0.01398 | FD26: 0.01398 | FE26: 0.01398 | FF26: 0.01398 | FG26: 0.01398 | FH26: 0.01398 | FI26: 0.01398 | FJ26: 0.01398 | FK26: 0.01398 | FL26: 0.01398 | FM26: 0.01398 | FN26: 0.01398 | FO26: 0.01398 | FP26: 0.01398 | FQ26: 0.01398 | FR26: 0.01398 | FS26: 0.01398 | FT26: 0.01398 | FU26: 0.01398 | FV26: 0.01398 | FW26: 0.01398 | FX26: 0.01398 | FY26: 0.01398 | FZ26: 0.01398 | GA26: 0.01398 | GB26: 0.01398 | GC26: 0.01398 | GD26: 0.01398 | GE26: 0.01398 | GF26: 0.01398 | GG26: 0.01398 | GH26: 0.01398 | GI26: 0.01398 | GJ26: 0.01398 | GK26: 0.01398 | GL26: 0.01398 | GM26: 0.01398 | GN26: 0.01398 | GO26: 0.01398 | GP26: 0.01398 | GQ26: 0.01398 | GR26: 0.01398 | GS26: 0.01398 | GT26: 0.01398 | GU26: 0.01398 | GV26: 0.01398 | GW26: 0.01398 | GX26: 0.01398 | GY26: 0.01398 | GZ26: 0.01398 | HA26: 0.01398 | HB26: 0.01398 | HC26: 0.01398 | HD26: 0.01398 | HE26: 0.01398 | HF26: 0.01398 | HG26: 0.01398 | HH26: 0.01398 | HI26: 0.01398 | HJ26: 0.01398 | HK26: 0.01398 | HL26: 0.01398 | HM26: 0.01398 | HN26: 0.01398 | HO26: 0.01398 | HP26: 0.01398 | HQ26: 0.01398 | HR26: 0.01398 | HS26: 0.01398 | HT26: 0.01398 | HU26: 0.01398 | HV26: 0.01398 | HW26: 0.01398 | HX26: 0.01398 | HY26: 0.01398 | HZ26: 0.01398 | IA26: 0.01398 | IB26: 0.01398 | IC26: 0.01398 | ID26: 0.01398 | IE26: 0.01398 | IF26: 0.01398 | IG26: 0.01398 | IH26: 0.01398
A27: 26 | B27: 0.0013 | C27: 0.00325 | D27: 0.0018 | E27: 0.00137 | F27: 0.0018 | G27: 0.0001 | H27: 0.0001 | I27: 0.0001 | J27: 0.0001 | K27: 0.0001 | L27: 0.0001 | M27: 0.0001 | N27: 0.0001 | O27: 0.0001 | P27: 0.0001 | Q27: 0.0001 | R27: 0.0001 | S27: 0.0001 | T27: 0.0001 | U27: 0.0001 | V27: 0.0001 | W27: 0.0001 | X27: 0.0001 | Y27: 0.0001 | Z27: 0.0001 | AA27: 0.0001 | AB27: 0.0001 | AC27: 0.0001 | AD27: 0.0001 | AE27: 0.0001 | AF27: 0.0001 | AG27: 0.0001 | AH27: 0.0001 | AI27: 0.0001 | AJ27: 0.0001 | AK27: 0.0001 | AL27: 0.0001 | AM27: 0.0001 | AN27: 0.0001 | AO27: 0.0001 | AP27: 0.0001 | AQ27: 0.0001 | AR27: 0.0001 | AS27: 0.0001 | AT27: 0.0001 | AU27: 0.0001 | AV27: 0.0001 | AW27: 0.0001 | AX27: 0.0001 | AY27: 0.0001 | AZ27: 0.0001 | BA27: 0.0001 | BB27: 0.0001 | BC27: 0.0001 | BD27: 0.0001 | BE27: 0.0001 | BF27: 0.0001 | BG27: 0.0001 | BH27: 0.0001 | BI27: 0.0001 | BJ27: 0.0001 | BK27: 0.0001 | BL27: 0.0001 | BM27: 0.0001 | BN27: 0.0001 | BO27: 0.0001 | BP27: 0.0001 | BQ27: 0.0001 | BR27: 0.0001 | BS27: 0.0001 | BT27: 0.0001 | BU27: 0.0001 | BV27: 0.0001 | BW27: 0.0001 | BX27: 0.0001 | BY27: 0.0001 | BZ27: 0.0001 | CA27: 0.0001 | CB27: 0.0001 | CC27: 0.0001 | CD27: 0.0001 | CE27: 0.0001 | CF27: 0.0001 | CG27: 0.0001 | CH27: 0.0001 | CI27: 0.0001 | CJ27: 0.0001 | CK27: 0.0001 | CL27: 0.0001 | CM27: 0.0001 | CN27: 0.0001 | CO27: 0.0001 | CP27: 0.0001 | CQ27: 0.0001 | CR27: 0.0001 | CS27: 0.0001 | CT27: 0.0001 | CU27: 0.0001 | CV27: 0.0001 | CW27: 0.0001 | CX27: 0.0001 | CY27: 0.0001 | CZ27: 0.0001 | DA27: 0.0001 | DB27: 0.0001 | DC27: 0.0001 | DD27: 0.0001 | DE27: 0.0001 | DF27: 0.0001 | DG27: 0.0001 | DH27: 0.0001 | DI27: 0.0001 | DJ27: 0.0001 | DK27: 0.0001 | DL27: 0.0001 | DM27: 0.0001 | DN27: 0.0001 | DO27: 0.0001 | DP27: 0.0001 | DQ27: 0.0001 | DR27: 0.0001 | DS27: 0.0001 | DT27: 0.0001 | DU27: 0.0001 | DV27: 0.0001 | DW27: 0.0001 | DX27: 0.0001 | DY27: 0.0001 | DZ27: 0.0001 | EA27: 0.0001 | EB27: 0.0001 | EC27: 0.0001 | ED27: 0.0001 | EE27: 0.0001 | EF27: 0.0001 | EG27: 0.0001 | EH27: 0.0001 | EI27: 0.0001 | EJ27: 0.0001 | EK27: 0.0001 | EL27: 0.0001 | EM27: 0.0001 | EN27: 0.0001 | EO27: 0.0001 | EP27: 0.0001 | EQ27: 0.0001 | ER27: 0.0001 | ES27: 0.0001 | ET27: 0.0001 | EU27: 0.0001 | EV27: 0.0001 | EW27: 0.0001 | EX27: 0.0001 | EY27: 0.0001 | EZ27: 0.0001 | FA27: 0.0001 | FB27: 0.0001 | FC27: 0.0001 | FD27: 0.0001 | FE27: 0.0001 | FF27: 0.0001 | FG27: 0.0001 | FH27: 0.0001 | FI27: 0.0001 | FJ27: 0.0001 | FK27: 0.0001 | FL27: 0.0001 | FM27: 0.0001 | FN27: 0.0001 | FO27: 0.0001 | FP27: 0.0001 | FQ27: 0.0001 | FR27: 0.0001 | FS27: 0.0001 | FT27: 0.0001 | FU27: 0.0001 | FV27: 0.0001 | FW27: 0.0001 | FX27: 0.0001 | FY27: 0.0001 | FZ27: 0.0001 | GA27: 0.0001 | GB27: 0.0001 | GC27: 0.0001 | GD27: 0.0001 | GE27: 0.0001 | GF27: 0.0001 | GG27: 0.0001 | GH27: 0.0001 | GI27: 0.0001 | GJ27: 0.0001 | GK27: 0.0001 | GL27: 0.0001 | GM27: 0.0001 | GN27: 0.0001 | GO27: 0.0001 | GP27: 0.0001 | GQ27: 0.0001 | GR27: 0.0001 | GS27: 0.0001 | GT27: 0.0001 | GU27: 0.0001 | GV27: 0.0001 | GW27: 0.0001 | GX27: 0.0001 | GY27: 0.0001 | GZ27: 0.0001 | HA27: 0.0001 | HB27: 0.0001 | HC27: 0.0001 | HD27: 0.0001 | HE27: 0.0001 | HF27: 0.0001 | HG27: 0.0001 | HH27: 0.0001 | HI27: 0.0001 | HJ27: 0.0001 | HK27: 0.0001 | HL27: 0.0001 | HM27: 0.0001 | HN27: 0.0001 | HO27: 0.0001 | HP27: 0.0001 | HQ27: 0.0001 | HR27: 0.0001 | HS27: 0.0001 | HT27: 0.0001 | HU27: 0.0001 | HV27: 0.0001 | HW27: 0.0001 | HX27: 0.0001 | HY27: 0.0001 | HZ27: 0.0001 | IA27: 0.0001 | IB27: 0.0001 | IC27: 0.0001 | ID27: 0.0001 | IE27: 0.0001 | IF27: 0.0001 | IG27: 0.0001 | IH27: 0.0001
A28: 27 | B28: 0.0013 | C28: 0.0019 | D28: 0.00369 | E28: 0.00423 | F28: 0.004 | G28: 0.00275 | H28: 0.00244 | I28: 0.00279 | J28: 0.00283 | K28: 0.00482 | L28: 0.00705 | M28: 0.00464 | N28: 0.00326 | O28: 0.00352 | P28: 0.00382 | Q28: 0.00302 | R28: 0.00535 | S28: 0.00502 | T28: 0.0044 | U28: 0.003 | V28: 0.0001 | W28: 0.0001 | X28: 0.0044 | Y28: 0.003 | Z28: 0.0001 | AA28: 0.0044 | AB28: 0.003 | AC28: 0.0001 | AD28: 0.0001 | AE28: 0.0001 | AF28: 0.0001 | AG28: 0.0001 | AH28: 0.0001 | AI28: 0.0001 | AJ28: 0.0001 | AK28: 0.0001 | AL28: 0.0001 | AM28: 0.0001 | AN28: 0.0001 | AO28: 0.0001 | AP28: 0.0001 | AQ28: 0.0001 | AR28: 0.0001 | AS28: 0.0001 | AT28: 0.0001 | AU28: 0.0001 | AV28: 0.0001 | AW28: 0.0001 | AX28: 0.0001 | AY28: 0.0001 | AZ28: 0.0001 | BA28: 0.0001 | BB28: 0.0001 | BC28: 0.0001 | BD28: 0.0001 | BE28: 0.0001 | BF28: 0.0001 | BG28: 0.0001 | BH28: 0.0001 | BI28: 0.0001 | BJ28: 0.0001 | BK28: 0.0001 | BL28: 0.0001 | BM28: 0.0001 | BN28: 0.0001 | BO28: 0.0001 | BP28: 0.0001 | BQ28: 0.0001 | BR28: 0.0001 | BS28: 0.0001 | BT28: 0.0001 | BU28: 0.0001 | BV28: 0.0001 | BW28: 0.0001 | BX28: 0.0001 | BY28: 0.0001 | BZ28: 0.0001 | CA28: 0.0001 | CB28: 0.0001 | CC28: 0.0001 | CD28: 0.0001 | CE28: 0.0001 | CF28: 0.0001 | CG28: 0.0001 | CH28: 0.0001 | CI28: 0.0001 | CJ28: 0.0001 | CK28: 0.0001 | CL28: 0.0001 | CM28: 0.0001 | CN28: 0.0001 | CO28: 0.0001 | CP28: 0.0001 | CQ28: 0.0001 | CR28: 0.0001 | CS28: 0.0001 | CT28: 0.0001 | CU28: 0.0001 | CV28: 0.0001 | CW28: 0.0001 | CX28: 0.0001 | CY28: 0.0001 | CZ28: 0.0001 | DA28: 0.0001 | DB28: 0.0001 | DC28: 0.0001 | DD28: 0.0001 | DE28: 0.0001 | DF28: 0.0001 | DG28: 0.0001 | DH28: 0.0001 | DI28: 0.0001 | DJ28: 0.0001 | DK28: 0.0001 | DL28: 0.0001 | DM28: 0.0001 | DN28: 0.0001 | DO28: 0.0001 | DP28: 0.0001 | DQ28: 0.0001 | DR28: 0.0001 | DS28: 0.0001 | DT28: 0.0001 | DU28: 0.0001 | DV28: 0.0001 | DW28: 0.0001 | DX28: 0.0001 | DY28: 0.0001 | DZ28: 0.0001 | EA28: 0.0001 | EB28: 0.0001 | EC28: 0.0001 | ED28: 0.0001 | EE28: 0.0001 | EF28: 0.0001 | EG28: 0.0001 | EH28: 0.0001 | EI28: 0.0001 | EJ28: 0.0001 | EK28: 0.0001 | EL28: 0.0001 | EM28: 0.0001 | EN28: 0.0001 | EO28: 0.0001 | EP28: 0.0001 | EQ28: 0.0001 | ER28: 0.0001 | ES28: 0.0001 | ET28: 0.0001 | EU28: 0.0001 | EV28: 0.0001 | EW28: 0.0001 | EX28: 0.0001 | EY28: 0.0001 | EZ28: 0.0001 | FA28: 0.0001 | FB28: 0.0001 | FC28: 0.0001 | FD28: 0.0001 | FE28: 0.0001 | FF28: 0.0001 | FG28: 0.0001 | FH28: 0.0001 | FI28: 0.0001 | FJ28: 0.0001 | FK28: 0.0001 | FL28: 0.0001 | FM28: 0.0001 | FN28: 0.0001 | FO28: 0.0001 | FP28: 0.0001 | FQ28: 0.0001 | FR28: 0.0001 | FS28: 0.0001 | FT28: 0.0001 | FU28: 0.0001 | FV28: 0.0001 | FW28: 0.0001 | FX28: 0.0001 | FY28: 0.0001 | FZ28: 0.0001 | GA28: 0.0001 | GB28: 0.0001 | GC28: 0.0001 | GD28: 0.0001 | GE28: 0.0001 | GF28: 0.0001 | GG28: 0.0001 | GH28: 0.0001 | GI28: 0.0001 | GJ28: 0.0001 | GK28: 0.0001 | GL28: 0.0001 | GM28: 0.0001 | GN28: 0.0001 | GO28: 0.0001 | GP28: 0.0001 | GQ28: 0.0001 | GR28: 0.0001 | GS28: 0.0001 | GT28: 0.0001 | GU28: 0.0001 | GV28: 0.0001 | GW28: 0.0001 | GX28: 0.0001 | GY28: 0.0001 | GZ28: 0.0001 | HA28: 0.0001 | HB28: 0.0001 | HC28: 0.0001 | HD28: 0.0001 | HE28: 0.0001 | HF28: 0.0001 | HG28: 0.0001 | HH28: 0.0001 | HI28: 0.0001 | HJ28: 0.0001 | HK28: 0.0001 | HL28: 0.0001 | HM28: 0.0001 | HN28: 0.0001 | HO28: 0.0001 | HP28: 0.0001 | HQ28: 0.0001 | HR28: 0.0001 | HS28: 0.0001 | HT28: 0.0001 | HU28: 0.0001 | HV28: 0.0001 | HW28: 0.0001 | HX28: 0.0001 | HY28: 0.0001 | HZ28: 0.0001 | IA28: 0.0001 | IB28: 0.0001 | IC28: 0.0001 | ID28: 0.0001 | IE28: 0.0001 | IF28: 0.0001 | IG28: 0.0001 | IH28: 0.0001
A29: 28 | B29: 0.0013 | C29: 0.0019 | D29: 0.00144 | E29: 0.0001 | F29: 0.00307 | G29: 0.00526 | H29: 0.00526 | I29: 0.00666 | J29: 0.00754 | K29: 0.00851 | L29: 0.007 | M29: 0.00727 | N29: 0.00853 | O29: 0.00942 | P29: 0.00943 | Q29: 0.00936 | R29: 0.01009 | S29: 0.0088 | T29: 0.01209 | U29: 0.01253 | V29: 0.01639 | W29: 0.01507 | X29: 0.01209 | Y29: 0.01253 | Z29: 0.01639 | AA29: 0.01209 | AB29: 0.01253 | AC29: 0.01639 | AD29: 0.01507 | AE29: 0.01507 | AF29: 0.01507 | AG29: 0.01507 | AH29: 0.01507 | AI29: 0.01507 | AJ29: 0.01507 | AK29: 0.01507 | AL29: 0.01507 | AM29: 0.01507 | AN29: 0.01507 | AO29: 0.01507 | AP29: 0.01507 | AQ29: 0.01507 | AR29: 0.01507 | AS29: 0.01507 | AT29: 0.01507 | AU29: 0.01507 | AV29: 0.01507 | AW29: 0.01507 | AX29: 0.01507 | AY29: 0.01507 | AZ29: 0.01507 | BA29: 0.01507 | BB29: 0.01507 | BC29: 0.01507 | BD29: 0.01507 | BE29: 0.01507 | BF29: 0.01507 | BG29: 0.01507 | BH29: 0.01507 | BI29: 0.01507 | BJ29: 0.01507 | BK29: 0.01507 | BL29: 0.01507 | BM29: 0.01507 | BN29: 0.01507 | BO29: 0.01507 | BP29: 0.01507 | BQ29: 0.01507 | BR29: 0.01507 | BS29: 0.01507 | BT29: 0.01507 | BU29: 0.01507 | BV29: 0.01507 | BW29: 0.01507 | BX29: 0.01507 | BY29: 0.01507 | BZ29: 0.01507 | CA29: 0.01507 | CB29: 0.01507 | CC29: 0.01507 | CD29: 0.01507 | CE29: 0.01507 | CF29: 0.01507 | CG29: 0.01507 | CH29: 0.01507 | CI29: 0.01507 | CJ29: 0.01507 | CK29: 0.01507 | CL29: 0.01507 | CM29: 0.01507 | CN29: 0.01507 | CO29: 0.01507 | CP29: 0.01507 | CQ29: 0.01507 | CR29: 0.01507 | CS29: 0.01507 | CT29: 0.01507 | CU29: 0.01507 | CV29: 0.01507 | CW29: 0.01507 | CX29: 0.01507 | CY29: 0.01507 | CZ29: 0.01507 | DA29: 0.01507 | DB29: 0.01507 | DC29: 0.01507 | DD29: 0.01507 | DE29: 0.01507 | DF29: 0.01507 | DG29: 0.01507 | DH29: 0.01507 | DI29: 0.01507 | DJ29: 0.01507 | DK29: 0.01507 | DL29: 0.01507 | DM29: 0.01507 | DN29: 0.01507 | DO29: 0.01507 | DP29: 0.01507 | DQ29: 0.01507 | DR29: 0.01507 | DS29: 0.01507 | DT29: 0.01507 | DU29: 0.01507 | DV29: 0.01507 | DW29: 0.01507 | DX29: 0.01507 | DY29: 0.01507 | DZ29: 0.01507 | EA29: 0.01507 | EB29: 0.01507 | EC29: 0.01507 | ED29: 0.01507 | EE29: 0.01507 | EF29: 0.01507 | EG29: 0.01507 | EH29: 0.01507 | EI29: 0.01507 | EJ29: 0.01507 | EK29: 0.01507 | EL29: 0.01507 | EM29: 0.01507 | EN29: 0.01507 | EO29: 0.01507 | EP29: 0.01507 | EQ29: 0.01507 | ER29: 0.01507 | ES29: 0.01507 | ET29: 0.01507 | EU29: 0.01507 | EV29: 0.01507 | EW29: 0.01507 | EX29: 0.01507 | EY29: 0.01507 | EZ29: 0.01507 | FA29: 0.01507 | FB29: 0.01507 | FC29: 0.01507 | FD29: 0.01507 | FE29: 0.01507 | FF29: 0.01507 | FG29: 0.01507 | FH29: 0.01507 | FI29: 0.01507 | FJ29: 0.01507 | FK29: 0.01507 | FL29: 0.01507 | FM29: 0.01507 | FN29: 0.01507 | FO29: 0.01507 | FP29: 0.01507 | FQ29: 0.01507 | FR29: 0.01507 | FS29: 0.01507 | FT29: 0.01507 | FU29: 0.01507 | FV29: 0.01507 | FW29: 0.01507 | FX29: 0.01507 | FY29: 0.01507 | FZ29: 0.01507 | GA29: 0.01507 | GB29: 0.01507 | GC29: 0.01507 | GD29: 0.01507 | GE29: 0.01507 | GF29: 0.01507 | GG29: 0.01507 | GH29: 0.01507 | GI29: 0.01507 | GJ29: 0.01507 | GK29: 0.01507 | GL29: 0.01507 | GM29: 0.01507 | GN29: 0.01507 | GO29: 0.01507 | GP29: 0.01507 | GQ29: 0.01507 | GR29: 0.01507 | GS29: 0.01507 | GT29: 0.01507 | GU29: 0.01507 | GV29: 0.01507 | GW29: 0.01507 | GX29: 0.01507 | GY29: 0.01507 | GZ29: 0.01507 | HA29: 0.01507 | HB29: 0.01507 | HC29: 0.01507 | HD29: 0.01507 | HE29: 0.01507 | HF29: 0.01507 | HG29: 0.01507 | HH29: 0.01507 | HI29: 0.01507 | HJ29: 0.01507 | HK29: 0.01507 | HL29: 0.01507 | HM29: 0.01507 | HN29: 0.01507 | HO29: 0.01507 | HP29: 0.01507 | HQ29: 0.01507 | HR29: 0.01507 | HS29: 0.01507 | HT29: 0.01507 | HU29: 0.01507 | HV29: 0.01507 | HW29: 0.01507 | HX29: 0.01507 | HY29: 0.01507 | HZ29: 0.01507 | IA29: 0.01507 | IB29: 0.01507 | IC29: 0.01507 | ID29: 0.01507 | IE29: 0.01507 | IF29: 0.01507 | IG29: 0.01507 | IH29: 0.01507
A30: 29 | B30: 0.0013 | C30: 0.00071 | D30: 0.00416 | E30: 0.00486 | F30: 0.00538 | G30: 0.00336 | H30: 0.00163 | I30: 0.00096 | J30: 0.0001 | K30: 0.0001 | L30: 0.0001 | M30: 0.00205 | N30: 0.00266 | O30: 0.00356 | P30: 0.00638 | Q30: 0.00477 | R30: 0.00841 | S30: 0.01046 | T30: 0.01 | U30: 0.01029 | V30: 0.00989 | W30: 0.00955 | X30: 0.01 | Y30: 0.01029 | Z30: 0.00989 | AA30: 0.01 | AB30: 0.01029 | AC30: 0.00989 | AD30: 0.00955 | AE30: 0.00955 | AF30: 0.00955 | AG30: 0.00955 | AH30: 0.00955 | AI30: 0.00955 | AJ30: 0.00955 | AK30: 0.00955 | AL30: 0.00955 | AM30: 0.00955 | AN30: 0.00955 | AO30: 0.00955 | AP30: 0.00955 | AQ30: 0.00955 | AR30: 0.00955 | AS30: 0.00955 | AT30: 0.00955 | AU30: 0.00955 | AV30: 0.00955 | AW30: 0.00955 | AX30: 0.00955 | AY30: 0.00955 | AZ30: 0.00955 | BA30: 0.00955 | BB30: 0.00955 | BC30: 0.00955 | BD30: 0.00955 | BE30: 0.00955 | BF30: 0.00955 | BG30: 0.00955 | BH30: 0.00955 | BI30: 0.00955 | BJ30: 0.00955 | BK30: 0.00955 | BL30: 0.00955 | BM30: 0.00955 | BN30: 0.00955 | BO30: 0.00955 | BP30: 0.00955 | BQ30: 0.00955 | BR30: 0.00955 | BS30: 0.00955 | BT30: 0.00955 | BU30: 0.00955 | BV30: 0.00955 | BW30: 0.00955 | BX30: 0.00955 | BY30: 0.00955 | BZ30: 0.00955 | CA30: 0.00955 | CB30: 0.00955 | CC30: 0.00955 | CD30: 0.00955 | CE30: 0.00955 | CF30: 0.00955 | CG30: 0.00955 | CH30: 0.00955 | CI30: 0.00955 | CJ30: 0.00955 | CK30: 0.00955 | CL30: 0.00955 | CM30: 0.00955 | CN30: 0.00955 | CO30: 0.00955 | CP30: 0.00955 | CQ30: 0.00955 | CR30: 0.00955 | CS30: 0.00955 | CT30: 0.00955 | CU30: 0.00955 | CV30: 0.00955 | CW30: 0.00955 | CX30: 0.00955 | CY30: 0.00955 | CZ30: 0.00955 | DA30: 0.00955 | DB30: 0.00955 | DC30: 0.00955 | DD30: 0.00955 | DE30: 0.00955 | DF30: 0.00955 | DG30: 0.00955 | DH30: 0.00955 | DI30: 0.00955 | DJ30: 0.00955 | DK30: 0.00955 | DL30: 0.00955 | DM30: 0.00955 | DN30: 0.00955 | DO30: 0.00955 | DP30: 0.00955 | DQ30: 0.00955 | DR30: 0.00955 | DS30: 0.00955 | DT30: 0.00955 | DU30: 0.00955 | DV30: 0.00955 | DW30: 0.00955 | DX30: 0.00955 | DY30: 0.00955 | DZ30: 0.00955 | EA30: 0.00955 | EB30: 0.00955 | EC30: 0.00955 | ED30: 0.00955 | EE30: 0.00955 | EF30: 0.00955 | EG30: 0.00955 | EH30: 0.00955 | EI30: 0.00955 | EJ30: 0.00955 | EK30: 0.00955 | EL30: 0.00955 | EM30: 0.00955 | EN30: 0.00955 | EO30: 0.00955 | EP30: 0.00955 | EQ30: 0.00955 | ER30: 0.00955 | ES30: 0.00955 | ET30: 0.00955 | EU30: 0.00955 | EV30: 0.00955 | EW30: 0.00955 | EX30: 0.00955 | EY30: 0.00955 | EZ30: 0.00955 | FA30: 0.00955 | FB30: 0.00955 | FC30: 0.00955 | FD30: 0.00955 | FE30: 0.00955 | FF30: 0.00955 | FG30: 0.00955 | FH30: 0.00955 | FI30: 0.00955 | FJ30: 0.00955 | FK30: 0.00955 | FL30: 0.00955 | FM30: 0.00955 | FN30: 0.00955 | FO30: 0.00955 | FP30: 0.00955 | FQ30: 0.00955 | FR30: 0.00955 | FS30: 0.00955 | FT30: 0.00955 | FU30: 0.00955 | FV30: 0.00955 | FW30: 0.00955 | FX30: 0.00955 | FY30: 0.00955 | FZ30: 0.00955 | GA30: 0.00955 | GB30: 0.00955 | GC30: 0.00955 | GD30: 0.00955 | GE30: 0.00955 | GF30: 0.00955 | GG30: 0.00955 | GH30: 0.00955 | GI30: 0.00955 | GJ30: 0.00955 | GK30: 0.00955 | GL30: 0.00955 | GM30: 0.00955 | GN30: 0.00955 | GO30: 0.00955 | GP30: 0.00955 | GQ30: 0.00955 | GR30: 0.00955 | GS30: 0.00955 | GT30: 0.00955 | GU30: 0.00955 | GV30: 0.00955 | GW30: 0.00955 | GX30: 0.00955 | GY30: 0.00955 | GZ30: 0.00955 | HA30: 0.00955 | HB30: 0.00955 | HC30: 0.00955 | HD30: 0.00955 | HE30: 0.00955 | HF30: 0.00955 | HG30: 0.00955 | HH30: 0.00955 | HI30: 0.00955 | HJ30: 0.00955 | HK30: 0.00955 | HL30: 0.00955 | HM30: 0.00955 | HN30: 0.00955 | HO30: 0.00955 | HP30: 0.00955 | HQ30: 0.00955 | HR30: 0.00955 | HS30: 0.00955 | HT30: 0.00955 | HU30: 0.00955 | HV30: 0.00955 | HW30: 0.00955 | HX30: 0.00955 | HY30: 0.00955 | HZ30: 0.00955 | IA30: 0.00955 | IB30: 0.00955 | IC30: 0.00955 | ID30: 0.00955 | IE30: 0.00955 | IF30: 0.00955 | IG30: 0.00955 | IH30: 0.00955
A31: 30 | B31: 0.0013 | C31: 0.00337 | D31: 0.0001 | E31: 0.0001 | F31: 0.0001 | G31: 0.00096 | H31: 0.00483 | I31: 0.00056 | J31: 0.0006 | K31: 0.00172 | L31: 0.00194 | M31: 0.00703 | N31: 0.00632 | O31: 0.0055 | P31: 0.00459 | Q31: 0.00723 | R31: 0.00765 | S31: 0.00886 | T31: 0.00829 | U31: 0.00811 | V31: 0.01134 | W31: 0.01091 | X31: 0.00829 | Y31: 0.00811 | Z31: 0.01134 | AA31: 0.00829 | AB31: 0.00811 | AC31: 0.01134 | AD31: 0.01091 | AE31: 0.01091 | AF31: 0.01091 | AG31: 0.01091 | AH31: 0.01091 | AI31: 0.01091 | AJ31: 0.01091 | AK31: 0.01091 | AL31: 0.01091 | AM31: 0.01091 | AN31: 0.01091 | AO31: 0.01091 | AP31: 0.01091 | AQ31: 0.01091 | AR31: 0.01091 | AS31: 0.01091 | AT31: 0.01091 | AU31: 0.01091 | AV31: 0.01091 | AW31: 0.01091 | AX31: 0.01091 | AY31: 0.01091 | AZ31: 0.01091 | BA31: 0.01091 | BB31: 0.01091 | BC31: 0.01091 | BD31: 0.01091 | BE31: 0.01091 | BF31: 0.01091 | BG31: 0.01091 | BH31: 0.01091 | BI31: 0.01091 | BJ31: 0.01091 | BK31: 0.01091 | BL31: 0.01091 | BM31: 0.01091 | BN31: 0.01091 | BO31: 0.01091 | BP31: 0.01091 | BQ31: 0.01091 | BR31: 0.01091 | BS31: 0.01091 | BT31: 0.01091 | BU31: 0.01091 | BV31: 0.01091 | BW31: 0.01091 | BX31: 0.01091 | BY31: 0.01091 | BZ31: 0.01091 | CA31: 0.01091 | CB31: 0.01091 | CC31: 0.01091 | CD31: 0.01091 | CE31: 0.01091 | CF31: 0.01091 | CG31: 0.01091 | CH31: 0.01091 | CI31: 0.01091 | CJ31: 0.01091 | CK31: 0.01091 | CL31: 0.01091 | CM31: 0.01091 | CN31: 0.01091 | CO31: 0.01091 | CP31: 0.01091 | CQ31: 0.01091 | CR31: 0.01091 | CS31: 0.01091 | CT31: 0.01091 | CU31: 0.01091 | CV31: 0.01091 | CW31: 0.01091 | CX31: 0.01091 | CY31: 0.01091 | CZ31: 0.01091 | DA31: 0.01091 | DB31: 0.01091 | DC31: 0.01091 | DD31: 0.01091 | DE31: 0.01091 | DF31: 0.01091 | DG31: 0.01091 | DH31: 0.01091 | DI31: 0.01091 | DJ31: 0.01091 | DK31: 0.01091 | DL31: 0.01091 | DM31: 0.01091 | DN31: 0.01091 | DO31: 0.01091 | DP31: 0.01091 | DQ31: 0.01091 | DR31: 0.01091 | DS31: 0.01091 | DT31: 0.01091 | DU31: 0.01091 | DV31: 0.01091 | DW31: 0.01091 | DX31: 0.01091 | DY31: 0.01091 | DZ31: 0.01091 | EA31: 0.01091 | EB31: 0.01091 | EC31: 0.01091 | ED31: 0.01091 | EE31: 0.01091 | EF31: 0.01091 | EG31: 0.01091 | EH31: 0.01091 | EI31: 0.01091 | EJ31: 0.01091 | EK31: 0.01091 | EL31: 0.01091 | EM31: 0.01091 | EN31: 0.01091 | EO31: 0.01091 | EP31: 0.01091 | EQ31: 0.01091 | ER31: 0.01091 | ES31: 0.01091 | ET31: 0.01091 | EU31: 0.01091 | EV31: 0.01091 | EW31: 0.01091 | EX31: 0.01091 | EY31: 0.01091 | EZ31: 0.01091 | FA31: 0.01091 | FB31: 0.01091 | FC31: 0.01091 | FD31: 0.01091 | FE31: 0.01091 | FF31: 0.01091 | FG31: 0.01091 | FH31: 0.01091 | FI31: 0.01091 | FJ31: 0.01091 | FK31: 0.01091 | FL31: 0.01091 | FM31: 0.01091 | FN31: 0.01091 | FO31: 0.01091 | FP31: 0.01091 | FQ31: 0.01091 | FR31: 0.01091 | FS31: 0.01091 | FT31: 0.01091 | FU31: 0.01091 | FV31: 0.01091 | FW31: 0.01091 | FX31: 0.01091 | FY31: 0.01091 | FZ31: 0.01091 | GA31: 0.01091 | GB31: 0.01091 | GC31: 0.01091 | GD31: 0.01091 | GE31: 0.01091 | GF31: 0.01091 | GG31: 0.01091 | GH31: 0.01091 | GI31: 0.01091 | GJ31: 0.01091 | GK31: 0.01091 | GL31: 0.01091 | GM31: 0.01091 | GN31: 0.01091 | GO31: 0.01091 | GP31: 0.01091 | GQ31: 0.01091 | GR31: 0.01091 | GS31: 0.01091 | GT31: 0.01091 | GU31: 0.01091 | GV31: 0.01091 | GW31: 0.01091 | GX31: 0.01091 | GY31: 0.01091 | GZ31: 0.01091 | HA31: 0.01091 | HB31: 0.01091 | HC31: 0.01091 | HD31: 0.01091 | HE31: 0.01091 | HF31: 0.01091 | HG31: 0.01091 | HH31: 0.01091 | HI31: 0.01091 | HJ31: 0.01091 | HK31: 0.01091 | HL31: 0.01091 | HM31: 0.01091 | HN31: 0.01091 | HO31: 0.01091 | HP31: 0.01091 | HQ31: 0.01091 | HR31: 0.01091 | HS31: 0.01091 | HT31: 0.01091 | HU31: 0.01091 | HV31: 0.01091 | HW31: 0.01091 | HX31: 0.01091 | HY31: 0.01091 | HZ31: 0.01091 | IA31: 0.01091 | IB31: 0.01091 | IC31: 0.01091 | ID31: 0.01091 | IE31: 0.01091 | IF31: 0.01091 | IG31: 0.01091 | IH31: 0.01091
A32: 31 | B32: 0.0013 | C32: 0.00173 | D32: 0.00147 | E32: 0.00116 | F32: 0.0001 | G32: 0.0001 | H32: 0.0001 | I32: 0.00375 | J32: 0.00464 | K32: 0.00674 | L32: 0.00646 | M32: 0.00574 | N32: 0.00378 | O32: 0.00309 | P32: 0.00608 | Q32: 0.00917 | R32: 0.01028 | S32: 0.01272 | T32: 0.01191 | U32: 0.01049 | V32: 0.01175 | W32: 0.00989 | X32: 0.01191 | Y32: 0.01049 | Z32: 0.01175 | AA32: 0.01191 | AB32: 0.01049 | AC32: 0.01175 | AD32: 0.00989 | AE32: 0.00989 | AF32: 0.00989 | AG32: 0.00989 | AH32: 0.00989 | AI32: 0.00989 | AJ32: 0.00989 | AK32: 0.00989 | AL32: 0.00989 | AM32: 0.00989 | AN32: 0.00989 | AO32: 0.00989 | AP32: 0.00989 | AQ32: 0.00989 | AR32: 0.00989 | AS32: 0.00989 | AT32: 0.00989 | AU32: 0.00989 | AV32: 0.00989 | AW32: 0.00989 | AX32: 0.00989 | AY32: 0.00989 | AZ32: 0.00989 | BA32: 0.00989 | BB32: 0.00989 | BC32: 0.00989 | BD32: 0.00989 | BE32: 0.00989 | BF32: 0.00989 | BG32: 0.00989 | BH32: 0.00989 | BI32: 0.00989 | BJ32: 0.00989 | BK32: 0.00989 | BL32: 0.00989 | BM32: 0.00989 | BN32: 0.00989 | BO32: 0.00989 | BP32: 0.00989 | BQ32: 0.00989 | BR32: 0.00989 | BS32: 0.00989 | BT32: 0.00989 | BU32: 0.00989 | BV32: 0.00989 | BW32: 0.00989 | BX32: 0.00989 | BY32: 0.00989 | BZ32: 0.00989 | CA32: 0.00989 | CB32: 0.00989 | CC32: 0.00989 | CD32: 0.00989 | CE32: 0.00989 | CF32: 0.00989 | CG32: 0.00989 | CH32: 0.00989 | CI32: 0.00989 | CJ32: 0.00989 | CK32: 0.00989 | CL32: 0.00989 | CM32: 0.00989 | CN32: 0.00989 | CO32: 0.00989 | CP32: 0.00989 | CQ32: 0.00989 | CR32: 0.00989 | CS32: 0.00989 | CT32: 0.00989 | CU32: 0.00989 | CV32: 0.00989 | CW32: 0.00989 | CX32: 0.00989 | CY32: 0.00989 | CZ32: 0.00989 | DA32: 0.00989 | DB32: 0.00989 | DC32: 0.00989 | DD32: 0.00989 | DE32: 0.00989 | DF32: 0.00989 | DG32: 0.00989 | DH32: 0.00989 | DI32: 0.00989 | DJ32: 0.00989 | DK32: 0.00989 | DL32: 0.00989 | DM32: 0.00989 | DN32: 0.00989 | DO32: 0.00989 | DP32: 0.00989 | DQ32: 0.00989 | DR32: 0.00989 | DS32: 0.00989 | DT32: 0.00989 | DU32: 0.00989 | DV32: 0.00989 | DW32: 0.00989 | DX32: 0.00989 | DY32: 0.00989 | DZ32: 0.00989 | EA32: 0.00989 | EB32: 0.00989 | EC32: 0.00989 | ED32: 0.00989 | EE32: 0.00989 | EF32: 0.00989 | EG32: 0.00989 | EH32: 0.00989 | EI32: 0.00989 | EJ32: 0.00989 | EK32: 0.00989 | EL32: 0.00989 | EM32: 0.00989 | EN32: 0.00989 | EO32: 0.00989 | EP32: 0.00989 | EQ32: 0.00989 | ER32: 0.00989 | ES32: 0.00989 | ET32: 0.00989 | EU32: 0.00989 | EV32: 0.00989 | EW32: 0.00989 | EX32: 0.00989 | EY32: 0.00989 | EZ32: 0.00989 | FA32: 0.00989 | FB32: 0.00989 | FC32: 0.00989 | FD32: 0.00989 | FE32: 0.00989 | FF32: 0.00989 | FG32: 0.00989 | FH32: 0.00989 | FI32: 0.00989 | FJ32: 0.00989 | FK32: 0.00989 | FL32: 0.00989 | FM32: 0.00989 | FN32: 0.00989 | FO32: 0.00989 | FP32: 0.00989 | FQ32: 0.00989 | FR32: 0.00989 | FS32: 0.00989 | FT32: 0.00989 | FU32: 0.00989 | FV32: 0.00989 | FW32: 0.00989 | FX32: 0.00989 | FY32: 0.00989 | FZ32: 0.00989 | GA32: 0.00989 | GB32: 0.00989 | GC32: 0.00989 | GD32: 0.00989 | GE32: 0.00989 | GF32: 0.00989 | GG32: 0.00989 | GH32: 0.00989 | GI32: 0.00989 | GJ32: 0.00989 | GK32: 0.00989 | GL32: 0.00989 | GM32: 0.00989 | GN32: 0.00989 | GO32: 0.00989 | GP32: 0.00989 | GQ32: 0.00989 | GR32: 0.00989 | GS32: 0.00989 | GT32: 0.00989 | GU32: 0.00989 | GV32: 0.00989 | GW32: 0.00989 | GX32: 0.00989 | GY32: 0.00989 | GZ32: 0.00989 | HA32: 0.00989 | HB32: 0.00989 | HC32: 0.00989 | HD32: 0.00989 | HE32: 0.00989 | HF32: 0.00989 | HG32: 0.00989 | HH32: 0.00989 | HI32: 0.00989 | HJ32: 0.00989 | HK32: 0.00989 | HL32: 0.00989 | HM32: 0.00989 | HN32: 0.00989 | HO32: 0.00989 | HP32: 0.00989 | HQ32: 0.00989 | HR32: 0.00989 | HS32: 0.00989 | HT32: 0.00989 | HU32: 0.00989 | HV32: 0.00989 | HW32: 0.00989 | HX32: 0.00989 | HY32: 0.00989 | HZ32: 0.00989 | IA32: 0.00989 | IB32: 0.00989 | IC32: 0.00989 | ID32: 0.00989 | IE32: 0.00989 | IF32: 0.00989 | IG32: 0.00989 | IH32: 0.00989
A33: 32 | B33: 0.0013 | C33: 0.00202 | D33: 0.00326 | E33: 0.00428 | F33: 0.00524 | G33: 0.00408 | H33: 0.00466 | I33: 0.0063 | J33: 0.00855 | K33: 0.00788 | L33: 0.00804 | M33: 0.01142 | N33: 0.01261 | O33: 0.01225 | P33: 0.01097 | Q33: 0.01545 | R33: 0.01488 | S33: 0.01858 | T33: 0.01966 | U33: 0.02481 | V33: 0.02667 | W33: 0.02464 | X33: 0.01966 | Y33: 0.02481 | Z33: 0.02667 | AA33: 0.01966 | AB33: 0.02481 | AC33: 0.02667 | AD33: 0.02464 | AE33: 0.02464 | AF33: 0.02464 | AG33: 0.02464 | AH33: 0.02464 | AI33: 0.02464 | AJ33: 0.02464 | AK33: 0.02464 | AL33: 0.02464 | AM33: 0.02464 | AN33: 0.02464 | AO33: 0.02464 | AP33: 0.02464 | AQ33: 0.02464 | AR33: 0.02464 | AS33: 0.02464 | AT33: 0.02464 | AU33: 0.02464 | AV33: 0.02464 | AW33: 0.02464 | AX33: 0.02464 | AY33: 0.02464 | AZ33: 0.02464 | BA33: 0.02464 | BB33: 0.02464 | BC33: 0.02464 | BD33: 0.02464 | BE33: 0.02464 | BF33: 0.02464 | BG33: 0.02464 | BH33: 0.02464 | BI33: 0.02464 | BJ33: 0.02464 | BK33: 0.02464 | BL33: 0.02464 | BM33: 0.02464 | BN33: 0.02464 | BO33: 0.02464 | BP33: 0.02464 | BQ33: 0.02464 | BR33: 0.02464 | BS33: 0.02464 | BT33: 0.02464 | BU33: 0.02464 | BV33: 0.02464 | BW33: 0.02464 | BX33: 0.02464 | BY33: 0.02464 | BZ33: 0.02464 | CA33: 0.02464 | CB33: 0.02464 | CC33: 0.02464 | CD33: 0.02464 | CE33: 0.02464 | CF33: 0.02464 | CG33: 0.02464 | CH33: 0.02464 | CI33: 0.02464 | CJ33: 0.02464 | CK33: 0.02464 | CL33: 0.02464 | CM33: 0.02464 | CN33: 0.02464 | CO33: 0.02464 | CP33: 0.02464 | CQ33: 0.02464 | CR33: 0.02464 | CS33: 0.02464 | CT33: 0.02464 | CU33: 0.02464 | CV33: 0.02464 | CW33: 0.02464 | CX33: 0.02464 | CY33: 0.02464 | CZ33: 0.02464 | DA33: 0.02464 | DB33: 0.02464 | DC33: 0.02464 | DD33: 0.02464 | DE33: 0.02464 | DF33: 0.02464 | DG33: 0.02464 | DH33: 0.02464 | DI33: 0.02464 | DJ33: 0.02464 | DK33: 0.02464 | DL33: 0.02464 | DM33: 0.02464 | DN33: 0.02464 | DO33: 0.02464 | DP33: 0.02464 | DQ33: 0.02464 | DR33: 0.02464 | DS33: 0.02464 | DT33: 0.02464 | DU33: 0.02464 | DV33: 0.02464 | DW33: 0.02464 | DX33: 0.02464 | DY33: 0.02464 | DZ33: 0.02464 | EA33: 0.02464 | EB33: 0.02464 | EC33: 0.02464 | ED33: 0.02464 | EE33: 0.02464 | EF33: 0.02464 | EG33: 0.02464 | EH33: 0.02464 | EI33: 0.02464 | EJ33: 0.02464 | EK33: 0.02464 | EL33: 0.02464 | EM33: 0.02464 | EN33: 0.02464 | EO33: 0.02464 | EP33: 0.02464 | EQ33: 0.02464 | ER33: 0.02464 | ES33: 0.02464 | ET33: 0.02464 | EU33: 0.02464 | EV33: 0.02464 | EW33: 0.02464 | EX33: 0.02464 | EY33: 0.02464 | EZ33: 0.02464 | FA33: 0.02464 | FB33: 0.02464 | FC33: 0.02464 | FD33: 0.02464 | FE33: 0.02464 | FF33: 0.02464 | FG33: 0.02464 | FH33: 0.02464 | FI33: 0.02464 | FJ33: 0.02464 | FK33: 0.02464 | FL33: 0.02464 | FM33: 0.02464 | FN33: 0.02464 | FO33: 0.02464 | FP33: 0.02464 | FQ33: 0.02464 | FR33: 0.02464 | FS33: 0.02464 | FT33: 0.02464 | FU33: 0.02464 | FV33: 0.02464 | FW33: 0.02464 | FX33: 0.02464 | FY33: 0.02464 | FZ33: 0.02464 | GA33: 0.02464 | GB33: 0.02464 | GC33: 0.02464 | GD33: 0.02464 | GE33: 0.02464 | GF33: 0.02464 | GG33: 0.02464 | GH33: 0.02464 | GI33: 0.02464 | GJ33: 0.02464 | GK33: 0.02464 | GL33: 0.02464 | GM33: 0.02464 | GN33: 0.02464 | GO33: 0.02464 | GP33: 0.02464 | GQ33: 0.02464 | GR33: 0.02464 | GS33: 0.02464 | GT33: 0.02464 | GU33: 0.02464 | GV33: 0.02464 | GW33: 0.02464 | GX33: 0.02464 | GY33: 0.02464 | GZ33: 0.02464 | HA33: 0.02464 | HB33: 0.02464 | HC33: 0.02464 | HD33: 0.02464 | HE33: 0.02464 | HF33: 0.02464 | HG33: 0.02464 | HH33: 0.02464 | HI33: 0.02464 | HJ33: 0.02464 | HK33: 0.02464 | HL33: 0.02464 | HM33: 0.02464 | HN33: 0.02464 | HO33: 0.02464 | HP33: 0.02464 | HQ33: 0.02464 | HR33: 0.02464 | HS33: 0.02464 | HT33: 0.02464 | HU33: 0.02464 | HV33: 0.02464 | HW33: 0.02464 | HX33: 0.02464 | HY33: 0.02464 | HZ33: 0.02464 | IA33: 0.02464 | IB33: 0.02464 | IC33: 0.02464 | ID33: 0.02464 | IE33: 0.02464 | IF33: 0.02464 | IG33: 0.02464 | IH33: 0.02464
A34: 33 | B34: 0.0013 | C34: 0.00153 | D34: 0.00175 | E34: 0.00235 | F34: 0.00241 | G34: 0.00432 | H34: 0.00743 | I34: 0.00498 | J34: 0.00511 | K34: 0.00565 | L34: 0.00587 | M34: 0.00439 | N34: 0.00466 | O34: 0.00412 | P34: 0.00632 | Q34: 0.00801 | R34: 0.00613 | S34: 0.00588 | T34: 0.00693 | U34: 0.00734 | V34: 0.00745 | W34: 0.00573 | X34: 0.00693 | Y34: 0.00734 | Z34: 0.00745 | AA34: 0.00693 | AB34: 0.00734 | AC34: 0.00745 | AD34: 0.00573 | AE34: 0.00573 | AF34: 0.00573 | AG34: 0.00573 | AH34: 0.00573 | AI34: 0.00573 | AJ34: 0.00573 | AK34: 0.00573 | AL34: 0.00573 | AM34: 0.00573 | AN34: 0.00573 | AO34: 0.00573 | AP34: 0.00573 | AQ34: 0.00573 | AR34: 0.00573 | AS34: 0.00573 | AT34: 0.00573 | AU34: 0.00573 | AV34: 0.00573 | AW34: 0.00573 | AX34: 0.00573 | AY34: 0.00573 | AZ34: 0.00573 | BA34: 0.00573 | BB34: 0.00573 | BC34: 0.00573 | BD34: 0.00573 | BE34: 0.00573 | BF34: 0.00573 | BG34: 0.00573 | BH34: 0.00573 | BI34: 0.00573 | BJ34: 0.00573 | BK34: 0.00573 | BL34: 0.00573 | BM34: 0.00573 | BN34: 0.00573 | BO34: 0.00573 | BP34: 0.00573 | BQ34: 0.00573 | BR34: 0.00573 | BS34: 0.00573 | BT34: 0.00573 | BU34: 0.00573 | BV34: 0.00573 | BW34: 0.00573 | BX34: 0.00573 | BY34: 0.00573 | BZ34: 0.00573 | CA34: 0.00573 | CB34: 0.00573 | CC34: 0.00573 | CD34: 0.00573 | CE34: 0.00573 | CF34: 0.00573 | CG34: 0.00573 | CH34: 0.00573 | CI34: 0.00573 | CJ34: 0.00573 | CK34: 0.00573 | CL34: 0.00573 | CM34: 0.00573 | CN34: 0.00573 | CO34: 0.00573 | CP34: 0.00573 | CQ34: 0.00573 | CR34: 0.00573 | CS34: 0.00573 | CT34: 0.00573 | CU34: 0.00573 | CV34: 0.00573 | CW34: 0.00573 | CX34: 0.00573 | CY34: 0.00573 | CZ34: 0.00573 | DA34: 0.00573 | DB34: 0.00573 | DC34: 0.00573 | DD34: 0.00573 | DE34: 0.00573 | DF34: 0.00573 | DG34: 0.00573 | DH34: 0.00573 | DI34: 0.00573 | DJ34: 0.00573 | DK34: 0.00573 | DL34: 0.00573 | DM34: 0.00573 | DN34: 0.00573 | DO34: 0.00573 | DP34: 0.00573 | DQ34: 0.00573 | DR34: 0.00573 | DS34: 0.00573 | DT34: 0.00573 | DU34: 0.00573 | DV34: 0.00573 | DW34: 0.00573 | DX34: 0.00573 | DY34: 0.00573 | DZ34: 0.00573 | EA34: 0.00573 | EB34: 0.00573 | EC34: 0.00573 | ED34: 0.00573 | EE34: 0.00573 | EF34: 0.00573 | EG34: 0.00573 | EH34: 0.00573 | EI34: 0.00573 | EJ34: 0.00573 | EK34: 0.00573 | EL34: 0.00573 | EM34: 0.00573 | EN34: 0.00573 | EO34: 0.00573 | EP34: 0.00573 | EQ34: 0.00573 | ER34: 0.00573 | ES34: 0.00573 | ET34: 0.00573 | EU34: 0.00573 | EV34: 0.00573 | EW34: 0.00573 | EX34: 0.00573 | EY34: 0.00573 | EZ34: 0.00573 | FA34: 0.00573 | FB34: 0.00573 | FC34: 0.00573 | FD34: 0.00573 | FE34: 0.00573 | FF34: 0.00573 | FG34: 0.00573 | FH34: 0.00573 | FI34: 0.00573 | FJ34: 0.00573 | FK34: 0.00573 | FL34: 0.00573 | FM34: 0.00573 | FN34: 0.00573 | FO34: 0.00573 | FP34: 0.00573 | FQ34: 0.00573 | FR34: 0.00573 | FS34: 0.00573 | FT34: 0.00573 | FU34: 0.00573 | FV34: 0.00573 | FW34: 0.00573 | FX34: 0.00573 | FY34: 0.00573 | FZ34: 0.00573 | GA34: 0.00573 | GB34: 0.00573 | GC34: 0.00573 | GD34: 0.00573 | GE34: 0.00573 | GF34: 0.00573 | GG34: 0.00573 | GH34: 0.00573 | GI34: 0.00573 | GJ34: 0.00573 | GK34: 0.00573 | GL34: 0.00573 | GM34: 0.00573 | GN34: 0.00573 | GO34: 0.00573 | GP34: 0.00573 | GQ34: 0.00573 | GR34: 0.00573 | GS34: 0.00573 | GT34: 0.00573 | GU34: 0.00573 | GV34: 0.00573 | GW34: 0.00573 | GX34: 0.00573 | GY34: 0.00573 | GZ34: 0.00573 | HA34: 0.00573 | HB34: 0.00573 | HC34: 0.00573 | HD34: 0.00573 | HE34: 0.00573 | HF34: 0.00573 | HG34: 0.00573 | HH34: 0.00573 | HI34: 0.00573 | HJ34: 0.00573 | HK34: 0.00573 | HL34: 0.00573 | HM34: 0.00573 | HN34: 0.00573 | HO34: 0.00573 | HP34: 0.00573 | HQ34: 0.00573 | HR34: 0.00573 | HS34: 0.00573 | HT34: 0.00573 | HU34: 0.00573 | HV34: 0.00573 | HW34: 0.00573 | HX34: 0.00573 | HY34: 0.00573 | HZ34: 0.00573 | IA34: 0.00573 | IB34: 0.00573 | IC34: 0.00573 | ID34: 0.00573 | IE34: 0.00573 | IF34: 0.00573 | IG34: 0.00573 | IH34: 0.00573
A35: 34 | B35: 0.0013 | C35: 0.00285 | D35: 0.00516 | E35: 0.00672 | F35: 0.00721 | G35: 0.00665 | H35: 0.0079 | I35: 0.00792 | J35: 0.00594 | K35: 0.00718 | L35: 0.00734 | M35: 0.00802 | N35: 0.00961 | O35: 0.00954 | P35: 0.0095 | Q35: 0.01002 | R35: 0.01221 | S35: 0.0125 | T35: 0.01364 | U35: 0.01317 | V35: 0.01286 | W35: 0.0149 | X35: 0.01364 | Y35: 0.01317 | Z35: 0.01286 | AA35: 0.01364 | AB35: 0.01317 | AC35: 0.01286 | AD35: 0.0149 | AE35: 0.0149 | AF35: 0.0149 | AG35: 0.0149 | AH35: 0.0149 | AI35: 0.0149 | AJ35: 0.0149 | AK35: 0.0149 | AL35: 0.0149 | AM35: 0.0149 | AN35: 0.0149 | AO35: 0.0149 | AP35: 0.0149 | AQ35: 0.0149 | AR35: 0.0149 | AS35: 0.0149 | AT35: 0.0149 | AU35: 0.0149 | AV35: 0.0149 | AW35: 0.0149 | AX35: 0.0149 | AY35: 0.0149 | AZ35: 0.0149 | BA35: 0.0149 | BB35: 0.0149 | BC35: 0.0149 | BD35: 0.0149 | BE35: 0.0149 | BF35: 0.0149 | BG35: 0.0149 | BH35: 0.0149 | BI35: 0.0149 | BJ35: 0.0149 | BK35: 0.0149 | BL35: 0.0149 | BM35: 0.0149 | BN35: 0.0149 | BO35: 0.0149 | BP35: 0.0149 | BQ35: 0.0149 | BR35: 0.0149 | BS35: 0.0149 | BT35: 0.0149 | BU35: 0.0149 | BV35: 0.0149 | BW35: 0.0149 | BX35: 0.0149 | BY35: 0.0149 | BZ35: 0.0149 | CA35: 0.0149 | CB35: 0.0149 | CC35: 0.0149 | CD35: 0.0149 | CE35: 0.0149 | CF35: 0.0149 | CG35: 0.0149 | CH35: 0.0149 | CI35: 0.0149 | CJ35: 0.0149 | CK35: 0.0149 | CL35: 0.0149 | CM35: 0.0149 | CN35: 0.0149 | CO35: 0.0149 | CP35: 0.0149 | CQ35: 0.0149 | CR35: 0.0149 | CS35: 0.0149 | CT35: 0.0149 | CU35: 0.0149 | CV35: 0.0149 | CW35: 0.0149 | CX35: 0.0149 | CY35: 0.0149 | CZ35: 0.0149 | DA35: 0.0149 | DB35: 0.0149 | DC35: 0.0149 | DD35: 0.0149 | DE35: 0.0149 | DF35: 0.0149 | DG35: 0.0149 | DH35: 0.0149 | DI35: 0.0149 | DJ35: 0.0149 | DK35: 0.0149 | DL35: 0.0149 | DM35: 0.0149 | DN35: 0.0149 | DO35: 0.0149 | DP35: 0.0149 | DQ35: 0.0149 | DR35: 0.0149 | DS35: 0.0149 | DT35: 0.0149 | DU35: 0.0149 | DV35: 0.0149 | DW35: 0.0149 | DX35: 0.0149 | DY35: 0.0149 | DZ35: 0.0149 | EA35: 0.0149 | EB35: 0.0149 | EC35: 0.0149 | ED35: 0.0149 | EE35: 0.0149 | EF35: 0.0149 | EG35: 0.0149 | EH35: 0.0149 | EI35: 0.0149 | EJ35: 0.0149 | EK35: 0.0149 | EL35: 0.0149 | EM35: 0.0149 | EN35: 0.0149 | EO35: 0.0149 | EP35: 0.0149 | EQ35: 0.0149 | ER35: 0.0149 | ES35: 0.0149 | ET35: 0.0149 | EU35: 0.0149 | EV35: 0.0149 | EW35: 0.0149 | EX35: 0.0149 | EY35: 0.0149 | EZ35: 0.0149 | FA35: 0.0149 | FB35: 0.0149 | FC35: 0.0149 | FD35: 0.0149 | FE35: 0.0149 | FF35: 0.0149 | FG35: 0.0149 | FH35: 0.0149 | FI35: 0.0149 | FJ35: 0.0149 | FK35: 0.0149 | FL35: 0.0149 | FM35: 0.0149 | FN35: 0.0149 | FO35: 0.0149 | FP35: 0.0149 | FQ35: 0.0149 | FR35: 0.0149 | FS35: 0.0149 | FT35: 0.0149 | FU35: 0.0149 | FV35: 0.0149 | FW35: 0.0149 | FX35: 0.0149 | FY35: 0.0149 | FZ35: 0.0149 | GA35: 0.0149 | GB35: 0.0149 | GC35: 0.0149 | GD35: 0.0149 | GE35: 0.0149 | GF35: 0.0149 | GG35: 0.0149 | GH35: 0.0149 | GI35: 0.0149 | GJ35: 0.0149 | GK35: 0.0149 | GL35: 0.0149 | GM35: 0.0149 | GN35: 0.0149 | GO35: 0.0149 | GP35: 0.0149 | GQ35: 0.0149 | GR35: 0.0149 | GS35: 0.0149 | GT35: 0.0149 | GU35: 0.0149 | GV35: 0.0149 | GW35: 0.0149 | GX35: 0.0149 | GY35: 0.0149 | GZ35: 0.0149 | HA35: 0.0149 | HB35: 0.0149 | HC35: 0.0149 | HD35: 0.0149 | HE35: 0.0149 | HF35: 0.0149 | HG35: 0.0149 | HH35: 0.0149 | HI35: 0.0149 | HJ35: 0.0149 | HK35: 0.0149 | HL35: 0.0149 | HM35: 0.0149 | HN35: 0.0149 | HO35: 0.0149 | HP35: 0.0149 | HQ35: 0.0149 | HR35: 0.0149 | HS35: 0.0149 | HT35: 0.0149 | HU35: 0.0149 | HV35: 0.0149 | HW35: 0.0149 | HX35: 0.0149 | HY35: 0.0149 | HZ35: 0.0149 | IA35: 0.0149 | IB35: 0.0149 | IC35: 0.0149 | ID35: 0.0149 | IE35: 0.0149 | IF35: 0.0149 | IG35: 0.0149 | IH35: 0.0149
A36: 35 | B36: 0.0013 | C36: 0.0001 | D36: 0.0001 | E36: 0.0001 | F36: 0.0001 | G36: 0.0001 | H36: 0.00191 | I36: 0.00313 | J36: 0.00272 | K36: 0.0014 | L36: 0.0051 | M36: 0.00526 | N36: 0.00546 | O36: 0.00438 | P36: 0.00152 | Q36: 0.0002 | R36: 0.00442 | S36: 0.00337 | T36: 0.00159 | U36: 0.00086 | V36: 0.0001 | W36: 0.00222 | X36: 0.00159 | Y36: 0.00086 | Z36: 0.0001 | AA36: 0.00159 | AB36: 0.00086 | AC36: 0.0001 | AD36: 0.00222 | AE36: 0.00222 | AF36: 0.00222 | AG36: 0.00222 | AH36: 0.00222 | AI36: 0.00222 | AJ36: 0.00222 | AK36: 0.00222 | AL36: 0.00222 | AM36: 0.00222 | AN36: 0.00222 | AO36: 0.00222 | AP36: 0.00222 | AQ36: 0.00222 | AR36: 0.00222 | AS36: 0.00222 | AT36: 0.00222 | AU36: 0.00222 | AV36: 0.00222 | AW36: 0.00222 | AX36: 0.00222 | AY36: 0.00222 | AZ36: 0.00222 | BA36: 0.00222 | BB36: 0.00222 | BC36: 0.00222 | BD36: 0.00222 | BE36: 0.00222 | BF36: 0.00222 | BG36: 0.00222 | BH36: 0.00222 | BI36: 0.00222 | BJ36: 0.00222 | BK36: 0.00222 | BL36: 0.00222 | BM36: 0.00222 | BN36: 0.00222 | BO36: 0.00222 | BP36: 0.00222 | BQ36: 0.00222 | BR36: 0.00222 | BS36: 0.00222 | BT36: 0.00222 | BU36: 0.00222 | BV36: 0.00222 | BW36: 0.00222 | BX36: 0.00222 | BY36: 0.00222 | BZ36: 0.00222 | CA36: 0.00222 | CB36: 0.00222 | CC36: 0.00222 | CD36: 0.00222 | CE36: 0.00222 | CF36: 0.00222 | CG36: 0.00222 | CH36: 0.00222 | CI36: 0.00222 | CJ36: 0.00222 | CK36: 0.00222 | CL36: 0.00222 | CM36: 0.00222 | CN36: 0.00222 | CO36: 0.00222 | CP36: 0.00222 | CQ36: 0.00222 | CR36: 0.00222 | CS36: 0.00222 | CT36: 0.00222 | CU36: 0.00222 | CV36: 0.00222 | CW36: 0.00222 | CX36: 0.00222 | CY36: 0.00222 | CZ36: 0.00222 | DA36: 0.00222 | DB36: 0.00222 | DC36: 0.00222 | DD36: 0.00222 | DE36: 0.00222 | DF36: 0.00222 | DG36: 0.00222 | DH36: 0.00222 | DI36: 0.00222 | DJ36: 0.00222 | DK36: 0.00222 | DL36: 0.00222 | DM36: 0.00222 | DN36: 0.00222 | DO36: 0.00222 | DP36: 0.00222 | DQ36: 0.00222 | DR36: 0.00222 | DS36: 0.00222 | DT36: 0.00222 | DU36: 0.00222 | DV36: 0.00222 | DW36: 0.00222 | DX36: 0.00222 | DY36: 0.00222 | DZ36: 0.00222 | EA36: 0.00222 | EB36: 0.00222 | EC36: 0.00222 | ED36: 0.00222 | EE36: 0.00222 | EF36: 0.00222 | EG36: 0.00222 | EH36: 0.00222 | EI36: 0.00222 | EJ36: 0.00222 | EK36: 0.00222 | EL36: 0.00222 | EM36: 0.00222 | EN36: 0.00222 | EO36: 0.00222 | EP36: 0.00222 | EQ36: 0.00222 | ER36: 0.00222 | ES36: 0.00222 | ET36: 0.00222 | EU36: 0.00222 | EV36: 0.00222 | EW36: 0.00222 | EX36: 0.00222 | EY36: 0.00222 | EZ36: 0.00222 | FA36: 0.00222 | FB36: 0.00222 | FC36: 0.00222 | FD36: 0.00222 | FE36: 0.00222 | FF36: 0.00222 | FG36: 0.00222 | FH36: 0.00222 | FI36: 0.00222 | FJ36: 0.00222 | FK36: 0.00222 | FL36: 0.00222 | FM36: 0.00222 | FN36: 0.00222 | FO36: 0.00222 | FP36: 0.00222 | FQ36: 0.00222 | FR36: 0.00222 | FS36: 0.00222 | FT36: 0.00222 | FU36: 0.00222 | FV36: 0.00222 | FW36: 0.00222 | FX36: 0.00222 | FY36: 0.00222 | FZ36: 0.00222 | GA36: 0.00222 | GB36: 0.00222 | GC36: 0.00222 | GD36: 0.00222 | GE36: 0.00222 | GF36: 0.00222 | GG36: 0.00222 | GH36: 0.00222 | GI36: 0.00222 | GJ36: 0.00222 | GK36: 0.00222 | GL36: 0.00222 | GM36: 0.00222 | GN36: 0.00222 | GO36: 0.00222 | GP36: 0.00222 | GQ36: 0.00222 | GR36: 0.00222 | GS36: 0.00222 | GT36: 0.00222 | GU36: 0.00222 | GV36: 0.00222 | GW36: 0.00222 | GX36: 0.00222 | GY36: 0.00222 | GZ36: 0.00222 | HA36: 0.00222 | HB36: 0.00222 | HC36: 0.00222 | HD36: 0.00222 | HE36: 0.00222 | HF36: 0.00222 | HG36: 0.00222 | HH36: 0.00222 | HI36: 0.00222 | HJ36: 0.00222 | HK36: 0.00222 | HL36: 0.00222 | HM36: 0.00222 | HN36: 0.00222 | HO36: 0.00222 | HP36: 0.00222 | HQ36: 0.00222 | HR36: 0.00222 | HS36: 0.00222 | HT36: 0.00222 | HU36: 0.00222 | HV36: 0.00222 | HW36: 0.00222 | HX36: 0.00222 | HY36: 0.00222 | HZ36: 0.00222 | IA36: 0.00222 | IB36: 0.00222 | IC36: 0.00222 | ID36: 0.00222 | IE36: 0.00222 | IF36: 0.00222 | IG36: 0.00222 | IH36: 0.00222
A37: 36 | B37: 0.0013 | C37: 0.0001 | D37: 0.0001 | E37: 0.0001 | F37: 0.0001 | G37: 0.0001 | H37: 0.0001 | I37: 0.00185 | J37: 0.00284 | K37: 0.00456 | L37: 0.00516 | M37: 0.0033 | N37: 0.00596 | O37: 0.00665 | P37: 0.00331 | Q37: 0.0046 | R37: 0.00351 | S37: 0.00653 | T37: 0.00749 | U37: 0.01056 | V37: 0.01339 | W37: 0.01391 | X37: 0.00749 | Y37: 0.01056 | Z37: 0.01339 | AA37: 0.00749 | AB37: 0.01056 | AC37: 0.01339 | AD37: 0.01391 | AE37: 0.01391 | AF37: 0.01391 | AG37: 0.01391 | AH37: 0.01391 | AI37: 0.01391 | AJ37: 0.01391 | AK37: 0.01391 | AL37: 0.01391 | AM37: 0.01391 | AN37: 0.01391 | AO37: 0.01391 | AP37: 0.01391 | AQ37: 0.01391 | AR37: 0.01391 | AS37: 0.01391 | AT37: 0.01391 | AU37: 0.01391 | AV37: 0.01391 | AW37: 0.01391 | AX37: 0.01391 | AY37: 0.01391 | AZ37: 0.01391 | BA37: 0.01391 | BB37: 0.01391 | BC37: 0.01391 | BD37: 0.01391 | BE37: 0.01391 | BF37: 0.01391 | BG37: 0.01391 | BH37: 0.01391 | BI37: 0.01391 | BJ37: 0.01391 | BK37: 0.01391 | BL37: 0.01391 | BM37: 0.01391 | BN37: 0.01391 | BO37: 0.01391 | BP37: 0.01391 | BQ37: 0.01391 | BR37: 0.01391 | BS37: 0.01391 | BT37: 0.01391 | BU37: 0.01391 | BV37: 0.01391 | BW37: 0.01391 | BX37: 0.01391 | BY37: 0.01391 | BZ37: 0.01391 | CA37: 0.01391 | CB37: 0.01391 | CC37: 0.01391 | CD37: 0.01391 | CE37: 0.01391 | CF37: 0.01391 | CG37: 0.01391 | CH37: 0.01391 | CI37: 0.01391 | CJ37: 0.01391 | CK37: 0.01391 | CL37: 0.01391 | CM37: 0.01391 | CN37: 0.01391 | CO37: 0.01391 | CP37: 0.01391 | CQ37: 0.01391 | CR37: 0.01391 | CS37: 0.01391 | CT37: 0.01391 | CU37: 0.01391 | CV37: 0.01391 | CW37: 0.01391 | CX37: 0.01391 | CY37: 0.01391 | CZ37: 0.01391 | DA37: 0.01391 | DB37: 0.01391 | DC37: 0.01391 | DD37: 0.01391 | DE37: 0.01391 | DF37: 0.01391 | DG37: 0.01391 | DH37: 0.01391 | DI37: 0.01391 | DJ37: 0.01391 | DK37: 0.01391 | DL37: 0.01391 | DM37: 0.01391 | DN37: 0.01391 | DO37: 0.01391 | DP37: 0.01391 | DQ37: 0.01391 | DR37: 0.01391 | DS37: 0.01391 | DT37: 0.01391 | DU37: 0.01391 | DV37: 0.01391 | DW37: 0.01391 | DX37: 0.01391 | DY37: 0.01391 | DZ37: 0.01391 | EA37: 0.01391 | EB37: 0.01391 | EC37: 0.01391 | ED37: 0.01391 | EE37: 0.01391 | EF37: 0.01391 | EG37: 0.01391 | EH37: 0.01391 | EI37: 0.01391 | EJ37: 0.01391 | EK37: 0.01391 | EL37: 0.01391 | EM37: 0.01391 | EN37: 0.01391 | EO37: 0.01391 | EP37: 0.01391 | EQ37: 0.01391 | ER37: 0.01391 | ES37: 0.01391 | ET37: 0.01391 | EU37: 0.01391 | EV37: 0.01391 | EW37: 0.01391 | EX37: 0.01391 | EY37: 0.01391 | EZ37: 0.01391 | FA37: 0.01391 | FB37: 0.01391 | FC37: 0.01391 | FD37: 0.01391 | FE37: 0.01391 | FF37: 0.01391 | FG37: 0.01391 | FH37: 0.01391 | FI37: 0.01391 | FJ37: 0.01391 | FK37: 0.01391 | FL37: 0.01391 | FM37: 0.01391 | FN37: 0.01391 | FO37: 0.01391 | FP37: 0.01391 | FQ37: 0.01391 | FR37: 0.01391 | FS37: 0.01391 | FT37: 0.01391 | FU37: 0.01391 | FV37: 0.01391 | FW37: 0.01391 | FX37: 0.01391 | FY37: 0.01391 | FZ37: 0.01391 | GA37: 0.01391 | GB37: 0.01391 | GC37: 0.01391 | GD37: 0.01391 | GE37: 0.01391 | GF37: 0.01391 | GG37: 0.01391 | GH37: 0.01391 | GI37: 0.01391 | GJ37: 0.01391 | GK37: 0.01391 | GL37: 0.01391 | GM37: 0.01391 | GN37: 0.01391 | GO37: 0.01391 | GP37: 0.01391 | GQ37: 0.01391 | GR37: 0.01391 | GS37: 0.01391 | GT37: 0.01391 | GU37: 0.01391 | GV37: 0.01391 | GW37: 0.01391 | GX37: 0.01391 | GY37: 0.01391 | GZ37: 0.01391 | HA37: 0.01391 | HB37: 0.01391 | HC37: 0.01391 | HD37: 0.01391 | HE37: 0.01391 | HF37: 0.01391 | HG37: 0.01391 | HH37: 0.01391 | HI37: 0.01391 | HJ37: 0.01391 | HK37: 0.01391 | HL37: 0.01391 | HM37: 0.01391 | HN37: 0.01391 | HO37: 0.01391 | HP37: 0.01391 | HQ37: 0.01391 | HR37: 0.01391 | HS37: 0.01391 | HT37: 0.01391 | HU37: 0.01391 | HV37: 0.01391 | HW37: 0.01391 | HX37: 0.01391 | HY37: 0.01391 | HZ37: 0.01391 | IA37: 0.01391 | IB37: 0.01391 | IC37: 0.01391 | ID37: 0.01391 | IE37: 0.01391 | IF37: 0.01391 | IG37: 0.01391 | IH37: 0.01391
A38: 37 | B38: 0.0013 | C38: 0.00028 | D38: 0.00119 | E38: 0.0001 | F38: 0.0001 | G38: 0.0001 | H38: 0.0001 | I38: 0.0001 | J38: 0.0001 | K38: 0.0001 | L38: 0.0001 | M38: 0.0001 | N38: 0.0001 | O38: 0.0001 | P38: 0.00226 | Q38: 0.0001 | R38: 0.00106 | S38: 0.00254 | T38: 0.00506 | U38: 0.00313 | V38: 0.00207 | W38: 0.0001 | X38: 0.00506 | Y38: 0.00313 | Z38: 0.00207 | AA38: 0.00506 | AB38: 0.00313 | AC38: 0.00207 | AD38: 0.0001 | AE38: 0.0001 | AF38: 0.0001 | AG38: 0.0001 | AH38: 0.0001 | AI38: 0.0001 | AJ38: 0.0001 | AK38: 0.0001 | AL38: 0.0001 | AM38: 0.0001 | AN38: 0.0001 | AO38: 0.0001 | AP38: 0.0001 | AQ38: 0.0001 | AR38: 0.0001 | AS38: 0.0001 | AT38: 0.0001 | AU38: 0.0001 | AV38: 0.0001 | AW38: 0.0001 | AX38: 0.0001 | AY38: 0.0001 | AZ38: 0.0001 | BA38: 0.0001 | BB38: 0.0001 | BC38: 0.0001 | BD38: 0.0001 | BE38: 0.0001 | BF38: 0.0001 | BG38: 0.0001 | BH38: 0.0001 | BI38: 0.0001 | BJ38: 0.0001 | BK38: 0.0001 | BL38: 0.0001 | BM38: 0.0001 | BN38: 0.0001 | BO38: 0.0001 | BP38: 0.0001 | BQ38: 0.0001 | BR38: 0.0001 | BS38: 0.0001 | BT38: 0.0001 | BU38: 0.0001 | BV38: 0.0001 | BW38: 0.0001 | BX38: 0.0001 | BY38: 0.0001 | BZ38: 0.0001 | CA38: 0.0001 | CB38: 0.0001 | CC38: 0.0001 | CD38: 0.0001 | CE38: 0.0001 | CF38: 0.0001 | CG38: 0.0001 | CH38: 0.0001 | CI38: 0.0001 | CJ38: 0.0001 | CK38: 0.0001 | CL38: 0.0001 | CM38: 0.0001 | CN38: 0.0001 | CO38: 0.0001 | CP38: 0.0001 | CQ38: 0.0001 | CR38: 0.0001 | CS38: 0.0001 | CT38: 0.0001 | CU38: 0.0001 | CV38: 0.0001 | CW38: 0.0001 | CX38: 0.0001 | CY38: 0.0001 | CZ38: 0.0001 | DA38: 0.0001 | DB38: 0.0001 | DC38: 0.0001 | DD38: 0.0001 | DE38: 0.0001 | DF38: 0.0001 | DG38: 0.0001 | DH38: 0.0001 | DI38: 0.0001 | DJ38: 0.0001 | DK38: 0.0001 | DL38: 0.0001 | DM38: 0.0001 | DN38: 0.0001 | DO38: 0.0001 | DP38: 0.0001 | DQ38: 0.0001 | DR38: 0.0001 | DS38: 0.0001 | DT38: 0.0001 | DU38: 0.0001 | DV38: 0.0001 | DW38: 0.0001 | DX38: 0.0001 | DY38: 0.0001 | DZ38: 0.0001 | EA38: 0.0001 | EB38: 0.0001 | EC38: 0.0001 | ED38: 0.0001 | EE38: 0.0001 | EF38: 0.0001 | EG38: 0.0001 | EH38: 0.0001 | EI38: 0.0001 | EJ38: 0.0001 | EK38: 0.0001 | EL38: 0.0001 | EM38: 0.0001 | EN38: 0.0001 | EO38: 0.0001 | EP38: 0.0001 | EQ38: 0.0001 | ER38: 0.0001 | ES38: 0.0001 | ET38: 0.0001 | EU38: 0.0001 | EV38: 0.0001 | EW38: 0.0001 | EX38: 0.0001 | EY38: 0.0001 | EZ38: 0.0001 | FA38: 0.0001 | FB38: 0.0001 | FC38: 0.0001 | FD38: 0.0001 | FE38: 0.0001 | FF38: 0.0001 | FG38: 0.0001 | FH38: 0.0001 | FI38: 0.0001 | FJ38: 0.0001 | FK38: 0.0001 | FL38: 0.0001 | FM38: 0.0001 | FN38: 0.0001 | FO38: 0.0001 | FP38: 0.0001 | FQ38: 0.0001 | FR38: 0.0001 | FS38: 0.0001 | FT38: 0.0001 | FU38: 0.0001 | FV38: 0.0001 | FW38: 0.0001 | FX38: 0.0001 | FY38: 0.0001 | FZ38: 0.0001 | GA38: 0.0001 | GB38: 0.0001 | GC38: 0.0001 | GD38: 0.0001 | GE38: 0.0001 | GF38: 0.0001 | GG38: 0.0001 | GH38: 0.0001 | GI38: 0.0001 | GJ38: 0.0001 | GK38: 0.0001 | GL38: 0.0001 | GM38: 0.0001 | GN38: 0.0001 | GO38: 0.0001 | GP38: 0.0001 | GQ38: 0.0001 | GR38: 0.0001 | GS38: 0.0001 | GT38: 0.0001 | GU38: 0.0001 | GV38: 0.0001 | GW38: 0.0001 | GX38: 0.0001 | GY38: 0.0001 | GZ38: 0.0001 | HA38: 0.0001 | HB38: 0.0001 | HC38: 0.0001 | HD38: 0.0001 | HE38: 0.0001 | HF38: 0.0001 | HG38: 0.0001 | HH38: 0.0001 | HI38: 0.0001 | HJ38: 0.0001 | HK38: 0.0001 | HL38: 0.0001 | HM38: 0.0001 | HN38: 0.0001 | HO38: 0.0001 | HP38: 0.0001 | HQ38: 0.0001 | HR38: 0.0001 | HS38: 0.0001 | HT38: 0.0001 | HU38: 0.0001 | HV38: 0.0001 | HW38: 0.0001 | HX38: 0.0001 | HY38: 0.0001 | HZ38: 0.0001 | IA38: 0.0001 | IB38: 0.0001 | IC38: 0.0001 | ID38: 0.0001 | IE38: 0.0001 | IF38: 0.0001 | IG38: 0.0001 | IH38: 0.0001
A39: 38 | B39: 0.0013 | C39: 0.00335 | D39: 0.0075 | E39: 0.00583 | F39: 0.00697 | G39: 0.00699 | H39: 0.00814 | I39: 0.00973 | J39: 0.00887 | K39: 0.00884 | L39: 0.00928 | M39: 0.00991 | N39: 0.00897 | O39: 0.00952 | P39: 0.01086 | Q39: 0.01193 | R39: 0.00819 | S39: 0.00569 | T39: 0.00741 | U39: 0.00315 | V39: 0.00347 | W39: 0.0035 | X39: 0.00741 | Y39: 0.00315 | Z39: 0.00347 | AA39: 0.00741 | AB39: 0.00315 | AC39: 0.00347 | AD39: 0.0035 | AE39: 0.0035 | AF39: 0.0035 | AG39: 0.0035 | AH39: 0.0035 | AI39: 0.0035 | AJ39: 0.0035 | AK39: 0.0035 | AL39: 0.0035 | AM39: 0.0035 | AN39: 0.0035 | AO39: 0.0035 | AP39: 0.0035 | AQ39: 0.0035 | AR39: 0.0035 | AS39: 0.0035 | AT39: 0.0035 | AU39: 0.0035 | AV39: 0.0035 | AW39: 0.0035 | AX39: 0.0035 | AY39: 0.0035 | AZ39: 0.0035 | BA39: 0.0035 | BB39: 0.0035 | BC39: 0.0035 | BD39: 0.0035 | BE39: 0.0035 | BF39: 0.0035 | BG39: 0.0035 | BH39: 0.0035 | BI39: 0.0035 | BJ39: 0.0035 | BK39: 0.0035 | BL39: 0.0035 | BM39: 0.0035 | BN39: 0.0035 | BO39: 0.0035 | BP39: 0.0035 | BQ39: 0.0035 | BR39: 0.0035 | BS39: 0.0035 | BT39: 0.0035 | BU39: 0.0035 | BV39: 0.0035 | BW39: 0.0035 | BX39: 0.0035 | BY39: 0.0035 | BZ39: 0.0035 | CA39: 0.0035 | CB39: 0.0035 | CC39: 0.0035 | CD39: 0.0035 | CE39: 0.0035 | CF39: 0.0035 | CG39: 0.0035 | CH39: 0.0035 | CI39: 0.0035 | CJ39: 0.0035 | CK39: 0.0035 | CL39: 0.0035 | CM39: 0.0035 | CN39: 0.0035 | CO39: 0.0035 | CP39: 0.0035 | CQ39: 0.0035 | CR39: 0.0035 | CS39: 0.0035 | CT39: 0.0035 | CU39: 0.0035 | CV39: 0.0035 | CW39: 0.0035 | CX39: 0.0035 | CY39: 0.0035 | CZ39: 0.0035 | DA39: 0.0035 | DB39: 0.0035 | DC39: 0.0035 | DD39: 0.0035 | DE39: 0.0035 | DF39: 0.0035 | DG39: 0.0035 | DH39: 0.0035 | DI39: 0.0035 | DJ39: 0.0035 | DK39: 0.0035 | DL39: 0.0035 | DM39: 0.0035 | DN39: 0.0035 | DO39: 0.0035 | DP39: 0.0035 | DQ39: 0.0035 | DR39: 0.0035 | DS39: 0.0035 | DT39: 0.0035 | DU39: 0.0035 | DV39: 0.0035 | DW39: 0.0035 | DX39: 0.0035 | DY39: 0.0035 | DZ39: 0.0035 | EA39: 0.0035 | EB39: 0.0035 | EC39: 0.0035 | ED39: 0.0035 | EE39: 0.0035 | EF39: 0.0035 | EG39: 0.0035 | EH39: 0.0035 | EI39: 0.0035 | EJ39: 0.0035 | EK39: 0.0035 | EL39: 0.0035 | EM39: 0.0035 | EN39: 0.0035 | EO39: 0.0035 | EP39: 0.0035 | EQ39: 0.0035 | ER39: 0.0035 | ES39: 0.0035 | ET39: 0.0035 | EU39: 0.0035 | EV39: 0.0035 | EW39: 0.0035 | EX39: 0.0035 | EY39: 0.0035 | EZ39: 0.0035 | FA39: 0.0035 | FB39: 0.0035 | FC39: 0.0035 | FD39: 0.0035 | FE39: 0.0035 | FF39: 0.0035 | FG39: 0.0035 | FH39: 0.0035 | FI39: 0.0035 | FJ39: 0.0035 | FK39: 0.0035 | FL39: 0.0035 | FM39: 0.0035 | FN39: 0.0035 | FO39: 0.0035 | FP39: 0.0035 | FQ39: 0.0035 | FR39: 0.0035 | FS39: 0.0035 | FT39: 0.0035 | FU39: 0.0035 | FV39: 0.0035 | FW39: 0.0035 | FX39: 0.0035 | FY39: 0.0035 | FZ39: 0.0035 | GA39: 0.0035 | GB39: 0.0035 | GC39: 0.0035 | GD39: 0.0035 | GE39: 0.0035 | GF39: 0.0035 | GG39: 0.0035 | GH39: 0.0035 | GI39: 0.0035 | GJ39: 0.0035 | GK39: 0.0035 | GL39: 0.0035 | GM39: 0.0035 | GN39: 0.0035 | GO39: 0.0035 | GP39: 0.0035 | GQ39: 0.0035 | GR39: 0.0035 | GS39: 0.0035 | GT39: 0.0035 | GU39: 0.0035 | GV39: 0.0035 | GW39: 0.0035 | GX39: 0.0035 | GY39: 0.0035 | GZ39: 0.0035 | HA39: 0.0035 | HB39: 0.0035 | HC39: 0.0035 | HD39: 0.0035 | HE39: 0.0035 | HF39: 0.0035 | HG39: 0.0035 | HH39: 0.0035 | HI39: 0.0035 | HJ39: 0.0035 | HK39: 0.0035 | HL39: 0.0035 | HM39: 0.0035 | HN39: 0.0035 | HO39: 0.0035 | HP39: 0.0035 | HQ39: 0.0035 | HR39: 0.0035 | HS39: 0.0035 | HT39: 0.0035 | HU39: 0.0035 | HV39: 0.0035 | HW39: 0.0035 | HX39: 0.0035 | HY39: 0.0035 | HZ39: 0.0035 | IA39: 0.0035 | IB39: 0.0035 | IC39: 0.0035 | ID39: 0.0035 | IE39: 0.0035 | IF39: 0.0035 | IG39: 0.0035 | IH39: 0.0035
A40: 39 | B40: 0.0013 | C40: 0.0001 | D40: 0.0001 | E40: 0.0001 | F40: 0.0001 | G40: 0.00039 | H40: 0.00176 | I40: 0.0038 | J40: 0.00423 | K40: 0.00147 | L40: 0.00321 | M40: 0.00661 | N40: 0.00519 | O40: 0.00803 | P40: 0.00675 | Q40: 0.00515 | R40: 0.00583 | S40: 0.00666 | T40: 0.00505 | U40: 0.00308 | V40: 0.00392 | W40: 0.00329 | X40: 0.00505 | Y40: 0.00308 | Z40: 0.00392 | AA40: 0.00505 | AB40: 0.00308 | AC40: 0.00392 | AD40: 0.00329 | AE40: 0.00329 | AF40: 0.00329 | AG40: 0.00329 | AH40: 0.00329 | AI40: 0.00329 | AJ40: 0.00329 | AK40: 0.00329 | AL40: 0.00329 | AM40: 0.00329 | AN40: 0.00329 | AO40: 0.00329 | AP40: 0.00329 | AQ40: 0.00329 | AR40: 0.00329 | AS40: 0.00329 | AT40: 0.00329 | AU40: 0.00329 | AV40: 0.00329 | AW40: 0.00329 | AX40: 0.00329 | AY40: 0.00329 | AZ40: 0.00329 | BA40: 0.00329 | BB40: 0.00329 | BC40: 0.00329 | BD40: 0.00329 | BE40: 0.00329 | BF40: 0.00329 | BG40: 0.00329 | BH40: 0.00329 | BI40: 0.00329 | BJ40: 0.00329 | BK40: 0.00329 | BL40: 0.00329 | BM40: 0.00329 | BN40: 0.00329 | BO40: 0.00329 | BP40: 0.00329 | BQ40: 0.00329 | BR40: 0.00329 | BS40: 0.00329 | BT40: 0.00329 | BU40: 0.00329 | BV40: 0.00329 | BW40: 0.00329 | BX40: 0.00329 | BY40: 0.00329 | BZ40: 0.00329 | CA40: 0.00329 | CB40: 0.00329 | CC40: 0.00329 | CD40: 0.00329 | CE40: 0.00329 | CF40: 0.00329 | CG40: 0.00329 | CH40: 0.00329 | CI40: 0.00329 | CJ40: 0.00329 | CK40: 0.00329 | CL40: 0.00329 | CM40: 0.00329 | CN40: 0.00329 | CO40: 0.00329 | CP40: 0.00329 | CQ40: 0.00329 | CR40: 0.00329 | CS40: 0.00329 | CT40: 0.00329 | CU40: 0.00329 | CV40: 0.00329 | CW40: 0.00329 | CX40: 0.00329 | CY40: 0.00329 | CZ40: 0.00329 | DA40: 0.00329 | DB40: 0.00329 | DC40: 0.00329 | DD40: 0.00329 | DE40: 0.00329 | DF40: 0.00329 | DG40: 0.00329 | DH40: 0.00329 | DI40: 0.00329 | DJ40: 0.00329 | DK40: 0.00329 | DL40: 0.00329 | DM40: 0.00329 | DN40: 0.00329 | DO40: 0.00329 | DP40: 0.00329 | DQ40: 0.00329 | DR40: 0.00329 | DS40: 0.00329 | DT40: 0.00329 | DU40: 0.00329 | DV40: 0.00329 | DW40: 0.00329 | DX40: 0.00329 | DY40: 0.00329 | DZ40: 0.00329 | EA40: 0.00329 | EB40: 0.00329 | EC40: 0.00329 | ED40: 0.00329 | EE40: 0.00329 | EF40: 0.00329 | EG40: 0.00329 | EH40: 0.00329 | EI40: 0.00329 | EJ40: 0.00329 | EK40: 0.00329 | EL40: 0.00329 | EM40: 0.00329 | EN40: 0.00329 | EO40: 0.00329 | EP40: 0.00329 | EQ40: 0.00329 | ER40: 0.00329 | ES40: 0.00329 | ET40: 0.00329 | EU40: 0.00329 | EV40: 0.00329 | EW40: 0.00329 | EX40: 0.00329 | EY40: 0.00329 | EZ40: 0.00329 | FA40: 0.00329 | FB40: 0.00329 | FC40: 0.00329 | FD40: 0.00329 | FE40: 0.00329 | FF40: 0.00329 | FG40: 0.00329 | FH40: 0.00329 | FI40: 0.00329 | FJ40: 0.00329 | FK40: 0.00329 | FL40: 0.00329 | FM40: 0.00329 | FN40: 0.00329 | FO40: 0.00329 | FP40: 0.00329 | FQ40: 0.00329 | FR40: 0.00329 | FS40: 0.00329 | FT40: 0.00329 | FU40: 0.00329 | FV40: 0.00329 | FW40: 0.00329 | FX40: 0.00329 | FY40: 0.00329 | FZ40: 0.00329 | GA40: 0.00329 | GB40: 0.00329 | GC40: 0.00329 | GD40: 0.00329 | GE40: 0.00329 | GF40: 0.00329 | GG40: 0.00329 | GH40: 0.00329 | GI40: 0.00329 | GJ40: 0.00329 | GK40: 0.00329 | GL40: 0.00329 | GM40: 0.00329 | GN40: 0.00329 | GO40: 0.00329 | GP40: 0.00329 | GQ40: 0.00329 | GR40: 0.00329 | GS40: 0.00329 | GT40: 0.00329 | GU40: 0.00329 | GV40: 0.00329 | GW40: 0.00329 | GX40: 0.00329 | GY40: 0.00329 | GZ40: 0.00329 | HA40: 0.00329 | HB40: 0.00329 | HC40: 0.00329 | HD40: 0.00329 | HE40: 0.00329 | HF40: 0.00329 | HG40: 0.00329 | HH40: 0.00329 | HI40: 0.00329 | HJ40: 0.00329 | HK40: 0.00329 | HL40: 0.00329 | HM40: 0.00329 | HN40: 0.00329 | HO40: 0.00329 | HP40: 0.00329 | HQ40: 0.00329 | HR40: 0.00329 | HS40: 0.00329 | HT40: 0.00329 | HU40: 0.00329 | HV40: 0.00329 | HW40: 0.00329 | HX40: 0.00329 | HY40: 0.00329 | HZ40: 0.00329 | IA40: 0.00329 | IB40: 0.00329 | IC40: 0.00329 | ID40: 0.00329 | IE40: 0.00329 | IF40: 0.00329 | IG40: 0.00329 | IH40: 0.00329
A41: 40 | B41: 0.0013 | C41: 0.0001 | D41: 0.0001 | E41: 0.0001 | F41: 0.0032 | G41: 0.00471 | H41: 0.00416 | I41: 0.00815 | J41: 0.00928 | K41: 0.00666 | L41: 0.00402 | M41: 0.00498 | N41: 0.00727 | O41: 0.00832 | P41: 0.0104 | Q41: 0.01234 | R41: 0.01472 | S41: 0.01759 | T41: 0.01593 | U41: 0.01737 | V41: 0.01888 | W41: 0.0183 | X41: 0.01593 | Y41: 0.01737 | Z41: 0.01888 | AA41: 0.01593 | AB41: 0.01737 | AC41: 0.01888 | AD41: 0.0183 | AE41: 0.0183 | AF41: 0.0183 | AG41: 0.0183 | AH41: 0.0183 | AI41: 0.0183 | AJ41: 0.0183 | AK41: 0.0183 | AL41: 0.0183 | AM41: 0.0183 | AN41: 0.0183 | AO41: 0.0183 | AP41: 0.0183 | AQ41: 0.0183 | AR41: 0.0183 | AS41: 0.0183 | AT41: 0.0183 | AU41: 0.0183 | AV41: 0.0183 | AW41: 0.0183 | AX41: 0.0183 | AY41: 0.0183 | AZ41: 0.0183 | BA41: 0.0183 | BB41: 0.0183 | BC41: 0.0183 | BD41: 0.0183 | BE41: 0.0183 | BF41: 0.0183 | BG41: 0.0183 | BH41: 0.0183 | BI41: 0.0183 | BJ41: 0.0183 | BK41: 0.0183 | BL41: 0.0183 | BM41: 0.0183 | BN41: 0.0183 | BO41: 0.0183 | BP41: 0.0183 | BQ41: 0.0183 | BR41: 0.0183 | BS41: 0.0183 | BT41: 0.0183 | BU41: 0.0183 | BV41: 0.0183 | BW41: 0.0183 | BX41: 0.0183 | BY41: 0.0183 | BZ41: 0.0183 | CA41: 0.0183 | CB41: 0.0183 | CC41: 0.0183 | CD41: 0.0183 | CE41: 0.0183 | CF41: 0.0183 | CG41: 0.0183 | CH41: 0.0183 | CI41: 0.0183 | CJ41: 0.0183 | CK41: 0.0183 | CL41: 0.0183 | CM41: 0.0183 | CN41: 0.0183 | CO41: 0.0183 | CP41: 0.0183 | CQ41: 0.0183 | CR41: 0.0183 | CS41: 0.0183 | CT41: 0.0183 | CU41: 0.0183 | CV41: 0.0183 | CW41: 0.0183 | CX41: 0.0183 | CY41: 0.0183 | CZ41: 0.0183 | DA41: 0.0183 | DB41: 0.0183 | DC41: 0.0183 | DD41: 0.0183 | DE41: 0.0183 | DF41: 0.0183 | DG41: 0.0183 | DH41: 0.0183 | DI41: 0.0183 | DJ41: 0.0183 | DK41: 0.0183 | DL41: 0.0183 | DM41: 0.0183 | DN41: 0.0183 | DO41: 0.0183 | DP41: 0.0183 | DQ41: 0.0183 | DR41: 0.0183 | DS41: 0.0183 | DT41: 0.0183 | DU41: 0.0183 | DV41: 0.0183 | DW41: 0.0183 | DX41: 0.0183 | DY41: 0.0183 | DZ41: 0.0183 | EA41: 0.0183 | EB41: 0.0183 | EC41: 0.0183 | ED41: 0.0183 | EE41: 0.0183 | EF41: 0.0183 | EG41: 0.0183 | EH41: 0.0183 | EI41: 0.0183 | EJ41: 0.0183 | EK41: 0.0183 | EL41: 0.0183 | EM41: 0.0183 | EN41: 0.0183 | EO41: 0.0183 | EP41: 0.0183 | EQ41: 0.0183 | ER41: 0.0183 | ES41: 0.0183 | ET41: 0.0183 | EU41: 0.0183 | EV41: 0.0183 | EW41: 0.0183 | EX41: 0.0183 | EY41: 0.0183 | EZ41: 0.0183 | FA41: 0.0183 | FB41: 0.0183 | FC41: 0.0183 | FD41: 0.0183 | FE41: 0.0183 | FF41: 0.0183 | FG41: 0.0183 | FH41: 0.0183 | FI41: 0.0183 | FJ41: 0.0183 | FK41: 0.0183 | FL41: 0.0183 | FM41: 0.0183 | FN41: 0.0183 | FO41: 0.0183 | FP41: 0.0183 | FQ41: 0.0183 | FR41: 0.0183 | FS41: 0.0183 | FT41: 0.0183 | FU41: 0.0183 | FV41: 0.0183 | FW41: 0.0183 | FX41: 0.0183 | FY41: 0.0183 | FZ41: 0.0183 | GA41: 0.0183 | GB41: 0.0183 | GC41: 0.0183 | GD41: 0.0183 | GE41: 0.0183 | GF41: 0.0183 | GG41: 0.0183 | GH41: 0.0183 | GI41: 0.0183 | GJ41: 0.0183 | GK41: 0.0183 | GL41: 0.0183 | GM41: 0.0183 | GN41: 0.0183 | GO41: 0.0183 | GP41: 0.0183 | GQ41: 0.0183 | GR41: 0.0183 | GS41: 0.0183 | GT41: 0.0183 | GU41: 0.0183 | GV41: 0.0183 | GW41: 0.0183 | GX41: 0.0183 | GY41: 0.0183 | GZ41: 0.0183 | HA41: 0.0183 | HB41: 0.0183 | HC41: 0.0183 | HD41: 0.0183 | HE41: 0.0183 | HF41: 0.0183 | HG41: 0.0183 | HH41: 0.0183 | HI41: 0.0183 | HJ41: 0.0183 | HK41: 0.0183 | HL41: 0.0183 | HM41: 0.0183 | HN41: 0.0183 | HO41: 0.0183 | HP41: 0.0183 | HQ41: 0.0183 | HR41: 0.0183 | HS41: 0.0183 | HT41: 0.0183 | HU41: 0.0183 | HV41: 0.0183 | HW41: 0.0183 | HX41: 0.0183 | HY41: 0.0183 | HZ41: 0.0183 | IA41: 0.0183 | IB41: 0.0183 | IC41: 0.0183 | ID41: 0.0183 | IE41: 0.0183 | IF41: 0.0183 | IG41: 0.0183 | IH41: 0.0183
A42: 41 | B42: 0.0013 | C42: 0.0001 | D42: 0.00101 | E42: 0.00199 | F42: 0.00234 | G42: 0.00379 | H42: 0.00733 | I42: 0.00743 | J42: 0.01086 | K42: 0.01143 | L42: 0.01149 | M42: 0.01098 | N42: 0.01159 | O42: 0.01152 | P42: 0.00962 | Q42: 0.00858 | R42: 0.00874 | S42: 0.00825 | T42: 0.0082 | U42: 0.01134 | V42: 0.01156 | W42: 0.0125 | X42: 0.0082 | Y42: 0.01134 | Z42: 0.01156 | AA42: 0.0082 | AB42: 0.01134 | AC42: 0.01156 | AD42: 0.0125 | AE42: 0.0125 | AF42: 0.0125 | AG42: 0.0125 | AH42: 0.0125 | AI42: 0.0125 | AJ42: 0.0125 | AK42: 0.0125 | AL42: 0.0125 | AM42: 0.0125 | AN42: 0.0125 | AO42: 0.0125 | AP42: 0.0125 | AQ42: 0.0125 | AR42: 0.0125 | AS42: 0.0125 | AT42: 0.0125 | AU42: 0.0125 | AV42: 0.0125 | AW42: 0.0125 | AX42: 0.0125 | AY42: 0.0125 | AZ42: 0.0125 | BA42: 0.0125 | BB42: 0.0125 | BC42: 0.0125 | BD42: 0.0125 | BE42: 0.0125 | BF42: 0.0125 | BG42: 0.0125 | BH42: 0.0125 | BI42: 0.0125 | BJ42: 0.0125 | BK42: 0.0125 | BL42: 0.0125 | BM42: 0.0125 | BN42: 0.0125 | BO42: 0.0125 | BP42: 0.0125 | BQ42: 0.0125 | BR42: 0.0125 | BS42: 0.0125 | BT42: 0.0125 | BU42: 0.0125 | BV42: 0.0125 | BW42: 0.0125 | BX42: 0.0125 | BY42: 0.0125 | BZ42: 0.0125 | CA42: 0.0125 | CB42: 0.0125 | CC42: 0.0125 | CD42: 0.0125 | CE42: 0.0125 | CF42: 0.0125 | CG42: 0.0125 | CH42: 0.0125 | CI42: 0.0125 | CJ42: 0.0125 | CK42: 0.0125 | CL42: 0.0125 | CM42: 0.0125 | CN42: 0.0125 | CO42: 0.0125 | CP42: 0.0125 | CQ42: 0.0125 | CR42: 0.0125 | CS42: 0.0125 | CT42: 0.0125 | CU42: 0.0125 | CV42: 0.0125 | CW42: 0.0125 | CX42: 0.0125 | CY42: 0.0125 | CZ42: 0.0125 | DA42: 0.0125 | DB42: 0.0125 | DC42: 0.0125 | DD42: 0.0125 | DE42: 0.0125 | DF42: 0.0125 | DG42: 0.0125 | DH42: 0.0125 | DI42: 0.0125 | DJ42: 0.0125 | DK42: 0.0125 | DL42: 0.0125 | DM42: 0.0125 | DN42: 0.0125 | DO42: 0.0125 | DP42: 0.0125 | DQ42: 0.0125 | DR42: 0.0125 | DS42: 0.0125 | DT42: 0.0125 | DU42: 0.0125 | DV42: 0.0125 | DW42: 0.0125 | DX42: 0.0125 | DY42: 0.0125 | DZ42: 0.0125 | EA42: 0.0125 | EB42: 0.0125 | EC42: 0.0125 | ED42: 0.0125 | EE42: 0.0125 | EF42: 0.0125 | EG42: 0.0125 | EH42: 0.0125 | EI42: 0.0125 | EJ42: 0.0125 | EK42: 0.0125 | EL42: 0.0125 | EM42: 0.0125 | EN42: 0.0125 | EO42: 0.0125 | EP42: 0.0125 | EQ42: 0.0125 | ER42: 0.0125 | ES42: 0.0125 | ET42: 0.0125 | EU42: 0.0125 | EV42: 0.0125 | EW42: 0.0125 | EX42: 0.0125 | EY42: 0.0125 | EZ42: 0.0125 | FA42: 0.0125 | FB42: 0.0125 | FC42: 0.0125 | FD42: 0.0125 | FE42: 0.0125 | FF42: 0.0125 | FG42: 0.0125 | FH42: 0.0125 | FI42: 0.0125 | FJ42: 0.0125 | FK42: 0.0125 | FL42: 0.0125 | FM42: 0.0125 | FN42: 0.0125 | FO42: 0.0125 | FP42: 0.0125 | FQ42: 0.0125 | FR42: 0.0125 | FS42: 0.0125 | FT42: 0.0125 | FU42: 0.0125 | FV42: 0.0125 | FW42: 0.0125 | FX42: 0.0125 | FY42: 0.0125 | FZ42: 0.0125 | GA42: 0.0125 | GB42: 0.0125 | GC42: 0.0125 | GD42: 0.0125 | GE42: 0.0125 | GF42: 0.0125 | GG42: 0.0125 | GH42: 0.0125 | GI42: 0.0125 | GJ42: 0.0125 | GK42: 0.0125 | GL42: 0.0125 | GM42: 0.0125 | GN42: 0.0125 | GO42: 0.0125 | GP42: 0.0125 | GQ42: 0.0125 | GR42: 0.0125 | GS42: 0.0125 | GT42: 0.0125 | GU42: 0.0125 | GV42: 0.0125 | GW42: 0.0125 | GX42: 0.0125 | GY42: 0.0125 | GZ42: 0.0125 | HA42: 0.0125 | HB42: 0.0125 | HC42: 0.0125 | HD42: 0.0125 | HE42: 0.0125 | HF42: 0.0125 | HG42: 0.0125 | HH42: 0.0125 | HI42: 0.0125 | HJ42: 0.0125 | HK42: 0.0125 | HL42: 0.0125 | HM42: 0.0125 | HN42: 0.0125 | HO42: 0.0125 | HP42: 0.0125 | HQ42: 0.0125 | HR42: 0.0125 | HS42: 0.0125 | HT42: 0.0125 | HU42: 0.0125 | HV42: 0.0125 | HW42: 0.0125 | HX42: 0.0125 | HY42: 0.0125 | HZ42: 0.0125 | IA42: 0.0125 | IB42: 0.0125 | IC42: 0.0125 | ID42: 0.0125 | IE42: 0.0125 | IF42: 0.0125 | IG42: 0.0125 | IH42: 0.0125
A43: 42 | B43: 0.0013 | C43: 0.00174 | D43: 0.00131 | E43: 0.004 | F43: 0.00361 | G43: 0.0014 | H43: 0.00333 | I43: 0.00214 | J43: 0.00576 | K43: 0.00458 | L43: 0.00181 | M43: 0.00412 | N43: 0.00551 | O43: 0.00545 | P43: 0.0033 | Q43: 0.00227 | R43: 0.00222 | S43: 0.00107 | T43: 0.00462 | U43: 0.00302 | V43: 0.00382 | W43: 0.00432 | X43: 0.00462 | Y43: 0.00302 | Z43: 0.00382 | AA43: 0.00462 | AB43: 0.00302 | AC43: 0.00382 | AD43: 0.00432 | AE43: 0.00432 | AF43: 0.00432 | AG43: 0.00432 | AH43: 0.00432 | AI43: 0.00432 | AJ43: 0.00432 | AK43: 0.00432 | AL43: 0.00432 | AM43: 0.00432 | AN43: 0.00432 | AO43: 0.00432 | AP43: 0.00432 | AQ43: 0.00432 | AR43: 0.00432 | AS43: 0.00432 | AT43: 0.00432 | AU43: 0.00432 | AV43: 0.00432 | AW43: 0.00432 | AX43: 0.00432 | AY43: 0.00432 | AZ43: 0.00432 | BA43: 0.00432 | BB43: 0.00432 | BC43: 0.00432 | BD43: 0.00432 | BE43: 0.00432 | BF43: 0.00432 | BG43: 0.00432 | BH43: 0.00432 | BI43: 0.00432 | BJ43: 0.00432 | BK43: 0.00432 | BL43: 0.00432 | BM43: 0.00432 | BN43: 0.00432 | BO43: 0.00432 | BP43: 0.00432 | BQ43: 0.00432 | BR43: 0.00432 | BS43: 0.00432 | BT43: 0.00432 | BU43: 0.00432 | BV43: 0.00432 | BW43: 0.00432 | BX43: 0.00432 | BY43: 0.00432 | BZ43: 0.00432 | CA43: 0.00432 | CB43: 0.00432 | CC43: 0.00432 | CD43: 0.00432 | CE43: 0.00432 | CF43: 0.00432 | CG43: 0.00432 | CH43: 0.00432 | CI43: 0.00432 | CJ43: 0.00432 | CK43: 0.00432 | CL43: 0.00432 | CM43: 0.00432 | CN43: 0.00432 | CO43: 0.00432 | CP43: 0.00432 | CQ43: 0.00432 | CR43: 0.00432 | CS43: 0.00432 | CT43: 0.00432 | CU43: 0.00432 | CV43: 0.00432 | CW43: 0.00432 | CX43: 0.00432 | CY43: 0.00432 | CZ43: 0.00432 | DA43: 0.00432 | DB43: 0.00432 | DC43: 0.00432 | DD43: 0.00432 | DE43: 0.00432 | DF43: 0.00432 | DG43: 0.00432 | DH43: 0.00432 | DI43: 0.00432 | DJ43: 0.00432 | DK43: 0.00432 | DL43: 0.00432 | DM43: 0.00432 | DN43: 0.00432 | DO43: 0.00432 | DP43: 0.00432 | DQ43: 0.00432 | DR43: 0.00432 | DS43: 0.00432 | DT43: 0.00432 | DU43: 0.00432 | DV43: 0.00432 | DW43: 0.00432 | DX43: 0.00432 | DY43: 0.00432 | DZ43: 0.00432 | EA43: 0.00432 | EB43: 0.00432 | EC43: 0.00432 | ED43: 0.00432 | EE43: 0.00432 | EF43: 0.00432 | EG43: 0.00432 | EH43: 0.00432 | EI43: 0.00432 | EJ43: 0.00432 | EK43: 0.00432 | EL43: 0.00432 | EM43: 0.00432 | EN43: 0.00432 | EO43: 0.00432 | EP43: 0.00432 | EQ43: 0.00432 | ER43: 0.00432 | ES43: 0.00432 | ET43: 0.00432 | EU43: 0.00432 | EV43: 0.00432 | EW43: 0.00432 | EX43: 0.00432 | EY43: 0.00432 | EZ43: 0.00432 | FA43: 0.00432 | FB43: 0.00432 | FC43: 0.00432 | FD43: 0.00432 | FE43: 0.00432 | FF43: 0.00432 | FG43: 0.00432 | FH43: 0.00432 | FI43: 0.00432 | FJ43: 0.00432 | FK43: 0.00432 | FL43: 0.00432 | FM43: 0.00432 | FN43: 0.00432 | FO43: 0.00432 | FP43: 0.00432 | FQ43: 0.00432 | FR43: 0.00432 | FS43: 0.00432 | FT43: 0.00432 | FU43: 0.00432 | FV43: 0.00432 | FW43: 0.00432 | FX43: 0.00432 | FY43: 0.00432 | FZ43: 0.00432 | GA43: 0.00432 | GB43: 0.00432 | GC43: 0.00432 | GD43: 0.00432 | GE43: 0.00432 | GF43: 0.00432 | GG43: 0.00432 | GH43: 0.00432 | GI43: 0.00432 | GJ43: 0.00432 | GK43: 0.00432 | GL43: 0.00432 | GM43: 0.00432 | GN43: 0.00432 | GO43: 0.00432 | GP43: 0.00432 | GQ43: 0.00432 | GR43: 0.00432 | GS43: 0.00432 | GT43: 0.00432 | GU43: 0.00432 | GV43: 0.00432 | GW43: 0.00432 | GX43: 0.00432 | GY43: 0.00432 | GZ43: 0.00432 | HA43: 0.00432 | HB43: 0.00432 | HC43: 0.00432 | HD43: 0.00432 | HE43: 0.00432 | HF43: 0.00432 | HG43: 0.00432 | HH43: 0.00432 | HI43: 0.00432 | HJ43: 0.00432 | HK43: 0.00432 | HL43: 0.00432 | HM43: 0.00432 | HN43: 0.00432 | HO43: 0.00432 | HP43: 0.00432 | HQ43: 0.00432 | HR43: 0.00432 | HS43: 0.00432 | HT43: 0.00432 | HU43: 0.00432 | HV43: 0.00432 | HW43: 0.00432 | HX43: 0.00432 | HY43: 0.00432 | HZ43: 0.00432 | IA43: 0.00432 | IB43: 0.00432 | IC43: 0.00432 | ID43: 0.00432 | IE43: 0.00432 | IF43: 0.00432 | IG43: 0.00432 | IH43: 0.00432
A44: 43 | B44: 0.0013 | C44: 0.00033 | D44: 0.00176 | E44: 0.0001 | F44: 0.0001 | G44: 0.0001 | H44: 0.0001 | I44: 0.00206 | J44: 0.0017 | K44: 0.00322 | L44: 0.00139 | M44: 0.00325 | N44: 0.00515 | O44: 0.00377 | P44: 0.00231 | Q44: 0.0001 | R44: 0.00268 | S44: 0.00604 | T44: 0.00632 | U44: 0.00633 | V44: 0.00932 | W44: 0.01284 | X44: 0.00632 | Y44: 0.00633 | Z44: 0.00932 | AA44: 0.00632 | AB44: 0.00633 | AC44: 0.00932 | AD44: 0.01284 | AE44: 0.01284 | AF44: 0.01284 | AG44: 0.01284 | AH44: 0.01284 | AI44: 0.01284 | AJ44: 0.01284 | AK44: 0.01284 | AL44: 0.01284 | AM44: 0.01284 | AN44: 0.01284 | AO44: 0.01284 | AP44: 0.01284 | AQ44: 0.01284 | AR44: 0.01284 | AS44: 0.01284 | AT44: 0.01284 | AU44: 0.01284 | AV44: 0.01284 | AW44: 0.01284 | AX44: 0.01284 | AY44: 0.01284 | AZ44: 0.01284 | BA44: 0.01284 | BB44: 0.01284 | BC44: 0.01284 | BD44: 0.01284 | BE44: 0.01284 | BF44: 0.01284 | BG44: 0.01284 | BH44: 0.01284 | BI44: 0.01284 | BJ44: 0.01284 | BK44: 0.01284 | BL44: 0.01284 | BM44: 0.01284 | BN44: 0.01284 | BO44: 0.01284 | BP44: 0.01284 | BQ44: 0.01284 | BR44: 0.01284 | BS44: 0.01284 | BT44: 0.01284 | BU44: 0.01284 | BV44: 0.01284 | BW44: 0.01284 | BX44: 0.01284 | BY44: 0.01284 | BZ44: 0.01284 | CA44: 0.01284 | CB44: 0.01284 | CC44: 0.01284 | CD44: 0.01284 | CE44: 0.01284 | CF44: 0.01284 | CG44: 0.01284 | CH44: 0.01284 | CI44: 0.01284 | CJ44: 0.01284 | CK44: 0.01284 | CL44: 0.01284 | CM44: 0.01284 | CN44: 0.01284 | CO44: 0.01284 | CP44: 0.01284 | CQ44: 0.01284 | CR44: 0.01284 | CS44: 0.01284 | CT44: 0.01284 | CU44: 0.01284 | CV44: 0.01284 | CW44: 0.01284 | CX44: 0.01284 | CY44: 0.01284 | CZ44: 0.01284 | DA44: 0.01284 | DB44: 0.01284 | DC44: 0.01284 | DD44: 0.01284 | DE44: 0.01284 | DF44: 0.01284 | DG44: 0.01284 | DH44: 0.01284 | DI44: 0.01284 | DJ44: 0.01284 | DK44: 0.01284 | DL44: 0.01284 | DM44: 0.01284 | DN44: 0.01284 | DO44: 0.01284 | DP44: 0.01284 | DQ44: 0.01284 | DR44: 0.01284 | DS44: 0.01284 | DT44: 0.01284 | DU44: 0.01284 | DV44: 0.01284 | DW44: 0.01284 | DX44: 0.01284 | DY44: 0.01284 | DZ44: 0.01284 | EA44: 0.01284 | EB44: 0.01284 | EC44: 0.01284 | ED44: 0.01284 | EE44: 0.01284 | EF44: 0.01284 | EG44: 0.01284 | EH44: 0.01284 | EI44: 0.01284 | EJ44: 0.01284 | EK44: 0.01284 | EL44: 0.01284 | EM44: 0.01284 | EN44: 0.01284 | EO44: 0.01284 | EP44: 0.01284 | EQ44: 0.01284 | ER44: 0.01284 | ES44: 0.01284 | ET44: 0.01284 | EU44: 0.01284 | EV44: 0.01284 | EW44: 0.01284 | EX44: 0.01284 | EY44: 0.01284 | EZ44: 0.01284 | FA44: 0.01284 | FB44: 0.01284 | FC44: 0.01284 | FD44: 0.01284 | FE44: 0.01284 | FF44: 0.01284 | FG44: 0.01284 | FH44: 0.01284 | FI44: 0.01284 | FJ44: 0.01284 | FK44: 0.01284 | FL44: 0.01284 | FM44: 0.01284 | FN44: 0.01284 | FO44: 0.01284 | FP44: 0.01284 | FQ44: 0.01284 | FR44: 0.01284 | FS44: 0.01284 | FT44: 0.01284 | FU44: 0.01284 | FV44: 0.01284 | FW44: 0.01284 | FX44: 0.01284 | FY44: 0.01284 | FZ44: 0.01284 | GA44: 0.01284 | GB44: 0.01284 | GC44: 0.01284 | GD44: 0.01284 | GE44: 0.01284 | GF44: 0.01284 | GG44: 0.01284 | GH44: 0.01284 | GI44: 0.01284 | GJ44: 0.01284 | GK44: 0.01284 | GL44: 0.01284 | GM44: 0.01284 | GN44: 0.01284 | GO44: 0.01284 | GP44: 0.01284 | GQ44: 0.01284 | GR44: 0.01284 | GS44: 0.01284 | GT44: 0.01284 | GU44: 0.01284 | GV44: 0.01284 | GW44: 0.01284 | GX44: 0.01284 | GY44: 0.01284 | GZ44: 0.01284 | HA44: 0.01284 | HB44: 0.01284 | HC44: 0.01284 | HD44: 0.01284 | HE44: 0.01284 | HF44: 0.01284 | HG44: 0.01284 | HH44: 0.01284 | HI44: 0.01284 | HJ44: 0.01284 | HK44: 0.01284 | HL44: 0.01284 | HM44: 0.01284 | HN44: 0.01284 | HO44: 0.01284 | HP44: 0.01284 | HQ44: 0.01284 | HR44: 0.01284 | HS44: 0.01284 | HT44: 0.01284 | HU44: 0.01284 | HV44: 0.01284 | HW44: 0.01284 | HX44: 0.01284 | HY44: 0.01284 | HZ44: 0.01284 | IA44: 0.01284 | IB44: 0.01284 | IC44: 0.01284 | ID44: 0.01284 | IE44: 0.01284 | IF44: 0.01284 | IG44: 0.01284 | IH44: 0.01284
A45: 44 | B45: 0.0013 | C45: 0.00403 | D45: 0.00266 | E45: 0.00092 | F45: 0.00219 | G45: 0.00526 | H45: 0.00636 | I45: 0.00452 | J45: 0.00596 | K45: 0.00631 | L45: 0.00795 | M45: 0.00458 | N45: 0.00291 | O45: 0.00291 | P45: 0.00563 | Q45: 0.00617 | R45: 0.00327 | S45: 0.00178 | T45: 0.00071 | U45: 0.0024 | V45: 0.0049 | W45: 0.00611 | X45: 0.00071 | Y45: 0.0024 | Z45: 0.0049 | AA45: 0.00071 | AB45: 0.0024 | AC45: 0.0049 | AD45: 0.00611 | AE45: 0.00611 | AF45: 0.00611 | AG45: 0.00611 | AH45: 0.00611 | AI45: 0.00611 | AJ45: 0.00611 | AK45: 0.00611 | AL45: 0.00611 | AM45: 0.00611 | AN45: 0.00611 | AO45: 0.00611 | AP45: 0.00611 | AQ45: 0.00611 | AR45: 0.00611 | AS45: 0.00611 | AT45: 0.00611 | AU45: 0.00611 | AV45: 0.00611 | AW45: 0.00611 | AX45: 0.00611 | AY45: 0.00611 | AZ45: 0.00611 | BA45: 0.00611 | BB45: 0.00611 | BC45: 0.00611 | BD45: 0.00611 | BE45: 0.00611 | BF45: 0.00611 | BG45: 0.00611 | BH45: 0.00611 | BI45: 0.00611 | BJ45: 0.00611 | BK45: 0.00611 | BL45: 0.00611 | BM45: 0.00611 | BN45: 0.00611 | BO45: 0.00611 | BP45: 0.00611 | BQ45: 0.00611 | BR45: 0.00611 | BS45: 0.00611 | BT45: 0.00611 | BU45: 0.00611 | BV45: 0.00611 | BW45: 0.00611 | BX45: 0.00611 | BY45: 0.00611 | BZ45: 0.00611 | CA45: 0.00611 | CB45: 0.00611 | CC45: 0.00611 | CD45: 0.00611 | CE45: 0.00611 | CF45: 0.00611 | CG45: 0.00611 | CH45: 0.00611 | CI45: 0.00611 | CJ45: 0.00611 | CK45: 0.00611 | CL45: 0.00611 | CM45: 0.00611 | CN45: 0.00611 | CO45: 0.00611 | CP45: 0.00611 | CQ45: 0.00611 | CR45: 0.00611 | CS45: 0.00611 | CT45: 0.00611 | CU45: 0.00611 | CV45: 0.00611 | CW45: 0.00611 | CX45: 0.00611 | CY45: 0.00611 | CZ45: 0.00611 | DA45: 0.00611 | DB45: 0.00611 | DC45: 0.00611 | DD45: 0.00611 | DE45: 0.00611 | DF45: 0.00611 | DG45: 0.00611 | DH45: 0.00611 | DI45: 0.00611 | DJ45: 0.00611 | DK45: 0.00611 | DL45: 0.00611 | DM45: 0.00611 | DN45: 0.00611 | DO45: 0.00611 | DP45: 0.00611 | DQ45: 0.00611 | DR45: 0.00611 | DS45: 0.00611 | DT45: 0.00611 | DU45: 0.00611 | DV45: 0.00611 | DW45: 0.00611 | DX45: 0.00611 | DY45: 0.00611 | DZ45: 0.00611 | EA45: 0.00611 | EB45: 0.00611 | EC45: 0.00611 | ED45: 0.00611 | EE45: 0.00611 | EF45: 0.00611 | EG45: 0.00611 | EH45: 0.00611 | EI45: 0.00611 | EJ45: 0.00611 | EK45: 0.00611 | EL45: 0.00611 | EM45: 0.00611 | EN45: 0.00611 | EO45: 0.00611 | EP45: 0.00611 | EQ45: 0.00611 | ER45: 0.00611 | ES45: 0.00611 | ET45: 0.00611 | EU45: 0.00611 | EV45: 0.00611 | EW45: 0.00611 | EX45: 0.00611 | EY45: 0.00611 | EZ45: 0.00611 | FA45: 0.00611 | FB45: 0.00611 | FC45: 0.00611 | FD45: 0.00611 | FE45: 0.00611 | FF45: 0.00611 | FG45: 0.00611 | FH45: 0.00611 | FI45: 0.00611 | FJ45: 0.00611 | FK45: 0.00611 | FL45: 0.00611 | FM45: 0.00611 | FN45: 0.00611 | FO45: 0.00611 | FP45: 0.00611 | FQ45: 0.00611 | FR45: 0.00611 | FS45: 0.00611 | FT45: 0.00611 | FU45: 0.00611 | FV45: 0.00611 | FW45: 0.00611 | FX45: 0.00611 | FY45: 0.00611 | FZ45: 0.00611 | GA45: 0.00611 | GB45: 0.00611 | GC45: 0.00611 | GD45: 0.00611 | GE45: 0.00611 | GF45: 0.00611 | GG45: 0.00611 | GH45: 0.00611 | GI45: 0.00611 | GJ45: 0.00611 | GK45: 0.00611 | GL45: 0.00611 | GM45: 0.00611 | GN45: 0.00611 | GO45: 0.00611 | GP45: 0.00611 | GQ45: 0.00611 | GR45: 0.00611 | GS45: 0.00611 | GT45: 0.00611 | GU45: 0.00611 | GV45: 0.00611 | GW45: 0.00611 | GX45: 0.00611 | GY45: 0.00611 | GZ45: 0.00611 | HA45: 0.00611 | HB45: 0.00611 | HC45: 0.00611 | HD45: 0.00611 | HE45: 0.00611 | HF45: 0.00611 | HG45: 0.00611 | HH45: 0.00611 | HI45: 0.00611 | HJ45: 0.00611 | HK45: 0.00611 | HL45: 0.00611 | HM45: 0.00611 | HN45: 0.00611 | HO45: 0.00611 | HP45: 0.00611 | HQ45: 0.00611 | HR45: 0.00611 | HS45: 0.00611 | HT45: 0.00611 | HU45: 0.00611 | HV45: 0.00611 | HW45: 0.00611 | HX45: 0.00611 | HY45: 0.00611 | HZ45: 0.00611 | IA45: 0.00611 | IB45: 0.00611 | IC45: 0.00611 | ID45: 0.00611 | IE45: 0.00611 | IF45: 0.00611 | IG45: 0.00611 | IH45: 0.00611
A46: 45 | B46: 0.0013 | C46: 0.00013 | D46: 0.0001 | E46: 0.00022 | F46: 0.00104 | G46: 0.0001 | H46: 0.00159 | I46: 0.00205 | J46: 0.0017 | K46: 0.00137 | L46: 0.00213 | M46: 0.00401 | N46: 0.00431 | O46: 0.00534 | P46: 0.00412 | Q46: 0.00275 | R46: 0.00377 | S46: 0.00231 | T46: 0.00111 | U46: 0.00279 | V46: 0.00468 | W46: 0.00712 | X46: 0.00111 | Y46: 0.00279 | Z46: 0.00468 | AA46: 0.00111 | AB46: 0.00279 | AC46: 0.00468 | AD46: 0.00712 | AE46: 0.00712 | AF46: 0.00712 | AG46: 0.00712 | AH46: 0.00712 | AI46: 0.00712 | AJ46: 0.00712 | AK46: 0.00712 | AL46: 0.00712 | AM46: 0.00712 | AN46: 0.00712 | AO46: 0.00712 | AP46: 0.00712 | AQ46: 0.00712 | AR46: 0.00712 | AS46: 0.00712 | AT46: 0.00712 | AU46: 0.00712 | AV46: 0.00712 | AW46: 0.00712 | AX46: 0.00712 | AY46: 0.00712 | AZ46: 0.00712 | BA46: 0.00712 | BB46: 0.00712 | BC46: 0.00712 | BD46: 0.00712 | BE46: 0.00712 | BF46: 0.00712 | BG46: 0.00712 | BH46: 0.00712 | BI46: 0.00712 | BJ46: 0.00712 | BK46: 0.00712 | BL46: 0.00712 | BM46: 0.00712 | BN46: 0.00712 | BO46: 0.00712 | BP46: 0.00712 | BQ46: 0.00712 | BR46: 0.00712 | BS46: 0.00712 | BT46: 0.00712 | BU46: 0.00712 | BV46: 0.00712 | BW46: 0.00712 | BX46: 0.00712 | BY46: 0.00712 | BZ46: 0.00712 | CA46: 0.00712 | CB46: 0.00712 | CC46: 0.00712 | CD46: 0.00712 | CE46: 0.00712 | CF46: 0.00712 | CG46: 0.00712 | CH46: 0.00712 | CI46: 0.00712 | CJ46: 0.00712 | CK46: 0.00712 | CL46: 0.00712 | CM46: 0.00712 | CN46: 0.00712 | CO46: 0.00712 | CP46: 0.00712 | CQ46: 0.00712 | CR46: 0.00712 | CS46: 0.00712 | CT46: 0.00712 | CU46: 0.00712 | CV46: 0.00712 | CW46: 0.00712 | CX46: 0.00712 | CY46: 0.00712 | CZ46: 0.00712 | DA46: 0.00712 | DB46: 0.00712 | DC46: 0.00712 | DD46: 0.00712 | DE46: 0.00712 | DF46: 0.00712 | DG46: 0.00712 | DH46: 0.00712 | DI46: 0.00712 | DJ46: 0.00712 | DK46: 0.00712 | DL46: 0.00712 | DM46: 0.00712 | DN46: 0.00712 | DO46: 0.00712 | DP46: 0.00712 | DQ46: 0.00712 | DR46: 0.00712 | DS46: 0.00712 | DT46: 0.00712 | DU46: 0.00712 | DV46: 0.00712 | DW46: 0.00712 | DX46: 0.00712 | DY46: 0.00712 | DZ46: 0.00712 | EA46: 0.00712 | EB46: 0.00712 | EC46: 0.00712 | ED46: 0.00712 | EE46: 0.00712 | EF46: 0.00712 | EG46: 0.00712 | EH46: 0.00712 | EI46: 0.00712 | EJ46: 0.00712 | EK46: 0.00712 | EL46: 0.00712 | EM46: 0.00712 | EN46: 0.00712 | EO46: 0.00712 | EP46: 0.00712 | EQ46: 0.00712 | ER46: 0.00712 | ES46: 0.00712 | ET46: 0.00712 | EU46: 0.00712 | EV46: 0.00712 | EW46: 0.00712 | EX46: 0.00712 | EY46: 0.00712 | EZ46: 0.00712 | FA46: 0.00712 | FB46: 0.00712 | FC46: 0.00712 | FD46: 0.00712 | FE46: 0.00712 | FF46: 0.00712 | FG46: 0.00712 | FH46: 0.00712 | FI46: 0.00712 | FJ46: 0.00712 | FK46: 0.00712 | FL46: 0.00712 | FM46: 0.00712 | FN46: 0.00712 | FO46: 0.00712 | FP46: 0.00712 | FQ46: 0.00712 | FR46: 0.00712 | FS46: 0.00712 | FT46: 0.00712 | FU46: 0.00712 | FV46: 0.00712 | FW46: 0.00712 | FX46: 0.00712 | FY46: 0.00712 | FZ46: 0.00712 | GA46: 0.00712 | GB46: 0.00712 | GC46: 0.00712 | GD46: 0.00712 | GE46: 0.00712 | GF46: 0.00712 | GG46: 0.00712 | GH46: 0.00712 | GI46: 0.00712 | GJ46: 0.00712 | GK46: 0.00712 | GL46: 0.00712 | GM46: 0.00712 | GN46: 0.00712 | GO46: 0.00712 | GP46: 0.00712 | GQ46: 0.00712 | GR46: 0.00712 | GS46: 0.00712 | GT46: 0.00712 | GU46: 0.00712 | GV46: 0.00712 | GW46: 0.00712 | GX46: 0.00712 | GY46: 0.00712 | GZ46: 0.00712 | HA46: 0.00712 | HB46: 0.00712 | HC46: 0.00712 | HD46: 0.00712 | HE46: 0.00712 | HF46: 0.00712 | HG46: 0.00712 | HH46: 0.00712 | HI46: 0.00712 | HJ46: 0.00712 | HK46: 0.00712 | HL46: 0.00712 | HM46: 0.00712 | HN46: 0.00712 | HO46: 0.00712 | HP46: 0.00712 | HQ46: 0.00712 | HR46: 0.00712 | HS46: 0.00712 | HT46: 0.00712 | HU46: 0.00712 | HV46: 0.00712 | HW46: 0.00712 | HX46: 0.00712 | HY46: 0.00712 | HZ46: 0.00712 | IA46: 0.00712 | IB46: 0.00712 | IC46: 0.00712 | ID46: 0.00712 | IE46: 0.00712 | IF46: 0.00712 | IG46: 0.00712 | IH46: 0.00712
A47: 46 | B47: 0.0013 | C47: 0.00166 | D47: 0.00207 | E47: 0.0043 | F47: 0.00753 | G47: 0.00607 | H47: 0.00655 | I47: 0.00744 | J47: 0.00894 | K47: 0.00766 | L47: 0.00448 | M47: 0.00799 | N47: 0.00853 | O47: 0.0057 | P47: 0.00382 | Q47: 0.00283 | R47: 0.00209 | S47: 0.00575 | T47: 0.00795 | U47: 0.00952 | V47: 0.009 | W47: 0.01056 | X47: 0.00795 | Y47: 0.00952 | Z47: 0.009 | AA47: 0.00795 | AB47: 0.00952 | AC47: 0.009 | AD47: 0.01056 | AE47: 0.01056 | AF47: 0.01056 | AG47: 0.01056 | AH47: 0.01056 | AI47: 0.01056 | AJ47: 0.01056 | AK47: 0.01056 | AL47: 0.01056 | AM47: 0.01056 | AN47: 0.01056 | AO47: 0.01056 | AP47: 0.01056 | AQ47: 0.01056 | AR47: 0.01056 | AS47: 0.01056 | AT47: 0.01056 | AU47: 0.01056 | AV47: 0.01056 | AW47: 0.01056 | AX47: 0.01056 | AY47: 0.01056 | AZ47: 0.01056 | BA47: 0.01056 | BB47: 0.01056 | BC47: 0.01056 | BD47: 0.01056 | BE47: 0.01056 | BF47: 0.01056 | BG47: 0.01056 | BH47: 0.01056 | BI47: 0.01056 | BJ47: 0.01056 | BK47: 0.01056 | BL47: 0.01056 | BM47: 0.01056 | BN47: 0.01056 | BO47: 0.01056 | BP47: 0.01056 | BQ47: 0.01056 | BR47: 0.01056 | BS47: 0.01056 | BT47: 0.01056 | BU47: 0.01056 | BV47: 0.01056 | BW47: 0.01056 | BX47: 0.01056 | BY47: 0.01056 | BZ47: 0.01056 | CA47: 0.01056 | CB47: 0.01056 | CC47: 0.01056 | CD47: 0.01056 | CE47: 0.01056 | CF47: 0.01056 | CG47: 0.01056 | CH47: 0.01056 | CI47: 0.01056 | CJ47: 0.01056 | CK47: 0.01056 | CL47: 0.01056 | CM47: 0.01056 | CN47: 0.01056 | CO47: 0.01056 | CP47: 0.01056 | CQ47: 0.01056 | CR47: 0.01056 | CS47: 0.01056 | CT47: 0.01056 | CU47: 0.01056 | CV47: 0.01056 | CW47: 0.01056 | CX47: 0.01056 | CY47: 0.01056 | CZ47: 0.01056 | DA47: 0.01056 | DB47: 0.01056 | DC47: 0.01056 | DD47: 0.01056 | DE47: 0.01056 | DF47: 0.01056 | DG47: 0.01056 | DH47: 0.01056 | DI47: 0.01056 | DJ47: 0.01056 | DK47: 0.01056 | DL47: 0.01056 | DM47: 0.01056 | DN47: 0.01056 | DO47: 0.01056 | DP47: 0.01056 | DQ47: 0.01056 | DR47: 0.01056 | DS47: 0.01056 | DT47: 0.01056 | DU47: 0.01056 | DV47: 0.01056 | DW47: 0.01056 | DX47: 0.01056 | DY47: 0.01056 | DZ47: 0.01056 | EA47: 0.01056 | EB47: 0.01056 | EC47: 0.01056 | ED47: 0.01056 | EE47: 0.01056 | EF47: 0.01056 | EG47: 0.01056 | EH47: 0.01056 | EI47: 0.01056 | EJ47: 0.01056 | EK47: 0.01056 | EL47: 0.01056 | EM47: 0.01056 | EN47: 0.01056 | EO47: 0.01056 | EP47: 0.01056 | EQ47: 0.01056 | ER47: 0.01056 | ES47: 0.01056 | ET47: 0.01056 | EU47: 0.01056 | EV47: 0.01056 | EW47: 0.01056 | EX47: 0.01056 | EY47: 0.01056 | EZ47: 0.01056 | FA47: 0.01056 | FB47: 0.01056 | FC47: 0.01056 | FD47: 0.01056 | FE47: 0.01056 | FF47: 0.01056 | FG47: 0.01056 | FH47: 0.01056 | FI47: 0.01056 | FJ47: 0.01056 | FK47: 0.01056 | FL47: 0.01056 | FM47: 0.01056 | FN47: 0.01056 | FO47: 0.01056 | FP47: 0.01056 | FQ47: 0.01056 | FR47: 0.01056 | FS47: 0.01056 | FT47: 0.01056 | FU47: 0.01056 | FV47: 0.01056 | FW47: 0.01056 | FX47: 0.01056 | FY47: 0.01056 | FZ47: 0.01056 | GA47: 0.01056 | GB47: 0.01056 | GC47: 0.01056 | GD47: 0.01056 | GE47: 0.01056 | GF47: 0.01056 | GG47: 0.01056 | GH47: 0.01056 | GI47: 0.01056 | GJ47: 0.01056 | GK47: 0.01056 | GL47: 0.01056 | GM47: 0.01056 | GN47: 0.01056 | GO47: 0.01056 | GP47: 0.01056 | GQ47: 0.01056 | GR47: 0.01056 | GS47: 0.01056 | GT47: 0.01056 | GU47: 0.01056 | GV47: 0.01056 | GW47: 0.01056 | GX47: 0.01056 | GY47: 0.01056 | GZ47: 0.01056 | HA47: 0.01056 | HB47: 0.01056 | HC47: 0.01056 | HD47: 0.01056 | HE47: 0.01056 | HF47: 0.01056 | HG47: 0.01056 | HH47: 0.01056 | HI47: 0.01056 | HJ47: 0.01056 | HK47: 0.01056 | HL47: 0.01056 | HM47: 0.01056 | HN47: 0.01056 | HO47: 0.01056 | HP47: 0.01056 | HQ47: 0.01056 | HR47: 0.01056 | HS47: 0.01056 | HT47: 0.01056 | HU47: 0.01056 | HV47: 0.01056 | HW47: 0.01056 | HX47: 0.01056 | HY47: 0.01056 | HZ47: 0.01056 | IA47: 0.01056 | IB47: 0.01056 | IC47: 0.01056 | ID47: 0.01056 | IE47: 0.01056 | IF47: 0.01056 | IG47: 0.01056 | IH47: 0.01056
A48: 47 | B48: 0.0013 | C48: 0.00072 | D48: 0.00054 | E48: 0.00168 | F48: 0.00491 | G48: 0.00552 | H48: 0.00425 | I48: 0.00559 | J48: 0.00819 | K48: 0.01068 | L48: 0.01423 | M48: 0.0146 | N48: 0.01679 | O48: 0.01566 | P48: 0.01684 | Q48: 0.01679 | R48: 0.01965 | S48: 0.01614 | T48: 0.01683 | U48: 0.01868 | V48: 0.02116 | W48: 0.0208 | X48: 0.01683 | Y48: 0.01868 | Z48: 0.02116 | AA48: 0.01683 | AB48: 0.01868 | AC48: 0.02116 | AD48: 0.0208 | AE48: 0.0208 | AF48: 0.0208 | AG48: 0.0208 | AH48: 0.0208 | AI48: 0.0208 | AJ48: 0.0208 | AK48: 0.0208 | AL48: 0.0208 | AM48: 0.0208 | AN48: 0.0208 | AO48: 0.0208 | AP48: 0.0208 | AQ48: 0.0208 | AR48: 0.0208 | AS48: 0.0208 | AT48: 0.0208 | AU48: 0.0208 | AV48: 0.0208 | AW48: 0.0208 | AX48: 0.0208 | AY48: 0.0208 | AZ48: 0.0208 | BA48: 0.0208 | BB48: 0.0208 | BC48: 0.0208 | BD48: 0.0208 | BE48: 0.0208 | BF48: 0.0208 | BG48: 0.0208 | BH48: 0.0208 | BI48: 0.0208 | BJ48: 0.0208 | BK48: 0.0208 | BL48: 0.0208 | BM48: 0.0208 | BN48: 0.0208 | BO48: 0.0208 | BP48: 0.0208 | BQ48: 0.0208 | BR48: 0.0208 | BS48: 0.0208 | BT48: 0.0208 | BU48: 0.0208 | BV48: 0.0208 | BW48: 0.0208 | BX48: 0.0208 | BY48: 0.0208 | BZ48: 0.0208 | CA48: 0.0208 | CB48: 0.0208 | CC48: 0.0208 | CD48: 0.0208 | CE48: 0.0208 | CF48: 0.0208 | CG48: 0.0208 | CH48: 0.0208 | CI48: 0.0208 | CJ48: 0.0208 | CK48: 0.0208 | CL48: 0.0208 | CM48: 0.0208 | CN48: 0.0208 | CO48: 0.0208 | CP48: 0.0208 | CQ48: 0.0208 | CR48: 0.0208 | CS48: 0.0208 | CT48: 0.0208 | CU48: 0.0208 | CV48: 0.0208 | CW48: 0.0208 | CX48: 0.0208 | CY48: 0.0208 | CZ48: 0.0208 | DA48: 0.0208 | DB48: 0.0208 | DC48: 0.0208 | DD48: 0.0208 | DE48: 0.0208 | DF48: 0.0208 | DG48: 0.0208 | DH48: 0.0208 | DI48: 0.0208 | DJ48: 0.0208 | DK48: 0.0208 | DL48: 0.0208 | DM48: 0.0208 | DN48: 0.0208 | DO48: 0.0208 | DP48: 0.0208 | DQ48: 0.0208 | DR48: 0.0208 | DS48: 0.0208 | DT48: 0.0208 | DU48: 0.0208 | DV48: 0.0208 | DW48: 0.0208 | DX48: 0.0208 | DY48: 0.0208 | DZ48: 0.0208 | EA48: 0.0208 | EB48: 0.0208 | EC48: 0.0208 | ED48: 0.0208 | EE48: 0.0208 | EF48: 0.0208 | EG48: 0.0208 | EH48: 0.0208 | EI48: 0.0208 | EJ48: 0.0208 | EK48: 0.0208 | EL48: 0.0208 | EM48: 0.0208 | EN48: 0.0208 | EO48: 0.0208 | EP48: 0.0208 | EQ48: 0.0208 | ER48: 0.0208 | ES48: 0.0208 | ET48: 0.0208 | EU48: 0.0208 | EV48: 0.0208 | EW48: 0.0208 | EX48: 0.0208 | EY48: 0.0208 | EZ48: 0.0208 | FA48: 0.0208 | FB48: 0.0208 | FC48: 0.0208 | FD48: 0.0208 | FE48: 0.0208 | FF48: 0.0208 | FG48: 0.0208 | FH48: 0.0208 | FI48: 0.0208 | FJ48: 0.0208 | FK48: 0.0208 | FL48: 0.0208 | FM48: 0.0208 | FN48: 0.0208 | FO48: 0.0208 | FP48: 0.0208 | FQ48: 0.0208 | FR48: 0.0208 | FS48: 0.0208 | FT48: 0.0208 | FU48: 0.0208 | FV48: 0.0208 | FW48: 0.0208 | FX48: 0.0208 | FY48: 0.0208 | FZ48: 0.0208 | GA48: 0.0208 | GB48: 0.0208 | GC48: 0.0208 | GD48: 0.0208 | GE48: 0.0208 | GF48: 0.0208 | GG48: 0.0208 | GH48: 0.0208 | GI48: 0.0208 | GJ48: 0.0208 | GK48: 0.0208 | GL48: 0.0208 | GM48: 0.0208 | GN48: 0.0208 | GO48: 0.0208 | GP48: 0.0208 | GQ48: 0.0208 | GR48: 0.0208 | GS48: 0.0208 | GT48: 0.0208 | GU48: 0.0208 | GV48: 0.0208 | GW48: 0.0208 | GX48: 0.0208 | GY48: 0.0208 | GZ48: 0.0208 | HA48: 0.0208 | HB48: 0.0208 | HC48: 0.0208 | HD48: 0.0208 | HE48: 0.0208 | HF48: 0.0208 | HG48: 0.0208 | HH48: 0.0208 | HI48: 0.0208 | HJ48: 0.0208 | HK48: 0.0208 | HL48: 0.0208 | HM48: 0.0208 | HN48: 0.0208 | HO48: 0.0208 | HP48: 0.0208 | HQ48: 0.0208 | HR48: 0.0208 | HS48: 0.0208 | HT48: 0.0208 | HU48: 0.0208 | HV48: 0.0208 | HW48: 0.0208 | HX48: 0.0208 | HY48: 0.0208 | HZ48: 0.0208 | IA48: 0.0208 | IB48: 0.0208 | IC48: 0.0208 | ID48: 0.0208 | IE48: 0.0208 | IF48: 0.0208 | IG48: 0.0208 | IH48: 0.0208
A49: 48 | B49: 0.0013 | C49: 0.00376 | D49: 0.00661 | E49: 0.00706 | F49: 0.00906 | G49: 0.00999 | H49: 0.00902 | I49: 0.00787 | J49: 0.00801 | K49: 0.00766 | L49: 0.00586 | M49: 0.00596 | N49: 0.00593 | O49: 0.00677 | P49: 0.00793 | Q49: 0.00653 | R49: 0.00618 | S49: 0.00575 | T49: 0.00634 | U49: 0.0063 | V49: 0.00464 | W49: 0.00412 | X49: 0.00634 | Y49: 0.0063 | Z49: 0.00464 | AA49: 0.00634 | AB49: 0.0063 | AC49: 0.00464 | AD49: 0.00412 | AE49: 0.00412 | AF49: 0.00412 | AG49: 0.00412 | AH49: 0.00412 | AI49: 0.00412 | AJ49: 0.00412 | AK49: 0.00412 | AL49: 0.00412 | AM49: 0.00412 | AN49: 0.00412 | AO49: 0.00412 | AP49: 0.00412 | AQ49: 0.00412 | AR49: 0.00412 | AS49: 0.00412 | AT49: 0.00412 | AU49: 0.00412 | AV49: 0.00412 | AW49: 0.00412 | AX49: 0.00412 | AY49: 0.00412 | AZ49: 0.00412 | BA49: 0.00412 | BB49: 0.00412 | BC49: 0.00412 | BD49: 0.00412 | BE49: 0.00412 | BF49: 0.00412 | BG49: 0.00412 | BH49: 0.00412 | BI49: 0.00412 | BJ49: 0.00412 | BK49: 0.00412 | BL49: 0.00412 | BM49: 0.00412 | BN49: 0.00412 | BO49: 0.00412 | BP49: 0.00412 | BQ49: 0.00412 | BR49: 0.00412 | BS49: 0.00412 | BT49: 0.00412 | BU49: 0.00412 | BV49: 0.00412 | BW49: 0.00412 | BX49: 0.00412 | BY49: 0.00412 | BZ49: 0.00412 | CA49: 0.00412 | CB49: 0.00412 | CC49: 0.00412 | CD49: 0.00412 | CE49: 0.00412 | CF49: 0.00412 | CG49: 0.00412 | CH49: 0.00412 | CI49: 0.00412 | CJ49: 0.00412 | CK49: 0.00412 | CL49: 0.00412 | CM49: 0.00412 | CN49: 0.00412 | CO49: 0.00412 | CP49: 0.00412 | CQ49: 0.00412 | CR49: 0.00412 | CS49: 0.00412 | CT49: 0.00412 | CU49: 0.00412 | CV49: 0.00412 | CW49: 0.00412 | CX49: 0.00412 | CY49: 0.00412 | CZ49: 0.00412 | DA49: 0.00412 | DB49: 0.00412 | DC49: 0.00412 | DD49: 0.00412 | DE49: 0.00412 | DF49: 0.00412 | DG49: 0.00412 | DH49: 0.00412 | DI49: 0.00412 | DJ49: 0.00412 | DK49: 0.00412 | DL49: 0.00412 | DM49: 0.00412 | DN49: 0.00412 | DO49: 0.00412 | DP49: 0.00412 | DQ49: 0.00412 | DR49: 0.00412 | DS49: 0.00412 | DT49: 0.00412 | DU49: 0.00412 | DV49: 0.00412 | DW49: 0.00412 | DX49: 0.00412 | DY49: 0.00412 | DZ49: 0.00412 | EA49: 0.00412 | EB49: 0.00412 | EC49: 0.00412 | ED49: 0.00412 | EE49: 0.00412 | EF49: 0.00412 | EG49: 0.00412 | EH49: 0.00412 | EI49: 0.00412 | EJ49: 0.00412 | EK49: 0.00412 | EL49: 0.00412 | EM49: 0.00412 | EN49: 0.00412 | EO49: 0.00412 | EP49: 0.00412 | EQ49: 0.00412 | ER49: 0.00412 | ES49: 0.00412 | ET49: 0.00412 | EU49: 0.00412 | EV49: 0.00412 | EW49: 0.00412 | EX49: 0.00412 | EY49: 0.00412 | EZ49: 0.00412 | FA49: 0.00412 | FB49: 0.00412 | FC49: 0.00412 | FD49: 0.00412 | FE49: 0.00412 | FF49: 0.00412 | FG49: 0.00412 | FH49: 0.00412 | FI49: 0.00412 | FJ49: 0.00412 | FK49: 0.00412 | FL49: 0.00412 | FM49: 0.00412 | FN49: 0.00412 | FO49: 0.00412 | FP49: 0.00412 | FQ49: 0.00412 | FR49: 0.00412 | FS49: 0.00412 | FT49: 0.00412 | FU49: 0.00412 | FV49: 0.00412 | FW49: 0.00412 | FX49: 0.00412 | FY49: 0.00412 | FZ49: 0.00412 | GA49: 0.00412 | GB49: 0.00412 | GC49: 0.00412 | GD49: 0.00412 | GE49: 0.00412 | GF49: 0.00412 | GG49: 0.00412 | GH49: 0.00412 | GI49: 0.00412 | GJ49: 0.00412 | GK49: 0.00412 | GL49: 0.00412 | GM49: 0.00412 | GN49: 0.00412 | GO49: 0.00412 | GP49: 0.00412 | GQ49: 0.00412 | GR49: 0.00412 | GS49: 0.00412 | GT49: 0.00412 | GU49: 0.00412 | GV49: 0.00412 | GW49: 0.00412 | GX49: 0.00412 | GY49: 0.00412 | GZ49: 0.00412 | HA49: 0.00412 | HB49: 0.00412 | HC49: 0.00412 | HD49: 0.00412 | HE49: 0.00412 | HF49: 0.00412 | HG49: 0.00412 | HH49: 0.00412 | HI49: 0.00412 | HJ49: 0.00412 | HK49: 0.00412 | HL49: 0.00412 | HM49: 0.00412 | HN49: 0.00412 | HO49: 0.00412 | HP49: 0.00412 | HQ49: 0.00412 | HR49: 0.00412 | HS49: 0.00412 | HT49: 0.00412 | HU49: 0.00412 | HV49: 0.00412 | HW49: 0.00412 | HX49: 0.00412 | HY49: 0.00412 | HZ49: 0.00412 | IA49: 0.00412 | IB49: 0.00412 | IC49: 0.00412 | ID49: 0.00412 | IE49: 0.00412 | IF49: 0.00412 | IG49: 0.00412 | IH49: 0.00412
A50: 49 | B50: 0.0013 | C50: 0.00193 | D50: 0.00514 | E50: 0.001 | F50: 0.0001 | G50: 0.0001 | H50: 0.00021 | I50: 0.0001 | J50: 0.0001 | K50: 0.00046 | L50: 0.0001 | M50: 0.0001 | N50: 0.00172 | O50: 0.00291 | P50: 0.00372 | Q50: 0.00588 | R50: 0.0056 | S50: 0.0033 | T50: 0.00471 | U50: 0.00644 | V50: 0.00387 | W50: 0.00521 | X50: 0.00471 | Y50: 0.00644 | Z50: 0.00387 | AA50: 0.00471 | AB50: 0.00644 | AC50: 0.00387 | AD50: 0.00521 | AE50: 0.00521 | AF50: 0.00521 | AG50: 0.00521 | AH50: 0.00521 | AI50: 0.00521 | AJ50: 0.00521 | AK50: 0.00521 | AL50: 0.00521 | AM50: 0.00521 | AN50: 0.00521 | AO50: 0.00521 | AP50: 0.00521 | AQ50: 0.00521 | AR50: 0.00521 | AS50: 0.00521 | AT50: 0.00521 | AU50: 0.00521 | AV50: 0.00521 | AW50: 0.00521 | AX50: 0.00521 | AY50: 0.00521 | AZ50: 0.00521 | BA50: 0.00521 | BB50: 0.00521 | BC50: 0.00521 | BD50: 0.00521 | BE50: 0.00521 | BF50: 0.00521 | BG50: 0.00521 | BH50: 0.00521 | BI50: 0.00521 | BJ50: 0.00521 | BK50: 0.00521 | BL50: 0.00521 | BM50: 0.00521 | BN50: 0.00521 | BO50: 0.00521 | BP50: 0.00521 | BQ50: 0.00521 | BR50: 0.00521 | BS50: 0.00521 | BT50: 0.00521 | BU50: 0.00521 | BV50: 0.00521 | BW50: 0.00521 | BX50: 0.00521 | BY50: 0.00521 | BZ50: 0.00521 | CA50: 0.00521 | CB50: 0.00521 | CC50: 0.00521 | CD50: 0.00521 | CE50: 0.00521 | CF50: 0.00521 | CG50: 0.00521 | CH50: 0.00521 | CI50: 0.00521 | CJ50: 0.00521 | CK50: 0.00521 | CL50: 0.00521 | CM50: 0.00521 | CN50: 0.00521 | CO50: 0.00521 | CP50: 0.00521 | CQ50: 0.00521 | CR50: 0.00521 | CS50: 0.00521 | CT50: 0.00521 | CU50: 0.00521 | CV50: 0.00521 | CW50: 0.00521 | CX50: 0.00521 | CY50: 0.00521 | CZ50: 0.00521 | DA50: 0.00521 | DB50: 0.00521 | DC50: 0.00521 | DD50: 0.00521 | DE50: 0.00521 | DF50: 0.00521 | DG50: 0.00521 | DH50: 0.00521 | DI50: 0.00521 | DJ50: 0.00521 | DK50: 0.00521 | DL50: 0.00521 | DM50: 0.00521 | DN50: 0.00521 | DO50: 0.00521 | DP50: 0.00521 | DQ50: 0.00521 | DR50: 0.00521 | DS50: 0.00521 | DT50: 0.00521 | DU50: 0.00521 | DV50: 0.00521 | DW50: 0.00521 | DX50: 0.00521 | DY50: 0.00521 | DZ50: 0.00521 | EA50: 0.00521 | EB50: 0.00521 | EC50: 0.00521 | ED50: 0.00521 | EE50: 0.00521 | EF50: 0.00521 | EG50: 0.00521 | EH50: 0.00521 | EI50: 0.00521 | EJ50: 0.00521 | EK50: 0.00521 | EL50: 0.00521 | EM50: 0.00521 | EN50: 0.00521 | EO50: 0.00521 | EP50: 0.00521 | EQ50: 0.00521 | ER50: 0.00521 | ES50: 0.00521 | ET50: 0.00521 | EU50: 0.00521 | EV50: 0.00521 | EW50: 0.00521 | EX50: 0.00521 | EY50: 0.00521 | EZ50: 0.00521 | FA50: 0.00521 | FB50: 0.00521 | FC50: 0.00521 | FD50: 0.00521 | FE50: 0.00521 | FF50: 0.00521 | FG50: 0.00521 | FH50: 0.00521 | FI50: 0.00521 | FJ50: 0.00521 | FK50: 0.00521 | FL50: 0.00521 | FM50: 0.00521 | FN50: 0.00521 | FO50: 0.00521 | FP50: 0.00521 | FQ50: 0.00521 | FR50: 0.00521 | FS50: 0.00521 | FT50: 0.00521 | FU50: 0.00521 | FV50: 0.00521 | FW50: 0.00521 | FX50: 0.00521 | FY50: 0.00521 | FZ50: 0.00521 | GA50: 0.00521 | GB50: 0.00521 | GC50: 0.00521 | GD50: 0.00521 | GE50: 0.00521 | GF50: 0.00521 | GG50: 0.00521 | GH50: 0.00521 | GI50: 0.00521 | GJ50: 0.00521 | GK50: 0.00521 | GL50: 0.00521 | GM50: 0.00521 | GN50: 0.00521 | GO50: 0.00521 | GP50: 0.00521 | GQ50: 0.00521 | GR50: 0.00521 | GS50: 0.00521 | GT50: 0.00521 | GU50: 0.00521 | GV50: 0.00521 | GW50: 0.00521 | GX50: 0.00521 | GY50: 0.00521 | GZ50: 0.00521 | HA50: 0.00521 | HB50: 0.00521 | HC50: 0.00521 | HD50: 0.00521 | HE50: 0.00521 | HF50: 0.00521 | HG50: 0.00521 | HH50: 0.00521 | HI50: 0.00521 | HJ50: 0.00521 | HK50: 0.00521 | HL50: 0.00521 | HM50: 0.00521 | HN50: 0.00521 | HO50: 0.00521 | HP50: 0.00521 | HQ50: 0.00521 | HR50: 0.00521 | HS50: 0.00521 | HT50: 0.00521 | HU50: 0.00521 | HV50: 0.00521 | HW50: 0.00521 | HX50: 0.00521 | HY50: 0.00521 | HZ50: 0.00521 | IA50: 0.00521 | IB50: 0.00521 | IC50: 0.00521 | ID50: 0.00521 | IE50: 0.00521 | IF50: 0.00521 | IG50: 0.00521 | IH50: 0.00521
A51: 50 | B51: 0.0013 | C51: 0.00053 | D51: 0.00026 | E51: 0.0001 | F51: 0.0001 | G51: 0.0001 | H51: 0.0001 | I51: 0.0001 | J51: 0.0001 | K51: 0.00188 | L51: 0.00222 | M51: 0.00147 | N51: 0.00073 | O51: 0.00382 | P51: 0.00367 | Q51: 0.00315 | R51: 0.00362 | S51: 0.00335 | T51: 0.00281 | U51: 0.00496 | V51: 0.00534 | W51: 0.00278 | X51: 0.00281 | Y51: 0.00496 | Z51: 0.00534 | AA51: 0.00281 | AB51: 0.00496 | AC51: 0.00534 | AD51: 0.00278 | AE51: 0.00278 | AF51: 0.00278 | AG51: 0.00278 | AH51: 0.00278 | AI51: 0.00278 | AJ51: 0.00278 | AK51: 0.00278 | AL51: 0.00278 | AM51: 0.00278 | AN51: 0.00278 | AO51: 0.00278 | AP51: 0.00278 | AQ51: 0.00278 | AR51: 0.00278 | AS51: 0.00278 | AT51: 0.00278 | AU51: 0.00278 | AV51: 0.00278 | AW51: 0.00278 | AX51: 0.00278 | AY51: 0.00278 | AZ51: 0.00278 | BA51: 0.00278 | BB51: 0.00278 | BC51: 0.00278 | BD51: 0.00278 | BE51: 0.00278 | BF51: 0.00278 | BG51: 0.00278 | BH51: 0.00278 | BI51: 0.00278 | BJ51: 0.00278 | BK51: 0.00278 | BL51: 0.00278 | BM51: 0.00278 | BN51: 0.00278 | BO51: 0.00278 | BP51: 0.00278 | BQ51: 0.00278 | BR51: 0.00278 | BS51: 0.00278 | BT51: 0.00278 | BU51: 0.00278 | BV51: 0.00278 | BW51: 0.00278 | BX51: 0.00278 | BY51: 0.00278 | BZ51: 0.00278 | CA51: 0.00278 | CB51: 0.00278 | CC51: 0.00278 | CD51: 0.00278 | CE51: 0.00278 | CF51: 0.00278 | CG51: 0.00278 | CH51: 0.00278 | CI51: 0.00278 | CJ51: 0.00278 | CK51: 0.00278 | CL51: 0.00278 | CM51: 0.00278 | CN51: 0.00278 | CO51: 0.00278 | CP51: 0.00278 | CQ51: 0.00278 | CR51: 0.00278 | CS51: 0.00278 | CT51: 0.00278 | CU51: 0.00278 | CV51: 0.00278 | CW51: 0.00278 | CX51: 0.00278 | CY51: 0.00278 | CZ51: 0.00278 | DA51: 0.00278 | DB51: 0.00278 | DC51: 0.00278 | DD51: 0.00278 | DE51: 0.00278 | DF51: 0.00278 | DG51: 0.00278 | DH51: 0.00278 | DI51: 0.00278 | DJ51: 0.00278 | DK51: 0.00278 | DL51: 0.00278 | DM51: 0.00278 | DN51: 0.00278 | DO51: 0.00278 | DP51: 0.00278 | DQ51: 0.00278 | DR51: 0.00278 | DS51: 0.00278 | DT51: 0.00278 | DU51: 0.00278 | DV51: 0.00278 | DW51: 0.00278 | DX51: 0.00278 | DY51: 0.00278 | DZ51: 0.00278 | EA51: 0.00278 | EB51: 0.00278 | EC51: 0.00278 | ED51: 0.00278 | EE51: 0.00278 | EF51: 0.00278 | EG51: 0.00278 | EH51: 0.00278 | EI51: 0.00278 | EJ51: 0.00278 | EK51: 0.00278 | EL51: 0.00278 | EM51: 0.00278 | EN51: 0.00278 | EO51: 0.00278 | EP51: 0.00278 | EQ51: 0.00278 | ER51: 0.00278 | ES51: 0.00278 | ET51: 0.00278 | EU51: 0.00278 | EV51: 0.00278 | EW51: 0.00278 | EX51: 0.00278 | EY51: 0.00278 | EZ51: 0.00278 | FA51: 0.00278 | FB51: 0.00278 | FC51: 0.00278 | FD51: 0.00278 | FE51: 0.00278 | FF51: 0.00278 | FG51: 0.00278 | FH51: 0.00278 | FI51: 0.00278 | FJ51: 0.00278 | FK51: 0.00278 | FL51: 0.00278 | FM51: 0.00278 | FN51: 0.00278 | FO51: 0.00278 | FP51: 0.00278 | FQ51: 0.00278 | FR51: 0.00278 | FS51: 0.00278 | FT51: 0.00278 | FU51: 0.00278 | FV51: 0.00278 | FW51: 0.00278 | FX51: 0.00278 | FY51: 0.00278 | FZ51: 0.00278 | GA51: 0.00278 | GB51: 0.00278 | GC51: 0.00278 | GD51: 0.00278 | GE51: 0.00278 | GF51: 0.00278 | GG51: 0.00278 | GH51: 0.00278 | GI51: 0.00278 | GJ51: 0.00278 | GK51: 0.00278 | GL51: 0.00278 | GM51: 0.00278 | GN51: 0.00278 | GO51: 0.00278 | GP51: 0.00278 | GQ51: 0.00278 | GR51: 0.00278 | GS51: 0.00278 | GT51: 0.00278 | GU51: 0.00278 | GV51: 0.00278 | GW51: 0.00278 | GX51: 0.00278 | GY51: 0.00278 | GZ51: 0.00278 | HA51: 0.00278 | HB51: 0.00278 | HC51: 0.00278 | HD51: 0.00278 | HE51: 0.00278 | HF51: 0.00278 | HG51: 0.00278 | HH51: 0.00278 | HI51: 0.00278 | HJ51: 0.00278 | HK51: 0.00278 | HL51: 0.00278 | HM51: 0.00278 | HN51: 0.00278 | HO51: 0.00278 | HP51: 0.00278 | HQ51: 0.00278 | HR51: 0.00278 | HS51: 0.00278 | HT51: 0.00278 | HU51: 0.00278 | HV51: 0.00278 | HW51: 0.00278 | HX51: 0.00278 | HY51: 0.00278 | HZ51: 0.00278 | IA51: 0.00278 | IB51: 0.00278 | IC51: 0.00278 | ID51: 0.00278 | IE51: 0.00278 | IF51: 0.00278 | IG51: 0.00278 | IH51: 0.00278
A52: 51 | B52: 0.0013 | C52: 0.0001 | D52: 0.00324 | E52: 0.00351 | F52: 0.00396 | G52: 0.0001 | H52: 0.00133 | I52: 0.00044 | J52: 0.00052 | K52: 0.00197 | L52: 0.00246 | M52: 0.0031 | N52: 0.00155 | O52: 0.0001 | P52: 0.00365 | Q52: 0.00736 | R52: 0.00747 | S52: 0.00926 | T52: 0.01079 | U52: 0.01114 | V52: 0.01092 | W52: 0.01467 | X52: 0.01079 | Y52: 0.01114 | Z52: 0.01092 | AA52: 0.01079 | AB52: 0.01114 | AC52: 0.01092 | AD52: 0.01467 | AE52: 0.01467 | AF52: 0.01467 | AG52: 0.01467 | AH52: 0.01467 | AI52: 0.01467 | AJ52: 0.01467 | AK52: 0.01467 | AL52: 0.01467 | AM52: 0.01467 | AN52: 0.01467 | AO52: 0.01467 | AP52: 0.01467 | AQ52: 0.01467 | AR52: 0.01467 | AS52: 0.01467 | AT52: 0.01467 | AU52: 0.01467 | AV52: 0.01467 | AW52: 0.01467 | AX52: 0.01467 | AY52: 0.01467 | AZ52: 0.01467 | BA52: 0.01467 | BB52: 0.01467 | BC52: 0.01467 | BD52: 0.01467 | BE52: 0.01467 | BF52: 0.01467 | BG52: 0.01467 | BH52: 0.01467 | BI52: 0.01467 | BJ52: 0.01467 | BK52: 0.01467 | BL52: 0.01467 | BM52: 0.01467 | BN52: 0.01467 | BO52: 0.01467 | BP52: 0.01467 | BQ52: 0.01467 | BR52: 0.01467 | BS52: 0.01467 | BT52: 0.01467 | BU52: 0.01467 | BV52: 0.01467 | BW52: 0.01467 | BX52: 0.01467 | BY52: 0.01467 | BZ52: 0.01467 | CA52: 0.01467 | CB52: 0.01467 | CC52: 0.01467 | CD52: 0.01467 | CE52: 0.01467 | CF52: 0.01467 | CG52: 0.01467 | CH52: 0.01467 | CI52: 0.01467 | CJ52: 0.01467 | CK52: 0.01467 | CL52: 0.01467 | CM52: 0.01467 | CN52: 0.01467 | CO52: 0.01467 | CP52: 0.01467 | CQ52: 0.01467 | CR52: 0.01467 | CS52: 0.01467 | CT52: 0.01467 | CU52: 0.01467 | CV52: 0.01467 | CW52: 0.01467 | CX52: 0.01467 | CY52: 0.01467 | CZ52: 0.01467 | DA52: 0.01467 | DB52: 0.01467 | DC52: 0.01467 | DD52: 0.01467 | DE52: 0.01467 | DF52: 0.01467 | DG52: 0.01467 | DH52: 0.01467 | DI52: 0.01467 | DJ52: 0.01467 | DK52: 0.01467 | DL52: 0.01467 | DM52: 0.01467 | DN52: 0.01467 | DO52: 0.01467 | DP52: 0.01467 | DQ52: 0.01467 | DR52: 0.01467 | DS52: 0.01467 | DT52: 0.01467 | DU52: 0.01467 | DV52: 0.01467 | DW52: 0.01467 | DX52: 0.01467 | DY52: 0.01467 | DZ52: 0.01467 | EA52: 0.01467 | EB52: 0.01467 | EC52: 0.01467 | ED52: 0.01467 | EE52: 0.01467 | EF52: 0.01467 | EG52: 0.01467 | EH52: 0.01467 | EI52: 0.01467 | EJ52: 0.01467 | EK52: 0.01467 | EL52: 0.01467 | EM52: 0.01467 | EN52: 0.01467 | EO52: 0.01467 | EP52: 0.01467 | EQ52: 0.01467 | ER52: 0.01467 | ES52: 0.01467 | ET52: 0.01467 | EU52: 0.01467 | EV52: 0.01467 | EW52: 0.01467 | EX52: 0.01467 | EY52: 0.01467 | EZ52: 0.01467 | FA52: 0.01467 | FB52: 0.01467 | FC52: 0.01467 | FD52: 0.01467 | FE52: 0.01467 | FF52: 0.01467 | FG52: 0.01467 | FH52: 0.01467 | FI52: 0.01467 | FJ52: 0.01467 | FK52: 0.01467 | FL52: 0.01467 | FM52: 0.01467 | FN52: 0.01467 | FO52: 0.01467 | FP52: 0.01467 | FQ52: 0.01467 | FR52: 0.01467 | FS52: 0.01467 | FT52: 0.01467 | FU52: 0.01467 | FV52: 0.01467 | FW52: 0.01467 | FX52: 0.01467 | FY52: 0.01467 | FZ52: 0.01467 | GA52: 0.01467 | GB52: 0.01467 | GC52: 0.01467 | GD52: 0.01467 | GE52: 0.01467 | GF52: 0.01467 | GG52: 0.01467 | GH52: 0.01467 | GI52: 0.01467 | GJ52: 0.01467 | GK52: 0.01467 | GL52: 0.01467 | GM52: 0.01467 | GN52: 0.01467 | GO52: 0.01467 | GP52: 0.01467 | GQ52: 0.01467 | GR52: 0.01467 | GS52: 0.01467 | GT52: 0.01467 | GU52: 0.01467 | GV52: 0.01467 | GW52: 0.01467 | GX52: 0.01467 | GY52: 0.01467 | GZ52: 0.01467 | HA52: 0.01467 | HB52: 0.01467 | HC52: 0.01467 | HD52: 0.01467 | HE52: 0.01467 | HF52: 0.01467 | HG52: 0.01467 | HH52: 0.01467 | HI52: 0.01467 | HJ52: 0.01467 | HK52: 0.01467 | HL52: 0.01467 | HM52: 0.01467 | HN52: 0.01467 | HO52: 0.01467 | HP52: 0.01467 | HQ52: 0.01467 | HR52: 0.01467 | HS52: 0.01467 | HT52: 0.01467 | HU52: 0.01467 | HV52: 0.01467 | HW52: 0.01467 | HX52: 0.01467 | HY52: 0.01467 | HZ52: 0.01467 | IA52: 0.01467 | IB52: 0.01467 | IC52: 0.01467 | ID52: 0.01467 | IE52: 0.01467 | IF52: 0.01467 | IG52: 0.01467 | IH52: 0.01467
A53: 52 | B53: 0.0013 | C53: 0.00354 | D53: 0.0045 | E53: 0.00336 | F53: 0.00296 | G53: 0.00496 | H53: 0.00702 | I53: 0.01066 | J53: 0.01204 | K53: 0.01005 | L53: 0.01041 | M53: 0.01359 | N53: 0.01435 | O53: 0.01379 | P53: 0.01363 | Q53: 0.01675 | R53: 0.01572 | S53: 0.01598 | T53: 0.01672 | U53: 0.01829 | V53: 0.01869 | W53: 0.01873 | X53: 0.01672 | Y53: 0.01829 | Z53: 0.01869 | AA53: 0.01672 | AB53: 0.01829 | AC53: 0.01869 | AD53: 0.01873 | AE53: 0.01873 | AF53: 0.01873 | AG53: 0.01873 | AH53: 0.01873 | AI53: 0.01873 | AJ53: 0.01873 | AK53: 0.01873 | AL53: 0.01873 | AM53: 0.01873 | AN53: 0.01873 | AO53: 0.01873 | AP53: 0.01873 | AQ53: 0.01873 | AR53: 0.01873 | AS53: 0.01873 | AT53: 0.01873 | AU53: 0.01873 | AV53: 0.01873 | AW53: 0.01873 | AX53: 0.01873 | AY53: 0.01873 | AZ53: 0.01873 | BA53: 0.01873 | BB53: 0.01873 | BC53: 0.01873 | BD53: 0.01873 | BE53: 0.01873 | BF53: 0.01873 | BG53: 0.01873 | BH53: 0.01873 | BI53: 0.01873 | BJ53: 0.01873 | BK53: 0.01873 | BL53: 0.01873 | BM53: 0.01873 | BN53: 0.01873 | BO53: 0.01873 | BP53: 0.01873 | BQ53: 0.01873 | BR53: 0.01873 | BS53: 0.01873 | BT53: 0.01873 | BU53: 0.01873 | BV53: 0.01873 | BW53: 0.01873 | BX53: 0.01873 | BY53: 0.01873 | BZ53: 0.01873 | CA53: 0.01873 | CB53: 0.01873 | CC53: 0.01873 | CD53: 0.01873 | CE53: 0.01873 | CF53: 0.01873 | CG53: 0.01873 | CH53: 0.01873 | CI53: 0.01873 | CJ53: 0.01873 | CK53: 0.01873 | CL53: 0.01873 | CM53: 0.01873 | CN53: 0.01873 | CO53: 0.01873 | CP53: 0.01873 | CQ53: 0.01873 | CR53: 0.01873 | CS53: 0.01873 | CT53: 0.01873 | CU53: 0.01873 | CV53: 0.01873 | CW53: 0.01873 | CX53: 0.01873 | CY53: 0.01873 | CZ53: 0.01873 | DA53: 0.01873 | DB53: 0.01873 | DC53: 0.01873 | DD53: 0.01873 | DE53: 0.01873 | DF53: 0.01873 | DG53: 0.01873 | DH53: 0.01873 | DI53: 0.01873 | DJ53: 0.01873 | DK53: 0.01873 | DL53: 0.01873 | DM53: 0.01873 | DN53: 0.01873 | DO53: 0.01873 | DP53: 0.01873 | DQ53: 0.01873 | DR53: 0.01873 | DS53: 0.01873 | DT53: 0.01873 | DU53: 0.01873 | DV53: 0.01873 | DW53: 0.01873 | DX53: 0.01873 | DY53: 0.01873 | DZ53: 0.01873 | EA53: 0.01873 | EB53: 0.01873 | EC53: 0.01873 | ED53: 0.01873 | EE53: 0.01873 | EF53: 0.01873 | EG53: 0.01873 | EH53: 0.01873 | EI53: 0.01873 | EJ53: 0.01873 | EK53: 0.01873 | EL53: 0.01873 | EM53: 0.01873 | EN53: 0.01873 | EO53: 0.01873 | EP53: 0.01873 | EQ53: 0.01873 | ER53: 0.01873 | ES53: 0.01873 | ET53: 0.01873 | EU53: 0.01873 | EV53: 0.01873 | EW53: 0.01873 | EX53: 0.01873 | EY53: 0.01873 | EZ53: 0.01873 | FA53: 0.01873 | FB53: 0.01873 | FC53: 0.01873 | FD53: 0.01873 | FE53: 0.01873 | FF53: 0.01873 | FG53: 0.01873 | FH53: 0.01873 | FI53: 0.01873 | FJ53: 0.01873 | FK53: 0.01873 | FL53: 0.01873 | FM53: 0.01873 | FN53: 0.01873 | FO53: 0.01873 | FP53: 0.01873 | FQ53: 0.01873 | FR53: 0.01873 | FS53: 0.01873 | FT53: 0.01873 | FU53: 0.01873 | FV53: 0.01873 | FW53: 0.01873 | FX53: 0.01873 | FY53: 0.01873 | FZ53: 0.01873 | GA53: 0.01873 | GB53: 0.01873 | GC53: 0.01873 | GD53: 0.01873 | GE53: 0.01873 | GF53: 0.01873 | GG53: 0.01873 | GH53: 0.01873 | GI53: 0.01873 | GJ53: 0.01873 | GK53: 0.01873 | GL53: 0.01873 | GM53: 0.01873 | GN53: 0.01873 | GO53: 0.01873 | GP53: 0.01873 | GQ53: 0.01873 | GR53: 0.01873 | GS53: 0.01873 | GT53: 0.01873 | GU53: 0.01873 | GV53: 0.01873 | GW53: 0.01873 | GX53: 0.01873 | GY53: 0.01873 | GZ53: 0.01873 | HA53: 0.01873 | HB53: 0.01873 | HC53: 0.01873 | HD53: 0.01873 | HE53: 0.01873 | HF53: 0.01873 | HG53: 0.01873 | HH53: 0.01873 | HI53: 0.01873 | HJ53: 0.01873 | HK53: 0.01873 | HL53: 0.01873 | HM53: 0.01873 | HN53: 0.01873 | HO53: 0.01873 | HP53: 0.01873 | HQ53: 0.01873 | HR53: 0.01873 | HS53: 0.01873 | HT53: 0.01873 | HU53: 0.01873 | HV53: 0.01873 | HW53: 0.01873 | HX53: 0.01873 | HY53: 0.01873 | HZ53: 0.01873 | IA53: 0.01873 | IB53: 0.01873 | IC53: 0.01873 | ID53: 0.01873 | IE53: 0.01873 | IF53: 0.01873 | IG53: 0.01873 | IH53: 0.01873
A54: 53 | B54: 0.0013 | C54: 0.00253 | D54: 0.00206 | E54: 0.00408 | F54: 0.00315 | G54: 0.00147 | H54: 0.00389 | I54: 0.00455 | J54: 0.00483 | K54: 0.007 | L54: 0.00452 | M54: 0.00554 | N54: 0.00659 | O54: 0.00823 | P54: 0.00826 | Q54: 0.00956 | R54: 0.00723 | S54: 0.00814 | T54: 0.0082 | U54: 0.00969 | V54: 0.00834 | W54: 0.00899 | X54: 0.0082 | Y54: 0.00969 | Z54: 0.00834 | AA54: 0.0082 | AB54: 0.00969 | AC54: 0.00834 | AD54: 0.00899 | AE54: 0.00899 | AF54: 0.00899 | AG54: 0.00899 | AH54: 0.00899 | AI54: 0.00899 | AJ54: 0.00899 | AK54: 0.00899 | AL54: 0.00899 | AM54: 0.00899 | AN54: 0.00899 | AO54: 0.00899 | AP54: 0.00899 | AQ54: 0.00899 | AR54: 0.00899 | AS54: 0.00899 | AT54: 0.00899 | AU54: 0.00899 | AV54: 0.00899 | AW54: 0.00899 | AX54: 0.00899 | AY54: 0.00899 | AZ54: 0.00899 | BA54: 0.00899 | BB54: 0.00899 | BC54: 0.00899 | BD54: 0.00899 | BE54: 0.00899 | BF54: 0.00899 | BG54: 0.00899 | BH54: 0.00899 | BI54: 0.00899 | BJ54: 0.00899 | BK54: 0.00899 | BL54: 0.00899 | BM54: 0.00899 | BN54: 0.00899 | BO54: 0.00899 | BP54: 0.00899 | BQ54: 0.00899 | BR54: 0.00899 | BS54: 0.00899 | BT54: 0.00899 | BU54: 0.00899 | BV54: 0.00899 | BW54: 0.00899 | BX54: 0.00899 | BY54: 0.00899 | BZ54: 0.00899 | CA54: 0.00899 | CB54: 0.00899 | CC54: 0.00899 | CD54: 0.00899 | CE54: 0.00899 | CF54: 0.00899 | CG54: 0.00899 | CH54: 0.00899 | CI54: 0.00899 | CJ54: 0.00899 | CK54: 0.00899 | CL54: 0.00899 | CM54: 0.00899 | CN54: 0.00899 | CO54: 0.00899 | CP54: 0.00899 | CQ54: 0.00899 | CR54: 0.00899 | CS54: 0.00899 | CT54: 0.00899 | CU54: 0.00899 | CV54: 0.00899 | CW54: 0.00899 | CX54: 0.00899 | CY54: 0.00899 | CZ54: 0.00899 | DA54: 0.00899 | DB54: 0.00899 | DC54: 0.00899 | DD54: 0.00899 | DE54: 0.00899 | DF54: 0.00899 | DG54: 0.00899 | DH54: 0.00899 | DI54: 0.00899 | DJ54: 0.00899 | DK54: 0.00899 | DL54: 0.00899 | DM54: 0.00899 | DN54: 0.00899 | DO54: 0.00899 | DP54: 0.00899 | DQ54: 0.00899 | DR54: 0.00899 | DS54: 0.00899 | DT54: 0.00899 | DU54: 0.00899 | DV54: 0.00899 | DW54: 0.00899 | DX54: 0.00899 | DY54: 0.00899 | DZ54: 0.00899 | EA54: 0.00899 | EB54: 0.00899 | EC54: 0.00899 | ED54: 0.00899 | EE54: 0.00899 | EF54: 0.00899 | EG54: 0.00899 | EH54: 0.00899 | EI54: 0.00899 | EJ54: 0.00899 | EK54: 0.00899 | EL54: 0.00899 | EM54: 0.00899 | EN54: 0.00899 | EO54: 0.00899 | EP54: 0.00899 | EQ54: 0.00899 | ER54: 0.00899 | ES54: 0.00899 | ET54: 0.00899 | EU54: 0.00899 | EV54: 0.00899 | EW54: 0.00899 | EX54: 0.00899 | EY54: 0.00899 | EZ54: 0.00899 | FA54: 0.00899 | FB54: 0.00899 | FC54: 0.00899 | FD54: 0.00899 | FE54: 0.00899 | FF54: 0.00899 | FG54: 0.00899 | FH54: 0.00899 | FI54: 0.00899 | FJ54: 0.00899 | FK54: 0.00899 | FL54: 0.00899 | FM54: 0.00899 | FN54: 0.00899 | FO54: 0.00899 | FP54: 0.00899 | FQ54: 0.00899 | FR54: 0.00899 | FS54: 0.00899 | FT54: 0.00899 | FU54: 0.00899 | FV54: 0.00899 | FW54: 0.00899 | FX54: 0.00899 | FY54: 0.00899 | FZ54: 0.00899 | GA54: 0.00899 | GB54: 0.00899 | GC54: 0.00899 | GD54: 0.00899 | GE54: 0.00899 | GF54: 0.00899 | GG54: 0.00899 | GH54: 0.00899 | GI54: 0.00899 | GJ54: 0.00899 | GK54: 0.00899 | GL54: 0.00899 | GM54: 0.00899 | GN54: 0.00899 | GO54: 0.00899 | GP54: 0.00899 | GQ54: 0.00899 | GR54: 0.00899 | GS54: 0.00899 | GT54: 0.00899 | GU54: 0.00899 | GV54: 0.00899 | GW54: 0.00899 | GX54: 0.00899 | GY54: 0.00899 | GZ54: 0.00899 | HA54: 0.00899 | HB54: 0.00899 | HC54: 0.00899 | HD54: 0.00899 | HE54: 0.00899 | HF54: 0.00899 | HG54: 0.00899 | HH54: 0.00899 | HI54: 0.00899 | HJ54: 0.00899 | HK54: 0.00899 | HL54: 0.00899 | HM54: 0.00899 | HN54: 0.00899 | HO54: 0.00899 | HP54: 0.00899 | HQ54: 0.00899 | HR54: 0.00899 | HS54: 0.00899 | HT54: 0.00899 | HU54: 0.00899 | HV54: 0.00899 | HW54: 0.00899 | HX54: 0.00899 | HY54: 0.00899 | HZ54: 0.00899 | IA54: 0.00899 | IB54: 0.00899 | IC54: 0.00899 | ID54: 0.00899 | IE54: 0.00899 | IF54: 0.00899 | IG54: 0.00899 | IH54: 0.00899
A55: 54 | B55: 0.0013 | C55: 0.00132 | D55: 0.0001 | E55: 0.0001 | F55: 0.0001 | G55: 0.0001 | H55: 0.0001 | I55: 0.00033 | J55: 0.00064 | K55: 0.00158 | L55: 0.00193 | M55: 0.00359 | N55: 0.00507 | O55: 0.0014 | P55: 0.00379 | Q55: 0.00458 | R55: 0.00551 | S55: 0.00438 | T55: 0.00332 | U55: 0.00473 | V55: 0.00481 | W55: 0.00509 | X55: 0.00332 | Y55: 0.00473 | Z55: 0.00481 | AA55: 0.00332 | AB55: 0.00473 | AC55: 0.00481 | AD55: 0.00509 | AE55: 0.00509 | AF55: 0.00509 | AG55: 0.00509 | AH55: 0.00509 | AI55: 0.00509 | AJ55: 0.00509 | AK55: 0.00509 | AL55: 0.00509 | AM55: 0.00509 | AN55: 0.00509 | AO55: 0.00509 | AP55: 0.00509 | AQ55: 0.00509 | AR55: 0.00509 | AS55: 0.00509 | AT55: 0.00509 | AU55: 0.00509 | AV55: 0.00509 | AW55: 0.00509 | AX55: 0.00509 | AY55: 0.00509 | AZ55: 0.00509 | BA55: 0.00509 | BB55: 0.00509 | BC55: 0.00509 | BD55: 0.00509 | BE55: 0.00509 | BF55: 0.00509 | BG55: 0.00509 | BH55: 0.00509 | BI55: 0.00509 | BJ55: 0.00509 | BK55: 0.00509 | BL55: 0.00509 | BM55: 0.00509 | BN55: 0.00509 | BO55: 0.00509 | BP55: 0.00509 | BQ55: 0.00509 | BR55: 0.00509 | BS55: 0.00509 | BT55: 0.00509 | BU55: 0.00509 | BV55: 0.00509 | BW55: 0.00509 | BX55: 0.00509 | BY55: 0.00509 | BZ55: 0.00509 | CA55: 0.00509 | CB55: 0.00509 | CC55: 0.00509 | CD55: 0.00509 | CE55: 0.00509 | CF55: 0.00509 | CG55: 0.00509 | CH55: 0.00509 | CI55: 0.00509 | CJ55: 0.00509 | CK55: 0.00509 | CL55: 0.00509 | CM55: 0.00509 | CN55: 0.00509 | CO55: 0.00509 | CP55: 0.00509 | CQ55: 0.00509 | CR55: 0.00509 | CS55: 0.00509 | CT55: 0.00509 | CU55: 0.00509 | CV55: 0.00509 | CW55: 0.00509 | CX55: 0.00509 | CY55: 0.00509 | CZ55: 0.00509 | DA55: 0.00509 | DB55: 0.00509 | DC55: 0.00509 | DD55: 0.00509 | DE55: 0.00509 | DF55: 0.00509 | DG55: 0.00509 | DH55: 0.00509 | DI55: 0.00509 | DJ55: 0.00509 | DK55: 0.00509 | DL55: 0.00509 | DM55: 0.00509 | DN55: 0.00509 | DO55: 0.00509 | DP55: 0.00509 | DQ55: 0.00509 | DR55: 0.00509 | DS55: 0.00509 | DT55: 0.00509 | DU55: 0.00509 | DV55: 0.00509 | DW55: 0.00509 | DX55: 0.00509 | DY55: 0.00509 | DZ55: 0.00509 | EA55: 0.00509 | EB55: 0.00509 | EC55: 0.00509 | ED55: 0.00509 | EE55: 0.00509 | EF55: 0.00509 | EG55: 0.00509 | EH55: 0.00509 | EI55: 0.00509 | EJ55: 0.00509 | EK55: 0.00509 | EL55: 0.00509 | EM55: 0.00509 | EN55: 0.00509 | EO55: 0.00509 | EP55: 0.00509 | EQ55: 0.00509 | ER55: 0.00509 | ES55: 0.00509 | ET55: 0.00509 | EU55: 0.00509 | EV55: 0.00509 | EW55: 0.00509 | EX55: 0.00509 | EY55: 0.00509 | EZ55: 0.00509 | FA55: 0.00509 | FB55: 0.00509 | FC55: 0.00509 | FD55: 0.00509 | FE55: 0.00509 | FF55: 0.00509 | FG55: 0.00509 | FH55: 0.00509 | FI55: 0.00509 | FJ55: 0.00509 | FK55: 0.00509 | FL55: 0.00509 | FM55: 0.00509 | FN55: 0.00509 | FO55: 0.00509 | FP55: 0.00509 | FQ55: 0.00509 | FR55: 0.00509 | FS55: 0.00509 | FT55: 0.00509 | FU55: 0.00509 | FV55: 0.00509 | FW55: 0.00509 | FX55: 0.00509 | FY55: 0.00509 | FZ55: 0.00509 | GA55: 0.00509 | GB55: 0.00509 | GC55: 0.00509 | GD55: 0.00509 | GE55: 0.00509 | GF55: 0.00509 | GG55: 0.00509 | GH55: 0.00509 | GI55: 0.00509 | GJ55: 0.00509 | GK55: 0.00509 | GL55: 0.00509 | GM55: 0.00509 | GN55: 0.00509 | GO55: 0.00509 | GP55: 0.00509 | GQ55: 0.00509 | GR55: 0.00509 | GS55: 0.00509 | GT55: 0.00509 | GU55: 0.00509 | GV55: 0.00509 | GW55: 0.00509 | GX55: 0.00509 | GY55: 0.00509 | GZ55: 0.00509 | HA55: 0.00509 | HB55: 0.00509 | HC55: 0.00509 | HD55: 0.00509 | HE55: 0.00509 | HF55: 0.00509 | HG55: 0.00509 | HH55: 0.00509 | HI55: 0.00509 | HJ55: 0.00509 | HK55: 0.00509 | HL55: 0.00509 | HM55: 0.00509 | HN55: 0.00509 | HO55: 0.00509 | HP55: 0.00509 | HQ55: 0.00509 | HR55: 0.00509 | HS55: 0.00509 | HT55: 0.00509 | HU55: 0.00509 | HV55: 0.00509 | HW55: 0.00509 | HX55: 0.00509 | HY55: 0.00509 | HZ55: 0.00509 | IA55: 0.00509 | IB55: 0.00509 | IC55: 0.00509 | ID55: 0.00509 | IE55: 0.00509 | IF55: 0.00509 | IG55: 0.00509 | IH55: 0.00509
A56: 55 | B56: 0.0013 | C56: 0.00479 | D56: 0.00404 | E56: 0.00234 | F56: 0.00168 | G56: 0.00347 | H56: 0.00244 | I56: 0.0027 | J56: 0.00483 | K56: 0.00689 | L56: 0.00763 | M56: 0.01085 | N56: 0.01006 | O56: 0.012 | P56: 0.01452 | Q56: 0.0194 | R56: 0.01898 | S56: 0.01793 | T56: 0.01501 | U56: 0.0173 | V56: 0.01906 | W56: 0.02252 | X56: 0.01501 | Y56: 0.0173 | Z56: 0.01906 | AA56: 0.01501 | AB56: 0.0173 | AC56: 0.01906 | AD56: 0.02252 | AE56: 0.02252 | AF56: 0.02252 | AG56: 0.02252 | AH56: 0.02252 | AI56: 0.02252 | AJ56: 0.02252 | AK56: 0.02252 | AL56: 0.02252 | AM56: 0.02252 | AN56: 0.02252 | AO56: 0.02252 | AP56: 0.02252 | AQ56: 0.02252 | AR56: 0.02252 | AS56: 0.02252 | AT56: 0.02252 | AU56: 0.02252 | AV56: 0.02252 | AW56: 0.02252 | AX56: 0.02252 | AY56: 0.02252 | AZ56: 0.02252 | BA56: 0.02252 | BB56: 0.02252 | BC56: 0.02252 | BD56: 0.02252 | BE56: 0.02252 | BF56: 0.02252 | BG56: 0.02252 | BH56: 0.02252 | BI56: 0.02252 | BJ56: 0.02252 | BK56: 0.02252 | BL56: 0.02252 | BM56: 0.02252 | BN56: 0.02252 | BO56: 0.02252 | BP56: 0.02252 | BQ56: 0.02252 | BR56: 0.02252 | BS56: 0.02252 | BT56: 0.02252 | BU56: 0.02252 | BV56: 0.02252 | BW56: 0.02252 | BX56: 0.02252 | BY56: 0.02252 | BZ56: 0.02252 | CA56: 0.02252 | CB56: 0.02252 | CC56: 0.02252 | CD56: 0.02252 | CE56: 0.02252 | CF56: 0.02252 | CG56: 0.02252 | CH56: 0.02252 | CI56: 0.02252 | CJ56: 0.02252 | CK56: 0.02252 | CL56: 0.02252 | CM56: 0.02252 | CN56: 0.02252 | CO56: 0.02252 | CP56: 0.02252 | CQ56: 0.02252 | CR56: 0.02252 | CS56: 0.02252 | CT56: 0.02252 | CU56: 0.02252 | CV56: 0.02252 | CW56: 0.02252 | CX56: 0.02252 | CY56: 0.02252 | CZ56: 0.02252 | DA56: 0.02252 | DB56: 0.02252 | DC56: 0.02252 | DD56: 0.02252 | DE56: 0.02252 | DF56: 0.02252 | DG56: 0.02252 | DH56: 0.02252 | DI56: 0.02252 | DJ56: 0.02252 | DK56: 0.02252 | DL56: 0.02252 | DM56: 0.02252 | DN56: 0.02252 | DO56: 0.02252 | DP56: 0.02252 | DQ56: 0.02252 | DR56: 0.02252 | DS56: 0.02252 | DT56: 0.02252 | DU56: 0.02252 | DV56: 0.02252 | DW56: 0.02252 | DX56: 0.02252 | DY56: 0.02252 | DZ56: 0.02252 | EA56: 0.02252 | EB56: 0.02252 | EC56: 0.02252 | ED56: 0.02252 | EE56: 0.02252 | EF56: 0.02252 | EG56: 0.02252 | EH56: 0.02252 | EI56: 0.02252 | EJ56: 0.02252 | EK56: 0.02252 | EL56: 0.02252 | EM56: 0.02252 | EN56: 0.02252 | EO56: 0.02252 | EP56: 0.02252 | EQ56: 0.02252 | ER56: 0.02252 | ES56: 0.02252 | ET56: 0.02252 | EU56: 0.02252 | EV56: 0.02252 | EW56: 0.02252 | EX56: 0.02252 | EY56: 0.02252 | EZ56: 0.02252 | FA56: 0.02252 | FB56: 0.02252 | FC56: 0.02252 | FD56: 0.02252 | FE56: 0.02252 | FF56: 0.02252 | FG56: 0.02252 | FH56: 0.02252 | FI56: 0.02252 | FJ56: 0.02252 | FK56: 0.02252 | FL56: 0.02252 | FM56: 0.02252 | FN56: 0.02252 | FO56: 0.02252 | FP56: 0.02252 | FQ56: 0.02252 | FR56: 0.02252 | FS56: 0.02252 | FT56: 0.02252 | FU56: 0.02252 | FV56: 0.02252 | FW56: 0.02252 | FX56: 0.02252 | FY56: 0.02252 | FZ56: 0.02252 | GA56: 0.02252 | GB56: 0.02252 | GC56: 0.02252 | GD56: 0.02252 | GE56: 0.02252 | GF56: 0.02252 | GG56: 0.02252 | GH56: 0.02252 | GI56: 0.02252 | GJ56: 0.02252 | GK56: 0.02252 | GL56: 0.02252 | GM56: 0.02252 | GN56: 0.02252 | GO56: 0.02252 | GP56: 0.02252 | GQ56: 0.02252 | GR56: 0.02252 | GS56: 0.02252 | GT56: 0.02252 | GU56: 0.02252 | GV56: 0.02252 | GW56: 0.02252 | GX56: 0.02252 | GY56: 0.02252 | GZ56: 0.02252 | HA56: 0.02252 | HB56: 0.02252 | HC56: 0.02252 | HD56: 0.02252 | HE56: 0.02252 | HF56: 0.02252 | HG56: 0.02252 | HH56: 0.02252 | HI56: 0.02252 | HJ56: 0.02252 | HK56: 0.02252 | HL56: 0.02252 | HM56: 0.02252 | HN56: 0.02252 | HO56: 0.02252 | HP56: 0.02252 | HQ56: 0.02252 | HR56: 0.02252 | HS56: 0.02252 | HT56: 0.02252 | HU56: 0.02252 | HV56: 0.02252 | HW56: 0.02252 | HX56: 0.02252 | HY56: 0.02252 | HZ56: 0.02252 | IA56: 0.02252 | IB56: 0.02252 | IC56: 0.02252 | ID56: 0.02252 | IE56: 0.02252 | IF56: 0.02252 | IG56: 0.02252 | IH56: 0.02252
A57: 56 | B57: 0.0013 | C57: 0.00086 | D57: 0.00187 | E57: 0.00357 | F57: 0.00736 | G57: 0.00644 | H57: 0.00353 | I57: 0.00358 | J57: 0.00358 | K57: 0.00496 | L57: 0.00315 | M57: 0.00108 | N57: 0.00308 | O57: 0.00736 | P57: 0.00709 | Q57: 0.00911 | R57: 0.00888 | S57: 0.01001 | T57: 0.01024 | U57: 0.01037 | V57: 0.00735 | W57: 0.01064 | X57: 0.01024 | Y57: 0.01037 | Z57: 0.00735 | AA57: 0.01024 | AB57: 0.01037 | AC57: 0.00735 | AD57: 0.01064 | AE57: 0.01064 | AF57: 0.01064 | AG57: 0.01064 | AH57: 0.01064 | AI57: 0.01064 | AJ57: 0.01064 | AK57: 0.01064 | AL57: 0.01064 | AM57: 0.01064 | AN57: 0.01064 | AO57: 0.01064 | AP57: 0.01064 | AQ57: 0.01064 | AR57: 0.01064 | AS57: 0.01064 | AT57: 0.01064 | AU57: 0.01064 | AV57: 0.01064 | AW57: 0.01064 | AX57: 0.01064 | AY57: 0.01064 | AZ57: 0.01064 | BA57: 0.01064 | BB57: 0.01064 | BC57: 0.01064 | BD57: 0.01064 | BE57: 0.01064 | BF57: 0.01064 | BG57: 0.01064 | BH57: 0.01064 | BI57: 0.01064 | BJ57: 0.01064 | BK57: 0.01064 | BL57: 0.01064 | BM57: 0.01064 | BN57: 0.01064 | BO57: 0.01064 | BP57: 0.01064 | BQ57: 0.01064 | BR57: 0.01064 | BS57: 0.01064 | BT57: 0.01064 | BU57: 0.01064 | BV57: 0.01064 | BW57: 0.01064 | BX57: 0.01064 | BY57: 0.01064 | BZ57: 0.01064 | CA57: 0.01064 | CB57: 0.01064 | CC57: 0.01064 | CD57: 0.01064 | CE57: 0.01064 | CF57: 0.01064 | CG57: 0.01064 | CH57: 0.01064 | CI57: 0.01064 | CJ57: 0.01064 | CK57: 0.01064 | CL57: 0.01064 | CM57: 0.01064 | CN57: 0.01064 | CO57: 0.01064 | CP57: 0.01064 | CQ57: 0.01064 | CR57: 0.01064 | CS57: 0.01064 | CT57: 0.01064 | CU57: 0.01064 | CV57: 0.01064 | CW57: 0.01064 | CX57: 0.01064 | CY57: 0.01064 | CZ57: 0.01064 | DA57: 0.01064 | DB57: 0.01064 | DC57: 0.01064 | DD57: 0.01064 | DE57: 0.01064 | DF57: 0.01064 | DG57: 0.01064 | DH57: 0.01064 | DI57: 0.01064 | DJ57: 0.01064 | DK57: 0.01064 | DL57: 0.01064 | DM57: 0.01064 | DN57: 0.01064 | DO57: 0.01064 | DP57: 0.01064 | DQ57: 0.01064 | DR57: 0.01064 | DS57: 0.01064 | DT57: 0.01064 | DU57: 0.01064 | DV57: 0.01064 | DW57: 0.01064 | DX57: 0.01064 | DY57: 0.01064 | DZ57: 0.01064 | EA57: 0.01064 | EB57: 0.01064 | EC57: 0.01064 | ED57: 0.01064 | EE57: 0.01064 | EF57: 0.01064 | EG57: 0.01064 | EH57: 0.01064 | EI57: 0.01064 | EJ57: 0.01064 | EK57: 0.01064 | EL57: 0.01064 | EM57: 0.01064 | EN57: 0.01064 | EO57: 0.01064 | EP57: 0.01064 | EQ57: 0.01064 | ER57: 0.01064 | ES57: 0.01064 | ET57: 0.01064 | EU57: 0.01064 | EV57: 0.01064 | EW57: 0.01064 | EX57: 0.01064 | EY57: 0.01064 | EZ57: 0.01064 | FA57: 0.01064 | FB57: 0.01064 | FC57: 0.01064 | FD57: 0.01064 | FE57: 0.01064 | FF57: 0.01064 | FG57: 0.01064 | FH57: 0.01064 | FI57: 0.01064 | FJ57: 0.01064 | FK57: 0.01064 | FL57: 0.01064 | FM57: 0.01064 | FN57: 0.01064 | FO57: 0.01064 | FP57: 0.01064 | FQ57: 0.01064 | FR57: 0.01064 | FS57: 0.01064 | FT57: 0.01064 | FU57: 0.01064 | FV57: 0.01064 | FW57: 0.01064 | FX57: 0.01064 | FY57: 0.01064 | FZ57: 0.01064 | GA57: 0.01064 | GB57: 0.01064 | GC57: 0.01064 | GD57: 0.01064 | GE57: 0.01064 | GF57: 0.01064 | GG57: 0.01064 | GH57: 0.01064 | GI57: 0.01064 | GJ57: 0.01064 | GK57: 0.01064 | GL57: 0.01064 | GM57: 0.01064 | GN57: 0.01064 | GO57: 0.01064 | GP57: 0.01064 | GQ57: 0.01064 | GR57: 0.01064 | GS57: 0.01064 | GT57: 0.01064 | GU57: 0.01064 | GV57: 0.01064 | GW57: 0.01064 | GX57: 0.01064 | GY57: 0.01064 | GZ57: 0.01064 | HA57: 0.01064 | HB57: 0.01064 | HC57: 0.01064 | HD57: 0.01064 | HE57: 0.01064 | HF57: 0.01064 | HG57: 0.01064 | HH57: 0.01064 | HI57: 0.01064 | HJ57: 0.01064 | HK57: 0.01064 | HL57: 0.01064 | HM57: 0.01064 | HN57: 0.01064 | HO57: 0.01064 | HP57: 0.01064 | HQ57: 0.01064 | HR57: 0.01064 | HS57: 0.01064 | HT57: 0.01064 | HU57: 0.01064 | HV57: 0.01064 | HW57: 0.01064 | HX57: 0.01064 | HY57: 0.01064 | HZ57: 0.01064 | IA57: 0.01064 | IB57: 0.01064 | IC57: 0.01064 | ID57: 0.01064 | IE57: 0.01064 | IF57: 0.01064 | IG57: 0.01064 | IH57: 0.01064
A58: 57 | B58: 0.0013 | C58: 0.00073 | D58: 0.00433 | E58: 0.0045 | F58: 0.00333 | G58: 0.00451 | H58: 0.0064 | I58: 0.00578 | J58: 0.00639 | K58: 0.00611 | L58: 0.00361 | M58: 0.00376 | N58: 0.00762 | O58: 0.01026 | P58: 0.0097 | Q58: 0.00691 | R58: 0.00582 | S58: 0.00766 | T58: 0.00989 | U58: 0.0082 | V58: 0.00957 | W58: 0.01218 | X58: 0.00989 | Y58: 0.0082 | Z58: 0.00957 | AA58: 0.00989 | AB58: 0.0082 | AC58: 0.00957 | AD58: 0.01218 | AE58: 0.01218 | AF58: 0.01218 | AG58: 0.01218 | AH58: 0.01218 | AI58: 0.01218 | AJ58: 0.01218 | AK58: 0.01218 | AL58: 0.01218 | AM58: 0.01218 | AN58: 0.01218 | AO58: 0.01218 | AP58: 0.01218 | AQ58: 0.01218 | AR58: 0.01218 | AS58: 0.01218 | AT58: 0.01218 | AU58: 0.01218 | AV58: 0.01218 | AW58: 0.01218 | AX58: 0.01218 | AY58: 0.01218 | AZ58: 0.01218 | BA58: 0.01218 | BB58: 0.01218 | BC58: 0.01218 | BD58: 0.01218 | BE58: 0.01218 | BF58: 0.01218 | BG58: 0.01218 | BH58: 0.01218 | BI58: 0.01218 | BJ58: 0.01218 | BK58: 0.01218 | BL58: 0.01218 | BM58: 0.01218 | BN58: 0.01218 | BO58: 0.01218 | BP58: 0.01218 | BQ58: 0.01218 | BR58: 0.01218 | BS58: 0.01218 | BT58: 0.01218 | BU58: 0.01218 | BV58: 0.01218 | BW58: 0.01218 | BX58: 0.01218 | BY58: 0.01218 | BZ58: 0.01218 | CA58: 0.01218 | CB58: 0.01218 | CC58: 0.01218 | CD58: 0.01218 | CE58: 0.01218 | CF58: 0.01218 | CG58: 0.01218 | CH58: 0.01218 | CI58: 0.01218 | CJ58: 0.01218 | CK58: 0.01218 | CL58: 0.01218 | CM58: 0.01218 | CN58: 0.01218 | CO58: 0.01218 | CP58: 0.01218 | CQ58: 0.01218 | CR58: 0.01218 | CS58: 0.01218 | CT58: 0.01218 | CU58: 0.01218 | CV58: 0.01218 | CW58: 0.01218 | CX58: 0.01218 | CY58: 0.01218 | CZ58: 0.01218 | DA58: 0.01218 | DB58: 0.01218 | DC58: 0.01218 | DD58: 0.01218 | DE58: 0.01218 | DF58: 0.01218 | DG58: 0.01218 | DH58: 0.01218 | DI58: 0.01218 | DJ58: 0.01218 | DK58: 0.01218 | DL58: 0.01218 | DM58: 0.01218 | DN58: 0.01218 | DO58: 0.01218 | DP58: 0.01218 | DQ58: 0.01218 | DR58: 0.01218 | DS58: 0.01218 | DT58: 0.01218 | DU58: 0.01218 | DV58: 0.01218 | DW58: 0.01218 | DX58: 0.01218 | DY58: 0.01218 | DZ58: 0.01218 | EA58: 0.01218 | EB58: 0.01218 | EC58: 0.01218 | ED58: 0.01218 | EE58: 0.01218 | EF58: 0.01218 | EG58: 0.01218 | EH58: 0.01218 | EI58: 0.01218 | EJ58: 0.01218 | EK58: 0.01218 | EL58: 0.01218 | EM58: 0.01218 | EN58: 0.01218 | EO58: 0.01218 | EP58: 0.01218 | EQ58: 0.01218 | ER58: 0.01218 | ES58: 0.01218 | ET58: 0.01218 | EU58: 0.01218 | EV58: 0.01218 | EW58: 0.01218 | EX58: 0.01218 | EY58: 0.01218 | EZ58: 0.01218 | FA58: 0.01218 | FB58: 0.01218 | FC58: 0.01218 | FD58: 0.01218 | FE58: 0.01218 | FF58: 0.01218 | FG58: 0.01218 | FH58: 0.01218 | FI58: 0.01218 | FJ58: 0.01218 | FK58: 0.01218 | FL58: 0.01218 | FM58: 0.01218 | FN58: 0.01218 | FO58: 0.01218 | FP58: 0.01218 | FQ58: 0.01218 | FR58: 0.01218 | FS58: 0.01218 | FT58: 0.01218 | FU58: 0.01218 | FV58: 0.01218 | FW58: 0.01218 | FX58: 0.01218 | FY58: 0.01218 | FZ58: 0.01218 | GA58: 0.01218 | GB58: 0.01218 | GC58: 0.01218 | GD58: 0.01218 | GE58: 0.01218 | GF58: 0.01218 | GG58: 0.01218 | GH58: 0.01218 | GI58: 0.01218 | GJ58: 0.01218 | GK58: 0.01218 | GL58: 0.01218 | GM58: 0.01218 | GN58: 0.01218 | GO58: 0.01218 | GP58: 0.01218 | GQ58: 0.01218 | GR58: 0.01218 | GS58: 0.01218 | GT58: 0.01218 | GU58: 0.01218 | GV58: 0.01218 | GW58: 0.01218 | GX58: 0.01218 | GY58: 0.01218 | GZ58: 0.01218 | HA58: 0.01218 | HB58: 0.01218 | HC58: 0.01218 | HD58: 0.01218 | HE58: 0.01218 | HF58: 0.01218 | HG58: 0.01218 | HH58: 0.01218 | HI58: 0.01218 | HJ58: 0.01218 | HK58: 0.01218 | HL58: 0.01218 | HM58: 0.01218 | HN58: 0.01218 | HO58: 0.01218 | HP58: 0.01218 | HQ58: 0.01218 | HR58: 0.01218 | HS58: 0.01218 | HT58: 0.01218 | HU58: 0.01218 | HV58: 0.01218 | HW58: 0.01218 | HX58: 0.01218 | HY58: 0.01218 | HZ58: 0.01218 | IA58: 0.01218 | IB58: 0.01218 | IC58: 0.01218 | ID58: 0.01218 | IE58: 0.01218 | IF58: 0.01218 | IG58: 0.01218 | IH58: 0.01218
A59: 58 | B59: 0.0013 | C59: 0.00751 | D59: 0.01004 | E59: 0.00704 | F59: 0.00743 | G59: 0.00475 | H59: 0.00629 | I59: 0.00797 | J59: 0.00938 | K59: 0.00699 | L59: 0.00621 | M59: 0.00391 | N59: 0.00571 | O59: 0.00866 | P59: 0.01114 | Q59: 0.01363 | R59: 0.01469 | S59: 0.01218 | T59: 0.0158 | U59: 0.01664 | V59: 0.01612 | W59: 0.01408 | X59: 0.0158 | Y59: 0.01664 | Z59: 0.01612 | AA59: 0.0158 | AB59: 0.01664 | AC59: 0.01612 | AD59: 0.01408 | AE59: 0.01408 | AF59: 0.01408 | AG59: 0.01408 | AH59: 0.01408 | AI59: 0.01408 | AJ59: 0.01408 | AK59: 0.01408 | AL59: 0.01408 | AM59: 0.01408 | AN59: 0.01408 | AO59: 0.01408 | AP59: 0.01408 | AQ59: 0.01408 | AR59: 0.01408 | AS59: 0.01408 | AT59: 0.01408 | AU59: 0.01408 | AV59: 0.01408 | AW59: 0.01408 | AX59: 0.01408 | AY59: 0.01408 | AZ59: 0.01408 | BA59: 0.01408 | BB59: 0.01408 | BC59: 0.01408 | BD59: 0.01408 | BE59: 0.01408 | BF59: 0.01408 | BG59: 0.01408 | BH59: 0.01408 | BI59: 0.01408 | BJ59: 0.01408 | BK59: 0.01408 | BL59: 0.01408 | BM59: 0.01408 | BN59: 0.01408 | BO59: 0.01408 | BP59: 0.01408 | BQ59: 0.01408 | BR59: 0.01408 | BS59: 0.01408 | BT59: 0.01408 | BU59: 0.01408 | BV59: 0.01408 | BW59: 0.01408 | BX59: 0.01408 | BY59: 0.01408 | BZ59: 0.01408 | CA59: 0.01408 | CB59: 0.01408 | CC59: 0.01408 | CD59: 0.01408 | CE59: 0.01408 | CF59: 0.01408 | CG59: 0.01408 | CH59: 0.01408 | CI59: 0.01408 | CJ59: 0.01408 | CK59: 0.01408 | CL59: 0.01408 | CM59: 0.01408 | CN59: 0.01408 | CO59: 0.01408 | CP59: 0.01408 | CQ59: 0.01408 | CR59: 0.01408 | CS59: 0.01408 | CT59: 0.01408 | CU59: 0.01408 | CV59: 0.01408 | CW59: 0.01408 | CX59: 0.01408 | CY59: 0.01408 | CZ59: 0.01408 | DA59: 0.01408 | DB59: 0.01408 | DC59: 0.01408 | DD59: 0.01408 | DE59: 0.01408 | DF59: 0.01408 | DG59: 0.01408 | DH59: 0.01408 | DI59: 0.01408 | DJ59: 0.01408 | DK59: 0.01408 | DL59: 0.01408 | DM59: 0.01408 | DN59: 0.01408 | DO59: 0.01408 | DP59: 0.01408 | DQ59: 0.01408 | DR59: 0.01408 | DS59: 0.01408 | DT59: 0.01408 | DU59: 0.01408 | DV59: 0.01408 | DW59: 0.01408 | DX59: 0.01408 | DY59: 0.01408 | DZ59: 0.01408 | EA59: 0.01408 | EB59: 0.01408 | EC59: 0.01408 | ED59: 0.01408 | EE59: 0.01408 | EF59: 0.01408 | EG59: 0.01408 | EH59: 0.01408 | EI59: 0.01408 | EJ59: 0.01408 | EK59: 0.01408 | EL59: 0.01408 | EM59: 0.01408 | EN59: 0.01408 | EO59: 0.01408 | EP59: 0.01408 | EQ59: 0.01408 | ER59: 0.01408 | ES59: 0.01408 | ET59: 0.01408 | EU59: 0.01408 | EV59: 0.01408 | EW59: 0.01408 | EX59: 0.01408 | EY59: 0.01408 | EZ59: 0.01408 | FA59: 0.01408 | FB59: 0.01408 | FC59: 0.01408 | FD59: 0.01408 | FE59: 0.01408 | FF59: 0.01408 | FG59: 0.01408 | FH59: 0.01408 | FI59: 0.01408 | FJ59: 0.01408 | FK59: 0.01408 | FL59: 0.01408 | FM59: 0.01408 | FN59: 0.01408 | FO59: 0.01408 | FP59: 0.01408 | FQ59: 0.01408 | FR59: 0.01408 | FS59: 0.01408 | FT59: 0.01408 | FU59: 0.01408 | FV59: 0.01408 | FW59: 0.01408 | FX59: 0.01408 | FY59: 0.01408 | FZ59: 0.01408 | GA59: 0.01408 | GB59: 0.01408 | GC59: 0.01408 | GD59: 0.01408 | GE59: 0.01408 | GF59: 0.01408 | GG59: 0.01408 | GH59: 0.01408 | GI59: 0.01408 | GJ59: 0.01408 | GK59: 0.01408 | GL59: 0.01408 | GM59: 0.01408 | GN59: 0.01408 | GO59: 0.01408 | GP59: 0.01408 | GQ59: 0.01408 | GR59: 0.01408 | GS59: 0.01408 | GT59: 0.01408 | GU59: 0.01408 | GV59: 0.01408 | GW59: 0.01408 | GX59: 0.01408 | GY59: 0.01408 | GZ59: 0.01408 | HA59: 0.01408 | HB59: 0.01408 | HC59: 0.01408 | HD59: 0.01408 | HE59: 0.01408 | HF59: 0.01408 | HG59: 0.01408 | HH59: 0.01408 | HI59: 0.01408 | HJ59: 0.01408 | HK59: 0.01408 | HL59: 0.01408 | HM59: 0.01408 | HN59: 0.01408 | HO59: 0.01408 | HP59: 0.01408 | HQ59: 0.01408 | HR59: 0.01408 | HS59: 0.01408 | HT59: 0.01408 | HU59: 0.01408 | HV59: 0.01408 | HW59: 0.01408 | HX59: 0.01408 | HY59: 0.01408 | HZ59: 0.01408 | IA59: 0.01408 | IB59: 0.01408 | IC59: 0.01408 | ID59: 0.01408 | IE59: 0.01408 | IF59: 0.01408 | IG59: 0.01408 | IH59: 0.01408
A60: 59 | B60: 0.0013 | C60: 0.00081 | D60: 0.00392 | E60: 0.0018 | F60: 0.00352 | G60: 0.00442 | H60: 0.0064 | I60: 0.00772 | J60: 0.01174 | K60: 0.01101 | L60: 0.01677 | M60: 0.01861 | N60: 0.02417 | O60: 0.02787 | P60: 0.03041 | Q60: 0.03341 | R60: 0.03152 | S60: 0.02836 | T60: 0.02888 | U60: 0.03138 | V60: 0.03035 | W60: 0.02973 | X60: 0.02888 | Y60: 0.03138 | Z60: 0.03035 | AA60: 0.02888 | AB60: 0.03138 | AC60: 0.03035 | AD60: 0.02973 | AE60: 0.02973 | AF60: 0.02973 | AG60: 0.02973 | AH60: 0.02973 | AI60: 0.02973 | AJ60: 0.02973 | AK60: 0.02973 | AL60: 0.02973 | AM60: 0.02973 | AN60: 0.02973 | AO60: 0.02973 | AP60: 0.02973 | AQ60: 0.02973 | AR60: 0.02973 | AS60: 0.02973 | AT60: 0.02973 | AU60: 0.02973 | AV60: 0.02973 | AW60: 0.02973 | AX60: 0.02973 | AY60: 0.02973 | AZ60: 0.02973 | BA60: 0.02973 | BB60: 0.02973 | BC60: 0.02973 | BD60: 0.02973 | BE60: 0.02973 | BF60: 0.02973 | BG60: 0.02973 | BH60: 0.02973 | BI60: 0.02973 | BJ60: 0.02973 | BK60: 0.02973 | BL60: 0.02973 | BM60: 0.02973 | BN60: 0.02973 | BO60: 0.02973 | BP60: 0.02973 | BQ60: 0.02973 | BR60: 0.02973 | BS60: 0.02973 | BT60: 0.02973 | BU60: 0.02973 | BV60: 0.02973 | BW60: 0.02973 | BX60: 0.02973 | BY60: 0.02973 | BZ60: 0.02973 | CA60: 0.02973 | CB60: 0.02973 | CC60: 0.02973 | CD60: 0.02973 | CE60: 0.02973 | CF60: 0.02973 | CG60: 0.02973 | CH60: 0.02973 | CI60: 0.02973 | CJ60: 0.02973 | CK60: 0.02973 | CL60: 0.02973 | CM60: 0.02973 | CN60: 0.02973 | CO60: 0.02973 | CP60: 0.02973 | CQ60: 0.02973 | CR60: 0.02973 | CS60: 0.02973 | CT60: 0.02973 | CU60: 0.02973 | CV60: 0.02973 | CW60: 0.02973 | CX60: 0.02973 | CY60: 0.02973 | CZ60: 0.02973 | DA60: 0.02973 | DB60: 0.02973 | DC60: 0.02973 | DD60: 0.02973 | DE60: 0.02973 | DF60: 0.02973 | DG60: 0.02973 | DH60: 0.02973 | DI60: 0.02973 | DJ60: 0.02973 | DK60: 0.02973 | DL60: 0.02973 | DM60: 0.02973 | DN60: 0.02973 | DO60: 0.02973 | DP60: 0.02973 | DQ60: 0.02973 | DR60: 0.02973 | DS60: 0.02973 | DT60: 0.02973 | DU60: 0.02973 | DV60: 0.02973 | DW60: 0.02973 | DX60: 0.02973 | DY60: 0.02973 | DZ60: 0.02973 | EA60: 0.02973 | EB60: 0.02973 | EC60: 0.02973 | ED60: 0.02973 | EE60: 0.02973 | EF60: 0.02973 | EG60: 0.02973 | EH60: 0.02973 | EI60: 0.02973 | EJ60: 0.02973 | EK60: 0.02973 | EL60: 0.02973 | EM60: 0.02973 | EN60: 0.02973 | EO60: 0.02973 | EP60: 0.02973 | EQ60: 0.02973 | ER60: 0.02973 | ES60: 0.02973 | ET60: 0.02973 | EU60: 0.02973 | EV60: 0.02973 | EW60: 0.02973 | EX60: 0.02973 | EY60: 0.02973 | EZ60: 0.02973 | FA60: 0.02973 | FB60: 0.02973 | FC60: 0.02973 | FD60: 0.02973 | FE60: 0.02973 | FF60: 0.02973 | FG60: 0.02973 | FH60: 0.02973 | FI60: 0.02973 | FJ60: 0.02973 | FK60: 0.02973 | FL60: 0.02973 | FM60: 0.02973 | FN60: 0.02973 | FO60: 0.02973 | FP60: 0.02973 | FQ60: 0.02973 | FR60: 0.02973 | FS60: 0.02973 | FT60: 0.02973 | FU60: 0.02973 | FV60: 0.02973 | FW60: 0.02973 | FX60: 0.02973 | FY60: 0.02973 | FZ60: 0.02973 | GA60: 0.02973 | GB60: 0.02973 | GC60: 0.02973 | GD60: 0.02973 | GE60: 0.02973 | GF60: 0.02973 | GG60: 0.02973 | GH60: 0.02973 | GI60: 0.02973 | GJ60: 0.02973 | GK60: 0.02973 | GL60: 0.02973 | GM60: 0.02973 | GN60: 0.02973 | GO60: 0.02973 | GP60: 0.02973 | GQ60: 0.02973 | GR60: 0.02973 | GS60: 0.02973 | GT60: 0.02973 | GU60: 0.02973 | GV60: 0.02973 | GW60: 0.02973 | GX60: 0.02973 | GY60: 0.02973 | GZ60: 0.02973 | HA60: 0.02973 | HB60: 0.02973 | HC60: 0.02973 | HD60: 0.02973 | HE60: 0.02973 | HF60: 0.02973 | HG60: 0.02973 | HH60: 0.02973 | HI60: 0.02973 | HJ60: 0.02973 | HK60: 0.02973 | HL60: 0.02973 | HM60: 0.02973 | HN60: 0.02973 | HO60: 0.02973 | HP60: 0.02973 | HQ60: 0.02973 | HR60: 0.02973 | HS60: 0.02973 | HT60: 0.02973 | HU60: 0.02973 | HV60: 0.02973 | HW60: 0.02973 | HX60: 0.02973 | HY60: 0.02973 | HZ60: 0.02973 | IA60: 0.02973 | IB60: 0.02973 | IC60: 0.02973 | ID60: 0.02973 | IE60: 0.02973 | IF60: 0.02973 | IG60: 0.02973 | IH60: 0.02973
A61: 60 | B61: 0.0013 | C61: 0.00126 | D61: 0.00237 | E61: 0.00301 | F61: 0.00197 | G61: 0.00295 | H61: 0.00356 | I61: 0.00331 | J61: 0.00398 | K61: 0.00521 | L61: 0.00329 | M61: 0.00566 | N61: 0.00672 | O61: 0.00817 | P61: 0.01104 | Q61: 0.01526 | R61: 0.01574 | S61: 0.01206 | T61: 0.01233 | U61: 0.01432 | V61: 0.01489 | W61: 0.01606 | X61: 0.01233 | Y61: 0.01432 | Z61: 0.01489 | AA61: 0.01233 | AB61: 0.01432 | AC61: 0.01489 | AD61: 0.01606 | AE61: 0.01606 | AF61: 0.01606 | AG61: 0.01606 | AH61: 0.01606 | AI61: 0.01606 | AJ61: 0.01606 | AK61: 0.01606 | AL61: 0.01606 | AM61: 0.01606 | AN61: 0.01606 | AO61: 0.01606 | AP61: 0.01606 | AQ61: 0.01606 | AR61: 0.01606 | AS61: 0.01606 | AT61: 0.01606 | AU61: 0.01606 | AV61: 0.01606 | AW61: 0.01606 | AX61: 0.01606 | AY61: 0.01606 | AZ61: 0.01606 | BA61: 0.01606 | BB61: 0.01606 | BC61: 0.01606 | BD61: 0.01606 | BE61: 0.01606 | BF61: 0.01606 | BG61: 0.01606 | BH61: 0.01606 | BI61: 0.01606 | BJ61: 0.01606 | BK61: 0.01606 | BL61: 0.01606 | BM61: 0.01606 | BN61: 0.01606 | BO61: 0.01606 | BP61: 0.01606 | BQ61: 0.01606 | BR61: 0.01606 | BS61: 0.01606 | BT61: 0.01606 | BU61: 0.01606 | BV61: 0.01606 | BW61: 0.01606 | BX61: 0.01606 | BY61: 0.01606 | BZ61: 0.01606 | CA61: 0.01606 | CB61: 0.01606 | CC61: 0.01606 | CD61: 0.01606 | CE61: 0.01606 | CF61: 0.01606 | CG61: 0.01606 | CH61: 0.01606 | CI61: 0.01606 | CJ61: 0.01606 | CK61: 0.01606 | CL61: 0.01606 | CM61: 0.01606 | CN61: 0.01606 | CO61: 0.01606 | CP61: 0.01606 | CQ61: 0.01606 | CR61: 0.01606 | CS61: 0.01606 | CT61: 0.01606 | CU61: 0.01606 | CV61: 0.01606 | CW61: 0.01606 | CX61: 0.01606 | CY61: 0.01606 | CZ61: 0.01606 | DA61: 0.01606 | DB61: 0.01606 | DC61: 0.01606 | DD61: 0.01606 | DE61: 0.01606 | DF61: 0.01606 | DG61: 0.01606 | DH61: 0.01606 | DI61: 0.01606 | DJ61: 0.01606 | DK61: 0.01606 | DL61: 0.01606 | DM61: 0.01606 | DN61: 0.01606 | DO61: 0.01606 | DP61: 0.01606 | DQ61: 0.01606 | DR61: 0.01606 | DS61: 0.01606 | DT61: 0.01606 | DU61: 0.01606 | DV61: 0.01606 | DW61: 0.01606 | DX61: 0.01606 | DY61: 0.01606 | DZ61: 0.01606 | EA61: 0.01606 | EB61: 0.01606 | EC61: 0.01606 | ED61: 0.01606 | EE61: 0.01606 | EF61: 0.01606 | EG61: 0.01606 | EH61: 0.01606 | EI61: 0.01606 | EJ61: 0.01606 | EK61: 0.01606 | EL61: 0.01606 | EM61: 0.01606 | EN61: 0.01606 | EO61: 0.01606 | EP61: 0.01606 | EQ61: 0.01606 | ER61: 0.01606 | ES61: 0.01606 | ET61: 0.01606 | EU61: 0.01606 | EV61: 0.01606 | EW61: 0.01606 | EX61: 0.01606 | EY61: 0.01606 | EZ61: 0.01606 | FA61: 0.01606 | FB61: 0.01606 | FC61: 0.01606 | FD61: 0.01606 | FE61: 0.01606 | FF61: 0.01606 | FG61: 0.01606 | FH61: 0.01606 | FI61: 0.01606 | FJ61: 0.01606 | FK61: 0.01606 | FL61: 0.01606 | FM61: 0.01606 | FN61: 0.01606 | FO61: 0.01606 | FP61: 0.01606 | FQ61: 0.01606 | FR61: 0.01606 | FS61: 0.01606 | FT61: 0.01606 | FU61: 0.01606 | FV61: 0.01606 | FW61: 0.01606 | FX61: 0.01606 | FY61: 0.01606 | FZ61: 0.01606 | GA61: 0.01606 | GB61: 0.01606 | GC61: 0.01606 | GD61: 0.01606 | GE61: 0.01606 | GF61: 0.01606 | GG61: 0.01606 | GH61: 0.01606 | GI61: 0.01606 | GJ61: 0.01606 | GK61: 0.01606 | GL61: 0.01606 | GM61: 0.01606 | GN61: 0.01606 | GO61: 0.01606 | GP61: 0.01606 | GQ61: 0.01606 | GR61: 0.01606 | GS61: 0.01606 | GT61: 0.01606 | GU61: 0.01606 | GV61: 0.01606 | GW61: 0.01606 | GX61: 0.01606 | GY61: 0.01606 | GZ61: 0.01606 | HA61: 0.01606 | HB61: 0.01606 | HC61: 0.01606 | HD61: 0.01606 | HE61: 0.01606 | HF61: 0.01606 | HG61: 0.01606 | HH61: 0.01606 | HI61: 0.01606 | HJ61: 0.01606 | HK61: 0.01606 | HL61: 0.01606 | HM61: 0.01606 | HN61: 0.01606 | HO61: 0.01606 | HP61: 0.01606 | HQ61: 0.01606 | HR61: 0.01606 | HS61: 0.01606 | HT61: 0.01606 | HU61: 0.01606 | HV61: 0.01606 | HW61: 0.01606 | HX61: 0.01606 | HY61: 0.01606 | HZ61: 0.01606 | IA61: 0.01606 | IB61: 0.01606 | IC61: 0.01606 | ID61: 0.01606 | IE61: 0.01606 | IF61: 0.01606 | IG61: 0.01606 | IH61: 0.01606
